Workbook

Sheet BinResultsDayOfYear
A1: Day of operation | B1: Count | C1: ODA Temperature (°C) | D1: EL 007 (kW) | E1: GHE EFT (°C) | F1: GHE ExFT (°C) | G1: Clg Provided (kW) | H1: Bldg Htg Provided (kW) | I1: EL 003 (kW) | J1: CP Energy (kW) | K1: DHW Provided by HP (kW) | L1: DHW by LPS (kW) | M1: Useful Bldg Htg by LPS (kW) | N1: Bldg Htg Uncertainty (kW) | O1: Bldg Clg Uncertainty (kW) | P1: DHW Htg by HP Uncertainty (kW) | Q1: Bldg + DHW Htg by HP Uncertainty (kW) | R1: EL007+EL011 Uncertainty (kW) | S1: EL011 Uncertainty (kW) | T1: LPS DHW Uncertainty (kW) | U1: CP Power for Heat Extraction from GHE (kW) | V1: CP Power for Heat Rejection to GHE (kW) | W1: Heat Extraction by GHE (kW) | X1: Heat Rejection to GHE (kW) | Y1: EL007 Uncertainty (kW) | Z1: LPS Electricity going to bldg heat (kW) | AA1: Alt Calc GHE Heat Extraction (kW) | AB1: Alt Calc GHE Heat Extraction (kW) | AC1: HtgFrac | AD1: COP H4 | AE1: COP H3 | AF1: COP H2 | AG1: COP C3 | AH1: COP C2 | AI1: Overall (H+C) COP | AJ1: Not used | AK1: Not used | AL1: Not used | AM1: Not used | AN1: Error COP H4 | AO1: Error COP H3 | AP1: Error COP H2 | AQ1: Error COP H3b | AR1: Error COP C2 | AS1: BPF0, heating | AT1: BPF0, cooling | AU1: BPF1*, heating | AV1: BPF2, heating | AW1: BPF3+, heating | AX1: BPF4+, heating | AY1: BPF2, cooling | AZ1: BPF3, cooling | BA1: BPF4, cooling | BB1: Error BPF0, heating | BC1: Error BPF0, cooling | BD1: Error BPF1*, heating | BE1: Error BPF2, heating | BF1: Error BPF3+, heating | BG1: Error BPF4+, heating | BH1: Error BPF2, cooling | BI1: Error BPF3, cooling | BJ1: Error BPF4, cooling | BK1: Htg & Clg Provided Boundary 2 | BL1: Htg & Clg Provided Boundary 4+ | BM1: Electricity Used Boundary 2 | BN1: Electricity Used Boundary 4+ | BO1: BPFHC2 | BP1: BPFHC4+ | BQ1: Error BPFHC2 | BR1: Error BPFHC4+ | BT1: Total Daily Heating and Cooling Loads (kWh) | BU1: BPFHC2 | BV1: BPFHC4+ | BW1: Error BPFHC2 | BX1: Error BPFHC4+
A2: 1 | B2: =A2+1 -> 2 | C2: =B2+1 -> 3 | D2: 4 | E2: 5 | F2: 6 | G2: 7 | H2: 8 | I2: 9 | J2: 10 | K2: 11 | L2: 12 | M2: 13 | N2: 14 | O2: 15 | P2: 16 | Q2: 17 | R2: 18 | S2: 19 | T2: 20 | U2: 21 | V2: 22 | W2: 23 | X2: 24 | Y2: 25 | Z2: 26 | AA2: 27 | AB2: 28 | AC2: 29 | AD2: 30 | AE2: 31 | AF2: 32 | AG2: 33 | AH2: 34 | AI2: 35 | AJ2: 36 | AK2: 37 | AL2: 38 | AM2: 39 | AN2: 40 | AO2: 41 | AP2: 42 | AQ2: 43 | AR2: 44 | AS2: 45 | AT2: 46 | AU2: 47 | AV2: 48 | AW2: 49 | AX2: 50 | AY2: 51 | AZ2: 52 | BA2: 53 | BB2: 54 | BC2: 55 | BD2: 56 | BE2: 57 | BF2: 58 | BG2: 59 | BH2: 60 | BI2: 61 | BJ2: 62 | BK2: 63 | BL2: 64 | BM2: 65 | BN2: 66 | BO2: =BN2+1 -> 67 | BP2: 68 | BQ2: 69 | BR2: 70 | BT2: Heating dominated | BZ2: Mixed | CF2: Cooling dominated
A3: Day of operation | B3: Count | C3: ODA Temperature (°C) | D3: EL 007 (kW) | E3: GHE EFT (°C) | F3: GHE ExFT (°C) | G3: Clg Provided (kW) | H3: Bldg Htg Provided (kW) | I3: EL 003 (kW) | J3: CP Energy (kW) | K3: DHW Provided by HP (kW) | L3: DHW by LPS (kW) | M3: Useful Bldg Htg by LPS (kW) | N3: Bldg Htg Uncertainty (kW) | O3: Bldg Clg Uncertainty (kW) | P3: DHW Htg by HP Uncertainty (kW) | Q3: Bldg + DHW Htg by HP Uncertainty (kW) | R3: EL007+EL011 Uncertainty (kW) | S3: EL011 Uncertainty (kW) | T3: LPS DHW Uncertainty (kW) | U3: CP Power for Heat Extraction from GHE (kW) | V3: CP Power for Heat Rejection to GHE (kW) | W3: Heat Extraction by GHE (kW) | X3: Heat Rejection to GHE (kW) | Y3: EL007 Uncertainty (kW) | Z3: LPS Electricity going to bldg heat (kW) | AA3: Alt Calc GHE Heat Extraction (kW) | AB3: Alt Calc GHE Heat Extraction (kW) | AC3: HtgFrac | AD3: COP H4 | AE3: COP H3 | AF3: COP H2 | AG3: COP C3 | AH3: COP C2 | AI3: Overall (H+C) COP | AJ3: Not used | AK3: Not used | AL3: Not used | AM3: Not used | AN3: Error COP H4 | AO3: Error COP H3 | AP3: Error COP H2 | AQ3: Error COP H3b | AR3: Error COP C2 | AS3: BPF0, heating | AT3: BPF0, cooling | AU3: BPF1*, heating | AV3: BPF2, heating | AW3: BPF3+, heating | AX3: BPF4+, heating | AY3: BPF2, cooling | AZ3: BPF3, cooling | BA3: BPF4, cooling | BB3: Error BPF0, heating | BC3: Error BPF0, cooling | BD3: Error BPF1*, heating | BE3: Error BPF2, heating | BF3: Error BPF3+, heating | BG3: Error BPF4+, heating | BH3: Error BPF2, cooling | BI3: Error BPF3, cooling | BJ3: Error BPF4, cooling | BK3: Htg & Clg Provided Boundary 2 | BL3: Htg & Clg Provided Boundary 4+ | BM3: Electricity Used Boundary 2 | BN3: Electricity Used Boundary 4+ | BO3: BPFHC2 | BP3: BPFHC4+ | BQ3: Error BPFHC2 | BR3: Error BPFHC4+ | BT3: Total Daily Heating and Cooling Loads (kWh) | BU3: BPFHC2 | BV3: BPFHC4+ | BW3: Error BPFHC2 | BX3: Error BPFHC4+ | BZ3: Total Daily Heating and Cooling Loads (kWh) | CA3: BPFHC2 | CB3: BPFHC4+ | CC3: Error BPFHC2 | CD3: Error BPFHC4+ | CF3: Total Daily Heating and Cooling Loads (kWh) | CG3: BPFHC2 | CH3: BPFHC4+ | CI3: Error BPFHC2 | CJ3: Error BPFHC4+ | CN3: Htg fraction | CO3: Total Htg provided | CP3: Total Clg provided | CQ3: Total H+C
A4: 1 | B4: 23 | C4: 1.239130435 | D4: 14.26869565 | E4: 7.747826087 | F4: 8.617391304 | G4: 2.941176471 | H4: 41.43478261 | I4: 10.55347826 | J4: 1.013444962 | K4: 0 | L4: 0 | M4: 3 | N4: 2.09237469 | O4: 0.1617647059 | P4: 0 | Q4: 2.09237469 | R4: 0.2268148986 | S4: 0.19 | T4: 0 | U4: 1.013444962 | V4: 0 | W4: 27.7842678 | X4: 0 | Y4: 0.1426869565 | Z4: 3 | AA4: 26.21146552 | AB4: 0 | AC4: 0.9337213993 | AD4: 1.842031571 | AE4: 2.920464515 | AF4: 3.392131095 | AG4: 4.204865731 | AH4: 43.7872413 | AI4: 3.100086583 | AJ4: 0 | AK4: 0 | AL4: 0 | AM4: 0 | AN4: 0.08845109728 | AO4: 0.1442476425 | AP4: 0.1843831642 | AQ4: 0.1442476425 | AR4: 8.555169279 | AS4: 27.41566523 | AT4: 0 | AU4: 3.676981249 | AV4: 3.392131095 | AW4: 2.920464515 | AX4: 1.842031571 | AY4: 43.7872413 | AZ4: 43.7872413 | BA4: 4.204865731 | BB4: 0 | BC4: 0 | BD4: 0.2022468199 | BE4: 0.1843831642 | BF4: 0.1442476425 | BG4: 0.08845109728 | BH4: 8.555169279 | BI4: 8.555169279 | BJ4: 0.2433425065 | BK4: 44.37595908 | BL4: 47.37595908 | BM4: 12.28214061 | BN4: 24.82217391 | BO4: 3.613047634 | BP4: 1.908614421 | BQ4: 0.1732075999 | BR4: 0.2804057772 | BT4: =IF(AC4>=0.67,24*(G4+H4+K4),"") -> 1065.023018 | BU4: =IF($AC4>=0.67,BO4,"") -> 3.613047634 | BV4: =IF($AC4>=0.67,BP4,"") -> 1.908614421 | BW4: 0.1732075999 | BX4: 0.2804057772 | BZ4: =IF($AC4>0.25,IF(AC4<0.67,24*(G4+H4+K4),""),"") ->  | CA4: =IF($AC4>0.25,IF($AC4<0.67,BO4,""),"") ->  | CB4: =IF($AC4>0.25,IF($AC4<0.67,BP4,""),"") ->  | CF4: =IF(AC4<=0.25,24*(G4+H4+K4),"") ->  | CG4: =IF($AC4<=0.25,BO4,"") ->  | CH4: =IF($AC4<=0.25,BP4,"") ->  | CI4: =IF($AC4<=0.25,BQ4,"") ->  | CN4: =AC4 -> 0.9337213993 | CO4: =24*(H4+K4+L4+M4) -> 1066.434783 | CP4: =24*G4 -> 70.58823529 | CQ4: =CO4+CP4 -> 1137.023018
A5: 2 | B5: 24 | C5: -3.203704042 | D5: 16.80833333 | E5: 7.1875 | F5: 8.366666667 | G5: 2.989453357 | H5: 50.45833333 | I5: 10.855 | J5: 1.010204319 | K5: 0.1388173942 | L5: 0.01454861111 | M5: 2.985451389 | N5: 2.541991675 | O5: 0.1644199346 | P5: 0.01046698032 | Q5: 2.542188247 | R5: 0.2441443193 | S5: 0.19 | T5: 0.004178770397 | U5: 0.8855773596 | V5: 0.1246269594 | W5: 37.97271898 | X5: 0.3966404201 | Y5: 0.1680833333 | Z5: 2.985451389 | AA5: 33.45804909 | AB5: 0.6688893683 | AC5: 0.9442126739 | AD5: 1.980841982 | AE5: 3.017487017 | AF5: 3.427484769 | AG5: 4.936582596 | AH5: 53.04531279 | AI5: 3.175715381 | AJ5: 0 | AK5: 0 | AL5: 0 | AM5: 0 | AN5: 0.09563906912 | AO5: 0.1490121802 | AP5: 0.1825827083 | AQ5: 0.149012366 | AR5: 10.3946312 | AS5: 42.8790535 | AT5: 3.182621337 | AU5: 3.664247488 | AV5: 3.427484769 | AW5: 3.017487017 | AX5: 1.980841982 | AY5: 53.04531279 | AZ5: 53.04531279 | BA5: 4.936582596 | BB5: 0 | BC5: 0 | BD5: 0.196728804 | BE5: 0.1825827083 | BF5: 0.1490121802 | BG5: 0.09563906912 | BH5: 10.3946312 | BI5: 10.3946312 | BJ5: 0.2849298197 | BK5: 53.58660408 | BL5: 56.58660408 | BM5: 14.81853765 | BN5: 27.66333333 | BO5: 3.616187059 | BP5: 2.045545394 | BQ5: 0.1737778175 | BR5: 0.25215918 | BT5: =IF(AC5>=0.67,24*(G5+H5+K5),"") -> 1286.078498 | BU5: =IF($AC5>=0.67,BO5,"") -> 3.616187059 | BV5: =IF($AC5>=0.67,BP5,"") -> 2.045545394 | BW5: =IF($AC5>=0.67,BQ5,"") -> 0.1737778175 | BX5: =IF($AC5>=0.67,BR5,"") -> 0.25215918 | BZ5: =IF($AC5>0.25,IF(AC5<0.67,24*(G5+H5+K5),""),"") ->  | CA5: =IF($AC5>0.25,IF($AC5<0.67,BO5,""),"") ->  | CB5: =IF($AC5>0.25,IF($AC5<0.67,BP5,""),"") ->  | CC5: =IF($AC5>0.25,IF($AC5<0.67,BQ5,""),"") ->  | CD5: =IF($AC5>0.25,IF($AC5<0.67,BR5,""),"") ->  | CF5: =IF(AC5<=0.25,24*(G5+H5+K5),"") ->  | CG5: =IF($AC5<=0.25,BO5,"") ->  | CH5: =IF($AC5<=0.25,BP5,"") ->  | CI5: =IF($AC5<=0.25,BQ5,"") ->  | CJ5: =IF($AC5<=0.25,BR5,"") ->  | CN5: =AC5 -> 0.9442126739 | CO5: =24*(H5+K5+L5+M5) -> 1286.331617 | CP5: =24*G5 -> 71.74688057 | CQ5: =CO5+CP5 -> 1358.078498
A6: 3 | B6: 24 | C6: -4.567130042 | D6: 17.96625 | E6: 7.129166667 | F6: 8.25 | G6: 2.798476569 | H6: 56.625 | I6: 11.045 | J6: 1.009897729 | K6: 0.3939091061 | L6: 0.04122106481 | M6: 2.958778935 | N6: 2.851618611 | O6: 0.1539162113 | P6: 0.02967611924 | Q6: 2.853332205 | R6: 0.2526644944 | S6: 0.19 | T6: 0.01183984946 | U6: 0.8809767518 | V6: 0.1289209775 | W6: 35.99563757 | X6: 0.401190195 | Y6: 0.1796625 | Z6: 2.958778935 | AA6: 39.58862073 | AB6: 1.344335917 | AC6: 0.9532163344 | AD6: 2.106331316 | AE6: 3.170755083 | AF6: 3.579588389 | AG6: 5.415788653 | AH6: 59.23113196 | AI6: 3.310333929 | AJ6: 0 | AK6: 0 | AL6: 0 | AM6: 0 | AN6: 0.1018630665 | AO6: 0.1565683914 | AP6: 0.1890635321 | AQ6: 0.1565696408 | AR6: 11.61003547 | AS6: 40.8587826 | AT6: 3.111907797 | AU6: 3.809832731 | AV6: 3.579588389 | AW6: 3.170755083 | AX6: 2.106331316 | AY6: 59.23113196 | AZ6: 59.23113196 | BA6: 5.415788653 | BB6: 0 | BC6: 0 | BD6: 0.2025850473 | BE6: 0.1890635321 | BF6: 0.1565683914 | BG6: 0.1018630665 | BH6: 11.61003547 | BI6: 11.61003547 | BJ6: 0.3120979954 | BK6: 59.81738568 | BL6: 62.81738568 | BM6: 15.97614773 | BN6: 29.01125 | BO6: 3.744168287 | BP6: 2.165276769 | BQ6: 0.1805617928 | BR6: 0.2466259822 | BT6: 1435.617256 | BU6: 3.744168287 | BV6: 2.165276769 | BW6: 0.1805617928 | BX6: 0.2466259822 | CN6: 0.9532163344 | CO6: 1440.453819 | CP6: 67.16343766 | CQ6: 1507.617256
A7: 4 | B7: 24 | C7: -6.356482083 | D7: 21.97375 | E7: 6.466666667 | F7: 7.958333333 | G7: 1.639344262 | H7: 72 | I7: 13.12916667 | J7: 1.023710125 | K7: 2.320561592 | L7: 0.2424768519 | M7: 2.757523148 | N7: 3.620883985 | O7: 0.09016393443 | P7: 0.1746799133 | Q7: 3.629001627 | R7: 0.2882693749 | S7: 0.19 | T7: 0.06964617329 | U7: 1.023710125 | V7: 0 | W7: 47.81331789 | X7: 0 | Y7: 0.2197375 | Z7: 2.757523148 | AA7: 52.6837572 | AB7: 0 | AC7: 0.9784182952 | AD7: 2.220606646 | AE7: 3.365367898 | AF7: 3.720610623 | AG7: 5.785584705 | AH7: 74.20060036 | AI7: 3.433418535 | AJ7: 0 | AK7: 0 | AL7: 0 | AM7: 0 | AN7: 0.1058320705 | AO7: 0.1634984042 | AP7: 0.1903908025 | AQ7: 0.1635265031 | AR7: 14.36354645 | AS7: 46.70591482 | AT7: 0 | AU7: 3.917020177 | AV7: 3.720610623 | AW7: 3.365367898 | AX7: 2.220606646 | AY7: 74.20060036 | AZ7: 74.20060036 | BA7: 5.785584705 | BB7: 0 | BC7: 0 | BD7: 0.2013737584 | BE7: 0.1903908025 | BF7: 0.1634984042 | BG7: 0.1058320705 | BH7: 14.36354645 | BI7: 14.36354645 | BJ7: 0.3290379115 | BK7: 75.95990585 | BL7: 78.95990585 | BM7: 19.99746012 | BN7: 35.10291667 | BO7: 3.798477676 | BP7: 2.249383053 | BQ7: 0.182987874 | BR7: 0.2212042207 | BT7: 1823.037741 | BU7: 3.798477676 | BV7: 2.249383053 | BW7: 0.182987874 | BX7: 0.2212042207 | CN7: 0.9784182952 | CO7: 1855.693478 | CP7: 39.3442623 | CQ7: 1895.037741
A8: 5 | B8: 24 | C8: -7.902778375 | D8: 22.76125 | E8: 6.541666667 | F8: 7.745833333 | G8: 1.639344262 | H8: 68.58333333 | I8: 13.08458333 | J8: 1.037818538 | K8: 2.370449219 | L8: 0.2473263889 | M8: 2.752673611 | N8: 3.450477501 | O8: 0.09016393443 | P8: 0.1782890157 | Q8: 3.461718002 | R8: 0.2943576458 | S8: 0.19 | T8: 0.07103909676 | U8: 0.9561652378 | V8: 0.08165330022 | W8: 38.95476654 | X8: 0.1336475809 | Y8: 0.2276125 | Z8: 2.752673611 | AA8: 48.51536975 | AB8: 0 | AC8: 0.9774173626 | AD8: 2.080254759 | AE8: 3.110486526 | AF8: 3.415240655 | AG8: 5.547989184 | AH8: 69.94780316 | AI8: 3.17630611 | AJ8: 0 | AK8: 0 | AL8: 0 | AM8: 0 | AN8: 0.09888675886 | AO8: 0.1506060936 | AP8: 0.1743345187 | AQ8: 0.1506357293 | AR8: 13.37118432 | AS8: 40.74062202 | AT8: 1.636768881 | AU8: 3.590551334 | AV8: 3.415240655 | AW8: 3.110486526 | AX8: 2.080254759 | AY8: 69.94780316 | AZ8: 69.94780316 | BA8: 5.547989184 | BB8: 0 | BC8: 0 | BD8: 0.184077461 | BE8: 0.1743345187 | BF8: 0.1506060936 | BG8: 0.09888675886 | BH8: 13.37118432 | BI8: 13.37118432 | BJ8: 0.315595096 | BK8: 72.59312681 | BL8: 75.59312681 | BM8: 20.79906854 | BN8: 35.84583333 | BO8: 3.490210472 | BP8: 2.10883999 | BQ8: 0.1676646523 | BR8: 0.2059176581 | BT8: 1742.235044 | BU8: 3.490210472 | BV8: 2.10883999 | BW8: 0.1676646523 | BX8: 0.2059176581 | CN8: 0.9774173626 | CO8: 1774.890781 | CP8: 39.3442623 | CQ8: 1814.235044
A9: 6 | B9: 24 | C9: -11.51157492 | D9: 23.46625 | E9: 5.858333333 | F9: 7.554166667 | G9: 1.367766147 | H9: 76.91666667 | I9: 11.88625 | J9: 1.046723736 | K9: 0.02327336071 | L9: 0.002424768519 | M9: 2.997575231 | N9: 3.867839534 | O9: 0.07522713806 | P9: 0.001749050881 | Q9: 3.867846646 | R9: 0.3002825213 | S9: 0.19 | T9: 0.0006964617329 | U9: 1.008044095 | V9: 0.03867964106 | W9: 54.73998645 | X9: 0.1290688859 | Y9: 0.2346625 | Z9: 2.997575231 | AA9: 54.05920014 | AB9: 0 | AC9: 0.9825334413 | AD9: 2.274582288 | AE9: 3.263561879 | AF9: 3.579485733 | AG9: 6.588091801 | AH9: 74.81220066 | AI9: 3.316925439 | AJ9: 0 | AK9: 0 | AL9: 0 | AM9: 0 | AN9: 0.1117570837 | AO9: 0.1628950965 | AP9: 0.1871265001 | AQ9: 0.162895099 | AR9: 14.18950254 | AS9: 54.30316663 | AT9: 3.336868759 | AU9: 3.759356992 | AV9: 3.579485733 | AW9: 3.263561879 | AX9: 2.274582288 | AY9: 74.81220066 | AZ9: 74.81220066 | BA9: 6.588091801 | BB9: 0 | BC9: 0 | BD9: 0.1972904681 | BE9: 0.1871265001 | BF9: 0.1628950965 | BG9: 0.1117570837 | BH9: 14.18950254 | BI9: 14.18950254 | BJ9: 0.3773381347 | BK9: 78.30770617 | BL9: 81.30770617 | BM9: 21.51297374 | BN9: 35.3525 | BO9: 3.640022395 | BP9: 2.299913901 | BQ9: 0.1811894111 | BR9: 0.2207649942 | BT9: 1879.384948 | BU9: 3.640022395 | BV9: 2.299913901 | BW9: 0.1811894111 | BX9: 0.2207649942 | CN9: 0.9825334413 | CO9: 1918.558561 | CP9: 32.82638752 | CQ9: 1951.384948
A10: 7 | B10: 24 | C10: -11.39583429 | D10: 27.46333333 | E10: 5.5125 | F10: 7.266666667 | G10: 1.204819277 | H10: 101.75 | I10: 13.45083333 | J10: 1.158331204 | K10: 3.099776921 | L10: 0.322494213 | M10: 2.677505787 | N10: 5.107882602 | O10: 0.06626506024 | P10: 0.2327708582 | Q10: 5.117908096 | R10: 0.3344054569 | S10: 0.19 | T10: 0.09262941048 | U10: 1.105839168 | V10: 0.05249203657 | W10: 59.20581341 | X10: 0.5710957924 | Y10: 0.2746333333 | Z10: 2.677505787 | AA10: 78.02329311 | AB10: 0 | AC10: 0.9886396317 | AD10: 2.645882676 | AE10: 3.76985009 | AF10: 4.09433409 | AG10: 7.884611575 | AH10: 91.55809306 | AI10: 3.810211529 | AJ10: 0 | AK10: 0 | AL10: 0 | AM10: 0 | AN10: 0.1274203816 | AO10: 0.1842419333 | AP10: 0.2076623833 | AQ10: 0.1842703816 | AR10: 15.83995723 | AS10: 53.53926243 | AT10: 10.87966537 | AU10: 4.285997149 | AV10: 4.09433409 | AW10: 3.76985009 | AX10: 2.645882676 | AY10: 91.55809306 | AZ10: 91.55809306 | BA10: 7.884611575 | BB10: 0 | BC10: 0 | BD10: 0.2181147239 | BE10: 0.2076623833 | BF10: 0.1842419333 | BG10: 0.1274203816 | BH10: 15.83995723 | BI10: 15.83995723 | BJ10: 0.4477272558 | BK10: 106.0545962 | BL10: 109.0545962 | BM10: 25.62166454 | BN10: 40.91416667 | BO10: 4.139254733 | BP10: 2.665448305 | BQ10: 0.2012506588 | BR10: 0.2215997217 | BT10: 2545.310309 | BU10: 4.139254733 | BV10: 2.665448305 | BW10: 0.2012506588 | BX10: 0.2215997217 | CN10: 0.9886396317 | CO10: 2588.394646 | CP10: 28.91566265 | CQ10: 2617.310309
A11: 8 | B11: 24 | C11: -6.178241125 | D11: 23.54666667 | E11: 5.829166667 | F11: 7.495833333 | G11: 1.204819277 | H11: 78.625 | I11: 13.72708333 | J11: 1.028955628 | K11: 3.104138396 | L11: 0.322494213 | M11: 2.677505787 | N11: 3.95308635 | O11: 0.06626506024 | P11: 0.2329161179 | Q11: 3.966813525 | R11: 0.3018708365 | S11: 0.19 | T11: 0.09262941048 | U11: 1.028955628 | V11: 0 | W11: 53.42102807 | X11: 0 | Y11: 0.2354666667 | Z11: 2.677505787 | AA11: 58.94869682 | AB11: 0 | AC11: 0.9854725457 | AD11: 2.285385533 | AE11: 3.449788786 | AF11: 3.790657828 | AG11: 6.041629941 | AH11: 80.60013026 | AI11: 3.49671543 | AJ11: 0 | AK11: 0 | AL11: 0 | AM11: 0 | AN11: 0.1086023144 | AO11: 0.1669836901 | AP11: 0.192571859 | AQ11: 0.1670262752 | AR11: 15.52924666 | AS11: 51.91771793 | AT11: 0 | AU11: 3.977732239 | AV11: 3.790657828 | AW11: 3.449788786 | AX11: 2.285385533 | AY11: 80.60013026 | AZ11: 80.60013026 | BA11: 6.041629941 | BB11: 0 | BC11: 0 | BD11: 0.2029095916 | BE11: 0.192571859 | BF11: 0.1669836901 | BG11: 0.1086023144 | BH11: 15.52924666 | BI11: 15.52924666 | BJ11: 0.3426504558 | BK11: 82.93395767 | BL11: 85.93395767 | BM11: 21.57562229 | BN11: 37.27375 | BO11: 3.843873263 | BP11: 2.305481946 | BQ11: 0.1852532711 | BR11: 0.2161621195 | BT11: 1990.414984 | BU11: 3.843873263 | BV11: 2.305481946 | BW11: 0.1852532711 | BX11: 0.2161621195 | CN11: 0.9854725457 | CO11: 2033.499321 | CP11: 28.91566265 | CQ11: 2062.414984
A12: 9 | B12: 24 | C12: -7.641204417 | D12: 20.38375 | E12: 6.2125 | F12: 7.7625 | G12: 1.318481473 | H12: 67.91666667 | I12: 11.33291667 | J12: 1.028310733 | K12: 0.7245236335 | L12: 0.07516782407 | M12: 2.924832176 | N12: 3.422863185 | O12: 0.07251648102 | P12: 0.05432213871 | Q12: 3.424435178 | R12: 0.2763017163 | S12: 0.19 | T12: 0.02159031372 | U12: 0.9758186961 | V12: 0.05249203657 | W12: 49.59377659 | X12: 0.1428481466 | Y12: 0.2038375 | Z12: 2.924832176 | AA12: 49.40705797 | AB12: 0.4964098798 | AC12: 0.9811536927 | AD12: 2.274100926 | AE12: 3.348864536 | AF12: 3.731983976 | AG12: 6.173139169 | AH12: 68.03359097 | AI12: 3.407410089 | AJ12: 0 | AK12: 0 | AL12: 0 | AM12: 0 | AN12: 0.1105162876 | AO12: 0.1658157168 | AP12: 0.1950455553 | AQ12: 0.1658187881 | AR12: 13.11559939 | AS12: 50.82273663 | AT12: 2.721329862 | AU12: 3.948583608 | AV12: 3.731983976 | AW12: 3.348864536 | AX12: 2.274100926 | AY12: 68.03359097 | AZ12: 68.03359097 | BA12: 6.173139169 | BB12: 0 | BC12: 0 | BD12: 0.2074530929 | BE12: 0.1950455553 | BF12: 0.1658157168 | BG12: 0.1105162876 | BH12: 13.11559939 | BI12: 13.11559939 | BJ12: 0.3549461635 | BK12: 69.95967177 | BL12: 72.95967177 | BM12: 18.41206073 | BN12: 31.71666667 | BO12: 3.79966549 | BP12: 2.300357492 | BQ12: 0.187559108 | BR12: 0.2362132099 | BT12: 1679.032123 | BU12: 3.79966549 | BV12: 2.300357492 | BW12: 0.187559108 | BX12: 0.2362132099 | CN12: 0.9811536927 | CO12: 1719.388567 | CP12: 31.64355535 | CQ12: 1751.032123
A13: 10 | B13: 24 | C13: -2.8217595 | D13: 18.69125 | E13: 6.670833333 | F13: 7.904166667 | G13: 1.886792453 | H13: 52.83333333 | I13: 11.28416667 | J13: 1.019416107 | K13: 0.5850903712 | L13: 0.06061921296 | M13: 2.939380787 | N13: 2.666223894 | O13: 0.1037735849 | P13: 0.04383476543 | Q13: 2.667373273 | R13: 0.2618506725 | S13: 0.19 | T13: 0.01741154332 | U13: 0.9764424476 | V13: 0.04297365916 | W13: 39.47345034 | X13: 0.1336784889 | Y13: 0.1869125 | Z13: 2.939380787 | AA13: 34.82096514 | AB13: 0 | AC13: 0.9658840055 | AD13: 1.906643229 | AE13: 2.867388985 | AF13: 3.203333137 | AG13: 4.901134288 | AH13: 54.25185633 | AI13: 2.958054073 | AJ13: 0 | AK13: 0 | AL13: 0 | AM13: 0 | AN13: 0.09170846064 | AO13: 0.1408339377 | AP13: 0.1684122183 | AQ13: 0.1408367178 | AR13: 10.54259627 | AS13: 40.42578284 | AT13: 3.110707619 | AU13: 3.404344696 | AV13: 3.203333137 | AW13: 2.867388985 | AX13: 1.906643229 | AY13: 54.25185633 | AZ13: 54.25185633 | BA13: 4.901134288 | BB13: 0 | BC13: 0 | BD13: 0.1801070996 | BE13: 0.1684122183 | BF13: 0.1408339377 | BG13: 0.09170846064 | BH13: 10.54259627 | BI13: 10.54259627 | BJ13: 0.2819115185 | BK13: 55.30521616 | BL13: 58.30521616 | BM13: 16.71066611 | BN13: 29.97541667 | BO13: 3.309575801 | BP13: 1.945101108 | BQ13: 0.1612098065 | BR13: 0.2266642435 | BT13: 1327.325188 | BU13: 3.309575801 | BV13: 1.945101108 | BW13: 0.1612098065 | BX13: 0.2266642435 | CN13: 0.9658840055 | CO13: 1354.042169 | CP13: 45.28301887 | CQ13: 1399.325188
A14: 11 | B14: 24 | C14: 1.247685208 | D14: 17.6725 | E14: 6.958333333 | F14: 8.1625 | G14: 1.886792453 | H14: 52.5 | I14: 14.85916667 | J14: 1.014191747 | K14: 3.538689709 | L14: 0.3661400463 | M14: 2.633859954 | N14: 2.650025588 | O14: 0.1037735849 | P14: 0.2649203406 | Q14: 2.685240575 | R14: 0.2534602814 | S14: 0.19 | T14: 0.1051657217 | U14: 0.8852707699 | V14: 0.1289209775 | W14: 39.50341321 | X14: 1.070559045 | Y14: 0.176725 | Z14: 2.633859954 | AA14: 38.96054552 | AB14: 0.4953400114 | AC14: 0.9674272465 | AD14: 1.842215149 | AE14: 3.164992825 | AF14: 3.579910476 | AG14: 3.898299512 | AH14: 57.11492162 | AI14: 3.260367484 | AJ14: 0 | AK14: 0 | AL14: 0 | AM14: 0 | AN14: 0.0850462844 | AO14: 0.1502389785 | AP14: 0.1837806686 | AQ14: 0.1503447223 | AR14: 11.15157144 | AS14: 44.62297249 | AT14: 8.303994165 | AU14: 3.819300713 | AV14: 3.579910476 | AW14: 3.164992825 | AX14: 1.842215149 | AY14: 57.11492162 | AZ14: 57.11492162 | BA14: 3.898299512 | BB14: 0 | BC14: 0 | BD14: 0.1976593392 | BE14: 0.1837806686 | BF14: 0.1502389785 | BG14: 0.0850462844 | BH14: 11.15157144 | BI14: 11.15157144 | BJ14: 0.220124523 | BK14: 57.92548216 | BL14: 60.92548216 | BM14: 15.68669175 | BN14: 32.53166667 | BO14: 3.692651267 | BP14: 1.872805436 | BQ14: 0.1721760462 | BR14: 0.229691266 | BT14: 1390.211572 | BU14: 3.692651267 | BV14: 1.872805436 | BW14: 0.1721760462 | BX14: 0.229691266 | CN14: 0.9674272465 | CO14: 1416.928553 | CP14: 45.28301887 | CQ14: 1462.211572
A15: 12 | B15: 24 | C15: -3.601852208 | D15: 19.73541667 | E15: 6.708333333 | F15: 8.0625 | G15: 1.027461237 | H15: 58.875 | I15: 14.35458333 | J15: 1.009897729 | K15: 3.637225322 | L15: 0.3758391204 | M15: 2.62416088 | N15: 2.967685466 | O15: 0.05651036802 | P15: 0.2720982966 | Q15: 2.994482565 | R15: 0.271604567 | S15: 0.19 | T15: 0.1079515686 | U15: 0.923950411 | V15: 0.08594731832 | W15: 43.43130487 | X15: 0.2674653058 | Y15: 0.1973541667 | Z15: 2.62416088 | AA15: 44.15784414 | AB15: 0.4183944512 | AC15: 0.9838296143 | AD15: 1.934918066 | AE15: 3.160416615 | AF15: 3.525990292 | AG15: 4.426438935 | AH15: 62.9169516 | AI15: 3.207456165 | AJ15: 0 | AK15: 0 | AL15: 0 | AM15: 0 | AN15: 0.08979440895 | AO15: 0.1502767327 | AP15: 0.1793016701 | AQ15: 0.1503669417 | AR15: 12.33250177 | AS15: 47.00609941 | AT15: 3.111968018 | AU15: 3.735325302 | AV15: 3.525990292 | AW15: 3.160416615 | AX15: 1.934918066 | AY15: 62.9169516 | AZ15: 62.9169516 | BA15: 4.426438935 | BB15: 0 | BC15: 0 | BD15: 0.1911278344 | BE15: 0.1793016701 | BF15: 0.1502767327 | BG15: 0.08979440895 | BH15: 12.33250177 | BI15: 12.33250177 | BJ15: 0.2504048962 | BK15: 63.53968656 | BL15: 66.53968656 | BM15: 17.7453144 | BN15: 34.09 | BO15: 3.580645862 | BP15: 1.951882856 | BQ15: 0.1699038619 | BR15: 0.2161800615 | BT15: 1524.952477 | BU15: 3.580645862 | BV15: 1.951882856 | BW15: 0.1699038619 | BX15: 0.2161800615 | CN15: 0.9838296143 | CO15: 1572.293408 | CP15: 24.65906968 | CQ15: 1596.952477
A16: 13 | B16: 24 | C16: -6.467593167 | D16: 22.60833333 | E16: 6.504166667 | F16: 7.770833333 | G16: 0.9900990099 | H16: 56.70833333 | I16: 14.3475 | J16: 1.043053469 | K16: 3.618448924 | L16: 0.3734143519 | M16: 2.626585648 | N16: 2.863719105 | O16: 0.05445544554 | P16: 0.2704995974 | Q16: 2.891643591 | R16: 0.2944123226 | S16: 0.19 | T16: 0.1072551069 | U16: 1.043053469 | V16: 0 | W16: 40.69703523 | X16: 0 | Y16: 0.2260833333 | Z16: 2.626585648 | AA16: 38.68529644 | AB16: 0 | AC16: 0.98385275 | AD16: 1.724390187 | AE16: 2.679416252 | AF16: 2.92358199 | AG16: 4.273697945 | AH16: 58.78594249 | AI16: 2.719370403 | AJ16: 0 | AK16: 0 | AL16: 0 | AM16: 0 | AN16: 0.07994387819 | AO16: 0.126819205 | AP16: 0.1473943814 | AQ16: 0.1269003735 | AR16: 11.18576938 | AS16: 39.01720901 | AT16: 0 | AU16: 3.07658898 | AV16: 2.92358199 | AW16: 2.679416252 | AX16: 1.724390187 | AY16: 58.78594249 | AZ16: 58.78594249 | BA16: 4.273697945 | BB16: 0 | BC16: 0 | BD16: 0.1558002012 | BE16: 0.1473943814 | BF16: 0.126819205 | BG16: 0.07994387819 | BH16: 11.18576938 | BI16: 11.18576938 | BJ16: 0.2417708313 | BK16: 61.31688127 | BL16: 64.31688127 | BM16: 20.6513868 | BN16: 36.95583333 | BO16: 2.969141097 | BP16: 1.740371559 | BQ16: 0.1407321424 | BR16: 0.1819397821 | BT16: 1471.60515 | BU16: 2.969141097 | BV16: 1.740371559 | BW16: 0.1407321424 | BX16: 0.1819397821 | CN16: 0.98385275 | CO16: 1519.842774 | CP16: 23.76237624 | CQ16: 1543.60515
A17: 14 | B17: 24 | C17: -12.47916767 | D17: 28.16666667 | E17: 5.075 | F17: 7.316666667 | G17: 0.9900990099 | H17: 90.95833333 | I17: 13.70916667 | J17: 1.131469364 | K17: 3.505430241 | L17: 0.3612905093 | M17: 2.638709491 | N17: 4.573649741 | O17: 0.05445544554 | P17: 0.2618664626 | Q17: 4.58615445 | R17: 0.3403361963 | S17: 0.19 | T17: 0.1037727982 | U17: 1.088495704 | V17: 0.04297365916 | W17: 74.78492731 | X17: 0.1337094248 | Y17: 0.2816666667 | Z17: 2.638709491 | AA17: 67.17552853 | AB17: 0 | AC17: 0.98962746 | AD17: 2.335376845 | AE17: 3.327953049 | AF17: 3.593636414 | AG17: 6.962776433 | AH17: 84.36274605 | AI17: 3.360413867 | AJ17: 0 | AK17: 0 | AL17: 0 | AM17: 0 | AN17: 0.1115291869 | AO17: 0.1613016302 | AP17: 0.1813465208 | AQ17: 0.1613405449 | AR17: 14.90697459 | AS17: 68.70484377 | AT17: 3.111427498 | AU17: 3.753527029 | AV17: 3.593636414 | AW17: 3.327953049 | AX17: 2.335376845 | AY17: 84.36274605 | AZ17: 84.36274605 | BA17: 6.962776433 | BB17: 0 | BC17: 0 | BD17: 0.1900063154 | BE17: 0.1813465208 | BF17: 0.1613016302 | BG17: 0.1115291869 | BH17: 14.90697459 | BI17: 14.90697459 | BJ17: 0.3949239471 | BK17: 95.45386258 | BL17: 98.45386258 | BM17: 26.29813603 | BN17: 41.87583333 | BO17: 3.629681681 | BP17: 2.351090229 | BQ17: 0.1757163124 | BR17: 0.1972480664 | BT17: 2290.892702 | BU17: 3.629681681 | BV17: 2.351090229 | BW17: 0.1757163124 | BX17: 0.1972480664 | CN17: 0.98962746 | CO17: 2339.130326 | CP17: 23.76237624 | CQ17: 2362.892702
A18: 15 | B18: 24 | C18: -13.69907512 | D18: 27.7525 | E18: 4.870833333 | F18: 7.079166667 | G18: 0.9900990099 | H18: 112.0416667 | I18: 13.79166667 | J18: 1.081835307 | K18: 2.944478569 | L18: 0.3030960648 | M18: 2.696903935 | N18: 5.621283423 | O18: 0.05445544554 | P18: 0.2198098729 | Q18: 5.629627682 | R18: 0.3371920745 | S18: 0.19 | T18: 0.08705771661 | U18: 1.081835307 | V18: 0 | W18: 72.09554352 | X18: 0 | Y18: 0.277525 | Z18: 2.696903935 | AA18: 88.16171092 | AB18: 0 | AC18: 0.9914629154 | AD18: 2.848088926 | AE18: 4.093173898 | AF18: 4.452495714 | AG18: 8.409153661 | AH18: 107.2032346 | AI18: 4.126200343 | AJ18: 0 | AK18: 0 | AL18: 0 | AM18: 0 | AN18: 0.137857732 | AO18: 0.2010867453 | AP18: 0.2263514178 | AQ18: 0.2011094249 | AR18: 19.72947572 | AS18: 66.64188445 | AT18: 0 | AU18: 4.645435622 | AV18: 4.452495714 | AW18: 4.093173898 | AX18: 2.848088926 | AY18: 107.2032346 | AZ18: 107.2032346 | BA18: 8.409153661 | BB18: 0 | BC18: 0 | BD18: 0.2368883832 | BE18: 0.2263514178 | BF18: 0.2010867453 | BG18: 0.137857732 | BH18: 19.72947572 | BI18: 19.72947572 | BJ18: 0.4767916091 | BK18: 115.9762442 | BL18: 118.9762442 | BM18: 25.83433531 | BN18: 41.54416667 | BO18: 4.489228883 | BP18: 2.86384958 | BQ18: 0.2195492438 | BR18: 0.2380505482 | BT18: 2783.429862 | BU18: 4.489228883 | BV18: 2.86384958 | BW18: 0.2195492438 | BX18: 0.2380505482 | CN18: 0.9914629154 | CO18: 2831.667486 | CP18: 23.76237624 | CQ18: 2855.429862
A19: 16 | B19: 24 | C19: -12.31713058 | D19: 22.89375 | E19: 5.808333333 | F19: 7.420833333 | G19: 1.020720629 | H19: 69.79166667 | I19: 11.19416667 | J19: 1.05499461 | K19: 0.3773562584 | L19: 0.0387962963 | M19: 2.843478009 | N19: 3.521104734 | O19: 0.05613963458 | P19: 0.0281511744 | Q19: 3.526608496 | R19: 0.2938673455 | S19: 0.19 | T19: 0.01114338773 | U19: 0.8689809885 | V19: 0.1860136219 | W19: 52.37485018 | X19: 0.4054267207 | Y19: 0.2289375 | Z19: 2.961203704 | AA19: 49.65701164 | AB19: 1.457453951 | AC19: 0.9856619707 | AD19: 2.153164294 | AE19: 3.052246302 | AF19: 3.351977795 | AG19: 6.359539363 | AH19: 67.47877463 | AI19: 3.092939487 | AJ19: 0 | AK19: 0 | AL19: 0 | AM19: 0 | AN19: 0.1056055264 | AO19: 0.1520408125 | AP19: 0.1753675571 | AQ19: 0.1520415254 | AR19: 12.70671439 | AS19: 60.27157196 | AT19: 2.179553931 | AU19: 3.52718934 | AV19: 3.351977795 | AW19: 3.052246302 | AX19: 2.153164294 | AY19: 67.47877463 | AZ19: 67.47877463 | BA19: 6.359539363 | BB19: 0 | BC19: 0 | BD19: 0.1852954011 | BE19: 0.1753675571 | BF19: 0.1520408125 | BG19: 0.1056055264 | BH19: 12.70671439 | BI19: 12.70671439 | BJ19: 0.3660514067 | BK19: 71.18974355 | BL19: 74.07201786 | BM19: 20.94874461 | BN19: 34.08791667 | BO19: 3.398282087 | BP19: 2.172969929 | BQ19: 0.1693988043 | BR19: 0.209214336 | BT19: 1708.553845 | BU19: 3.398282087 | BV19: 2.172969929 | BW19: 0.1693988043 | BX19: 0.209214336 | CN19: 0.9856619707 | CO19: 1753.231134 | CP19: 24.49729509 | CQ19: 1777.728429
A20: 17 | B20: 24 | C20: -9.326389625 | D20: 21.77833333 | E20: 5.958333333 | F20: 7.508333333 | G20: 1.030927835 | H20: 71.875 | I20: 11.22291667 | J20: 1.010204319 | K20: 0.2125186351 | L20: 0.02182291667 | M20: 2.978177083 | N20: 3.614506498 | O20: 0.05670103093 | P20: 0.01584360869 | Q20: 3.614863669 | R20: 0.2870431147 | S20: 0.19 | T20: 0.006268155596 | U20: 0.9285510188 | V20: 0.08165330022 | W20: 49.48846463 | X20: 0 | Y20: 0.2177833333 | Z20: 2.978177083 | AA20: 51.62800577 | AB20: 0.3599526223 | AC20: 0.985900578 | AD20: 2.28625546 | AE20: 3.297029426 | AF20: 3.645516616 | AG20: 6.515101969 | AH20: 72.3798593 | AI20: 3.340207592 | AJ20: 0 | AK20: 0 | AL20: 0 | AM20: 0 | AN20: 0.1118639739 | AO20: 0.1640751347 | AP20: 0.1907643461 | AQ20: 0.1640753655 | AR20: 14.18338218 | AS20: 53.29644104 | AT20: 0 | AU20: 3.838866706 | AV20: 3.645516616 | AW20: 3.297029426 | AX20: 2.28625546 | AY20: 72.3798593 | AZ20: 72.3798593 | BA20: 6.515101969 | BB20: 0 | BC20: 0 | BD20: 0.2017732551 | BE20: 0.1907643461 | BF20: 0.1640751347 | BG20: 0.1118639739 | BH20: 14.18338218 | BI20: 14.18338218 | BJ20: 0.3749220645 | BK20: 73.11844647 | BL20: 76.11844647 | BM20: 19.78853765 | BN20: 33.00125 | BO20: 3.694989885 | BP20: 2.306532221 | BQ20: 0.1841321534 | BR20: 0.2290136137 | BT20: 1754.842715 | BU20: 3.694989885 | BV20: 2.306532221 | BW20: 0.1841321534 | BX20: 0.2290136137 | CN20: 0.985900578 | CO20: 1802.100447 | CP20: 24.74226804 | CQ20: 1826.842715
A21: 18 | B21: 24 | C21: -5.622685625 | D21: 24.0425 | E21: 5.741666667 | F21: 7.391666667 | G21: 1.030927835 | H21: 74.20833333 | I21: 14.06541667 | J21: 1.047992383 | K21: 3.049697606 | L21: 0.3127951389 | M21: 2.687204861 | N21: 3.731392311 | O21: 0.05670103093 | P21: 0.2272123905 | Q21: 3.74477281 | R21: 0.3054902173 | S21: 0.19 | T21: 0.08984356354 | U21: 1.047992383 | V21: 0 | W21: 53.13039274 | X21: 0 | Y21: 0.240425 | Z21: 2.687204861 | AA21: 54.15128971 | AB21: 0.01467898562 | AC21: 0.9868317595 | AD21: 2.116358571 | AE21: 3.200503097 | AF21: 3.499529293 | AG21: 5.566060404 | AH21: 74.70374789 | AI21: 3.239831149 | AJ21: 0 | AK21: 0 | AL21: 0 | AM21: 0 | AN21: 0.1002084171 | AO21: 0.154338756 | AP21: 0.1773409949 | AQ21: 0.1543803346 | AR21: 14.15322339 | AS21: 50.69730811 | AT21: 0 | AU21: 3.67152339 | AV21: 3.499529293 | AW21: 3.200503097 | AX21: 2.116358571 | AY21: 74.70374789 | AZ21: 74.70374789 | BA21: 5.566060404 | BB21: 0 | BC21: 0 | BD21: 0.1867989863 | BE21: 0.1773409949 | BF21: 0.154338756 | BG21: 0.1002084171 | BH21: 14.15322339 | BI21: 14.15322339 | BJ21: 0.3152314328 | BK21: 78.28895877 | BL21: 81.28895877 | BM21: 22.09049238 | BN21: 38.10791667 | BO21: 3.544011488 | BP21: 2.133125237 | BQ21: 0.1707721118 | BR21: 0.2028585553 | BT21: 1878.935011 | BU21: 3.544011488 | BV21: 2.133125237 | BW21: 0.1707721118 | BX21: 0.2028585553 | CN21: 0.9868317595 | CO21: 1926.192743 | CP21: 24.74226804 | CQ21: 1950.935011
A22: 19 | B22: 24 | C22: -6.946759833 | D22: 24.0875 | E22: 5.5125 | F22: 7.475 | G22: 1.030927835 | H22: 81.875 | I22: 14.17583333 | J22: 1.046723736 | K22: 3.431919884 | L22: 0.3515914352 | M22: 2.648408565 | N22: 4.119228548 | O22: 0.05670103093 | P22: 0.2555268695 | Q22: 4.135889072 | R22: 0.3059361402 | S22: 0.19 | T22: 0.1009869513 | U22: 1.046723736 | V22: 0 | W22: 63.17910918 | X22: 0 | Y22: 0.240875 | Z22: 2.648408565 | AA22: 62.14176831 | AB22: 0 | AC22: 0.9880593753 | AD22: 2.318128029 | AE22: 3.515161446 | AF22: 3.856250772 | AG22: 6.090495401 | AH22: 82.48389212 | AI22: 3.554430352 | AJ22: 0 | AK22: 0 | AL22: 0 | AM22: 0 | AN22: 0.1101550414 | AO22: 0.1701084339 | AP22: 0.1956107444 | AQ22: 0.1701559253 | AR22: 15.64457918 | AS22: 60.35891516 | AT22: 0 | AU22: 4.045378536 | AV22: 3.856250772 | AW22: 3.515161446 | AX22: 2.318128029 | AY22: 82.48389212 | AZ22: 82.48389212 | BA22: 6.090495401 | BB22: 0 | BC22: 0 | BD22: 0.2060329692 | BE22: 0.1956107444 | BF22: 0.1701084339 | BG22: 0.1101550414 | BH22: 15.64457918 | BI22: 15.64457918 | BJ22: 0.3447802968 | BK22: 86.33784772 | BL22: 89.33784772 | BM22: 22.13422374 | BN22: 38.26333333 | BO22: 3.900649453 | BP22: 2.334816126 | BQ22: 0.188203913 | BR22: 0.2165557265 | BT22: 2072.108345 | BU22: 3.900649453 | BV22: 2.334816126 | BW22: 0.188203913 | BX22: 0.2165557265 | CN22: 0.9880593753 | CO22: 2119.366077 | CP22: 24.74226804 | CQ22: 2144.108345
A23: 20 | B23: 24 | C23: -7.912037667 | D23: 24.77375 | E23: 5.304166667 | F23: 7.445833333 | G23: 1.175172882 | H23: 90.66666667 | I23: 14.04333333 | J23: 1.081497001 | K23: 4.217747809 | L23: 0.4316087963 | M23: 2.568391204 | N23: 4.555321403 | O23: 0.06463450851 | P23: 0.313841482 | Q23: 4.577007616 | R23: 0.3119535687 | S23: 0.19 | T23: 0.1239701885 | U23: 1.081497001 | V23: 0 | W23: 69.87783486 | X23: 0 | Y23: 0.2477375 | Z23: 2.568391204 | AA23: 70.85399459 | AB23: 0 | AC23: 0.9877662093 | AD23: 2.532894422 | AE23: 3.787800988 | AF23: 4.153942177 | AG23: 6.840226966 | AH23: 88.82094658 | AI23: 3.831314679 | AJ23: 0 | AK23: 0 | AL23: 0 | AM23: 0 | AN23: 0.1201882797 | AO23: 0.182921992 | AP23: 0.209859729 | AQ23: 0.1829848863 | AR23: 16.35109177 | AS23: 64.61213927 | AT23: 0 | AU23: 4.35774336 | AV23: 4.153942177 | AW23: 3.787800988 | AX23: 2.532894422 | AY23: 88.82094658 | AZ23: 88.82094658 | BA23: 6.840226966 | BB23: 0 | BC23: 0 | BD23: 0.2210505685 | BE23: 0.209859729 | BF23: 0.182921992 | BG23: 0.1201882797 | BH23: 16.35109177 | BI23: 16.35109177 | BJ23: 0.3874279893 | BK23: 96.05958736 | BL23: 99.05958736 | BM23: 22.855247 | BN23: 38.81708333 | BO23: 4.202955556 | BP23: 2.551958541 | BQ23: 0.2017715684 | BR23: 0.2251700852 | BT23: 2305.430097 | BU23: 4.202955556 | BV23: 2.551958541 | BW23: 0.2017715684 | BX23: 0.2251700852 | CN23: 0.9877662093 | CO23: 2349.225947 | CP23: 28.20414917 | CQ23: 2377.430097
A24: 21 | B24: 24 | C24: -7.180556125 | D24: 23.17041667 | E24: 5.770833333 | F24: 7.491666667 | G24: 1.234567901 | H24: 70.625 | I24: 13.95791667 | J24: 1.014191747 | K24: 3.487054183 | L24: 0.3564409722 | M24: 2.520983796 | N24: 3.552127423 | O24: 0.06790123457 | P24: 0.2593133539 | Q24: 3.579722537 | R24: 0.2957262175 | S24: 0.19 | T24: 0.1023798747 | U24: 0.8852707699 | V24: 0.1289209775 | W24: 55.13448748 | X24: 0.4008809731 | Y24: 0.2317041667 | Z24: 2.643559028 | AA24: 52.60523707 | AB24: 0.912359198 | AC24: 0.9836148208 | AD24: 2.086456644 | AE24: 3.185597012 | AF24: 3.501137885 | AG24: 5.398128093 | AH24: 74.29228474 | AI24: 3.234455796 | AJ24: 0 | AK24: 0 | AL24: 0 | AM24: 0 | AN24: 0.0984429846 | AO24: 0.1531615797 | AP24: 0.1774015718 | AQ24: 0.153220151 | AR24: 14.5054164 | AS24: 62.27980111 | AT24: 3.109509258 | AU24: 3.674294657 | AV24: 3.501137885 | AW24: 3.185597012 | AX24: 2.086456644 | AY24: 74.29228474 | AZ24: 74.29228474 | BA24: 5.398128093 | BB24: 0 | BC24: 0 | BD24: 0.1869588943 | BE24: 0.1774015718 | BF24: 0.1531615797 | BG24: 0.0984429846 | BH24: 14.5054164 | BI24: 14.5054164 | BJ24: 0.3058550977 | BK24: 75.34662208 | BL24: 78.22404685 | BM24: 21.18460841 | BN24: 37.12833333 | BO24: 3.556668153 | BP24: 2.106855865 | BQ24: 0.1697927156 | BR24: 0.2007627631 | BT24: 1808.31893 | BU24: 3.556668153 | BV24: 2.106855865 | BW24: 0.1697927156 | BX24: 0.2007627631 | CN24: 0.9836148208 | CO24: 1847.747495 | CP24: 29.62962963 | CQ24: 1877.377124
A25: 22 | B25: 24 | C25: -9.1296305 | D25: 25.78125 | E25: 5.3875 | F25: 7.2625 | G25: 1.234567901 | H25: 97.08333333 | I25: 13.53125 | J25: 1.065781635 | K25: 3.087128078 | L25: 0.3152199074 | M25: 2.684780093 | N25: 4.874438428 | O25: 0.06790123457 | P25: 0.2294370078 | Q25: 4.884459496 | R25: 0.3201376139 | S25: 0.19 | T25: 0.09054002528 | U25: 1.065781635 | V25: 0 | W25: 60.80661533 | X25: 0 | Y25: 0.2578125 | Z25: 2.684780093 | AA25: 75.08886188 | AB25: 0 | AC25: 0.987825378 | AD25: 2.635411471 | AE25: 3.844758349 | AF25: 4.20282896 | AG25: 7.494136115 | AH25: 95.14615939 | AI25: 3.888885398 | AJ25: 0 | AK25: 0 | AL25: 0 | AM25: 0 | AN25: 0.1266174485 | AO25: 0.1877150431 | AP25: 0.2134917539 | AQ25: 0.1877453642 | AR25: 17.75087524 | AS25: 57.05354018 | AT25: 0 | AU25: 4.397057291 | AV25: 4.20282896 | AW25: 3.844758349 | AX25: 2.635411471 | AY25: 95.14615939 | AZ25: 95.14615939 | BA25: 7.494136115 | BB25: 0 | BC25: 0 | BD25: 0.2241473777 | BE25: 0.2134917539 | BF25: 0.1877150431 | BG25: 0.1266174485 | BH25: 17.75087524 | BI25: 17.75087524 | BJ25: 0.4253980669 | BK25: 101.4050293 | BL25: 104.4050293 | BM25: 23.84703163 | BN25: 39.3125 | BO25: 4.252312441 | BP25: 2.655771811 | BQ25: 0.2064087612 | BR25: 0.2293977564 | BT25: 2433.720704 | BU25: 4.252312441 | BV25: 2.655771811 | BW25: 0.2064087612 | BX25: 0.2293977564 | CN25: 0.987825378 | CO25: 2476.091074 | CP25: 29.62962963 | CQ25: 2505.720704
A26: 23 | B26: 24 | C26: -2.148148292 | D26: 18.64333333 | E26: 6.495833333 | F26: 7.666666667 | G26: 1.33586578 | H26: 53.33333333 | I26: 11.35958333 | J26: 1.009897729 | K26: 0.7369397784 | L26: 0.07516782407 | M26: 2.924832176 | N26: 2.690376064 | O26: 0.07347261792 | P26: 0.05473809558 | Q26: 2.692496684 | R26: 0.2630396769 | S26: 0.19 | T26: 0.02159031372 | U26: 1.009897729 | V26: 0 | W26: 37.28196935 | X26: 0 | Y26: 0.1864333333 | Z26: 2.924832176 | AA26: 36.08117627 | AB26: 0 | AC26: 0.975889571 | AD26: 1.919681497 | AE26: 2.907464273 | AF26: 3.251587998 | AG26: 4.877479857 | AH26: 54.8631186 | AI26: 2.971833929 | AJ26: 0 | AK26: 0 | AL26: 0 | AM26: 0 | AN26: 0.09214686246 | AO26: 0.1425962109 | AP26: 0.170572444 | AQ26: 0.142600453 | AR26: 10.75385075 | AS26: 36.91657904 | AT26: 0 | AU26: 3.456441921 | AV26: 3.251587998 | AW26: 2.907464273 | AX26: 1.919681497 | AY26: 54.8631186 | AZ26: 54.8631186 | BA26: 4.877479857 | BB26: 0 | BC26: 0 | BD26: 0.1824746022 | BE26: 0.170572444 | BF26: 0.1425962109 | BG26: 0.09214686246 | BH26: 10.75385075 | BI26: 10.75385075 | BJ26: 0.2803918015 | BK26: 55.40613889 | BL26: 58.40613889 | BM26: 16.65323106 | BN26: 30.00291667 | BO26: 3.327050389 | BP26: 1.946682036 | BQ26: 0.1631693066 | BR26: 0.2277666722 | BT26: 1329.747333 | BU26: 3.327050389 | BV26: 1.946682036 | BW26: 0.1631693066 | BX26: 0.2277666722 | CN26: 0.975889571 | CO26: 1369.686555 | CP26: 32.06077873 | CQ26: 1401.747333
A27: 24 | B27: 24 | C27: -0.1388888333 | D27: 16.98666667 | E27: 6.795833333 | F27: 7.9125 | G27: 1.538461538 | H27: 50.33333333 | I27: 11.2125 | J27: 1.014191747 | K27: 0.1903742811 | L27: 0.01939814815 | M27: 2.980601852 | N27: 2.538547123 | O27: 0.08461538462 | P27: 0.0141325681 | Q27: 2.538923711 | R27: 0.2489911274 | S27: 0.19 | T27: 0.005571693863 | U27: 0.9755121063 | V27: 0.03867964106 | W27: 35.64320436 | X27: 0 | Y27: 0.1698666667 | Z27: 2.980601852 | AA27: 34.58170642 | AB27: 0.5973187534 | AC27: 0.9704495306 | AD27: 1.920626892 | AE27: 2.978356212 | AF27: 3.374796851 | AG27: 4.643225788 | AH27: 51.33365489 | AI27: 3.058863521 | AJ27: 0 | AK27: 0 | AL27: 0 | AM27: 0 | AN27: 0.09270791741 | AO27: 0.1471830703 | AP27: 0.1796152657 | AQ27: 0.1471833968 | AR27: 10.02279096 | AS27: 36.53794158 | AT27: 0 | AU27: 3.612276522 | AV27: 3.374796851 | AW27: 2.978356212 | AX27: 1.920626892 | AY27: 51.33365489 | AZ27: 51.33365489 | BA27: 4.643225788 | BB27: 0 | BC27: 0 | BD27: 0.193767723 | BE27: 0.1796152657 | BF27: 0.1471830703 | BG27: 0.09270791741 | BH27: 10.02279096 | BI27: 10.02279096 | BJ27: 0.2672234201 | BK27: 52.06216915 | BL27: 55.06216915 | BM27: 15.00085841 | BN27: 28.19916667 | BO27: 3.470612662 | BP27: 1.952616891 | BQ27: 0.1710567046 | BR27: 0.2481036216 | BT27: 1249.49206 | BU27: 3.470612662 | BV27: 1.952616891 | BW27: 0.1710567046 | BX27: 0.2481036216 | CN27: 0.9704495306 | CO27: 1284.568983 | CP27: 36.92307692 | CQ27: 1321.49206
A28: 25 | B28: 24 | C28: 0.94212975 | D28: 17.28875 | E28: 6.9875 | F28: 8.104166667 | G28: 1.538461538 | H28: 47.875 | I28: 14.615 | J28: 1.009897729 | K28: 3.573110169 | L28: 0.3637152778 | M28: 2.636284722 | N28: 2.417356548 | O28: 0.08461538462 | P28: 0.2651066647 | Q28: 2.464073436 | R28: 0.2525798032 | S28: 0.19 | T28: 0.1044692599 | U28: 0.9669240701 | V28: 0.04297365916 | W28: 35.63927988 | X28: 0.1337403886 | Y28: 0.1728875 | Z28: 2.636284722 | AA28: 34.6110009 | AB28: 0 | AC28: 0.9709650674 | AD28: 1.72964232 | AE28: 2.980302169 | AF28: 3.369376758 | AG28: 3.625492419 | AH28: 52.46726492 | AI28: 3.059601591 | AJ28: 0 | AK28: 0 | AL28: 0 | AM28: 0 | AN28: 0.07949648111 | AO28: 0.1410283128 | AP28: 0.1732712508 | AQ28: 0.1411441951 | AR28: 10.28423376 | AS28: 36.85840593 | AT28: 3.112148028 | AU28: 3.600602584 | AV28: 3.369376758 | AW28: 2.980302169 | AX28: 1.72964232 | AY28: 52.46726492 | AZ28: 52.46726492 | BA28: 3.625492419 | BB28: 0 | BC28: 0 | BD28: 0.1867334795 | BE28: 0.1732712508 | BF28: 0.1410283128 | BG28: 0.07949648111 | BH28: 10.28423376 | BI28: 10.28423376 | BJ28: 0.2048967463 | BK28: 52.98657171 | BL28: 55.98657171 | BM28: 15.29864773 | BN28: 31.90375 | BO28: 3.463480737 | BP28: 1.754858652 | BQ28: 0.1612415688 | BR28: 0.2244275028 | BT28: 1271.677721 | BU28: 3.463480737 | BV28: 1.754858652 | BW28: 0.1612415688 | BX28: 0.2244275028 | CN28: 0.9709650674 | CO28: 1306.754644 | CP28: 36.92307692 | CQ28: 1343.677721
A29: 26 | B29: 24 | C29: 4.60879675 | D29: 14.56791667 | E29: 7.545833333 | F29: 8.429166667 | G29: 1.584987593 | H29: 39.45833333 | I29: 14.8575 | J29: 1.009897729 | K29: 3.552769677 | L29: 0.3612905093 | M29: 2.638709491 | N29: 2.000856333 | O29: 0.08717431762 | P29: 0.2634565851 | Q29: 2.041701112 | R29: 0.2340492964 | S29: 0.19 | T29: 0.1037727982 | U29: 1.009897729 | V29: 0 | W29: 28.15639283 | X29: 0 | Y29: 0.1456791667 | Z29: 2.638709491 | AA29: 28.84830102 | AB29: 0 | AC29: 0.9644590463 | AD29: 1.592224755 | AE29: 2.960451352 | AF29: 3.429386991 | AG29: 3.001587791 | AH29: 44.15901661 | AI29: 3.055376665 | AJ29: 0 | AK29: 0 | AL29: 0 | AM29: 0 | AN29: 0.07182080157 | AO29: 0.1387261526 | AP29: 0.1787500814 | AQ29: 0.1388867424 | AR29: 8.655714186 | AS29: 27.88043978 | AT29: 0 | AU29: 3.718137349 | AV29: 3.429386991 | AW29: 2.960451352 | AX29: 1.592224755 | AY29: 44.15901661 | AZ29: 44.15901661 | BA29: 3.001587791 | BB29: 0 | BC29: 0 | BD29: 0.1964396276 | BE29: 0.1787500814 | BF29: 0.1387261526 | BG29: 0.07182080157 | BH29: 8.655714186 | BI29: 8.655714186 | BJ29: 0.1694910511 | BK29: 44.5960906 | BL29: 47.5960906 | BM29: 12.5778144 | BN29: 29.42541667 | BO29: 3.545615256 | BP29: 1.617516283 | BQ29: 0.1634658874 | BR29: 0.2502708317 | BT29: 1070.306174 | BU29: 3.545615256 | BV29: 1.617516283 | BW29: 0.1634658874 | BX29: 0.2502708317 | CN29: 0.9644590463 | CO29: 1104.266472 | CP29: 38.03970223 | CQ29: 1142.306174
A30: 27 | B30: 24 | C30: 5.814815167 | D30: 12.95958333 | E30: 7.845833333 | F30: 8.616666667 | G30: 1.612903226 | H30: 32.41666667 | I30: 14.92125 | J30: 1.014191747 | K30: 2.983356275 | L30: 0.3030960648 | M30: 2.696903935 | N30: 1.645263775 | O30: 0.08870967742 | P30: 0.221116557 | Q30: 1.681943397 | R30: 0.2227981002 | S30: 0.19 | T30: 0.08705771661 | U30: 0.9712180882 | V30: 0.04297365916 | W30: 24.73073036 | X30: 0.1338179211 | Y30: 0.1295958333 | Z30: 2.696903935 | AA30: 22.81334464 | AB30: 0 | AC30: 0.9564232447 | AD30: 1.41017839 | AE30: 2.75672513 | AF30: 3.238918905 | AG30: 2.480551306 | AH30: 36.49499837 | AI30: 2.863429956 | AJ30: 0 | AK30: 0 | AL30: 0 | AM30: 0 | AN30: 0.06283503205 | AO30: 0.1285449549 | AP30: 0.171460315 | AQ30: 0.1286967987 | AR30: 7.125573669 | AS30: 25.46362209 | AT30: 3.113952214 | AU30: 3.554367864 | AV30: 3.238918905 | AW30: 2.75672513 | AX30: 1.41017839 | AY30: 36.49499837 | AZ30: 36.49499837 | BA30: 2.480551306 | BB30: 0 | BC30: 0 | BD30: 0.1916201117 | BE30: 0.171460315 | BF30: 0.1285449549 | BG30: 0.06283503205 | BH30: 7.125573669 | BI30: 7.125573669 | BJ30: 0.1400389845 | BK30: 37.01292617 | BL30: 40.01292617 | BM30: 10.97377508 | BN30: 27.88083333 | BO30: 3.372852632 | BP30: 1.435140969 | BQ30: 0.154606188 | BR30: 0.2693358751 | BT30: 888.310228 | BU30: 3.372852632 | BV30: 1.435140969 | BW30: 0.154606188 | BX30: 0.2693358751 | CN30: 0.9564232447 | CO30: 921.6005506 | CP30: 38.70967742 | CQ30: 960.310228
A31: 28 | B31: 24 | C31: 4.129629958 | D31: 14.92208333 | E31: 7.552083333 | F31: 8.520833333 | G31: 1.61879834 | H31: 41.41666667 | I31: 14.72833333 | J31: 1.009897729 | K31: 3.55946144 | L31: 0.3612905093 | M31: 2.638709491 | N31: 2.103743642 | O31: 0.0890339087 | P31: 0.2636823006 | Q31: 2.13428803 | R31: 0.2343964267 | S31: 0.19 | T31: 0.1037727982 | U31: 0.923950411 | V31: 0.08594731832 | W31: 30.91279413 | X31: 0 | Y31: 0.1492208333 | Z31: 2.638709491 | AA31: 31.03056562 | AB31: 0.6052169175 | AC31: 0.9652580557 | AD31: 1.646473101 | AE31: 3.017955855 | AF31: 3.48736089 | AG31: 3.163625197 | AH31: 46.13826241 | AI31: 3.112916482 | AJ31: 0 | AK31: 0 | AL31: 0 | AM31: 0 | AN31: 0.07443357661 | AO31: 0.1414405477 | AP31: 0.1810839638 | AQ31: 0.1415911069 | AR31: 9.043670877 | AS31: 33.45720047 | AT31: 0 | AU31: 3.772505765 | AV31: 3.48736089 | AW31: 3.017955855 | AX31: 1.646473101 | AY31: 46.13826241 | AZ31: 46.13826241 | BA31: 3.163625197 | BB31: 0 | BC31: 0 | BD31: 0.1983960022 | BE31: 0.1810839638 | BF31: 0.1414405477 | BG31: 0.07443357661 | BH31: 9.043670877 | BI31: 9.043670877 | BJ31: 0.1787215256 | BK31: 46.59492645 | BL31: 49.59492645 | BM31: 12.93198106 | BN31: 29.65041667 | BO31: 3.603077225 | BP31: 1.672655295 | BQ31: 0.1668884171 | BR31: 0.2487086274 | BT31: 1118.278235 | BU31: 3.603077225 | BV31: 1.672655295 | BW31: 0.1668884171 | BX31: 0.2487086274 | CN31: 0.9652580557 | CO31: 1151.427075 | CP31: 38.85116016 | CQ31: 1190.278235
A32: 29 | B32: 24 | C32: 4.782407833 | D32: 13.955 | E32: 7.708333333 | F32: 8.570833333 | G32: 1.754385965 | H32: 37.41666667 | I32: 14.41833333 | J32: 1.014191747 | K32: 2.845354674 | L32: 0.2885474537 | M32: 2.711452546 | N32: 1.895481711 | O32: 0.09649122807 | P32: 0.2106784318 | Q32: 1.919563686 | R32: 0.2291093836 | S32: 0.19 | T32: 0.08287894621 | U32: 1.014191747 | V32: 0 | W32: 27.54224564 | X32: 0 | Y32: 0.13955 | Z32: 2.711452546 | AA32: 26.53844363 | AB32: 0 | AC32: 0.9582452171 | AD32: 1.557796105 | AE32: 2.898269735 | AF32: 3.37574802 | AG32: 2.914095987 | AH32: 41.428465 | AI32: 3.007270403 | AJ32: 0 | AK32: 0 | AL32: 0 | AM32: 0 | AN32: 0.07030501657 | AO32: 0.1360749236 | AP32: 0.1768227748 | AQ32: 0.1361881542 | AR32: 8.088822921 | AS32: 27.15684259 | AT32: 0 | AU32: 3.675218744 | AV32: 3.37574802 | AW32: 2.898269735 | AX32: 1.557796105 | AY32: 41.428465 | AZ32: 41.428465 | BA32: 2.914095987 | BB32: 0 | BC32: 0 | BD32: 0.1953709666 | BE32: 0.1768227748 | BF32: 0.1360749236 | BG32: 0.07030501657 | BH32: 8.088822921 | BI32: 8.088822921 | BJ32: 0.1648114104 | BK32: 42.01640731 | BL32: 45.01640731 | BM32: 11.96919175 | BN32: 28.37333333 | BO32: 3.510379664 | BP32: 1.586574506 | BQ32: 0.1623467695 | BR32: 0.2607744208 | BT32: 1008.393775 | BU32: 3.510379664 | BV32: 1.586574506 | BW32: 0.1623467695 | BX32: 0.2607744208 | CN32: 0.9582452171 | CO32: 1038.288512 | CP32: 42.10526316 | CQ32: 1080.393775
A33: 30 | B33: 24 | C33: 4.701389208 | D33: 12.86708333 | E33: 7.841666667 | F33: 8.616666667 | G33: 1.754385965 | H33: 34 | I33: 11.33 | J33: 1.009897729 | K33: 0.2871775848 | L33: 0.02909722222 | M33: 2.970902778 | N33: 1.726821512 | O33: 0.09649122807 | P33: 0.02125336284 | Q33: 1.727390253 | R33: 0.2213506118 | S33: 0.19 | T33: 0.008357540795 | U33: 1.009897729 | V33: 0 | W33: 24.65340832 | X33: 0 | Y33: 0.1286708333 | Z33: 2.970902778 | AA33: 21.65581056 | AB33: 0 | AC33: 0.9513232559 | AD33: 1.576919838 | AE33: 2.696532842 | AF33: 3.166581045 | AG33: 3.18107357 | AH33: 35.68833012 | AI33: 2.813404686 | AJ33: 0 | AK33: 0 | AL33: 0 | AM33: 0 | AN33: 0.07452995698 | AO33: 0.1321687124 | AP33: 0.1740524074 | AQ33: 0.1321700943 | AR33: 6.99535472 | AS33: 24.41178706 | AT33: 0 | AU33: 3.474905038 | AV33: 3.166581045 | AW33: 2.696532842 | AX33: 1.576919838 | AY33: 35.68833012 | AZ33: 35.68833012 | BA33: 3.18107357 | BB33: 0 | BC33: 0 | BD33: 0.1940904759 | BE33: 0.1740524074 | BF33: 0.1321687124 | BG33: 0.07452995698 | BH33: 6.99535472 | BI33: 6.99535472 | BJ33: 0.1829109215 | BK33: 36.04156355 | BL33: 39.04156355 | BM33: 10.87698106 | BN33: 24.19708333 | BO33: 3.313563142 | BP33: 1.613482212 | BQ33: 0.1615084264 | BR33: 0.2927223144 | BT33: 864.9975252 | BU33: 3.313563142 | BV33: 1.613482212 | BW33: 0.1615084264 | BX33: 0.2927223144 | CN33: 0.9513232559 | CO33: 894.892262 | CP33: 42.10526316 | CQ33: 936.9975252
A34: 31 | B34: 24 | C34: 1.516203792 | D34: 14.64625 | E34: 7.479166667 | F34: 8.441666667 | G34: 1.342371079 | H34: 41.41666667 | I34: 11.03458333 | J34: 1.014498337 | K34: 0.2634693876 | L34: 0.0266724537 | M34: 2.973327546 | N34: 2.093096073 | O34: 0.07383040936 | P34: 0.01948979306 | Q34: 2.09352995 | R34: 0.2347579855 | S34: 0.19 | T34: 0.007661079062 | U34: 0.971524678 | V34: 0.04297365916 | W34: 30.865517 | X34: 0.1337868869 | Y34: 0.1464625 | Z34: 2.973327546 | AA34: 27.67701664 | AB34: 0 | AC34: 0.9687983995 | AD34: 1.763466595 | AE34: 2.858779595 | AF34: 3.300326599 | AG34: 3.898879172 | AH34: 42.40766649 | AI34: 2.938716985 | AJ34: 0 | AK34: 0 | AL34: 0 | AM34: 0 | AN34: 0.08422894399 | AO34: 0.1406652371 | AP34: 0.1779910827 | AQ34: 0.1406660912 | AR34: 8.277706306 | AS34: 31.7701832 | AT34: 3.113230047 | AU34: 3.578846071 | AV34: 3.300326599 | AW34: 2.858779595 | AX34: 1.763466595 | AY34: 42.40766649 | AZ34: 42.40766649 | BA34: 3.898879172 | BB34: 0 | BC34: 0 | BD34: 0.1952488042 | BE34: 0.1779910827 | BF34: 0.1406652371 | BG34: 0.08422894399 | BH34: 8.277706306 | BI34: 8.277706306 | BJ34: 0.2247013046 | BK34: 43.02250713 | BL34: 46.02250713 | BM34: 12.66074834 | BN34: 25.68083333 | BO34: 3.398101438 | BP34: 1.79209555 | BQ34: 0.1674932084 | BR34: 0.2696393222 | BT34: 1032.540171 | BU34: 3.398101438 | BV34: 1.79209555 | BW34: 0.1674932084 | BX34: 0.2696393222 | CN34: 0.9687983995 | CO34: 1072.323265 | CP34: 32.2169059 | CQ34: 1104.540171
A35: 32 | B35: 24 | C35: -0.6990741667 | D35: 18.16958333 | E35: 7.141666667 | F35: 8.2375 | G35: 1.136363636 | H35: 48.83333333 | I35: 14.46666667 | J35: 1.009897729 | K35: 3.739542893 | L35: 0.3782638889 | M35: 2.621736111 | N35: 2.470122649 | O35: 0.0625 | P35: 0.2765044083 | Q35: 2.503459161 | R35: 0.2601080284 | S35: 0.19 | T35: 0.1086480303 | U35: 1.009897729 | V35: 0 | W35: 34.89518661 | X35: 0 | Y35: 0.1816958333 | Z35: 2.621736111 | AA35: 35.25703153 | AB35: 0 | AC35: 0.9788423065 | AD35: 1.718916989 | AE35: 2.900748808 | AF35: 3.253651779 | AG35: 3.712620267 | AH35: 53.18285041 | AI35: 2.956766123 | AJ35: 0 | AK35: 0 | AL35: 0 | AM35: 0 | AN35: 0.07865937765 | AO35: 0.1364793737 | AP35: 0.1657987448 | AQ35: 0.1365971489 | AR35: 10.42449737 | AS35: 34.5531885 | AT35: 0 | AU35: 3.465677011 | AV35: 3.253651779 | AW35: 2.900748808 | AX35: 1.718916989 | AY35: 53.18285041 | AZ35: 53.18285041 | BA35: 3.712620267 | BB35: 0 | BC35: 0 | BD35: 0.1779394859 | BE35: 0.1657987448 | BF35: 0.1364793737 | BG35: 0.07865937765 | BH35: 10.42449737 | BI35: 10.42449737 | BJ35: 0.2099352175 | BK35: 53.70923986 | BL35: 56.70923986 | BM35: 16.17948106 | BN35: 32.63625 | BO35: 3.319589773 | BP35: 1.737615071 | BQ35: 0.1556618948 | BR35: 0.2139711566 | BT35: 1289.021757 | BU35: 3.319589773 | BV35: 1.737615071 | BW35: 0.1556618948 | BX35: 0.2139711566 | CN35: 0.9788423065 | CO35: 1333.749029 | CP35: 27.27272727 | CQ35: 1361.021757
A36: 33 | B36: 24 | C36: 4.856481875 | D36: 14.32458333 | E36: 7.654166667 | F36: 8.520833333 | G36: 1.136363636 | H36: 35.20833333 | I36: 14.83208333 | J36: 1.014191747 | K36: 3.694530599 | L36: 0.3734143519 | M36: 2.626585648 | N36: 1.789671016 | O36: 0.0625 | P36: 0.2730585863 | Q36: 1.843991798 | R36: 0.2335460977 | S36: 0.19 | T36: 0.1072551069 | U36: 1.014191747 | V36: 0 | W36: 27.67431354 | X36: 0 | Y36: 0.1432458333 | Z36: 2.626585648 | AA36: 25.42772522 | AB36: 0 | AC36: 0.9716187423 | AD36: 1.458215539 | AE36: 2.736962015 | AF36: 3.160267444 | AG36: 2.699501255 | AH36: 39.47895225 | AI36: 2.805910338 | AJ36: 0 | AK36: 0 | AL36: 0 | AM36: 0 | AN36: 0.06525596065 | AO36: 0.1274748003 | AP36: 0.1651111467 | AQ36: 0.1276671556 | AR36: 7.708184551 | AS36: 27.28706245 | AT36: 0 | AU36: 3.435257862 | AV36: 3.160267444 | AW36: 2.736962015 | AX36: 1.458215539 | AY36: 39.47895225 | AZ36: 39.47895225 | BA36: 2.699501255 | BB36: 0 | BC36: 0 | BD36: 0.182047604 | BE36: 0.1651111467 | BF36: 0.1274748003 | BG36: 0.06525596065 | BH36: 7.708184551 | BI36: 7.708184551 | BJ36: 0.1524464993 | BK36: 40.03922757 | BL36: 43.03922757 | BM36: 12.33877508 | BN36: 29.15666667 | BO36: 3.244992093 | BP36: 1.476136764 | BQ36: 0.1495388578 | BR36: 0.2432905029 | BT36: 960.9414617 | BU36: 3.244992093 | BV36: 1.476136764 | BW36: 0.1495388578 | BX36: 0.2432905029 | CN36: 0.9716187423 | CO36: 1005.668734 | CP36: 27.27272727 | CQ36: 1032.941462
A37: 34 | B37: 24 | C37: 0.3958332917 | D37: 16.57833333 | E37: 7.258333333 | F37: 8.4625 | G37: 1.136363636 | H37: 51.95833333 | I37: 14.55333333 | J37: 1.009897729 | K37: 3.337229565 | L37: 0.3370428241 | M37: 2.662957176 | N37: 2.619840791 | O37: 0.0625 | P37: 0.2465484412 | Q37: 2.640791771 | R37: 0.2497418185 | S37: 0.19 | T37: 0.09680818087 | U37: 1.009897729 | V37: 0 | W37: 38.33663405 | X37: 0 | Y37: 0.1657833333 | Z37: 2.662957176 | AA37: 39.5709682 | AB37: 0 | AC37: 0.9798631075 | AD37: 1.890343538 | AE37: 3.318300989 | AF37: 3.795714029 | AG37: 3.877594586 | AH37: 55.87885278 | AI37: 3.379073559 | AJ37: 0 | AK37: 0 | AL37: 0 | AM37: 0 | AN37: 0.08699026531 | AO37: 0.1575470988 | AP37: 0.1952493332 | AQ37: 0.1576434398 | AR37: 10.95294723 | AS37: 37.96090727 | AT37: 0 | AU37: 4.072338006 | AV37: 3.795714029 | AW37: 3.318300989 | AX37: 1.890343538 | AY37: 55.87885278 | AZ37: 55.87885278 | BA37: 3.877594586 | BB37: 0 | BC37: 0 | BD37: 0.2115130712 | BE37: 0.1952493332 | BF37: 0.1575470988 | BG37: 0.08699026531 | BH37: 10.95294723 | BI37: 10.95294723 | BJ37: 0.2191936759 | BK37: 56.43192653 | BL37: 59.43192653 | BM37: 14.58823106 | BN37: 31.13166667 | BO37: 3.868318667 | BP37: 1.909050587 | BQ37: 0.18289947 | BR37: 0.2462241381 | BT37: 1354.366237 | BU37: 3.868318667 | BV37: 1.909050587 | BW37: 0.18289947 | BX37: 0.2462241381 | CN37: 0.9798631075 | CO37: 1399.09351 | CP37: 27.27272727 | CQ37: 1426.366237
A38: 35 | B38: 24 | C38: -0.8217592917 | D38: 16.39083333 | E38: 7.454166667 | F38: 8.441666667 | G38: 1.960784314 | H38: 50.54166667 | I38: 14.76625 | J38: 1.014191747 | K38: 3.507881469 | L38: 0.3540162037 | M38: 2.645983796 | N38: 2.545757042 | O38: 0.1078431373 | P38: 0.259052211 | Q38: 2.579527672 | R38: 0.2460389842 | S38: 0.19 | T38: 0.101683413 | U38: 0.9282444291 | V38: 0.08594731832 | W38: 32.34700209 | X38: 0.9371605226 | Y38: 0.1639083333 | Z38: 2.645983796 | AA38: 37.68373874 | AB38: 0 | AC38: 0.9649924536 | AD38: 1.861921116 | AE38: 3.284463001 | AF38: 3.761402291 | AG38: 3.793131801 | AH38: 55.22657091 | AI38: 3.390419271 | AJ38: 0 | AK38: 0 | AL38: 0 | AM38: 0 | AN38: 0.08550511939 | AO38: 0.1556258247 | AP38: 0.1938178997 | AQ38: 0.1557358923 | AR38: 10.78287483 | AS38: 34.84750468 | AT38: 10.90389486 | AU38: 4.036309525 | AV38: 3.761402291 | AW38: 3.284463001 | AX38: 1.861921116 | AY38: 55.22657091 | AZ38: 55.22657091 | BA38: 3.793131801 | BB38: 0 | BC38: 0 | BD38: 0.2100532739 | BE38: 0.1938178997 | BF38: 0.1556258247 | BG38: 0.08550511939 | BH38: 10.78287483 | BI38: 10.78287483 | BJ38: 0.2142553554 | BK38: 56.01033245 | BL38: 59.01033245 | BM38: 14.40502508 | BN38: 31.15708333 | BO38: 3.888249561 | BP38: 1.893962019 | BQ38: 0.1804085806 | BR38: 0.2453124439 | BT38: 1344.247979 | BU38: 3.888249561 | BV38: 1.893962019 | BW38: 0.1804085806 | BX38: 0.2453124439 | CN38: 0.9649924536 | CO38: 1369.189155 | CP38: 47.05882353 | CQ38: 1416.247979
A39: 36 | B39: 24 | C39: -0.3287037917 | D39: 16.4775 | E39: 7.241666667 | F39: 8.4625 | G39: 1.960784314 | H39: 50.41666667 | I39: 14.16416667 | J39: 1.009897729 | K39: 3.197808379 | L39: 0.322494213 | M39: 2.677505787 | N39: 2.541067166 | O39: 0.1078431373 | P39: 0.2360628648 | Q39: 2.571255306 | R39: 0.246438822 | S39: 0.19 | T39: 0.09262941048 | U39: 1.009897729 | V39: 0 | W39: 38.8827332 | X39: 0 | Y39: 0.164775 | Z39: 2.677505787 | AA39: 37.166293 | AB39: 0 | AC39: 0.9647183956 | AD39: 1.878262972 | AE39: 3.244054044 | AF39: 3.709890656 | AG39: 3.923651893 | AH39: 55.03058156 | AI39: 3.349569803 | AJ39: 0 | AK39: 0 | AL39: 0 | AM39: 0 | AN39: 0.08667614987 | AO39: 0.1542923239 | AP39: 0.191538895 | AQ39: 0.1543835914 | AR39: 10.78667557 | AS39: 38.50165425 | AT39: 0 | AU39: 3.978072717 | AV39: 3.709890656 | AW39: 3.244054044 | AX39: 1.878262972 | AY39: 55.03058156 | AZ39: 55.03058156 | BA39: 3.923651893 | BB39: 0 | BC39: 0 | BD39: 0.2073531634 | BE39: 0.191538895 | BF39: 0.1542923239 | BG39: 0.08667614987 | BH39: 10.78667557 | BI39: 10.78667557 | BJ39: 0.2221264876 | BK39: 55.57525936 | BL39: 58.57525936 | BM39: 14.48739773 | BN39: 30.64166667 | BO39: 3.836110556 | BP39: 1.911621192 | BQ39: 0.1787802763 | BR39: 0.2447790818 | BT39: 1333.806225 | BU39: 3.836110556 | BV39: 1.911621192 | BW39: 0.1787802763 | BX39: 0.2447790818 | CN39: 0.9647183956 | CO39: 1358.747401 | CP39: 47.05882353 | CQ39: 1405.806225
A40: 37 | B40: 24 | C40: 2.8333335 | D40: 13.19625 | E40: 7.691666667 | F40: 8.554166667 | G40: 1.86546841 | H40: 38.79166667 | I40: 11.19791667 | J40: 1.014191747 | K40: 0.1684207041 | L40: 0.01697337963 | M40: 2.98302662 | N40: 1.962719021 | O40: 0.1026007625 | P40: 0.01242825662 | Q40: 1.962880976 | R40: 0.2236910909 | S40: 0.19 | T40: 0.00487523213 | U40: 1.014191747 | V40: 0 | W40: 27.56465528 | X40: 0 | Y40: 0.1319625 | Z40: 2.98302662 | AA40: 25.88417721 | AB40: 0 | AC40: 0.9543063561 | AD40: 1.756939164 | AE40: 2.962425319 | AF40: 3.489765289 | AG40: 3.645817074 | AH40: 40.25427725 | AI40: 3.084038945 | AJ40: 0 | AK40: 0 | AL40: 0 | AM40: 0 | AN40: 0.08382035822 | AO40: 0.1462656826 | AP40: 0.1911163987 | AQ40: 0.1462660875 | AR40: 7.859565168 | AS40: 27.17893864 | AT40: 0 | AU40: 3.821021196 | AV40: 3.489765289 | AW40: 2.962425319 | AX40: 1.756939164 | AY40: 40.25427725 | AZ40: 40.25427725 | BA40: 3.645817074 | BB40: 0 | BC40: 0 | BD40: 0.2124299151 | BE40: 0.1911163987 | BF40: 0.1462656826 | BG40: 0.08382035822 | BH40: 7.859565168 | BI40: 7.859565168 | BJ40: 0.2098450118 | BK40: 40.82555578 | BL40: 43.82555578 | BM40: 11.21044175 | BN40: 24.39416667 | BO40: 3.641743715 | BP40: 1.79655884 | BQ40: 0.1779358051 | BR40: 0.2979715263 | BT40: 979.8133387 | BU40: 3.641743715 | BV40: 1.79655884 | BW40: 0.1779358051 | BX40: 0.2979715263 | CN40: 0.9543063561 | CO40: 1007.042097 | CP40: 44.77124183 | CQ40: 1051.813339
A41: 38 | B41: 24 | C41: 5.296296708 | D41: 11.65791667 | E41: 8.0125 | F41: 8.754166667 | G41: 1.851851852 | H41: 31.79166667 | I41: 11.14041667 | J41: 1.009897729 | K41: 0.5537449233 | L41: 0.05576967593 | M41: 2.944230324 | N41: 1.617749197 | O41: 0.1018518519 | P41: 0.0408479872 | Q41: 1.622527669 | R41: 0.213870124 | S41: 0.19 | T41: 0.01601861986 | U41: 1.009897729 | V41: 0 | W41: 23.58720975 | X41: 0 | Y41: 0.1165791667 | Z41: 2.944230324 | AA41: 20.82574534 | AB41: 0 | AC41: 0.945847952 | AD41: 1.592490241 | AE41: 2.802272059 | AF41: 3.364713035 | AG41: 3.069657488 | AH41: 33.86210549 | AI41: 2.936359997 | AJ41: 0 | AK41: 0 | AL41: 0 | AM41: 0 | AN41: 0.0746963027 | AO41: 0.1371331066 | AP41: 0.1873154418 | AQ41: 0.1371389872 | AR41: 6.637392074 | AS41: 23.35603801 | AT41: 0 | AU41: 3.735934733 | AV41: 3.364713035 | AW41: 2.802272059 | AX41: 1.592490241 | AY41: 33.86210549 | AZ41: 33.86210549 | BA41: 3.069657488 | BB41: 0 | BC41: 0 | BD41: 0.2124768686 | BE41: 0.1873154418 | BF41: 0.1371331066 | BG41: 0.0746963027 | BH41: 6.637392074 | BI41: 6.637392074 | BJ41: 0.176761999 | BK41: 34.19726344 | BL41: 37.19726344 | BM41: 9.667814396 | BN41: 22.79833333 | BO41: 3.537227965 | BP41: 1.63157819 | BQ41: 0.1709163063 | BR41: 0.3206504172 | BT41: 820.7343226 | BU41: 3.537227965 | BV41: 1.63157819 | BW41: 0.1709163063 | BX41: 0.3206504172 | CN41: 0.945847952 | CO41: 848.2898782 | CP41: 44.44444444 | CQ41: 892.7343226
A42: 39 | B42: 24 | C42: 4.736111458 | D42: 13.74541667 | E42: 7.891666667 | F42: 8.733333333 | G42: 1.516812865 | H42: 38.45833333 | I42: 14.52583333 | J42: 1.014191747 | K42: 3.589553676 | L42: 0.3612905093 | M42: 2.638709491 | N42: 1.952866278 | O42: 0.0834247076 | P42: 0.2647001706 | Q42: 1.99346489 | R42: 0.2288856412 | S42: 0.19 | T42: 0.1037727982 | U42: 0.9712180882 | V42: 0.04297365916 | W42: 27.97500609 | X42: 1.071601075 | Y42: 0.1374541667 | Z42: 2.638709491 | AA42: 28.77146573 | AB42: 0 | AC42: 0.9651825246 | AD42: 1.622441218 | AE42: 3.059425354 | AF42: 3.586388818 | AG42: 2.999118803 | AH42: 42.95509206 | AI42: 3.154873664 | AJ42: 0 | AK42: 0 | AL42: 0 | AM42: 0 | AN42: 0.07303160369 | AO42: 0.1434961948 | AP42: 0.1884314815 | AQ42: 0.1436691629 | AR42: 8.386893728 | AS42: 28.80404147 | AT42: 24.93623061 | AU42: 3.913099726 | AV42: 3.586388818 | AW42: 3.059425354 | AX42: 1.622441218 | AY42: 42.95509206 | AZ42: 42.95509206 | BA42: 2.999118803 | BB42: 0 | BC42: 0 | BD42: 0.2089381608 | BE42: 0.1884314815 | BF42: 0.1434961948 | BG42: 0.07303160369 | BH42: 8.386893728 | BI42: 8.386893728 | BJ42: 0.1695521035 | BK42: 43.56469988 | BL42: 46.56469988 | BM42: 11.75960841 | BN42: 28.27125 | BO42: 3.704604638 | BP42: 1.647069014 | BQ42: 0.1710113177 | BR42: 0.2649722003 | BT42: 1045.552797 | BU42: 3.704604638 | BV42: 1.647069014 | BW42: 0.1710113177 | BX42: 0.2649722003 | CN42: 0.9651825246 | CO42: 1081.149288 | CP42: 36.40350877 | CQ42: 1117.552797
A43: 40 | B43: 24 | C43: 4.555555875 | D43: 13.66166667 | E43: 7.8625 | F43: 8.758333333 | G43: 1.315789474 | H43: 38.29166667 | I43: 14.645 | J43: 1.009897729 | K43: 3.664019317 | L43: 0.3685648148 | M43: 2.631435185 | N43: 1.94281464 | O43: 0.07236842105 | P43: 0.2701040549 | Q43: 1.987440946 | R43: 0.2292274213 | S43: 0.19 | T43: 0.1058621834 | U43: 1.009897729 | V43: 0 | W43: 28.57249617 | X43: 0 | Y43: 0.1366166667 | Z43: 2.631435185 | AA43: 28.96833211 | AB43: 0 | AC43: 0.9695922207 | AD43: 1.613550473 | AE43: 3.070564116 | AF43: 3.604175436 | AG43: 2.954692759 | AH43: 42.84738365 | AI43: 3.153820152 | AJ43: 0 | AK43: 0 | AL43: 0 | AM43: 0 | AN43: 0.07255805816 | AO43: 0.1440077553 | AP43: 0.1895501585 | AQ43: 0.1441891645 | AR43: 8.398617881 | AS43: 28.29246501 | AT43: 0 | AU43: 3.935190181 | AV43: 3.604175436 | AW43: 3.070564116 | AX43: 1.613550473 | AY43: 42.84738365 | AZ43: 42.84738365 | BA43: 2.954692759 | BB43: 0 | BC43: 0 | BD43: 0.2103981399 | BE43: 0.1895501585 | BF43: 0.1440077553 | BG43: 0.07255805816 | BH43: 8.398617881 | BI43: 8.398617881 | BJ43: 0.1669680429 | BK43: 43.27147546 | BL43: 46.27147546 | BM43: 11.6715644 | BN43: 28.30666667 | BO43: 3.707427213 | BP43: 1.634649392 | BQ43: 0.1715081411 | BR43: 0.2659830267 | BT43: 1038.515411 | BU43: 3.707427213 | BV43: 1.634649392 | BW43: 0.1715081411 | BX43: 0.2659830267 | CN43: 0.9695922207 | CO43: 1078.936464 | CP43: 31.57894737 | CQ43: 1110.515411
A44: 41 | B44: 24 | C44: 3.527778125 | D44: 14.305 | E44: 7.766666667 | F44: 8.716666667 | G44: 1.315789474 | H44: 40.16666667 | I44: 15.09666667 | J44: 1.014191747 | K44: 3.666109261 | L44: 0.3685648148 | M44: 2.631435185 | N44: 2.037108156 | O44: 0.07236842105 | P44: 0.2701749421 | Q44: 2.076364361 | R44: 0.2332939905 | S44: 0.19 | T44: 0.1058621834 | U44: 1.014191747 | V44: 0 | W44: 30.30868391 | X44: 0 | Y44: 0.14305 | Z44: 2.631435185 | AA44: 30.19779471 | AB44: 0 | AC44: 0.97085645 | AD44: 1.617059153 | AE44: 3.063040887 | AF44: 3.566645987 | AG44: 2.990631402 | AH44: 44.5167943 | AI44: 3.143022569 | AJ44: 0 | AK44: 0 | AL44: 0 | AM44: 0 | AN44: 0.07286717544 | AO44: 0.1436194252 | AP44: 0.1861600731 | AQ44: 0.1437862237 | AR44: 8.691812891 | AS44: 29.88456965 | AT44: 0 | AU44: 3.877291104 | AV44: 3.566645987 | AW44: 3.063040887 | AX44: 1.617059153 | AY44: 44.5167943 | AZ44: 44.5167943 | BA44: 2.990631402 | BB44: 0 | BC44: 0 | BD44: 0.205339632 | BE44: 0.1861600731 | BF44: 0.1436194252 | BG44: 0.07286717544 | BH44: 8.691812891 | BI44: 8.691812891 | BJ44: 0.1687361919 | BK44: 45.1485654 | BL44: 48.1485654 | BM44: 12.31919175 | BN44: 29.40166667 | BO44: 3.664896718 | BP44: 1.637613471 | BQ44: 0.169963249 | BR44: 0.2570474443 | BT44: 1083.56557 | BU44: 3.664896718 | BV44: 1.637613471 | BW44: 0.169963249 | BX44: 0.2570474443 | CN44: 0.97085645 | CO44: 1123.986622 | CP44: 31.57894737 | CQ44: 1155.56557
A45: 42 | B45: 24 | C45: 1.053240833 | D45: 16.43041667 | E45: 7.654166667 | F45: 8.570833333 | G45: 1.358259204 | H45: 44.29166667 | I45: 15.26291667 | J45: 1.014191747 | K45: 3.643963571 | L45: 0.3661400463 | M45: 2.633859954 | N45: 2.246619153 | O45: 0.07470425624 | P45: 0.2684644315 | Q45: 2.277796268 | R45: 0.2472292711 | S45: 0.19 | T45: 0.1051657217 | U45: 1.014191747 | V45: 0 | W45: 29.30628565 | X45: 0 | Y45: 0.1643041667 | Z45: 2.633859954 | AA45: 32.13276262 | AB45: 0 | AC45: 0.9724456881 | AD45: 1.628753176 | AE45: 2.924534399 | AF45: 3.325015646 | AG45: 3.229650696 | AH45: 48.60411216 | AI45: 2.997710708 | AJ45: 0 | AK45: 0 | AL45: 0 | AM45: 0 | AN45: 0.07396579205 | AO45: 0.1372132443 | AP45: 0.1707877689 | AQ45: 0.1373460395 | AR45: 9.48985333 | AS45: 28.89619811 | AT45: 0 | AU45: 3.569184146 | AV45: 3.325015646 | AW45: 2.924534399 | AX45: 1.628753176 | AY45: 48.60411216 | AZ45: 48.60411216 | BA45: 3.229650696 | BB45: 0 | BC45: 0 | BD45: 0.1851399159 | BE45: 0.1707877689 | BF45: 0.1372132443 | BG45: 0.07396579205 | BH45: 9.48985333 | BI45: 9.48985333 | BJ45: 0.1821237934 | BK45: 49.29388944 | BL45: 52.29388944 | BM45: 14.44460841 | BN45: 31.69333333 | BO45: 3.412615145 | BP45: 1.649996512 | BQ45: 0.1590289094 | BR45: 0.2291782044 | BT45: 1183.053347 | BU45: 3.412615145 | BV45: 1.649996512 | BW45: 0.1590289094 | BX45: 0.2291782044 | CN45: 0.9724456881 | CO45: 1222.455126 | CP45: 32.5982209 | CQ45: 1255.053347
A46: 43 | B46: 24 | C46: -1.171296458 | D46: 17.22244048 | E46: 7.05 | F46: 8.375 | G46: 1.408450704 | H46: 59.20833333 | I46: 13.6364881 | J46: 1.009144415 | K46: 2.831815953 | L46: 0.2843907077 | M46: 2.715609292 | N46: 2.981392131 | O46: 0.07746478873 | P46: 0.2085727586 | Q46: 3.001924684 | R46: 0.2537285604 | S46: 0.19 | T46: 0.08168501182 | U46: 1.009144415 | V46: 0 | W46: 42.1949236 | X46: 0 | Y46: 0.1722244048 | Z46: 2.715609292 | AA46: 45.40011369 | AB46: 0 | AC46: 0.9778017056 | AD46: 2.128540293 | AE46: 3.571832252 | AF46: 4.079124225 | AG46: 4.652854866 | AH46: 62.87365718 | AI46: 3.644696848 | AJ46: 0 | AK46: 0 | AL46: 0 | AM46: 0 | AN46: 0.09981991641 | AO46: 0.1722067083 | AP46: 0.210895431 | AQ46: 0.1722651268 | AR46: 12.33249118 | AS46: 41.81257209 | AT46: 0 | AU46: 4.362131056 | AV46: 4.079124225 | AW46: 3.571832252 | AX46: 2.128540293 | AY46: 62.87365718 | AZ46: 62.87365718 | BA46: 4.652854866 | BB46: 0 | BC46: 0 | BD46: 0.2274446069 | BE46: 0.210895431 | BF46: 0.1722067083 | BG46: 0.09981991641 | BH46: 12.33249118 | BI46: 12.33249118 | BJ46: 0.2639909564 | BK46: 63.44859999 | BL46: 66.44859999 | BM46: 15.23158489 | BN46: 30.85892857 | BO46: 4.165594089 | BP46: 2.153302239 | BQ46: 0.198675686 | BR46: 0.2555478375 | BT46: 1522.7664 | BU46: 4.165594089 | BV46: 2.153302239 | BW46: 0.198675686 | BX46: 0.2555478375 | CN46: 0.9778017056 | CO46: 1560.963583 | CP46: 33.8028169 | CQ46: 1594.7664
A47: 44 | B47: 24 | C47: -0.7500692083 | D47: 15.24839286 | E47: 7.4875 | F47: 8.608333333 | G47: 1.408450704 | H47: 48.08333333 | I47: 12.15517857 | J47: 1.014455471 | K47: 0.5970054764 | L47: 0.05992642196 | M47: 2.940073578 | N47: 2.420324136 | O47: 0.07746478873 | P47: 0.04395998068 | Q47: 2.420849877 | R47: 0.2394434383 | S47: 0.19 | T47: 0.01721255426 | U47: 1.014455471 | V47: 0 | W47: 35.76626408 | X47: 0 | Y47: 0.1524839286 | Z47: 2.940073578 | AA47: 34.00903978 | AB47: 0 | AC47: 0.9718809195 | AD47: 1.909716979 | AE47: 3.183399735 | AF47: 3.678339999 | AG47: 4.120777759 | AH47: 49.37504993 | AI47: 3.264421364 | AJ47: 0 | AK47: 0 | AL47: 0 | AM47: 0 | AN47: 0.09103827574 | AO47: 0.1563364878 | AP47: 0.1958858183 | AQ47: 0.1563400831 | AR47: 9.638070076 | AS47: 35.25661314 | AT47: 0 | AU47: 3.974426635 | AV47: 3.678339999 | AW47: 3.183399735 | AX47: 1.909716979 | AY47: 49.37504993 | AZ47: 49.37504993 | BA47: 4.120777759 | BB47: 0 | BC47: 0 | BD47: 0.2139043151 | BE47: 0.1958858183 | BF47: 0.1563364878 | BG47: 0.09103827574 | BH47: 9.638070076 | BI47: 9.638070076 | BJ47: 0.2356182148 | BK47: 50.08878951 | BL47: 53.08878951 | BM47: 13.26284833 | BN47: 27.40357143 | BO47: 3.776623865 | BP47: 1.937294548 | BQ47: 0.1848038805 | BR47: 0.2723405003 | BT47: 1202.130948 | BU47: 3.776623865 | BV47: 1.937294548 | BW47: 0.1848038805 | BX47: 0.2723405003 | CN47: 0.9718809195 | CO47: 1240.328131 | CP47: 33.8028169 | CQ47: 1274.130948
A48: 45 | B48: 24 | C48: -2.393518667 | D48: 16.22791667 | E48: 7.183333333 | F48: 8.383333333 | G48: 1.370892019 | H48: 49.41666667 | I48: 11.77875 | J48: 1.009897729 | K48: 0.3141748542 | L48: 0.03152199074 | M48: 2.968478009 | N48: 2.499361195 | O48: 0.07539906103 | P48: 0.02312831616 | Q48: 2.499654878 | R48: 0.2458579288 | S48: 0.19 | T48: 0.009054002528 | U48: 1.009897729 | V48: 0 | W48: 38.19195264 | X48: 0 | Y48: 0.1622791667 | Z48: 2.968478009 | AA48: 34.12213511 | AB48: 0 | AC48: 0.9731732776 | AD48: 1.90428111 | AE48: 3.063836663 | AF48: 3.49952951 | AG48: 4.338468304 | AH48: 50.60089953 | AI48: 3.138549488 | AJ48: 0 | AK48: 0 | AL48: 0 | AM48: 0 | AN48: 0.09184035431 | AO48: 0.151689583 | AP48: 0.1869991839 | AQ48: 0.1516904952 | AR48: 9.918403024 | AS48: 37.81764384 | AT48: 0 | AU48: 3.759536953 | AV48: 3.49952951 | AW48: 3.063836663 | AX48: 1.90428111 | AY48: 50.60089953 | AZ48: 50.60089953 | BA48: 4.338468304 | BB48: 0 | BC48: 0 | BD48: 0.2026668751 | BE48: 0.1869991839 | BF48: 0.151689583 | BG48: 0.09184035431 | BH48: 9.918403024 | BI48: 9.918403024 | BJ48: 0.2486665652 | BK48: 51.10173354 | BL48: 54.10173354 | BM48: 14.2378144 | BN48: 28.00666667 | BO48: 3.589155759 | BP48: 1.93174483 | BQ48: 0.1775223856 | BR48: 0.2587797586 | BT48: 1226.441605 | BU48: 3.589155759 | BV48: 1.93174483 | BW48: 0.1775223856 | BX48: 0.2587797586 | CN48: 0.9731732776 | CO48: 1265.540197 | CP48: 32.90140845 | CQ48: 1298.441605
A49: 46 | B49: 24 | C49: -4.611111583 | D49: 20.42 | E49: 6.904166667 | F49: 8.058333333 | G49: 1.333333333 | H49: 51.25 | I49: 14.28833333 | J49: 1.009897729 | K49: 3.360687417 | L49: 0.3370428241 | M49: 2.662957176 | N49: 2.5861426 | O49: 0.07333333333 | P49: 0.2473437501 | Q49: 2.609036457 | R49: 0.2756034907 | S49: 0.19 | T49: 0.09680818087 | U49: 0.9669240701 | V49: 0.04297365916 | W49: 36.8727461 | X49: 0.1336939534 | Y49: 0.2042 | Z49: 2.662957176 | AA49: 35.44013035 | AB49: 0.5926740001 | AC49: 0.9761666517 | AD49: 1.676298646 | AE49: 2.691355182 | AF49: 2.967032289 | AG49: 3.915363636 | AH49: 55.39572882 | AI49: 2.750550726 | AJ49: 0 | AK49: 0 | AL49: 0 | AM49: 0 | AN49: 0.07709614304 | AO49: 0.1267144086 | AP49: 0.1499579441 | AQ49: 0.1267950886 | AR49: 10.85824895 | AS49: 38.13406578 | AT49: 3.111067478 | AU49: 3.134941872 | AV49: 2.967032289 | AW49: 2.691355182 | AX49: 1.676298646 | AY49: 55.39572882 | AZ49: 55.39572882 | BA49: 3.915363636 | BB49: 0 | BC49: 0 | BD49: 0.1593147998 | BE49: 0.1499579441 | BF49: 0.1267144086 | BG49: 0.07709614304 | BH49: 10.85824895 | BI49: 10.85824895 | BJ49: 0.2215495689 | BK49: 55.94402075 | BL49: 58.94402075 | BM49: 18.42989773 | BN49: 34.70833333 | BO49: 3.035503592 | BP49: 1.698267104 | BQ49: 0.1425667224 | BR49: 0.1936407781 | BT49: 1342.656498 | BU49: 3.035503592 | BV49: 1.698267104 | BW49: 0.1425667224 | BX49: 0.1936407781 | CN49: 0.9761666517 | CO49: 1382.656498 | CP49: 32 | CQ49: 1414.656498
A50: 47 | B50: 24 | C50: -3.743055875 | D50: 18.62041667 | E50: 7.204166667 | F50: 8.183333333 | G50: 1.333333333 | H50: 50.79166667 | I50: 14.5625 | J50: 1.014191747 | K50: 3.797393604 | L50: 0.3806886574 | M50: 2.619311343 | N50: 2.563169515 | O50: 0.07333333333 | P50: 0.2794251476 | Q50: 2.609674354 | R50: 0.2627048135 | S50: 0.19 | T50: 0.1093444921 | U50: 0.9755121063 | V50: 0.03867964106 | W50: 31.81920626 | X50: 0.5168440211 | Y50: 0.1862041667 | Z50: 2.619311343 | AA50: 36.62111852 | AB50: 0 | AC50: 0.9761574345 | AD50: 1.753854614 | AE50: 2.936655018 | AF50: 3.286433196 | AG50: 3.840164368 | AH50: 55.1398626 | AI50: 3.000945696 | AJ50: 0 | AK50: 0 | AL50: 0 | AM50: 0 | AN50: 0.08070589515 | AO50: 0.1387689262 | AP50: 0.1676849129 | AQ50: 0.1388809015 | AR50: 10.76594521 | AS50: 32.61795118 | AT50: 13.36217211 | AU50: 3.494724977 | AV50: 3.286433196 | AW50: 2.936655018 | AX50: 1.753854614 | AY50: 55.1398626 | AZ50: 55.1398626 | BA50: 3.840164368 | BB50: 0 | BC50: 0 | BD50: 0.1795769477 | BE50: 0.1676849129 | BF50: 0.1387689262 | BG50: 0.08070589515 | BH50: 10.76594521 | BI50: 10.76594521 | BJ50: 0.2170705244 | BK50: 55.9223936 | BL50: 58.9223936 | BM50: 16.63460841 | BN50: 33.18291667 | BO50: 3.361810042 | BP50: 1.775684585 | BQ50: 0.1570333056 | BR50: 0.2122195964 | BT50: 1342.137446 | BU50: 3.361810042 | BV50: 1.775684585 | BW50: 0.1570333056 | BX50: 0.2122195964 | CN50: 0.9761574345 | CO50: 1382.137446 | CP50: 32 | CQ50: 1414.137446
A51: 48 | B51: 24 | C51: -0.495370375 | D51: 16.35083333 | E51: 7.304166667 | F51: 8.4125 | G51: 1.479885057 | H51: 44.45833333 | I51: 14.53916667 | J51: 1.009897729 | K51: 3.145497278 | L51: 0.3152199074 | M51: 2.684780093 | N51: 2.253676215 | O51: 0.08139367816 | P51: 0.2314105095 | Q51: 2.280495331 | R51: 0.2454267849 | S51: 0.19 | T51: 0.09054002528 | U51: 0.9669240701 | V51: 0.04297365916 | W51: 35.47441304 | X51: 0.133755881 | Y51: 0.1635083333 | Z51: 2.684780093 | AA51: 32.15257704 | AB51: 0.389362548 | AC51: 0.9698497753 | AD51: 1.66177681 | AE51: 2.919965722 | AF51: 3.321904567 | AG51: 3.375964854 | AH51: 48.6026597 | AI51: 3.000087697 | AJ51: 0 | AK51: 0 | AL51: 0 | AM51: 0 | AN51: 0.07607727384 | AO51: 0.1379345837 | AP51: 0.1714393505 | AQ51: 0.1380334871 | AR51: 9.526723268 | AS51: 36.68789943 | AT51: 3.112508537 | AU51: 3.565607436 | AV51: 3.321904567 | AW51: 2.919965722 | AX51: 1.66177681 | AY51: 48.6026597 | AZ51: 48.6026597 | BA51: 3.375964854 | BB51: 0 | BC51: 0 | BD51: 0.1858002421 | BE51: 0.1714393505 | BF51: 0.1379345837 | BG51: 0.07607727384 | BH51: 9.526723268 | BI51: 9.526723268 | BJ51: 0.1908473429 | BK51: 49.08371567 | BL51: 52.08371567 | BM51: 14.36073106 | BN51: 30.89 | BO51: 3.417912045 | BP51: 1.686102806 | BQ51: 0.1600567925 | BR51: 0.2327804869 | BT51: 1178.009176 | BU51: 3.417912045 | BV51: 1.686102806 | BW51: 0.1600567925 | BX51: 0.2327804869 | CN51: 0.9698497753 | CO51: 1214.491935 | CP51: 35.51724138 | CQ51: 1250.009176
A52: 49 | B52: 24 | C52: 0.6180555833 | D52: 16.14416667 | E52: 7.329166667 | F52: 8.4625 | G52: 1.724137931 | H52: 44.95833333 | I52: 14.73958333 | J52: 1.014191747 | K52: 3.170768825 | L52: 0.3176446759 | M52: 2.682355324 | N52: 2.273189149 | O52: 0.09482758621 | P52: 0.2332271382 | Q52: 2.296438177 | R52: 0.2440412579 | S52: 0.19 | T52: 0.09123648701 | U52: 1.014191747 | V52: 0 | W52: 36.17449768 | X52: 0 | Y52: 0.1614416667 | Z52: 2.682355324 | AA52: 32.24660581 | AB52: 0 | AC52: 0.9654157297 | AD52: 1.683318469 | AE52: 2.985940323 | AF52: 3.407784226 | AG52: 3.382269292 | AH52: 49.15563572 | AI52: 3.08032032 | AJ52: 0 | AK52: 0 | AL52: 0 | AM52: 0 | AN52: 0.07680557105 | AO52: 0.1407018802 | AP52: 0.1755310844 | AQ52: 0.1408027306 | AR52: 9.597537176 | AS52: 35.66830215 | AT52: 0 | AU52: 3.661632067 | AV52: 3.407784226 | AW52: 2.985940323 | AX52: 1.683318469 | AY52: 49.15563572 | AZ52: 49.15563572 | BA52: 3.382269292 | BB52: 0 | BC52: 0 | BD52: 0.1905174399 | BE52: 0.1755310844 | BF52: 0.1407018802 | BG52: 0.07680557105 | BH52: 9.597537176 | BI52: 9.597537176 | BJ52: 0.1910657048 | BK52: 49.85324009 | BL52: 52.85324009 | BM52: 14.15835841 | BN52: 30.88375 | BO52: 3.521117253 | BP52: 1.711360832 | BQ52: 0.1638566608 | BR52: 0.237104632 | BT52: 1196.477762 | BU52: 3.521117253 | BV52: 1.711360832 | BW52: 0.1638566608 | BX52: 0.237104632 | CN52: 0.9654157297 | CO52: 1227.098452 | CP52: 41.37931034 | CQ52: 1268.477762
A53: 50 | B53: 24 | C53: 0.877314875 | D53: 15.84458333 | E53: 7.475 | F53: 8.483333333 | G53: 1.724137931 | H53: 45.95833333 | I53: 14.25666667 | J53: 1.014191747 | K53: 2.832785955 | L53: 0.2836979167 | M53: 2.716302083 | N53: 2.319129938 | O53: 0.09482758621 | P53: 0.2083319418 | Q53: 2.339000632 | R53: 0.2422888066 | S53: 0.19 | T53: 0.08148602275 | U53: 1.014191747 | V53: 0 | W53: 32.18988934 | X53: 0 | Y53: 0.1584458333 | Z53: 2.716302083 | AA53: 33.20820628 | AB53: 0 | AC53: 0.9658689666 | AD53: 1.748834112 | AE53: 3.07837778 | AF53: 3.529409415 | AG53: 3.54327266 | AH53: 49.80838914 | AI53: 3.174326543 | AJ53: 0 | AK53: 0 | AL53: 0 | AM53: 0 | AN53: 0.08026670154 | AO53: 0.1459235381 | AP53: 0.1825888938 | AQ53: 0.1460038953 | AR53: 9.724985944 | AS53: 31.73945107 | AT53: 0 | AU53: 3.798575479 | AV53: 3.529409415 | AW53: 3.07837778 | AX53: 1.748834112 | AY53: 49.80838914 | AZ53: 49.80838914 | BA53: 3.54327266 | BB53: 0 | BC53: 0 | BD53: 0.1985829143 | BE53: 0.1825888938 | BF53: 0.1459235381 | BG53: 0.08026670154 | BH53: 9.724985944 | BI53: 9.724985944 | BJ53: 0.200519543 | BK53: 50.51525722 | BL53: 53.51525722 | BM53: 13.85877508 | BN53: 30.10125 | BO53: 3.645001591 | BP53: 1.777841692 | BQ53: 0.1705287902 | BR53: 0.2458920607 | BT53: 1212.366173 | BU53: 3.645001591 | BV53: 1.777841692 | BW53: 0.1705287902 | BX53: 0.2458920607 | CN53: 0.9658689666 | CO53: 1242.986863 | CP53: 41.37931034 | CQ53: 1284.366173
A54: 51 | B54: 24 | C54: 0.8217593333 | D54: 15.2025 | E54: 7.3875 | F54: 8.404166667 | G54: 1.950924048 | H54: 43.625 | I54: 10.98708333 | J54: 1.009897729 | K54: 0.4117169052 | L54: 0.04122106481 | M54: 2.958778935 | N54: 2.20519527 | O54: 0.1073008226 | P54: 0.03027438056 | Q54: 2.206480012 | R54: 0.236794915 | S54: 0.19 | T54: 0.01183984946 | U54: 0.9669240701 | V54: 0.04297365916 | W54: 33.29218977 | X54: 0.9369428852 | Y54: 0.152025 | Z54: 2.958778935 | AA54: 28.87339513 | AB54: 0 | AC54: 0.9575772097 | AD54: 1.828551806 | AE54: 2.908967919 | AF54: 3.343827239 | AG54: 4.185609552 | AH54: 45.53692876 | AI54: 3.021616036 | AJ54: 0 | AK54: 0 | AL54: 0 | AM54: 0 | AN54: 0.08741286269 | AO54: 0.1429539335 | AP54: 0.1793029002 | AQ54: 0.1429558088 | AR54: 8.925802033 | AS54: 34.43102804 | AT54: 21.80272529 | AU54: 3.608827446 | AV54: 3.343827239 | AW54: 2.908967919 | AX54: 1.828551806 | AY54: 45.53692876 | AZ54: 45.53692876 | BA54: 4.185609552 | BB54: 0 | BC54: 0 | BD54: 0.1955221306 | BE54: 0.1793029002 | BF54: 0.1429539335 | BG54: 0.08741286269 | BH54: 8.925802033 | BI54: 8.925802033 | BJ54: 0.2413195032 | BK54: 45.98764095 | BL54: 48.98764095 | BM54: 13.21239773 | BN54: 26.18958333 | BO54: 3.480643097 | BP54: 1.870500967 | BQ54: 0.1691537909 | BR54: 0.2635088182 | BT54: 1103.703383 | BU54: 3.480643097 | BV54: 1.870500967 | BW54: 0.1691537909 | BX54: 0.2635088182 | CN54: 0.9575772097 | CO54: 1128.881206 | CP54: 46.82217715 | CQ54: 1175.703383
A55: 52 | B55: 24 | C55: 2.07407425 | D55: 14.02208333 | E55: 7.625 | F55: 8.491666667 | G55: 1.960784314 | H55: 41.125 | I55: 10.96416667 | J55: 1.014191747 | K55: 0.3149214547 | L55: 0.03152199074 | M55: 2.968478009 | N55: 2.081878701 | O55: 0.1078431373 | P55: 0.02315368691 | Q55: 2.082302958 | R55: 0.2281925857 | S55: 0.19 | T55: 0.009054002528 | U55: 0.9755121063 | V55: 0.03867964106 | W55: 27.86253166 | X55: 0.129173546 | Y55: 0.1402208333 | Z55: 2.968478009 | AA55: 27.62327266 | AB55: 0.1804105991 | AC55: 0.9548213726 | AD55: 1.814548024 | AE55: 2.964547814 | AF55: 3.456075725 | AG55: 3.958413538 | AH55: 42.79339275 | AI55: 3.085917591 | AJ55: 0 | AK55: 0 | AL55: 0 | AM55: 0 | AN55: 0.08668820241 | AO55: 0.146055206 | AP55: 0.1874114273 | AQ55: 0.1460564548 | AR55: 8.355322269 | AS55: 28.56195375 | AT55: 3.339574578 | AU55: 3.759717669 | AV55: 3.456075725 | AW55: 2.964547814 | AX55: 1.814548024 | AY55: 42.79339275 | AZ55: 42.79339275 | BA55: 3.958413538 | BB55: 0 | BC55: 0 | BD55: 0.206500866 | BE55: 0.1874114273 | BF55: 0.146055206 | BG55: 0.08668820241 | BH55: 8.355322269 | BI55: 8.355322269 | BJ55: 0.228263571 | BK55: 43.40070577 | BL55: 46.40070577 | BM55: 12.03627508 | BN55: 24.98625 | BO55: 3.605825347 | BP55: 1.857049608 | BQ55: 0.1755733497 | BR55: 0.2830681999 | BT55: 1041.616938 | BU55: 3.605825347 | BV55: 1.857049608 | BW55: 0.1755733497 | BX55: 0.2830681999 | CN55: 0.9548213726 | CO55: 1066.558115 | CP55: 47.05882353 | CQ55: 1113.616938
A56: 53 | B56: 24 | C56: 1.365741 | D56: 15.58666667 | E56: 7.55 | F56: 8.5125 | G56: 1.517273576 | H56: 43.79166667 | I56: 14.62875 | J56: 1.009897729 | K56: 3.586055005 | L56: 0.3588657407 | M56: 2.641134259 | N56: 2.21186685 | O56: 0.08345004669 | P56: 0.263622867 | Q56: 2.248946648 | R56: 0.2379333089 | S56: 0.19 | T56: 0.1030763365 | U56: 0.9669240701 | V56: 0.04297365916 | W56: 30.89263741 | X56: 0.1337868869 | Y56: 0.1558666667 | Z56: 2.641134259 | AA56: 32.78730671 | AB56: 0.5234230056 | AC56: 0.9689687346 | AD56: 1.692716287 | AE56: 3.04117322 | AF56: 3.492586242 | AG56: 3.342390515 | AH56: 48.41578888 | AI56: 3.126851679 | AJ56: 0 | AK56: 0 | AL56: 0 | AM56: 0 | AN56: 0.07676790966 | AO56: 0.1426173531 | AP56: 0.1803041241 | AQ56: 0.1427530327 | AR56: 9.490094272 | AS56: 31.9493933 | AT56: 3.113230047 | AU56: 3.764119836 | AV56: 3.492586242 | AW56: 3.04117322 | AX56: 1.692716287 | AY56: 48.41578888 | AZ56: 48.41578888 | BA56: 3.342390515 | BB56: 0 | BC56: 0 | BD56: 0.1965344711 | BE56: 0.1803041241 | BF56: 0.1426173531 | BG56: 0.07676790966 | BH56: 9.490094272 | BI56: 9.490094272 | BJ56: 0.188887692 | BK56: 48.89499525 | BL56: 51.89499525 | BM56: 13.5965644 | BN56: 30.21541667 | BO56: 3.596128685 | BP56: 1.717500567 | BQ56: 0.166553446 | BR56: 0.2421205557 | BT56: 1173.479886 | BU56: 3.596128685 | BV56: 1.717500567 | BW56: 0.166553446 | BX56: 0.2421205557 | CN56: 0.9689687346 | CO56: 1209.06532 | CP56: 36.41456583 | CQ56: 1245.479886
A57: 54 | B57: 24 | C57: -0.763888875 | D57: 16.38666667 | E57: 7.291666667 | F57: 8.4875 | G57: 1.428571429 | H57: 47.58333333 | I57: 14.50541667 | J57: 1.014191747 | K57: 3.417101468 | L57: 0.3418923611 | M57: 2.658107639 | N57: 2.399014797 | O57: 0.07857142857 | P57: 0.2511765678 | Q57: 2.433327857 | R57: 0.2471270215 | S57: 0.19 | T57: 0.09820110434 | U57: 1.014191747 | V57: 0 | W57: 38.14785779 | X57: 0 | Y57: 0.1638666667 | Z57: 2.658107639 | AA57: 35.17100496 | AB57: 0 | AC57: 0.9727522696 | AD57: 1.770689302 | AE57: 3.108256408 | AF57: 3.54829472 | AG57: 3.61444331 | AH57: 51.69535876 | AI57: 3.185417921 | AJ57: 0 | AK57: 0 | AL57: 0 | AM57: 0 | AN57: 0.08106938168 | AO57: 0.1468747865 | AP57: 0.1826738542 | AQ57: 0.1469835126 | AR57: 10.0934129 | AS57: 37.61404871 | AT57: 0 | AU57: 3.809793436 | AV57: 3.54829472 | AW57: 3.108256408 | AX57: 1.770689302 | AY57: 51.69535876 | AZ57: 51.69535876 | BA57: 3.61444331 | BB57: 0 | BC57: 0 | BD57: 0.1980833423 | BE57: 0.1826738542 | BF57: 0.1468747865 | BG57: 0.08106938168 | BH57: 10.0934129 | BI57: 10.0934129 | BJ57: 0.2043542494 | BK57: 52.42900623 | BL57: 55.42900623 | BM57: 14.40085841 | BN57: 30.89208333 | BO57: 3.640686181 | BP57: 1.794278671 | BQ57: 0.1699880265 | BR57: 0.2382830088 | BT57: 1258.29615 | BU57: 3.640686181 | BV57: 1.794278671 | BW57: 0.1699880265 | BX57: 0.2382830088 | CN57: 0.9727522696 | CO57: 1296.010435 | CP57: 34.28571429 | CQ57: 1330.29615
A58: 55 | B58: 24 | C58: -0.4490741667 | D58: 15.82333333 | E58: 7.433333333 | F58: 8.570833333 | G58: 1.428571429 | H58: 44.95833333 | I58: 14.94458333 | J58: 1.010204319 | K58: 3.344941746 | L58: 0.3346180556 | M58: 2.665381944 | N58: 2.267722764 | O58: 0.07857142857 | P58: 0.2458509075 | Q58: 2.299583774 | R58: 0.2431329808 | S58: 0.19 | T58: 0.09611171914 | U58: 1.010204319 | V58: 0 | W58: 36.21188896 | X58: 0 | Y58: 0.1582333333 | Z58: 2.665381944 | AA58: 33.041166 | AB58: 0 | AC58: 0.9712745146 | AD58: 1.691021691 | AE58: 3.05294516 | AF58: 3.499091488 | AG58: 3.327750624 | AH58: 49.22949306 | AI58: 3.132546919 | AJ58: 0 | AK58: 0 | AL58: 0 | AM58: 0 | AN58: 0.07699916363 | AO58: 0.1437954393 | AP58: 0.1804720222 | AQ58: 0.1439091376 | AR58: 9.646892397 | AS58: 35.84610388 | AT58: 0 | AU58: 3.766826754 | AV58: 3.499091488 | AW58: 3.05294516 | AX58: 1.691021691 | AY58: 49.22949306 | AZ58: 49.22949306 | BA58: 3.327750624 | BB58: 0 | BC58: 0 | BD58: 0.1963863781 | BE58: 0.1804720222 | BF58: 0.1437954393 | BG58: 0.07699916363 | BH58: 9.646892397 | BI58: 9.646892397 | BJ58: 0.1878525264 | BK58: 49.73184651 | BL58: 52.73184651 | BM58: 13.83353765 | BN58: 30.76791667 | BO58: 3.595020143 | BP58: 1.713858208 | BQ58: 0.167462561 | BR58: 0.2416584398 | BT58: 1193.564316 | BU58: 3.595020143 | BV58: 1.713858208 | BW58: 0.167462561 | BX58: 0.2416584398 | CN58: 0.9712745146 | CO58: 1231.278602 | CP58: 34.28571429 | CQ58: 1265.564316
A59: 56 | B59: 24 | C59: -0.1134260417 | D59: 14.99375 | E59: 7.841666667 | F59: 8.695833333 | G59: 2.111801242 | H59: 39.58333333 | I59: 14.85208333 | J59: 1.014498337 | K59: 3.660532724 | L59: 0.3661400463 | M59: 2.633859954 | N59: 2.002789437 | O59: 0.1161490683 | P59: 0.2690273671 | Q59: 2.045205857 | R59: 0.2331476989 | S59: 0.19 | T59: 0.1051657217 | U59: 0.9285510188 | V59: 0.08594731832 | W59: 27.82736702 | X59: 0.5353648719 | Y59: 0.1499375 | Z59: 2.633859954 | AA59: 28.55714728 | AB59: 0.433330802 | AC59: 0.9534390878 | AD59: 1.586176149 | AE59: 2.897301561 | AF59: 3.336457433 | AG59: 3.053825264 | AH59: 44.70748314 | AI59: 3.020671986 | AJ59: 0 | AK59: 0 | AL59: 0 | AM59: 0 | AN59: 0.07128866779 | AO59: 0.1349458488 | AP59: 0.1727395704 | AQ59: 0.1351066094 | AR59: 8.726615863 | AS59: 29.96859241 | AT59: 6.228988668 | AU59: 3.605533387 | AV59: 3.336457433 | AW59: 2.897301561 | AX59: 1.586176149 | AY59: 44.70748314 | AZ59: 44.70748314 | BA59: 3.053825264 | BB59: 0 | BC59: 0 | BD59: 0.1890078038 | BE59: 0.1727395704 | BF59: 0.1349458488 | BG59: 0.07128866779 | BH59: 8.726615863 | BI59: 8.726615863 | BJ59: 0.1724439774 | BK59: 45.3556673 | BL59: 48.3556673 | BM59: 13.00824834 | BN59: 29.84583333 | BO59: 3.486685226 | BP59: 1.620181509 | BQ59: 0.1583530904 | BR59: 0.2422258386 | BT59: 1088.536015 | BU59: 3.486685226 | BV59: 1.620181509 | BW59: 0.1583530904 | BX59: 0.2422258386 | CN59: 0.9534390878 | CO59: 1109.852785 | CP59: 50.68322981 | CQ59: 1160.536015
A60: 57 | B60: 24 | C60: -0.942129625 | D60: 16.42833333 | E60: 7.441666667 | F60: 8.525 | G60: 2.173913043 | H60: 49.29166667 | I60: 14.23125 | J60: 1.010204319 | K60: 3.030556504 | L60: 0.3030960648 | M60: 2.696903935 | N60: 2.483220661 | O60: 0.1195652174 | P60: 0.2227154618 | Q60: 2.506156185 | R60: 0.2450091802 | S60: 0.19 | T60: 0.08705771661 | U60: 0.971524678 | V60: 0.03867964106 | W60: 34.64478138 | X60: 0 | Y60: 0.1642833333 | Z60: 2.696903935 | AA60: 35.70977247 | AB60: 0 | AC60: 0.9601088592 | AD60: 1.838443411 | AE60: 3.179759845 | AF60: 3.633932006 | AG60: 3.829328851 | AH60: 53.94565751 | AI60: 3.297073262 | AJ60: 0 | AK60: 0 | AL60: 0 | AM60: 0 | AN60: 0.08461794336 | AO60: 0.1508460689 | AP60: 0.1873054841 | AQ60: 0.1509290388 | AR60: 10.57106058 | AS60: 35.66021756 | AT60: 0 | AU60: 3.896404853 | AV60: 3.633932006 | AW60: 3.179759845 | AX60: 1.838443411 | AY60: 53.94565751 | AZ60: 53.94565751 | BA60: 3.829328851 | BB60: 0 | BC60: 0 | BD60: 0.2027553016 | BE60: 0.1873054841 | BF60: 0.1508460689 | BG60: 0.08461794336 | BH60: 10.57106058 | BI60: 10.57106058 | BJ60: 0.216729409 | BK60: 54.49613621 | BL60: 57.49613621 | BM60: 14.43853765 | BN60: 30.65958333 | BO60: 3.774352883 | BP60: 1.875307162 | BQ60: 0.1752782785 | BR60: 0.2435218819 | BT60: 1307.907269 | BU60: 3.774352883 | BV60: 1.875307162 | BW60: 0.1752782785 | BX60: 0.2435218819 | CN60: 0.9601088592 | CO60: 1327.733356 | CP60: 52.17391304 | CQ60: 1379.907269
A61: 58 | B61: 24 | C61: -0.2129629167 | D61: 14.1175 | E61: 7.716666667 | F61: 8.608333333 | G61: 1.960784314 | H61: 44.75 | I61: 11.16208333 | J61: 1.014191747 | K61: 0.3636937191 | L61: 0.03637152778 | M61: 2.963628472 | N61: 2.255878726 | O61: 0.1078431373 | P61: 0.02672677184 | Q61: 2.256719039 | R61: 0.2303657494 | S61: 0.19 | T61: 0.01044692599 | U61: 1.014191747 | V61: 0 | W61: 28.46888354 | X61: 0 | Y61: 0.141175 | Z61: 2.963628472 | AA61: 31.02121766 | AB61: 0 | AC61: 0.9583471895 | AD61: 1.93892283 | AE61: 3.188565567 | AF61: 3.731658751 | AG61: 4.217355903 | AH61: 46.41575733 | AI61: 3.309245183 | AJ61: 0 | AK61: 0 | AL61: 0 | AM61: 0 | AN61: 0.09270721374 | AO61: 0.1572789071 | AP61: 0.2014107662 | AQ61: 0.1572804309 | AR61: 9.062581532 | AS61: 28.0705139 | AT61: 0 | AU61: 4.057899143 | AV61: 3.731658751 | AW61: 3.188565567 | AX61: 1.93892283 | AY61: 46.41575733 | AZ61: 46.41575733 | BA61: 4.217355903 | BB61: 0 | BC61: 0 | BD61: 0.2218173508 | BE61: 0.2014107662 | BF61: 0.1572789071 | BG61: 0.09270721374 | BH61: 9.062581532 | BI61: 9.062581532 | BJ61: 0.2428093167 | BK61: 47.07447803 | BL61: 50.07447803 | BM61: 12.13169175 | BN61: 25.27958333 | BO61: 3.880289659 | BP61: 1.980826874 | BQ61: 0.1886969817 | BR61: 0.2900752913 | BT61: 1129.787473 | BU61: 3.880289659 | BV61: 1.980826874 | BW61: 0.1886969817 | BX61: 0.2900752913 | CN61: 0.9583471895 | CO61: 1154.728649 | CP61: 47.05882353 | CQ61: 1201.787473
A62: 59 | B62: 24 | C62: 0.15277775 | D62: 13.54125 | E62: 7.775 | F62: 8.658333333 | G62: 1.960784314 | H62: 37.5 | I62: 11.145 | J62: 1.009897729 | K62: 0.3879572122 | L62: 0.0387962963 | M62: 2.961203704 | N62: 1.894317642 | O62: 0.1078431373 | P62: 0.02850914331 | Q62: 1.894959218 | R62: 0.2254814952 | S62: 0.19 | T62: 0.01114338773 | U62: 0.9669240701 | V62: 0.04297365916 | W62: 28.11134575 | X62: 0 | Y62: 0.1354125 | Z62: 2.961203704 | AA62: 24.37602517 | AB62: 0 | AC62: 0.9507943228 | AD62: 1.693935151 | AE62: 2.819576183 | AF62: 3.294188181 | AG62: 3.575481519 | AH62: 39.45819499 | AI62: 2.944698406 | AJ62: 0 | AK62: 0 | AL62: 0 | AM62: 0 | AN62: 0.08008456053 | AO62: 0.1378320751 | AP62: 0.1787230989 | AQ62: 0.1378342172 | AR62: 7.734294927 | AS62: 29.07296097 | AT62: 0 | AU62: 3.594256584 | AV62: 3.294188181 | AW62: 2.819576183 | AX62: 1.693935151 | AY62: 39.45819499 | AZ62: 39.45819499 | BA62: 3.575481519 | BB62: 0 | BC62: 0 | BD62: 0.1977689163 | BE62: 0.1787230989 | BF62: 0.1378320751 | BG62: 0.08008456053 | BH62: 7.734294927 | BI62: 7.734294927 | BJ62: 0.2058817531 | BK62: 39.84874153 | BL62: 42.84874153 | BM62: 11.55114773 | BN62: 24.68625 | BO62: 3.449764687 | BP62: 1.735733112 | BQ62: 0.1666876915 | BR62: 0.2842341765 | BT62: 956.3697966 | BU62: 3.449764687 | BV62: 1.735733112 | BW62: 0.1666876915 | BX62: 0.2842341765 | CN62: 0.9507943228 | CO62: 981.3109731 | CP62: 47.05882353 | CQ62: 1028.369797
A63: 60 | B63: 24 | C63: 0.131944375 | D63: 15.39708333 | E63: 7.566666667 | F63: 8.695833333 | G63: 1.780185759 | H63: 41.83333333 | I63: 14.61166667 | J63: 1.014191747 | K63: 3.831134259 | L63: 0.3831134259 | M63: 2.616886574 | N63: 2.116299571 | O63: 0.09791021672 | P63: 0.2815297221 | Q63: 2.197284487 | R63: 0.2385776144 | S63: 0.19 | T63: 0.1100409538 | U63: 1.014191747 | V63: 0 | W63: 35.95800988 | X63: 0 | Y63: 0.1539708333 | Z63: 2.616886574 | AA63: 30.47300675 | AB63: 0 | AC63: 0.9624786855 | AD63: 1.651854715 | AE63: 2.972198737 | AF63: 3.414619908 | AG63: 3.247039125 | AH63: 46.78075273 | AI63: 3.073780258 | AJ63: 0 | AK63: 0 | AL63: 0 | AM63: 0 | AN63: 0.0757742168 | AO63: 0.1410150304 | AP63: 0.1789038384 | AQ63: 0.1411750963 | AR63: 9.133846136 | AS63: 35.45484369 | AT63: 0 | AU63: 3.683484765 | AV63: 3.414619908 | AW63: 2.972198737 | AX63: 1.651854715 | AY63: 46.78075273 | AZ63: 46.78075273 | BA63: 3.247039125 | BB63: 0 | BC63: 0 | BD63: 0.1952127982 | BE63: 0.1789038384 | BF63: 0.1410150304 | BG63: 0.0757742168 | BH63: 9.133846136 | BI63: 9.133846136 | BJ63: 0.1835104606 | BK63: 47.44465335 | BL63: 50.44465335 | BM63: 13.41127508 | BN63: 30.00875 | BO63: 3.537669093 | BP63: 1.680998154 | BQ63: 0.1620689205 | BR63: 0.2397755402 | BT63: 1138.67168 | BU63: 3.537669093 | BV63: 1.680998154 | BW63: 0.1620689205 | BX63: 0.2397755402 | CN63: 0.9624786855 | CO63: 1167.947222 | CP63: 42.7244582 | CQ63: 1210.67168
A64: 61 | B64: 24 | C64: -0.1875056667 | D64: 15.00333333 | E64: 7.758333333 | F64: 8.758333333 | G64: 1.754385965 | H64: 39.33333333 | I64: 14.54458333 | J64: 1.014191747 | K64: 3.394675926 | L64: 0.3394675926 | M64: 2.660532407 | N64: 1.988447348 | O64: 0.09649122807 | P64: 0.2494567158 | Q64: 2.037734192 | R64: 0.2355545837 | S64: 0.19 | T64: 0.09750464261 | U64: 0.9282444291 | V64: 0.08594731832 | W64: 32.71488507 | X64: 0.8031094436 | Y64: 0.1500333333 | Z64: 2.660532407 | AA64: 28.16003008 | AB64: 0.2039318707 | AC64: 0.9605599933 | AD64: 1.578227728 | AE64: 2.862020761 | AF64: 3.292462014 | AG64: 3.058347854 | AH64: 43.85994595 | AI64: 2.964402739 | AJ64: 0 | AK64: 0 | AL64: 0 | AM64: 0 | AN64: 0.07148988992 | AO64: 0.134336109 | AP64: 0.1713104694 | AQ64: 0.1344746521 | AR64: 8.563564596 | AS64: 35.24382592 | AT64: 9.344205954 | AU64: 3.559678639 | AV64: 3.292462014 | AW64: 2.862020761 | AX64: 1.578227728 | AY64: 43.85994595 | AZ64: 43.85994595 | BA64: 3.058347854 | BB64: 0 | BC64: 0 | BD64: 0.1874925892 | BE64: 0.1713104694 | BF64: 0.134336109 | BG64: 0.07148988992 | BH64: 8.563564596 | BI64: 8.563564596 | BJ64: 0.1728886327 | BK64: 44.48239522 | BL64: 47.48239522 | BM64: 13.01752508 | BN64: 29.54791667 | BO64: 3.417116153 | BP64: 1.60696254 | BQ64: 0.1567184917 | BR64: 0.2422580851 | BT64: 1067.577485 | BU64: 3.417116153 | BV64: 1.60696254 | BW64: 0.1567184917 | BX64: 0.2422580851 | CN64: 0.9605599933 | CO64: 1097.472222 | CP64: 42.10526316 | CQ64: 1139.577485
A65: 62 | B65: 24 | C65: 0.02314820833 | D65: 15.82375 | E65: 7.479166667 | F65: 8.616666667 | G65: 1.526543632 | H65: 51.25 | I65: 14.29541667 | J65: 1.009897729 | K65: 3.321883675 | L65: 0.332193287 | M65: 2.667806713 | N65: 2.582228064 | O65: 0.08395989975 | P65: 0.2441095411 | Q65: 2.608718439 | R65: 0.2434730282 | S65: 0.19 | T65: 0.09541525741 | U65: 1.009897729 | V65: 0 | W65: 36.25932756 | X65: 0 | Y65: 0.1582375 | Z65: 2.667806713 | AA65: 39.21169231 | AB65: 0 | AC65: 0.9727881207 | AD65: 1.93648069 | AE65: 3.425640441 | AF65: 3.952718057 | AG65: 3.924224709 | AH65: 55.54862208 | AI65: 3.510732092 | AJ65: 0 | AK65: 0 | AL65: 0 | AM65: 0 | AN65: 0.08916810262 | AO65: 0.1629642928 | AP65: 0.2045200077 | AQ65: 0.1630631582 | AR65: 10.88821792 | AS65: 35.90395989 | AT65: 0 | AU65: 4.255532405 | AV65: 3.952718057 | AW65: 3.425640441 | AX65: 1.93648069 | AY65: 55.54862208 | AZ65: 55.54862208 | BA65: 3.924224709 | BB65: 0 | BC65: 0 | BD65: 0.2225939982 | BE65: 0.2045200077 | BF65: 0.1629642928 | BG65: 0.08916810262 | BH65: 10.88821792 | BI65: 10.88821792 | BJ65: 0.2220448949 | BK65: 56.09842731 | BL65: 59.09842731 | BM65: 13.83364773 | BN65: 30.11916667 | BO65: 4.055215834 | BP65: 1.962153467 | BQ65: 0.1903565512 | BR65: 0.2579997202 | BT65: 1346.362255 | BU65: 4.055215834 | BV65: 1.962153467 | BW65: 0.1903565512 | BX65: 0.2579997202 | CN65: 0.9727881207 | CO65: 1381.725208 | CP65: 36.63704716 | CQ65: 1418.362255
A66: 63 | B66: 24 | C66: 2.212963125 | D66: 14.52666667 | E66: 7.695833333 | F66: 8.675 | G66: 1.298701299 | H66: 38.79166667 | I66: 14.46375 | J66: 1.014191747 | K66: 2.982288578 | L66: 0.2982465278 | M66: 2.701753472 | N66: 1.962372401 | O66: 0.07142857143 | P66: 0.2191595318 | Q66: 1.987725751 | R66: 0.234504254 | S66: 0.19 | T66: 0.08566479315 | U66: 1.014191747 | V66: 0 | W66: 31.23817636 | X66: 0 | Y66: 0.1452666667 | Z66: 2.701753472 | AA66: 27.93439553 | AB66: 0 | AC66: 0.9698485907 | AD66: 1.568027686 | AE66: 2.886727888 | AF66: 3.339170525 | AG66: 2.97797297 | AH66: 42.46993397 | AI66: 2.964614651 | AJ66: 0 | AK66: 0 | AL66: 0 | AM66: 0 | AN66: 0.07079318633 | AO66: 0.135383565 | AP66: 0.1736894906 | AQ66: 0.1354961782 | AR66: 8.292167605 | AS66: 30.80105556 | AT66: 0 | AU66: 3.624114105 | AV66: 3.339170525 | AW66: 2.886727888 | AX66: 1.568027686 | AY66: 42.46993397 | AZ66: 42.46993397 | BA66: 2.97797297 | BB66: 0 | BC66: 0 | BD66: 0.191058245 | BE66: 0.1736894906 | BF66: 0.135383565 | BG66: 0.07079318633 | BH66: 8.292167605 | BI66: 8.292167605 | BJ66: 0.168395408 | BK66: 43.07265654 | BL66: 46.07265654 | BM66: 12.54085841 | BN66: 28.99041667 | BO66: 3.434585985 | BP66: 1.589237474 | BQ66: 0.1601343922 | BR66: 0.2516847045 | BT66: 1033.743757 | BU66: 3.434585985 | BV66: 1.589237474 | BW66: 0.1601343922 | BX66: 0.2516847045 | CN66: 0.9698485907 | CO66: 1074.574926 | CP66: 31.16883117 | CQ66: 1105.743757
A67: 64 | B67: 24 | C67: 2.115740833 | D67: 14.75875 | E67: 7.670833333 | F67: 8.658333333 | G67: 1.298701299 | H67: 43.83333333 | I67: 14.22875 | J67: 1.009897729 | K67: 2.303223038 | L67: 0.2303530093 | M67: 2.769646991 | N67: 2.218633428 | O67: 0.07142857143 | P67: 0.1692637542 | Q67: 2.232597063 | R67: 0.2364374112 | S67: 0.19 | T67: 0.06616386463 | U67: 0.9669240701 | V67: 0.04297365916 | W67: 31.71482945 | X67: 0.2677135074 | Y67: 0.1475875 | Z67: 2.769646991 | AA67: 32.06920734 | AB67: 0 | AC67: 0.9726216034 | AD67: 1.718185191 | AE67: 3.121565436 | AF67: 3.621109987 | AG67: 3.33376141 | AH67: 46.97035778 | AI67: 3.19845167 | AJ67: 0 | AK67: 0 | AL67: 0 | AM67: 0 | AN67: 0.07935033521 | AO67: 0.149382406 | AP67: 0.1899377378 | AQ67: 0.1494415297 | AR67: 9.206771875 | AS67: 32.79971037 | AT67: 6.229711703 | AU67: 3.923593611 | AV67: 3.621109987 | AW67: 3.121565436 | AX67: 1.718185191 | AY67: 46.97035778 | AZ67: 46.97035778 | BA67: 3.33376141 | BB67: 0 | BC67: 0 | BD67: 0.2083640068 | BE67: 0.1899377378 | BF67: 0.149382406 | BG67: 0.07935033521 | BH67: 9.206771875 | BI67: 9.206771875 | BJ67: 0.188683509 | BK67: 47.43525767 | BL67: 50.43525767 | BM67: 12.76864773 | BN67: 28.9875 | BO67: 3.714978961 | BP67: 1.739896772 | BQ67: 0.1768713243 | BR67: 0.2636035625 | BT67: 1138.446184 | BU67: 3.714978961 | BV67: 1.739896772 | BW67: 0.1768713243 | BX67: 0.2636035625 | CN67: 0.9726216034 | CO67: 1179.277353 | CP67: 31.16883117 | CQ67: 1210.446184
A68: 65 | B68: 24 | C68: 0.6458334583 | D68: 14.44041667 | E68: 7.525 | F68: 8.5875 | G68: 1.45021645 | H68: 45 | I68: 11.24041667 | J68: 1.014498337 | K68: 0.3151452187 | L68: 0.03152199074 | M68: 2.968478009 | N68: 2.2714438 | O68: 0.07976190476 | P68: 0.0231612971 | Q68: 2.271902095 | R68: 0.233713129 | S68: 0.19 | T68: 0.009054002528 | U68: 1.014498337 | V68: 0 | W68: 33.88937374 | X68: 0 | Y68: 0.1444041667 | Z68: 2.968478009 | AA68: 31.41001376 | AB68: 0 | AC68: 0.9689895171 | AD68: 1.907257398 | AE68: 3.132576032 | AF68: 3.647547764 | AG68: 4.160465137 | AH68: 46.09703137 | AI68: 3.22003464 | AJ68: 0 | AK68: 0 | AL68: 0 | AM68: 0 | AN68: 0.09139403672 | AO68: 0.1547612431 | AP68: 0.1967114085 | AQ68: 0.1547623565 | AR68: 8.997846825 | AS68: 33.40505598 | AT68: 0 | AU68: 3.960969826 | AV68: 3.647547764 | AW68: 3.132576032 | AX68: 1.907257398 | AY68: 46.09703137 | AZ68: 46.09703137 | BA68: 4.160465137 | BB68: 0 | BC68: 0 | BD68: 0.2161957816 | BE68: 0.1967114085 | BF68: 0.1547612431 | BG68: 0.09139403672 | BH68: 8.997846825 | BI68: 8.997846825 | BJ68: 0.2393884476 | BK68: 46.76536167 | BL68: 49.76536167 | BM68: 12.454915 | BN68: 25.68083333 | BO68: 3.754771643 | BP68: 1.937840608 | BQ68: 0.1848248333 | BR68: 0.2833624761 | BT68: 1122.36868 | BU68: 3.754771643 | BV68: 1.937840608 | BW68: 0.1848248333 | BX68: 0.2833624761 | CN68: 0.9689895171 | CO68: 1159.563485 | CP68: 34.80519481 | CQ68: 1194.36868
A69: 66 | B69: 24 | C69: 0.53472225 | D69: 14.5375 | E69: 7.483333333 | F69: 8.479166667 | G69: 1.818181818 | H69: 42.75 | I69: 11.19416667 | J69: 1.009897729 | K69: 0.7271612988 | L69: 0.07274305556 | M69: 2.927256944 | N69: 2.160868857 | O69: 0.1 | P69: 0.05344585114 | Q69: 2.163961042 | R69: 0.2330041814 | S69: 0.19 | T69: 0.02089385199 | U69: 1.009897729 | V69: 0 | W69: 31.72896818 | X69: 0 | Y69: 0.145375 | Z69: 2.927256944 | AA69: 29.11158175 | AB69: 0 | AC69: 0.9598594095 | AD69: 1.838326146 | AE69: 2.997200064 | AF69: 3.476265175 | AG69: 4.04633453 | AH69: 44.85141594 | AI69: 3.106329687 | AJ69: 0 | AK69: 0 | AL69: 0 | AM69: 0 | AN69: 0.08725251852 | AO69: 0.1466356775 | AP69: 0.1862687118 | AQ69: 0.1466418677 | AR69: 8.791433031 | AS69: 31.41800131 | AT69: 0 | AU69: 3.768334674 | AV69: 3.476265175 | AW69: 2.997200064 | AX69: 1.838326146 | AY69: 44.85141594 | AZ69: 44.85141594 | BA69: 4.04633453 | BB69: 0 | BC69: 0 | BD69: 0.2043197739 | BE69: 0.1862687118 | BF69: 0.1466356775 | BG69: 0.08725251852 | BH69: 8.791433031 | BI69: 8.791433031 | BJ69: 0.2329046747 | BK69: 45.29534312 | BL69: 48.29534312 | BM69: 12.54739773 | BN69: 25.73166667 | BO69: 3.609939216 | BP69: 1.876883598 | BQ69: 0.1747277973 | BR69: 0.2733633775 | BT69: =IF(AC69>=0.67,24*(G69+H69+K69),"") -> 1087.088235 | BU69: =IF($AC69>=0.67,BO69,"") -> 3.609939216 | BV69: =IF($AC69>=0.67,BP69,"") -> 1.876883598 | BW69: =IF($AC69>=0.67,BQ69,"") -> 0.1747277973 | BX69: =IF($AC69>=0.67,BR69,"") -> 0.2733633775 | BZ69: =IF($AC69>0.25,IF(AC69<0.67,24*(G69+H69+K69),""),"") ->  | CA69: =IF($AC69>0.25,IF($AC69<0.67,BO69,""),"") ->  | CB69: =IF($AC69>0.25,IF($AC69<0.67,BP69,""),"") ->  | CC69: =IF($AC69>0.25,IF($AC69<0.67,BQ69,""),"") ->  | CD69: =IF($AC69>0.25,IF($AC69<0.67,BR69,""),"") ->  | CF69: =IF(AC69<=0.25,24*(G69+H69+K69),"") ->  | CG69: =IF($AC69<=0.25,BO69,"") ->  | CH69: =IF($AC69<=0.25,BP69,"") ->  | CI69: =IF($AC69<=0.25,BQ69,"") ->  | CJ69: =IF($AC69<=0.25,BR69,"") ->  | CN69: =AC69 -> 0.9598594095 | CO69: =24*(H69+K69+L69+M69) -> 1115.451871 | CP69: =24*G69 -> 43.63636364 | CQ69: =CO69+CP69 -> 1159.088235
A70: 67 | B70: 24 | C70: 2.173611292 | D70: 15.52125 | E70: 7.429166667 | F70: 8.5125 | G70: 1.818181818 | H70: 45.75 | I70: 14.99916667 | J70: 1.014191747 | K70: 4.022970853 | L70: 0.4025115741 | M70: 2.597488426 | N70: 2.309799453 | O70: 0.1 | P70: 0.2957114315 | Q70: 2.354298605 | R70: 0.2401304493 | S70: 0.19 | T70: 0.1156126477 | U70: 0.9712180882 | V70: 0.04297365916 | W70: 34.70723724 | X70: 0.1338024004 | Y70: 0.1552125 | Z70: 2.597488426 | AA70: 34.41934729 | AB70: 0 | AC70: 0.9647578756 | AD70: 1.759579149 | AE70: 3.198420125 | AF70: 3.686968806 | AG70: 3.439601267 | AH70: 50.86922942 | AI70: 3.301463215 | AJ70: 0 | AK70: 0 | AL70: 0 | AM70: 0 | AN70: 0.07975222583 | AO70: 0.1500881624 | AP70: 0.1904339926 | AQ70: 0.1502516353 | AR70: 9.932112834 | AS70: 35.73578134 | AT70: 3.113591048 | AU70: 3.975080032 | AV70: 3.686968806 | AW70: 3.198420125 | AX70: 1.759579149 | AY70: 50.86922942 | AZ70: 50.86922942 | BA70: 3.439601267 | BB70: 0 | BC70: 0 | BD70: 0.2077490084 | BE70: 0.1904339926 | BF70: 0.1500881624 | BG70: 0.07975222583 | BH70: 9.932112834 | BI70: 9.932112834 | BJ70: 0.1941307504 | BK70: 51.59115267 | BL70: 54.59115267 | BM70: 13.53544175 | BN70: 30.52041667 | BO70: 3.811560319 | BP70: 1.78867652 | BQ70: 0.1751435728 | BR70: 0.2467588683 | BT70: 1238.187664 | BU70: 3.811560319 | BV70: 1.78867652 | BW70: 0.1751435728 | BX70: 0.2467588683 | CN70: 0.9647578756 | CO70: 1266.5513 | CP70: 43.63636364 | CQ70: 1310.187664
A71: 68 | B71: 24 | C71: 3.129629792 | D71: 14.3475 | E71: 7.879166667 | F71: 8.6375 | G71: 1.5625 | H71: 36.41666667 | I71: 14.91166667 | J71: 1.014191747 | K71: 4.094887526 | L71: 0.4097858796 | M71: 2.59021412 | N71: 1.846392923 | O71: 0.0859375 | P71: 0.3010288277 | Q71: 1.911201217 | R71: 0.2322043466 | S71: 0.19 | T71: 0.1177020329 | U71: 1.014191747 | V71: 0 | W71: 24.20617334 | X71: 0 | Y71: 0.143475 | Z71: 2.59021412 | AA71: 26.58736245 | AB71: 0 | AC71: 0.9628630986 | AD71: 1.515797165 | AE71: 2.839433257 | AF71: 3.28720081 | AG71: 2.821552757 | AH71: 41.48530522 | AI71: 2.934185566 | AJ71: 0 | AK71: 0 | AL71: 0 | AM71: 0 | AN71: 0.06769952547 | AO71: 0.1319322221 | AP71: 0.1715714977 | AQ71: 0.1321556172 | AR71: 8.099920858 | AS71: 23.86745248 | AT71: 0 | AU71: 3.570086292 | AV71: 3.28720081 | AW71: 2.839433257 | AX71: 1.515797165 | AY71: 41.48530522 | AZ71: 41.48530522 | BA71: 2.821552757 | BB71: 0 | BC71: 0 | BD71: 0.189037183 | BE71: 0.1715714977 | BF71: 0.1319322221 | BG71: 0.06769952547 | BH71: 8.099920858 | BI71: 8.099920858 | BJ71: 0.1592953569 | BK71: 42.07405419 | BL71: 45.07405419 | BM71: 12.36169175 | BN71: 29.25916667 | BO71: 3.403583834 | BP71: 1.540510525 | BQ71: 0.1545226852 | BR71: 0.2445193378 | BT71: 1009.777301 | BU71: 3.403583834 | BV71: 1.540510525 | BW71: 0.1545226852 | BX71: 0.2445193378 | CN71: 0.9628630986 | CO71: 1044.277301 | CP71: 37.5 | CQ71: 1081.777301
A72: 69 | B72: 24 | C72: 2.752314958 | D72: 13.65 | E72: 7.991666667 | F72: 8.791666667 | G72: 1.5625 | H72: 40 | I72: 14.81625 | J72: 1.010204319 | K72: 3.488361111 | L72: 0.3491666667 | M72: 2.650833333 | N72: 2.020902309 | O72: 0.0859375 | P72: 0.2564716219 | Q72: 2.070169752 | R72: 0.228538415 | S72: 0.19 | T72: 0.1002904895 | U72: 1.010204319 | V72: 0 | W72: 25.54771009 | X72: 0 | Y72: 0.1365 | Z72: 2.650833333 | AA72: 30.26565679 | AB72: 0 | AC72: 0.9653169782 | AD72: 1.663127253 | AE72: 3.178654979 | AF72: 3.740880427 | AG72: 3.040638563 | AH72: 44.59579143 | AI72: 3.277639251 | AJ72: 0 | AK72: 0 | AL72: 0 | AM72: 0 | AN72: 0.07529853744 | AO72: 0.1500105279 | AP72: 0.19722719 | AQ72: 0.1501671811 | AR72: 8.738883433 | AS72: 25.28964647 | AT72: 0 | AU72: 4.083414189 | AV72: 3.740880427 | AW72: 3.178654979 | AX72: 1.663127253 | AY72: 44.59579143 | AZ72: 44.59579143 | BA72: 3.040638563 | BB72: 0 | BC72: 0 | BD72: 0.2188209619 | BE72: 0.19722719 | BF72: 0.1500105279 | BG72: 0.07529853744 | BH72: 8.738883433 | BI72: 8.738883433 | BJ72: 0.1717206857 | BK72: 45.05086111 | BL72: 48.05086111 | BM72: 11.66020432 | BN72: 28.46625 | BO72: 3.863642512 | BP72: 1.687994067 | BQ72: 0.1782758674 | BR72: 0.2717445172 | BT72: 1081.220667 | BU72: 3.863642512 | BV72: 1.687994067 | BW72: 0.1782758674 | BX72: 0.2717445172 | CN72: 0.9653169782 | CO72: 1115.720667 | CP72: 37.5 | CQ72: 1153.220667
A73: 70 | B73: 24 | C73: 2.217592833 | D73: 13.30166667 | E73: 8.079166667 | F73: 8.866666667 | G73: 1.967592593 | H73: 34.58333333 | I73: 14.74125 | J73: 1.014804927 | K73: 3.414828869 | L73: 0.3418923611 | M73: 2.658107639 | N73: 1.750005542 | O73: 0.1082175926 | P73: 0.2510992884 | Q73: 1.814201818 | R73: 0.2235923438 | S73: 0.19 | T73: 0.09820110434 | U73: 1.014804927 | V73: 0 | W73: 25.15459794 | X73: 0 | Y73: 0.1330166667 | Z73: 2.658107639 | AA73: 24.71409802 | AB73: 0 | AC73: 0.9507680362 | AD73: 1.500819932 | AE73: 2.873734364 | AF73: 3.372664619 | AG73: 2.711151008 | AH73: 39.38269685 | AI73: 3.001141344 | AJ73: 0 | AK73: 0 | AL73: 0 | AM73: 0 | AN73: 0.06753904838 | AO73: 0.1349052947 | AP73: 0.1789960184 | AQ73: 0.1350807861 | AR73: 7.685113474 | AS73: 24.78761906 | AT73: 0 | AU73: 3.688545109 | AV73: 3.372664619 | AW73: 2.873734364 | AX73: 1.500819932 | AY73: 39.38269685 | AZ73: 39.38269685 | BA73: 2.711151008 | BB73: 0 | BC73: 0 | BD73: 0.1991145897 | BE73: 0.1789960184 | BF73: 0.1349052947 | BG73: 0.06753904838 | BH73: 7.685113474 | BI73: 7.685113474 | BJ73: 0.1531530709 | BK73: 39.96575479 | BL73: 42.96575479 | BM73: 11.31647159 | BN73: 28.04291667 | BO73: 3.531644512 | BP73: 1.532142869 | BQ73: 0.1598126364 | BR73: 0.2652326059 | BT73: 959.1781151 | BU73: 3.531644512 | BV73: 1.532142869 | BW73: 0.1598126364 | BX73: 0.2652326059 | CN73: 0.9507680362 | CO73: 983.9558929 | CP73: 47.22222222 | CQ73: 1031.178115
A74: 71 | B74: 24 | C74: 3.22453725 | D74: 12.5825 | E74: 8.2125 | F74: 9.033333333 | G74: 2.777777778 | H74: 33.08333333 | I74: 14.63458333 | J74: 1.009897729 | K74: 2.905421889 | L74: 0.2909722222 | M74: 2.709027778 | N74: 1.674421391 | O74: 0.1527777778 | P74: 0.2136737999 | Q74: 1.71153794 | R74: 0.2161067904 | S74: 0.19 | T74: 0.08357540795 | U74: 0.9669240701 | V74: 0.04297365916 | W74: 27.24149061 | X74: 1.071975376 | Y74: 0.125825 | Z74: 2.709027778 | AA74: 22.61857972 | AB74: 0 | AC74: 0.928345984 | AD74: 1.489914202 | AE74: 2.883776311 | AF74: 3.420973117 | AG74: 2.648967321 | AH74: 38.3865929 | AI74: 3.072786261 | AJ74: 0 | AK74: 0 | AL74: 0 | AM74: 0 | AN74: 0.06655190655 | AO74: 0.134723605 | AP74: 0.1821395778 | AQ74: 0.1348653472 | AR74: 7.524247643 | AS74: 28.17335037 | AT74: 24.94494063 | AU74: 3.755674952 | AV74: 3.420973117 | AW74: 2.883776311 | AX74: 1.489914202 | AY74: 38.3865929 | AZ74: 38.3865929 | BA74: 2.648967321 | BB74: 0 | BC74: 0 | BD74: 0.2038408102 | BE74: 0.1821395778 | BF74: 0.134723605 | BG74: 0.06655190655 | BH74: 7.524247643 | BI74: 7.524247643 | BJ74: 0.1496972866 | BK74: 38.766533 | BL74: 41.766533 | BM74: 10.59239773 | BN74: 27.21708333 | BO74: 3.659844918 | BP74: 1.534570493 | BQ74: 0.1636202724 | BR74: 0.2823673522 | BT74: 930.396792 | BU74: 3.659844918 | BV74: 1.534570493 | BW74: 0.1636202724 | BX74: 0.2823673522 | CN74: 0.928345984 | CO74: 935.7301253 | CP74: 66.66666667 | CQ74: 1002.396792
A75: 72 | B75: 24 | C75: 1.46064825 | D75: 11.85541667 | E75: 8.241666667 | F75: 8.966666667 | G75: 3.240740741 | H75: 30.16666667 | I75: 11.40125 | J75: 1.014191747 | K75: 0.7987434116 | L75: 0.08001736111 | M75: 2.794982639 | N75: 1.543709076 | O75: 0.1782407407 | P75: 0.05875187858 | Q75: 1.550868751 | R75: 0.2040662676 | S75: 0.19 | T75: 0.02298323719 | U75: 0.9325384472 | V75: 0.08165330022 | W75: 23.61386275 | X75: 0.3924543688 | Y75: 0.1185541667 | Z75: 2.919982639 | AA75: 18.4921306 | AB75: 0.6370696767 | AC75: 0.9052585379 | AD75: 1.525958417 | AE75: 2.649262201 | AF75: 3.168295809 | AG75: 3.000210575 | AH75: 33.72749868 | AI75: 2.881295967 | AJ75: 0 | AK75: 0 | AL75: 0 | AM75: 0 | AN75: 0.07132877611 | AO75: 0.1285782716 | AP75: 0.1758438923 | AQ75: 0.1285908603 | AR75: 6.585225023 | AS75: 25.32213317 | AT75: 4.806350359 | AU75: 3.496776182 | AV75: 3.168295809 | AW75: 2.649262201 | AX75: 1.525958417 | AY75: 33.72749868 | AZ75: 33.72749868 | BA75: 3.000210575 | BB75: 0 | BC75: 0 | BD75: 0.1979450303 | BE75: 0.1758438923 | BF75: 0.1285782716 | BG75: 0.07132877611 | BH75: 6.585225023 | BI75: 6.585225023 | BJ75: 0.1724199084 | BK75: 34.20615082 | BL75: 37.08115082 | BM75: 9.869608414 | BN75: 23.25666667 | BO75: 3.46580628 | BP75: 1.594431023 | BQ75: 0.1607477719 | BR75: 0.3000425219 | BT75: 820.9476197 | BU75: 3.46580628 | BV75: 1.594431023 | BW75: 0.1607477719 | BX75: 0.3000425219 | CN75: 0.9052585379 | CO75: 812.1698419 | CP75: 77.77777778 | CQ75: 889.9476197
A76: 73 | B76: 24 | C76: 1.071759333 | D76: 12.87541667 | E76: 8.091666667 | F76: 8.829166667 | G76: 3.270609319 | H76: 34.70833333 | I76: 11.33875 | J76: 1.014191747 | K76: 0.4355304636 | L76: 0.04364583333 | M76: 2.956354167 | N76: 1.755221182 | O76: 0.1798835125 | P76: 0.03204145759 | Q76: 1.756262634 | R76: 0.2156933678 | S76: 0.19 | T76: 0.01253631119 | U76: 0.9325384472 | V76: 0.08165330022 | W76: 23.87578687 | X76: 0.2630364233 | Y76: 0.1287541667 | Z76: 2.956354167 | AA76: 20.98364606 | AB76: 0 | AC76: 0.9148599719 | AD76: 1.640682019 | AE76: 2.763395279 | AF76: 3.253079484 | AG76: 3.38789312 | AH76: 37.87693325 | AI76: 2.981687596 | AJ76: 0 | AK76: 0 | AL76: 0 | AM76: 0 | AN76: 0.07706043362 | AO76: 0.1343632383 | AP76: 0.1776906936 | AQ76: 0.1343663077 | AR76: 7.395393623 | AS76: 25.60300537 | AT76: 3.221381409 | AU76: 3.558722126 | AV76: 3.253079484 | AW76: 2.763395279 | AX76: 1.640682019 | AY76: 37.87693325 | AZ76: 37.87693325 | BA76: 3.38789312 | BB76: 0 | BC76: 0 | BD76: 0.1974723926 | BE76: 0.1776906936 | BF76: 0.1343632383 | BG76: 0.07706043362 | BH76: 7.395393623 | BI76: 7.395393623 | BJ76: 0.194790211 | BK76: 38.41447312 | BL76: 41.41447312 | BM76: 10.88960841 | BN76: 24.21416667 | BO76: 3.527626674 | BP76: 1.710340632 | BQ76: 0.1648209166 | BR76: 0.294356134 | BT76: 921.9473548 | BU76: 3.527626674 | BV76: 1.710340632 | BW76: 0.1648209166 | BX76: 0.294356134 | CN76: 0.9148599719 | CO76: 915.4527311 | CP76: 78.49462366 | CQ76: 993.9473548
A77: 74 | B77: 24 | C77: 5.337963417 | D77: 11.83541667 | E77: 8.2375 | F77: 8.9875 | G77: 2.979390681 | H77: 32.5 | I77: 14.91875 | J77: 1.009897729 | K77: 3.482960356 | L77: 0.3491666667 | M77: 2.650833333 | N77: 1.647975695 | O77: 0.1638664875 | P77: 0.2562880544 | Q77: 1.709863563 | R77: 0.2107471296 | S77: 0.19 | T77: 0.1002904895 | U77: 0.923950411 | V77: 0.08594731832 | W77: 24.0520088 | X77: 0.1339111943 | Y77: 0.1183541667 | Z77: 2.650833333 | AA77: 23.27207807 | AB77: 0.1138227897 | AC77: 0.9235315477 | AD77: 1.521978026 | AE77: 3.053155418 | AF77: 3.683725656 | AG77: 2.611636433 | AH77: 38.58049177 | AI77: 3.26674379 | AJ77: 0 | AK77: 0 | AL77: 0 | AM77: 0 | AN77: 0.06792114871 | AO77: 0.1430851964 | AP77: 0.1996442008 | AQ77: 0.1433006314 | AR77: 7.562254225 | AS77: 26.03170962 | AT77: 1.558061344 | AU77: 4.072582167 | AV77: 3.683725656 | AW77: 3.053155418 | AX77: 1.521978026 | AY77: 38.58049177 | AZ77: 38.58049177 | BA77: 2.611636433 | BB77: 0 | BC77: 0 | BD77: 0.2259716186 | BE77: 0.1996442008 | BF77: 0.1430851964 | BG77: 0.06792114871 | BH77: 7.562254225 | BI77: 7.562254225 | BJ77: 0.1474406239 | BK77: 38.96235104 | BL77: 41.96235104 | BM77: 9.845314396 | BN77: 26.75416667 | BO77: 3.957451176 | BP77: 1.568441714 | BQ77: 0.174911728 | BR77: 0.2989242232 | BT77: 935.0964249 | BU77: 3.957451176 | BV77: 1.568441714 | BW77: 0.174911728 | BX77: 0.2989242232 | CN77: 0.9235315477 | CO77: 935.5910485 | CP77: 71.50537634 | CQ77: 1007.096425
A78: 75 | B78: 24 | C78: 5.395833792 | D78: 11.70791667 | E78: 8.3375 | F78: 9.066666667 | G78: 2.380952381 | H78: 31.95833333 | I78: 14.87833333 | J78: 1.014191747 | K78: 3.602464176 | L78: 0.3612905093 | M78: 2.638709491 | N78: 1.620601301 | O78: 0.130952381 | P78: 0.2651382878 | Q78: 1.670722498 | R78: 0.2127701674 | S78: 0.19 | T78: 0.1037727982 | U78: 0.9755121063 | V78: 0.03867964106 | W78: 24.11203345 | X78: 0.7758064975 | Y78: 0.1170791667 | Z78: 2.638709491 | AA78: 23.45773671 | AB78: 0 | AC78: 0.9372471647 | AD78: 1.503193007 | AE78: 3.04624593 | AF78: 3.681827028 | AG78: 2.550134416 | AH78: 37.41082491 | AI78: 3.218157601 | AJ78: 0 | AK78: 0 | AL78: 0 | AM78: 0 | AN78: 0.06631145798 | AO78: 0.1415686192 | AP78: 0.1985118181 | AQ78: 0.1418057807 | AR78: 7.304386925 | AS78: 24.71730827 | AT78: 20.05723105 | AU78: 4.08373195 | AV78: 3.681827028 | AW78: 3.04624593 | AX78: 1.503193007 | AY78: 37.41082491 | AZ78: 37.41082491 | BA78: 2.550134416 | BB78: 0 | BC78: 0 | BD78: 0.2258130583 | BE78: 0.1985118181 | BF78: 0.1415686192 | BG78: 0.06631145798 | BH78: 7.304386925 | BI78: 7.304386925 | BJ78: 0.1439884395 | BK78: 37.94174989 | BL78: 40.94174989 | BM78: 9.722108414 | BN78: 26.58625 | BO78: 3.902625673 | BP78: 1.539959561 | BQ78: 0.1741881396 | BR78: 0.2998024125 | BT78: 910.6019974 | BU78: 3.902625673 | BV78: 1.539959561 | BW78: 0.1741881396 | BX78: 0.2998024125 | CN78: 0.9372471647 | CO78: 925.4591402 | CP78: 57.14285714 | CQ78: 982.6019974
A79: 76 | B79: 24 | C79: 6.229167208 | D79: 10.56791667 | E79: 8.720833333 | F79: 9.304166667 | G79: 6.299603175 | H79: 20.25 | I79: 15.32625 | J79: 1.009897729 | K79: 3.528426005 | L79: 0.3540162037 | M79: 2.461452546 | N79: 1.035951826 | O79: 0.3464781746 | P79: 0.259748806 | Q79: 1.191032138 | R79: 0.1786698984 | S79: 0.19 | T79: 0.101683413 | U79: 0.8465911289 | V79: 0.1633066004 | W79: 19.54824792 | X79: 0.93328689 | Y79: 0.1056791667 | Z79: 2.645983796 | AA79: 11.28197445 | AB79: 2.380966018 | AC79: 0.7905579805 | AD79: 1.172352907 | AE79: 2.339714438 | AF79: 2.842167718 | AG79: 1.962517196 | AH79: 29.78324271 | AI79: 2.841080087 | AJ79: 0 | AK79: 0 | AL79: 0 | AM79: 0 | AN79: 0.05331069909 | AO79: 0.1110532664 | AP79: 0.1658695236 | AQ79: 0.1114130139 | AR79: 5.83788445 | AS79: 23.09054188 | AT79: 5.714936735 | AU79: 3.142004207 | AV79: 2.842167718 | AW79: 2.339714438 | AX79: 1.172352907 | AY79: 29.78324271 | AZ79: 29.78324271 | BA79: 1.962517196 | BB79: 0 | BC79: 0 | BD79: 0.1880697621 | BE79: 0.1658695236 | BF79: 0.1110532664 | BG79: 0.05331069909 | BH79: 5.83788445 | BI79: 5.83788445 | BJ79: 0.110646406 | BK79: 30.07802918 | BL79: 32.89349793 | BM79: 8.577814396 | BN79: 25.89416667 | BO79: 3.506491023 | BP79: 1.27030533 | BQ79: 0.1368437856 | BR79: 0.2919537099 | BT79: 721.8727003 | BU79: 3.506491023 | BV79: 1.27030533 | BW79: 0.1368437856 | BX79: 0.2919537099 | CN79: 0.7905579805 | CO79: 638.2534741 | CP79: 151.1904762 | CQ79: 789.4439503
A80: 77 | B80: 24 | C80: 6.412037542 | D80: 10.22333333 | E80: 8.808333333 | F80: 9.379166667 | G80: 4.261363636 | H80: 24.625 | I80: 15.24166667 | J80: 1.014191747 | K80: 3.430194061 | L80: 0.3443171296 | M80: 2.65568287 | N80: 1.252830313 | O80: 0.234375 | P80: 0.2525793363 | Q80: 1.336663152 | R80: 0.1917710085 | S80: 0.19 | T80: 0.09889756607 | U80: 0.9325384472 | V80: 0.08165330022 | W80: 18.51292035 | X80: 0.2634042141 | Y80: 0.1022333333 | Z80: 2.65568287 | AA80: 15.72000155 | AB80: 0.1636962095 | AC80: 0.8681368333 | AD80: 1.324022527 | AE80: 2.796810146 | AF80: 3.461984105 | AG80: 2.120277159 | AH80: 31.86434693 | AI80: 3.142734494 | AJ80: 0 | AK80: 0 | AL80: 0 | AM80: 0 | AN80: 0.05800701957 | AO80: 0.1297084751 | AP80: 0.1958259357 | AQ80: 0.1300139105 | AR80: 6.221448462 | AS80: 19.85217918 | AT80: 3.225885706 | AU80: 3.883967798 | AV80: 3.461984105 | AW80: 2.796810146 | AX80: 1.324022527 | AY80: 31.86434693 | AZ80: 31.86434693 | BA80: 2.120277159 | BB80: 0 | BC80: 0 | BD80: 0.2272818698 | BE80: 0.1958259357 | BF80: 0.1297084751 | BG80: 0.05800701957 | BH80: 6.221448462 | BI80: 6.221448462 | BJ80: 0.1195730464 | BK80: 32.3165577 | BL80: 35.3165577 | BM80: 8.237525081 | BN80: 25.465 | BO80: 3.923090659 | BP80: 1.386866589 | BQ80: 0.1642719927 | BR80: 0.3318464053 | BT80: 775.5973847 | BU80: 3.923090659 | BV80: 1.386866589 | BW80: 0.1642719927 | BX80: 0.3318464053 | CN80: 0.8681368333 | CO80: 745.3246575 | CP80: 102.2727273 | CQ80: 847.5973847
A81: 78 | B81: 24 | C81: 1.5949075 | D81: 13.69041667 | E81: 8.279166667 | F81: 9.0625 | G81: 3.03030303 | H81: 31.79166667 | I81: 15.59875 | J81: 1.018792355 | K81: 3.114653344 | L81: 0.3127951389 | M81: 2.687204861 | N81: 1.616402414 | O81: 0.1666666667 | P81: 0.2294046541 | Q81: 1.648094662 | R81: 0.2204895639 | S81: 0.19 | T81: 0.08984356354 | U81: 0.9758186961 | V81: 0.04297365916 | W81: 25.10823742 | X81: 0.1338489836 | Y81: 0.1369041667 | Z81: 2.687204861 | AA81: 20.56187758 | AB81: 0.3950696188 | AC81: 0.9201219616 | AD81: 1.351713134 | AE81: 2.591383705 | AF81: 3.001963423 | AG81: 2.432029684 | AH81: 37.23685484 | AI81: 2.783060801 | AJ81: 0 | AK81: 0 | AL81: 0 | AM81: 0 | AN81: 0.05972314565 | AO81: 0.1192472759 | AP81: 0.1568516207 | AQ81: 0.1194053453 | AR81: 7.240198894 | AS81: 25.73043283 | AT81: 3.114675041 | AU81: 3.265197335 | AV81: 3.001963423 | AW81: 2.591383705 | AX81: 1.351713134 | AY81: 37.23685484 | AZ81: 37.23685484 | BA81: 2.432029684 | BB81: 0 | BC81: 0 | BD81: 0.1732053512 | BE81: 0.1568516207 | BF81: 0.1192472759 | BG81: 0.05972314565 | BH81: 7.240198894 | BI81: 7.240198894 | BJ81: 0.1370025956 | BK81: 37.93662304 | BL81: 40.93662304 | BM81: 11.70920902 | BN81: 29.28916667 | BO81: 3.239896305 | BP81: 1.397671143 | BQ81: 0.1430169956 | BR81: 0.2514771057 | BT81: 910.478953 | BU81: 3.239896305 | BV81: 1.397671143 | BW81: 0.1430169956 | BX81: 0.2514771057 | CN81: 0.9201219616 | CO81: 909.7516803 | CP81: 72.72727273 | CQ81: 982.478953
A82: 79 | B82: 24 | C82: 0.618055625 | D82: 13.21458333 | E82: 8.091666667 | F82: 8.8625 | G82: 2.173913043 | H82: 38.66666667 | I82: 12.8125 | J82: 1.010204319 | K82: 0.8446275238 | L82: 0.08486689815 | M82: 2.915133102 | N82: 1.955745773 | O82: 0.1195652174 | P82: 0.06222686198 | Q82: 1.958662553 | R82: 0.222905279 | S82: 0.19 | T82: 0.02437616065 | U82: 0.971524678 | V82: 0.03867964106 | W82: 24.73395158 | X82: 0.12920351 | Y82: 0.1321458333 | Z82: 2.915133102 | AA82: 26.11259349 | AB82: 0 | AC82: 0.9478492926 | AD82: 1.676385418 | AE82: 2.999645772 | AF82: 3.536602544 | AG82: 3.253479589 | AH82: 41.26413484 | AI82: 3.141361989 | AJ82: 0 | AK82: 0 | AL82: 0 | AM82: 0 | AN82: 0.07863072959 | AO82: 0.1460365951 | AP82: 0.1912031477 | AQ82: 0.1460467239 | AR82: 8.086020065 | AS82: 25.45890201 | AT82: 3.340349249 | AU82: 3.868125884 | AV82: 3.536602544 | AW82: 2.999645772 | AX82: 1.676385418 | AY82: 41.26413484 | AZ82: 41.26413484 | BA82: 3.253479589 | BB82: 0 | BC82: 0 | BD82: 0.2123539731 | BE82: 0.1912031477 | BF82: 0.1460365951 | BG82: 0.07863072959 | BH82: 8.086020065 | BI82: 8.086020065 | BJ82: 0.1853314941 | BK82: 41.68520723 | BL82: 44.68520723 | BM82: 11.22478765 | BN82: 26.02708333 | BO82: 3.713674461 | BP82: 1.716873407 | BQ82: 0.1774042824 | BR82: 0.2932195345 | BT82: 1000.444974 | BU82: 3.713674461 | BV82: 1.716873407 | BW82: 0.1774042824 | BX82: 0.2932195345 | CN82: 0.9478492926 | CO82: 1020.271061 | CP82: 52.17391304 | CQ82: 1072.444974
A83: 80 | B83: 24 | C83: 1.067129792 | D83: 12.80541667 | E83: 8.029166667 | F83: 8.845833333 | G83: 2.133996561 | H83: 37.91666667 | I83: 12.98708333 | J83: 1.014191747 | K83: 0.313548899 | L83: 0.03152199074 | M83: 2.968478009 | N83: 1.916481617 | O83: 0.1173698109 | P83: 0.02310707016 | Q83: 1.916938153 | R83: 0.2203491573 | S83: 0.19 | T83: 0.009054002528 | U83: 0.9712180882 | V83: 0.04297365916 | W83: 26.01051693 | X83: 0 | Y83: 0.1280541667 | Z83: 2.968478009 | AA83: 25.27661059 | AB83: 0 | AC83: 0.94713147 | AD83: 1.642252567 | AE83: 2.995078218 | AF83: 3.551017327 | AG83: 3.108027499 | AH83: 39.79938925 | AI83: 3.137875606 | AJ83: 0 | AK83: 0 | AL83: 0 | AM83: 0 | AN83: 0.07770267533 | AO83: 0.1472733612 | AP83: 0.1945478129 | AQ83: 0.1472748298 | AR83: 7.770749219 | AS83: 26.78133495 | AT83: 0 | AU83: 3.898887407 | AV83: 3.551017327 | AW83: 2.995078218 | AX83: 1.642252567 | AY83: 39.79938925 | AZ83: 39.79938925 | BA83: 3.108027499 | BB83: 0 | BC83: 0 | BD83: 0.2171387616 | BE83: 0.1945478129 | BF83: 0.1472733612 | BG83: 0.07770267533 | BH83: 7.770749219 | BI83: 7.770749219 | BJ83: 0.1768856676 | BK83: 40.36421213 | BL83: 43.36421213 | BM83: 10.81960841 | BN83: 25.7925 | BO83: 3.730653697 | BP83: 1.681272158 | BQ83: 0.1803231287 | BR83: 0.3053071282 | BT83: 968.741091 | BU83: 3.730653697 | BV83: 1.681272158 | BW83: 0.1803231287 | BX83: 0.3053071282 | CN83: 0.94713147 | CO83: 989.5251736 | CP83: 51.21591746 | CQ83: 1040.741091
A84: 81 | B84: 24 | C84: 1.912037125 | D84: 14.07083333 | E84: 7.929166667 | F84: 8.858333333 | G84: 1.694915254 | H84: 39.66666667 | I84: 15.10083333 | J84: 1.014191747 | K84: 3.615809514 | L84: 0.3637152778 | M84: 2.636284722 | N84: 2.008442694 | O84: 0.09322033898 | P84: 0.2665500873 | Q84: 2.054713941 | R84: 0.2304963034 | S84: 0.19 | T84: 0.1044692599 | U84: 1.014191747 | V84: 0 | W84: 29.62698988 | X84: 0 | Y84: 0.1407083333 | Z84: 2.636284722 | AA84: 29.50253585 | AB84: 0 | AC84: 0.9623162838 | AD84: 1.618120665 | AE84: 3.075900257 | AF84: 3.592858899 | AG84: 2.97847082 | AH84: 44.3480156 | AI84: 3.180464811 | AJ84: 0 | AK84: 0 | AL84: 0 | AM84: 0 | AN84: 0.07301047963 | AO84: 0.1444554458 | AP84: 0.1882975581 | AQ84: 0.1446221988 | AR84: 8.658859196 | AS84: 29.21241467 | AT84: 0 | AU84: 3.909595139 | AV84: 3.592858899 | AW84: 3.075900257 | AX84: 1.618120665 | AY84: 44.3480156 | AZ84: 44.3480156 | BA84: 2.97847082 | BB84: 0 | BC84: 0 | BD84: 0.2080020976 | BE84: 0.1882975581 | BF84: 0.1444554458 | BG84: 0.07301047963 | BH84: 8.658859196 | BI84: 8.658859196 | BJ84: 0.1680477656 | BK84: 44.97739143 | BL84: 47.97739143 | BM84: 12.08502508 | BN84: 29.17166667 | BO84: 3.721745808 | BP84: 1.644657194 | BQ84: 0.1710205433 | BR84: 0.2608930651 | BT84: 1079.457394 | BU84: 3.721745808 | BV84: 1.644657194 | BW84: 0.1710205433 | BX84: 0.2608930651 | CN84: 0.9623162838 | CO84: 1110.779428 | CP84: 40.6779661 | CQ84: 1151.457394
A85: 82 | B85: 24 | C85: 0.793981625 | D85: 14.93125 | E85: 7.725 | F85: 8.770833333 | G85: 1.694915254 | H85: 41.08333333 | I85: 14.38708333 | J85: 1.009897729 | K85: 3.131826243 | L85: 0.3152199074 | M85: 2.684780093 | N85: 2.07759201 | O85: 0.09322033898 | P85: 0.2309464876 | Q85: 2.103720937 | R85: 0.2360485013 | S85: 0.19 | T85: 0.09054002528 | U85: 0.9712180882 | V85: 0.03867964106 | W85: 33.4074586 | X85: 0 | Y85: 0.1493125 | Z85: 2.684780093 | AA85: 29.57909659 | AB85: 0 | AC85: 0.9630818451 | AD85: 1.640144856 | AE85: 2.968785389 | AF85: 3.426505347 | AG85: 3.191061994 | AH85: 45.46012284 | AI85: 3.068165207 | AJ85: 0 | AK85: 0 | AL85: 0 | AM85: 0 | AN85: 0.0743055817 | AO85: 0.1394233622 | AP85: 0.1777600266 | AQ85: 0.1395395416 | AR85: 8.910747122 | AS85: 34.39748395 | AT85: 0 | AU85: 3.705827937 | AV85: 3.426505347 | AW85: 2.968785389 | AX85: 1.640144856 | AY85: 45.46012284 | AZ85: 45.46012284 | BA85: 3.191061994 | BB85: 0 | BC85: 0 | BD85: 0.194651649 | BE85: 0.1777600266 | BF85: 0.1394233622 | BG85: 0.0743055817 | BH85: 8.910747122 | BI85: 8.910747122 | BJ85: 0.1804969743 | BK85: 45.91007483 | BL85: 48.91007483 | BM85: 12.94114773 | BN85: 29.31833333 | BO85: 3.54760457 | BP85: 1.668241993 | BQ85: 0.1643100352 | BR85: 0.2492175288 | BT85: 1101.841796 | BU85: 3.54760457 | BV85: 1.668241993 | BW85: 0.1643100352 | BX85: 0.2492175288 | CN85: 0.9630818451 | CO85: 1133.16383 | CP85: 40.6779661 | CQ85: 1173.841796
A86: 83 | B86: 24 | C86: 1.76157425 | D86: 13.89458333 | E86: 7.945833333 | F86: 8.854166667 | G86: 2.024482109 | H86: 41.625 | I86: 14.29416667 | J86: 1.014191747 | K86: 2.961332424 | L86: 0.2982465278 | M86: 2.701753472 | N86: 2.10557733 | O86: 0.111346516 | P86: 0.2184479613 | Q86: 2.136185309 | R86: 0.2284922829 | S86: 0.19 | T86: 0.08566479315 | U86: 0.9712180882 | V86: 0.04297365916 | W86: 29.10919675 | X86: 0.1338334488 | Y86: 0.1389458333 | Z86: 2.701753472 | AA86: 30.65307523 | AB86: 0 | AC86: 0.9565662576 | AD86: 1.726150014 | AE86: 3.201292498 | AF86: 3.757890103 | AG86: 3.260827694 | AH86: 45.95858195 | AI86: 3.327625124 | AJ86: 0 | AK86: 0 | AL86: 0 | AM86: 0 | AN86: 0.07879784087 | AO86: 0.1518998659 | AP86: 0.1978734431 | AQ86: 0.1520091476 | AR86: 8.973318976 | AS86: 29.97184371 | AT86: 3.114313545 | AU86: 4.092522959 | AV86: 3.757890103 | AW86: 3.201292498 | AX86: 1.726150014 | AY86: 45.95858195 | AZ86: 45.95858195 | BA86: 3.260827694 | BB86: 0 | BC86: 0 | BD86: 0.2187481249 | BE86: 0.1978734431 | BF86: 0.1518998659 | BG86: 0.07879784087 | BH86: 8.973318976 | BI86: 8.973318976 | BJ86: 0.1845087094 | BK86: 46.61081453 | BL86: 49.61081453 | BM86: 11.90877508 | BN86: 28.18875 | BO86: 3.913988989 | BP86: 1.75995085 | BQ86: 0.1811783482 | BR86: 0.2733542427 | BT86: 1118.659549 | BU86: 3.913988989 | BV86: 1.75995085 | BW86: 0.1811783482 | BX86: 0.2733542427 | CN86: 0.9565662576 | CO86: 1142.071978 | CP86: 48.58757062 | CQ86: 1190.659549
A87: 84 | B87: 24 | C87: 2.111111208 | D87: 12.66958333 | E87: 8.154166667 | F87: 8.983333333 | G87: 2.222222222 | H87: 35.29166667 | I87: 13.67666667 | J87: 1.014191747 | K87: 1.178945294 | L87: 0.1188136574 | M87: 2.881186343 | N87: 1.785097749 | O87: 0.1222222222 | P87: 0.08699780869 | Q87: 1.794595646 | R87: 0.2182079993 | S87: 0.19 | T87: 0.03412662491 | U87: 0.9282444291 | V87: 0.08594731832 | W87: 26.72114969 | X87: 0.2679158556 | Y87: 0.1266958333 | Z87: 2.881186343 | AA87: 23.56461466 | AB87: 0 | AC87: 0.9425676028 | AD87: 1.544187353 | AE87: 2.896813472 | AF87: 3.43235774 | AG87: 2.829112906 | AH87: 38.15139916 | AI87: 3.046880991 | AJ87: 0 | AK87: 0 | AL87: 0 | AM87: 0 | AN87: 0.07143584635 | AO87: 0.1396397262 | AP87: 0.1857583611 | AQ87: 0.139662186 | AR87: 7.44898253 | AS87: 28.78676009 | AT87: 3.11721018 | AU87: 3.771683919 | AV87: 3.43235774 | AW87: 2.896813472 | AX87: 1.544187353 | AY87: 38.15139916 | AZ87: 38.15139916 | BA87: 2.829112906 | BB87: 0 | BC87: 0 | BD87: 0.2077245108 | BE87: 0.1857583611 | BF87: 0.1396397262 | BG87: 0.07143584635 | BH87: 7.44898253 | BI87: 7.44898253 | BJ87: 0.1604881538 | BK87: 38.69283418 | BL87: 41.69283418 | BM87: 10.68377508 | BN87: 26.34625 | BO87: 3.621644399 | BP87: 1.58249596 | BQ87: 0.170631753 | BR87: 0.2959975133 | BT87: 928.6280204 | BU87: 3.621644399 | BV87: 1.58249596 | BW87: 0.170631753 | BX87: 0.2959975133 | CN87: 0.9425676028 | CO87: 947.294687 | CP87: 53.33333333 | CQ87: 1000.62802
A88: 85 | B88: 24 | C88: 4.331018875 | D88: 10.36125 | E88: 8.295833333 | F88: 8.983333333 | G88: 2.974910394 | H88: 28.29166667 | I88: 9.963333333 | J88: 1.009897729 | K88: 0 | L88: 0 | M88: 3 | N88: 1.435499736 | O88: 0.1636200717 | P88: 0 | Q88: 1.435499736 | R88: 0.200387252 | S88: 0.19 | T88: 0 | U88: 1.009897729 | V88: 0 | W88: 21.89101682 | X88: 0 | Y88: 0.1036125 | Z88: 3 | AA88: 16.94560854 | AB88: 0 | AC88: 0.9048533394 | AD88: 1.614919949 | AE88: 2.775299512 | AF88: 3.418908014 | AG88: 3.138164309 | AH88: 30.96014196 | AI88: 3.013466879 | AJ88: 0 | AK88: 0 | AL88: 0 | AM88: 0 | AN88: 0.07594332663 | AO88: 0.1365369883 | AP88: 0.1968589272 | AQ88: 0.1365369883 | AR88: 6.068571279 | AS88: 21.67646899 | AT88: 0 | AU88: 3.843323711 | AV88: 3.418908014 | AW88: 2.775299512 | AX88: 1.614919949 | AY88: 30.96014196 | AZ88: 30.96014196 | BA88: 3.138164309 | BB88: 0 | BC88: 0 | BD88: 0.2277235116 | BE88: 0.1968589272 | BF88: 0.1365369883 | BG88: 0.07594332663 | BH88: 6.068571279 | BI88: 6.068571279 | BJ88: 0.1826794952 | BK88: 31.26657706 | BL88: 34.26657706 | BM88: 8.371147729 | BN88: 20.32458333 | BO88: 3.735040651 | BP88: 1.685967013 | BQ88: 0.1768874626 | BR88: 0.3639044045 | BT88: 750.3978495 | BU88: 3.735040651 | BV88: 1.685967013 | BW88: 0.1768874626 | BX88: 0.3639044045 | CN88: 0.9048533394 | CO88: 751 | CP88: 71.39784946 | CQ88: 822.3978495
A89: 86 | B89: 24 | C89: 6.615741333 | D89: 8.642916667 | E89: 8.595833333 | F89: 9.1375 | G89: 7.010469723 | H89: 24.375 | I89: 9.942916667 | J89: 1.014191747 | K89: 0 | L89: 0 | M89: 3 | N89: 1.237182601 | O89: 0.3855758347 | P89: 0 | Q89: 1.237182601 | R89: 0.166428828 | S89: 0.19 | T89: 0 | U89: 0.8465911289 | V89: 0.1676006185 | W89: 17.40910572 | X89: 0.1339579278 | Y89: 0.08642916667 | Z89: 3 | AA89: 12.87768252 | AB89: 2.170260658 | AC89: 0.7766332706 | AD89: 1.672785798 | AE89: 2.902793257 | AF89: 3.790487232 | AG89: 3.156565701 | AH89: 30.94628782 | AI89: 3.560638262 | AJ89: 0 | AK89: 0 | AL89: 0 | AM89: 0 | AN89: 0.07749013313 | AO89: 0.1408357997 | AP89: 0.2313171068 | AQ89: 0.1408357997 | AR89: 6.042199302 | AS89: 20.56377055 | AT89: 0.7992686958 | AU89: 4.319574688 | AV89: 3.790487232 | AW89: 2.902793257 | AX89: 1.672785798 | AY89: 30.94628782 | AZ89: 30.94628782 | BA89: 3.156565701 | BB89: 0 | BC89: 0 | BD89: 0.2754712811 | BE89: 0.2313171068 | BF89: 0.1408357997 | BG89: 0.07749013313 | BH89: 6.042199302 | BI89: 6.042199302 | BJ89: 0.1837912101 | BK89: 31.38546972 | BL89: 34.38546972 | BM89: 6.657108414 | BN89: 18.58583333 | BO89: 4.71457993 | BP89: 1.850090287 | BQ89: 0.2034585805 | BR89: 0.4493076689 | BT89: 753.2512733 | BU89: 4.71457993 | BV89: 1.850090287 | BW89: 0.2034585805 | BX89: 0.4493076689 | CN89: 0.7766332706 | CO89: 657 | CP89: 168.2512733 | CQ89: 825.2512733
A90: 87 | B90: 24 | C90: 6.299769021 | D90: 8.365416667 | E90: 8.808333333 | F90: 9.197916667 | G90: 6.275303644 | H90: 19.22916667 | I90: 9.47625 | J90: 0.9346938258 | K90: 0 | L90: 0 | M90: 3 | N90: 0.9891751746 | O90: 0.3451417004 | P90: 0 | Q90: 0.9891751746 | R90: 0.1543368387 | S90: 0.19 | T90: 0 | U90: 0.7241195481 | V90: 0.2105742777 | W90: 13.10338643 | X90: 1.473755519 | Y90: 0.08365416667 | Z90: 3 | AA90: 8.317566999 | AB90: 1.663814469 | AC90: 0.7539527947 | AD90: 1.433209416 | AE90: 2.450809694 | AF90: 3.167833525 | AG90: 2.691409609 | AH90: 27.28644355 | AI90: 3.064960393 | AJ90: 0 | AK90: 0 | AL90: 0 | AM90: 0 | AN90: 0.06535146544 | AO90: 0.1167599599 | AP90: 0.1983814015 | AQ90: 0.1167599599 | AR90: 5.746098375 | AS90: 18.09561206 | AT90: 6.998744269 | AU90: 3.583909296 | AV90: 3.167833525 | AW90: 2.450809694 | AX90: 1.433209416 | AY90: 27.28644355 | AZ90: 27.28644355 | BA90: 2.691409609 | BB90: 0 | BC90: 0 | BD90: 0.2344323354 | BE90: 0.1983814015 | BF90: 0.1167599599 | BG90: 0.06535146544 | BH90: 5.746098375 | BI90: 5.746098375 | BJ90: 0.1575568639 | BK90: 25.50447031 | BL90: 28.50447031 | BM90: 6.300110492 | BN90: 17.84166667 | BO90: 4.04825762 | BP90: 1.597634954 | BQ90: 0.1746547027 | BR90: 0.452209103 | BT90: 612.1072874 | BU90: 4.04825762 | BV90: 1.597634954 | BW90: 0.1746547027 | BX90: 0.452209103 | CN90: 0.7539527947 | CO90: 533.5 | CP90: 150.6072874 | CQ90: 684.1072874
A91: 88 | B91: 24 | C91: 7.030093208 | D91: 7.942916667 | E91: 9.020833333 | F91: 9.341666667 | G91: 9.89010989 | H91: 18.125 | I91: 9.892916667 | J91: 1.014191747 | K91: 0.02399046709 | L91: 0.002424768519 | M91: 2.997575231 | N91: 0.9304407189 | O91: 0.543956044 | P91: 0.001773107996 | Q91: 0.9304739803 | R91: 0.1366901996 | S91: 0.19 | T91: 0.0006964617329 | U91: 0.593043192 | V91: 0.4211485554 | W91: 10.80152459 | X91: 0.5313205715 | Y91: 0.07942916667 | Z91: 2.997575231 | AA91: 6.683694528 | AB91: 4.381922365 | AC91: 0.6472743503 | AD91: 1.474172427 | AE91: 2.459363107 | AF91: 3.241251761 | AG91: 2.834260239 | AH91: 27.64674474 | AI91: 3.465303636 | AJ91: 0 | AK91: 0 | AL91: 0 | AM91: 0 | AN91: 0.06636135602 | AO91: 0.1150478121 | AP91: 0.2076807474 | AQ91: 0.1150478406 | AR91: 5.397970274 | AS91: 18.21372327 | AT91: 1.261598941 | AU91: 3.671716861 | AV91: 3.241251761 | AW91: 2.459363107 | AX91: 1.474172427 | AY91: 27.64674474 | AZ91: 27.64674474 | BA91: 2.834260239 | BB91: 0 | BC91: 0 | BD91: 0.246959021 | BE91: 0.2076807474 | BF91: 0.1150478121 | BG91: 0.06636135602 | BH91: 5.397970274 | BI91: 5.397970274 | BJ91: 0.1651149964 | BK91: 28.03910036 | BL91: 31.03910036 | BM91: 5.957108414 | BN91: 17.83583333 | BO91: 4.706830631 | BP91: 1.740266338 | BQ91: 0.1922837823 | BR91: 0.4842064358 | BZ91: 672.9384086 | CA91: 4.706830631 | CB91: 1.740266338 | CC91: 0.1922837823 | CD91: 0.4842064358 | CN91: 0.6472743503 | CO91: 507.5757712 | CP91: 237.3626374 | CQ91: 744.9384086
A92: 89 | B92: 24 | C92: 6.340278333 | D92: 9.916666667 | E92: 8.829166667 | F92: 9.383333333 | G92: 4.821428571 | H92: 24.04166667 | I92: 14.36458333 | J92: 1.014191747 | K92: 3.020401156 | L92: 0.3055208333 | M92: 2.694479167 | N92: 1.226572306 | O92: 0.2651785714 | P92: 0.2233305217 | Q92: 1.277670584 | R92: 0.18627558 | S92: 0.19 | T92: 0.08775417835 | U92: 0.8852707699 | V92: 0.1289209775 | W92: 19.1586577 | X92: 1.474614496 | Y92: 0.09916666667 | Z92: 2.694479167 | AA92: 14.61270208 | AB92: 0.3029212415 | AC92: 0.8487798041 | AD92: 1.359718684 | AE92: 2.789337949 | AF92: 3.479536506 | AG92: 2.219590757 | AH92: 31.43734553 | AI92: 3.191286089 | AJ92: 0 | AK92: 0 | AL92: 0 | AM92: 0 | AN92: 0.05891409214 | AO92: 0.1279777555 | AP92: 0.1965460918 | AQ92: 0.1282365153 | AR92: 6.138077312 | AS92: 21.64157944 | AT92: 11.43812687 | AU92: 3.912588119 | AV92: 3.479536506 | AW92: 2.789337949 | AX92: 1.359718684 | AY92: 31.43734553 | AZ92: 31.43734553 | BA92: 2.219590757 | BB92: 0 | BC92: 0 | BD92: 0.2292013227 | BE92: 0.1965460918 | BF92: 0.1279777555 | BG92: 0.05891409214 | BH92: 6.138077312 | BI92: 6.138077312 | BJ92: 0.1255580899 | BK92: 31.88349639 | BL92: 34.88349639 | BM92: 7.930858414 | BN92: 24.28125 | BO92: 4.020182272 | BP92: 1.436643352 | BQ92: 0.1675796254 | BR92: 0.3465268454 | BT92: 765.2039135 | BU92: 4.020182272 | BV92: 1.436643352 | BW92: 0.1675796254 | BX92: 0.3465268454 | CN92: 0.8487798041 | CO92: 721.4896277 | CP92: 115.7142857 | CQ92: 837.2039135
A93: 90 | B93: 24 | C93: 5.824074458 | D93: 10.1325 | E93: 9.008333333 | F93: 9.404166667 | G93: 7.18495935 | H93: 24.41666667 | I93: 14.50916667 | J93: 1.005910301 | K93: 2.970019697 | L93: 0.3006712963 | M93: 2.699328704 | N93: 1.237564391 | O93: 0.3951727642 | P93: 0.2197031605 | Q93: 1.305894459 | R93: 0.1777309144 | S93: 0.19 | T93: 0.08636125488 | U93: 0.6317228331 | V93: 0.3741874678 | W93: 13.56204273 | X93: 0.9241705988 | Y93: 0.101325 | Z93: 2.699328704 | AA93: 12.86569811 | AB93: 0.8023813973 | AC93: 0.7921719027 | AD93: 1.405083198 | AE93: 2.780282046 | AF93: 3.453835809 | AG93: 2.382745095 | AH93: 34.36851743 | AI93: 3.373160505 | AJ93: 0 | AK93: 0 | AL93: 0 | AM93: 0 | AN93: 0.06147887314 | AO93: 0.1277530338 | AP93: 0.1954322364 | AQ93: 0.1279971704 | AR93: 6.761260511 | AS93: 21.46834343 | AT93: 2.469806389 | AU93: 3.839703661 | AV93: 3.453835809 | AW93: 2.780282046 | AX93: 1.405083198 | AY93: 34.36851743 | AZ93: 34.36851743 | BA93: 2.382745095 | BB93: 0 | BC93: 0 | BD93: 0.2241683228 | BE93: 0.1954322364 | BF93: 0.1277530338 | BG93: 0.06147887314 | BH93: 6.761260511 | BI93: 6.761260511 | BJ93: 0.1347143363 | BK93: 34.57164571 | BL93: 37.57164571 | BM93: 8.138410301 | BN93: 24.64166667 | BO93: 4.247960527 | BP93: 1.524720151 | BQ93: 0.169140618 | BR93: 0.3426680585 | BT93: 829.7194971 | BU93: 4.247960527 | BV93: 1.524720151 | BW93: 0.169140618 | BX93: 0.3426680585 | CN93: 0.7921719027 | CO93: 729.2804727 | CP93: 172.4390244 | CQ93: 901.7194971
A94: 91 | B94: 24 | C94: 3.881944708 | D94: 11.74125 | E94: 8.645833333 | F94: 9.25 | G94: 2.43902439 | H94: 27.75 | I94: 14.56708333 | J94: 1.014191747 | K94: 2.919639941 | L94: 0.2958217593 | M94: 2.704178241 | N94: 1.413471354 | O94: 0.1341463415 | P94: 0.2160758948 | Q94: 1.45636752 | R94: 0.2112525841 | S94: 0.19 | T94: 0.08496833141 | U94: 0.9712180882 | V94: 0.04297365916 | W94: 19.4295535 | X94: 0.1339891196 | Y94: 0.1174125 | Z94: 2.704178241 | AA94: 18.4751738 | AB94: 0 | AC94: 0.9263327458 | AD94: 1.33423227 | AE94: 2.655181723 | AF94: 3.168112635 | AG94: 2.272841006 | AH94: 32.64536949 | AI94: 2.83084389 | AJ94: 0 | AK94: 0 | AL94: 0 | AM94: 0 | AN94: 0.05878260943 | AO94: 0.1230726389 | AP94: 0.1710052381 | AQ94: 0.1232549078 | AR94: 6.373941517 | AS94: 20.00534559 | AT94: 3.117936014 | AU94: 3.508610318 | AV94: 3.168112635 | AW94: 2.655181723 | AX94: 1.33423227 | AY94: 32.64536949 | AZ94: 32.64536949 | BA94: 2.272841006 | BB94: 0 | BC94: 0 | BD94: 0.193873698 | BE94: 0.1710052381 | BF94: 0.1230726389 | BG94: 0.05878260943 | BH94: 6.373941517 | BI94: 6.373941517 | BJ94: 0.1284732821 | BK94: 33.10866433 | BL94: 36.10866433 | BM94: 9.755441747 | BN94: 26.30833333 | BO94: 3.393866233 | BP94: 1.372518125 | BQ94: 0.1510437104 | BR94: 0.2901337783 | BT94: 794.607944 | BU94: 3.393866233 | BV94: 1.372518125 | BW94: 0.1510437104 | BX94: 0.2901337783 | CN94: 0.9263327458 | CO94: 808.0713586 | CP94: 58.53658537 | CQ94: 866.607944
A95: 92 | B95: 24 | C95: 4.43287075 | D95: 11.45333333 | E95: 8.4625 | F95: 9.270833333 | G95: 3.075291622 | H95: 29.33333333 | I95: 14.3125 | J95: 1.014498337 | K95: 2.845355843 | L95: 0.2885474537 | M95: 2.711452546 | N95: 1.486240036 | O95: 0.1691410392 | P95: 0.2106784713 | Q95: 1.539575821 | R95: 0.2069367278 | S95: 0.19 | T95: 0.08287894621 | U95: 0.971524678 | V95: 0.04297365916 | W95: 25.95367307 | X95: 0.1339579278 | Y95: 0.1145333333 | Z95: 2.711452546 | AA95: 19.63556588 | AB95: 0 | AC95: 0.9127675357 | AD95: 1.43485059 | AE95: 2.841727011 | AF95: 3.430807297 | AG95: 2.46316023 | AH95: 34.75016125 | AI95: 3.06821441 | AJ95: 0 | AK95: 0 | AL95: 0 | AM95: 0 | AN95: 0.06395262111 | AO95: 0.1331300283 | AP95: 0.1872109268 | AQ95: 0.1332982622 | AR95: 6.783010071 | AS95: 26.71437346 | AT95: 3.11721018 | AU95: 3.806627268 | AV95: 3.430807297 | AW95: 2.841727011 | AX95: 1.43485059 | AY95: 34.75016125 | AZ95: 34.75016125 | BA95: 2.46316023 | BB95: 0 | BC95: 0 | BD95: 0.2129182159 | BE95: 0.1872109268 | BF95: 0.1331300283 | BG95: 0.06395262111 | BH95: 6.783010071 | BI95: 6.783010071 | BJ95: 0.1393641284 | BK95: 35.2539808 | BL95: 38.2539808 | BM95: 9.46783167 | BN95: 25.76583333 | BO95: 3.723553822 | BP95: 1.484678578 | BQ95: 0.1639646303 | BR95: 0.3045784174 | BT95: 846.0955392 | BU95: 3.723553822 | BV95: 1.484678578 | BW95: 0.1639646303 | BX95: 0.3045784174 | CN95: 0.9127675357 | CO95: 844.2885402 | CP95: 73.80699894 | CQ95: 918.0955392
A96: 93 | B96: 24 | C96: 4.581018958 | D96: 10.57666667 | E96: 8.629166667 | F96: 9.175 | G96: 4.691075515 | H96: 26.66666667 | I96: 10.93 | J96: 1.010204319 | K96: 0.836115457 | L96: 0.08486689815 | M96: 2.915133102 | N96: 1.363809944 | O96: 0.2580091533 | P96: 0.06193880738 | Q96: 1.369935111 | R96: 0.189455078 | S96: 0.19 | T96: 0.02437616065 | U96: 0.8468977186 | V96: 0.1633066004 | W96: 17.70969331 | X96: 0.2678223958 | Y96: 0.1057666667 | Z96: 2.915133102 | AA96: 14.91832394 | AB96: 0.6934883176 | AC96: 0.8542866292 | AD96: 1.531724024 | AE96: 2.666403859 | AF96: 3.258750616 | AG96: 2.945458155 | AH96: 31.86865967 | AI96: 3.037390999 | AJ96: 0 | AK96: 0 | AL96: 0 | AM96: 0 | AN96: 0.07031898178 | AO96: 0.1276354098 | AP96: 0.1845981283 | AQ96: 0.1276531955 | AR96: 6.244905474 | AS96: 20.911254 | AT96: 1.639997374 | AU96: 3.629931649 | AV96: 3.258750616 | AW96: 2.666403859 | AX96: 1.531724024 | AY96: 31.86865967 | AZ96: 31.86865967 | BA96: 2.945458155 | BB96: 0 | BC96: 0 | BD96: 0.211133688 | BE96: 0.1845981283 | BF96: 0.1276354098 | BG96: 0.07031898178 | BH96: 6.244905474 | BI96: 6.244905474 | BJ96: 0.1698990922 | BK96: 32.19385764 | BL96: 35.19385764 | BM96: 8.586870986 | BN96: 21.50666667 | BO96: 3.749195451 | BP96: 1.636416195 | BQ96: 0.1662904919 | BR96: 0.3451555306 | BT96: 772.6525833 | BU96: 3.749195451 | BV96: 1.636416195 | BW96: 0.1662904919 | BX96: 0.3451555306 | CN96: 0.8542866292 | CO96: 732.066771 | CP96: 112.5858124 | CQ96: 844.6525833
A97: 94 | B97: 24 | C97: 8.2152785 | D97: 7.742083333 | E97: 9 | F97: 9.4375 | G97: 8.075335397 | H97: 20.91666667 | I97: 11.03583333 | J97: 1.010204319 | K97: 0.3341360482 | L97: 0.03394675926 | M97: 2.725752315 | N97: 1.063068879 | O97: 0.4441434469 | P97: 0.02476505929 | Q97: 1.072738948 | R97: 0.1471629883 | S97: 0.19 | T97: 0.009750464261 | U97: 0.7179767411 | V97: 0.2922275779 | W97: 14.62094066 | X97: 0.6653399005 | Y97: 0.07742083333 | Z97: 2.966053241 | AA97: 11.21784858 | AB97: 3.794668916 | AC97: 0.7246369308 | AD97: 1.52553636 | AE97: 2.833393536 | AF97: 3.882052883 | AG97: 2.657356017 | AH97: 29.02990767 | AI97: 3.665994362 | AJ97: 0 | AK97: 0 | AL97: 0 | AM97: 0 | AN97: 0.06963436264 | AO97: 0.1358168051 | AP97: 0.2481625489 | AQ97: 0.135821679 | AR97: 5.688630498 | AS97: 20.36408678 | AT97: 2.276786829 | AU97: 4.481322073 | AV97: 3.882052883 | AW97: 2.833393536 | AX97: 1.52553636 | AY97: 29.02990767 | AZ97: 29.02990767 | BA97: 2.657356017 | BB97: 0 | BC97: 0 | BD97: 0.3038646133 | BE97: 0.2481625489 | BF97: 0.1358168051 | BG97: 0.06963436264 | BH97: 5.688630498 | BI97: 5.688630498 | BJ97: 0.1531479435 | BK97: 29.32613811 | BL97: 32.08583719 | BM97: 5.752287652 | BN97: 18.77791667 | BO97: 5.098169613 | BP97: 1.708700585 | BQ97: 0.2131672396 | BR97: 0.4716679852 | BT97: 703.8273147 | BU97: 5.098169613 | BV97: 1.708700585 | BW97: 0.2131672396 | BX97: 0.4716679852 | CN97: 0.7246369308 | CO97: 576.2520429 | CP97: 193.8080495 | CQ97: 770.0600925
A98: 95 | B98: 24 | C98: 4.67592625 | D98: 11.46291667 | E98: 8.595833333 | F98: 9.270833333 | G98: 9.298681542 | H98: 30.125 | I98: 14.48458333 | J98: 1.014498337 | K98: 3.242797934 | L98: 0.3297685185 | M98: 2.670231481 | N98: 1.535827023 | O98: 0.5114274848 | P98: 0.240470489 | Q98: 1.61468541 | R98: 0.1875535546 | S98: 0.19 | T98: 0.09471879567 | U98: 0.923950411 | V98: 0.09054792613 | W98: 21.92085884 | X98: 0.4156347878 | Y98: 0.1146291667 | Z98: 2.670231481 | AA98: 15.54068878 | AB98: 0.948987393 | AC98: 0.7820611952 | AD98: 1.59572644 | AE98: 2.967269823 | AF98: 3.604867889 | AG98: 2.945647693 | AH98: 42.05672687 | AI98: 3.65993112 | AJ98: 0 | AK98: 0 | AL98: 0 | AM98: 0 | AN98: 0.07205501186 | AO98: 0.139348635 | AP98: 0.19988758 | AQ98: 0.1395627692 | AR98: 8.209205129 | AS98: 23.72514648 | AT98: 4.590218744 | AU98: 3.942824826 | AV98: 3.604867889 | AW98: 2.967269823 | AX98: 1.59572644 | AY98: 42.05672687 | AZ98: 42.05672687 | BA98: 2.945647693 | BB98: 0 | BC98: 0 | BD98: 0.2233487065 | BE98: 0.19988758 | BF98: 0.139348635 | BG98: 0.07205501186 | BH98: 8.209205129 | BI98: 8.209205129 | BJ98: 0.1665545906 | BK98: 42.66647948 | BL98: 45.66647948 | BM98: 9.477415004 | BN98: 25.9475 | BO98: 4.501911065 | BP98: 1.759956816 | BQ98: 0.1788652536 | BR98: 0.3120988201 | BT98: 1023.995507 | BU98: 4.501911065 | BV98: 1.759956816 | BW98: 0.1788652536 | BX98: 0.3120988201 | CN98: 0.7820611952 | CO98: 872.8271504 | CP98: 223.168357 | CQ98: 1095.995507
A99: 96 | B99: 24 | C99: 6.615741333 | D99: 9.865 | E99: 8.854166667 | F99: 9.4 | G99: 11.875 | H99: 23.75 | I99: 14.8475 | J99: 1.009897729 | K99: 3.406366592 | L99: 0.3467418981 | M99: 2.533107639 | N99: 1.212415621 | O99: 0.653125 | P99: 0.252735073 | Q99: 1.349008372 | R99: 0.1610968365 | S99: 0.19 | T99: 0.0995940278 | U99: 0.7950294335 | V99: 0.2148682958 | W99: 18.05945529 | X99: 0.6700236389 | Y99: 0.09865 | Z99: 2.653258102 | AA99: 10.82629901 | AB99: 3.419830147 | AC99: 0.6957575141 | AD99: 1.487290413 | AE99: 2.842281242 | AF99: 3.588483659 | AG99: 2.628817417 | AH99: 38.64883093 | AI99: 3.853941175 | AJ99: 0 | AK99: 0 | AL99: 0 | AM99: 0 | AN99: 0.06784367736 | AO99: 0.1348075497 | AP99: 0.2129848635 | AQ99: 0.1351365803 | AR99: 7.575649545 | AS99: 22.71545496 | AT99: 3.118299219 | AU99: 3.955770807 | AV99: 3.588483659 | AW99: 2.842281242 | AX99: 1.487290413 | AY99: 38.64883093 | AZ99: 38.64883093 | BA99: 2.628817417 | BB99: 0 | BC99: 0 | BD99: 0.2417029814 | BE99: 0.2129848635 | BF99: 0.1348075497 | BG99: 0.06784367736 | BH99: 7.575649545 | BI99: 7.575649545 | BJ99: 0.1484469069 | BK99: 39.03136659 | BL99: 41.91121613 | BM99: 7.874897729 | BN99: 24.7125 | BO99: 4.95642838 | BP99: 1.695952094 | BQ99: 0.1877340701 | BR99: 0.346578246 | BT99: 936.7527982 | BU99: 4.95642838 | BV99: 1.695952094 | BW99: 0.1877340701 | BX99: 0.346578246 | CN99: 0.6957575141 | CO99: 720.8691871 | CP99: 285 | CQ99: 1005.869187
A100: 97 | B100: 24 | C100: 6.682870917 | D100: 10.18083333 | E100: 8.795833333 | F100: 9.408333333 | G100: 11.20833333 | H100: 23.75 | I100: 14.56375 | J100: 1.014191747 | K100: 3.355348285 | L100: 0.3418923611 | M100: 2.658107639 | N100: 1.214555375 | O100: 0.6164583333 | P100: 0.2490865661 | Q100: 1.279819319 | R100: 0.1686913652 | S100: 0.19 | T100: 0.09820110434 | U100: 1.014191747 | V100: 0 | W100: 19.58604609 | X100: 0 | Y100: 0.1018083333 | Z100: 2.658107639 | AA100: 8.675344792 | AB100: 0.9733549208 | AC100: 0.7074587234 | AD100: 1.469694537 | AE100: 2.762381245 | AF100: 3.431781271 | AG100: 2.630756613 | AH100: 37.77755214 | AI100: 3.690360792 | AJ100: 0 | AK100: 0 | AL100: 0 | AM100: 0 | AN100: 0.06364023371 | AO100: 0.1249746001 | AP100: 0.1942657189 | AQ100: 0.1252990126 | AR100: 7.375989665 | AS100: 19.31197542 | AT100: 0 | AU100: 3.774680044 | AV100: 3.431781271 | AW100: 2.762381245 | AX100: 1.469694537 | AY100: 37.77755214 | AZ100: 37.77755214 | BA100: 2.630756613 | BB100: 0 | BC100: 0 | BD100: 0.2198780652 | BE100: 0.1942657189 | BF100: 0.1249746001 | BG100: 0.06364023371 | BH100: 7.375989665 | BI100: 7.375989665 | BJ100: 0.1487064229 | BK100: 38.31368162 | BL100: 41.31368162 | BM100: 8.195025081 | BN100: 24.74458333 | BO100: 4.675236652 | BP100: 1.669605063 | BQ100: 0.1776340138 | BR100: 0.3430141503 | BT100: 919.5283588 | BU100: 4.675236652 | BV100: 1.669605063 | BW100: 0.1776340138 | BX100: 0.3430141503 | CN100: 0.7074587234 | CO100: 722.5283588 | CP100: 269 | CQ100: 991.5283588
A101: 98 | B101: 24 | C101: 6.789352208 | D101: 10.51291667 | E101: 8.745833333 | F101: 9.35 | G101: 11.04166667 | H101: 24.58333333 | I101: 14.83083333 | J101: 1.009897729 | K101: 3.494522572 | L101: 0.3564409722 | M101: 2.643559028 | N101: 1.259586266 | O101: 0.6072916667 | P101: 0.2595645745 | Q101: 1.335488557 | R101: 0.173220135 | S101: 0.19 | T101: 0.1023798747 | U101: 0.923950411 | V101: 0.08594731832 | W101: 20.34922045 | X101: 1.071975376 | Y101: 0.1051291667 | Z101: 2.643559028 | AA101: 9.622902788 | AB101: 1.109527945 | AC101: 0.7177453624 | AD101: 1.468868897 | AE101: 2.765483432 | AF101: 3.408430834 | AG101: 2.637715743 | AH101: 38.73612291 | AI101: 3.655315544 | AJ101: 0 | AK101: 0 | AL101: 0 | AM101: 0 | AN101: 0.06425611786 | AO101: 0.1262532609 | AP101: 0.1922781621 | AQ101: 0.1265815318 | AR101: 7.592759856 | AS101: 22.02414784 | AT101: 12.47247031 | AU101: 3.737277698 | AV101: 3.408430834 | AW101: 2.765483432 | AX101: 1.468868897 | AY101: 38.73612291 | AZ101: 38.73612291 | BA101: 2.637715743 | BB101: 0 | BC101: 0 | BD101: 0.2163908763 | BE101: 0.1922781621 | BF101: 0.1262532609 | BG101: 0.06425611786 | BH101: 7.592759856 | BI101: 7.592759856 | BJ101: 0.1489579879 | BK101: 39.11952257 | BL101: 42.11952257 | BM101: 8.522814396 | BN101: 25.34375 | BO101: 4.589977061 | BP101: 1.661929374 | BQ101: 0.174961101 | BR101: 0.3310666043 | BT101: 938.8685417 | BU101: 4.589977061 | BV101: 1.661929374 | BW101: 0.174961101 | BX101: 0.3310666043 | CN101: 0.7177453624 | CO101: 745.8685417 | CP101: 265 | CQ101: 1010.868542
A102: 99 | B102: 24 | C102: 6.293981958 | D102: 10.505 | E102: 8.629166667 | F102: 9.366666667 | G102: 11.125 | H102: 26.875 | I102: 14.16458333 | J102: 1.014191747 | K102: 2.469703684 | L102: 0.2521759259 | M102: 2.747824074 | N102: 1.369033818 | O102: 0.611875 | P102: 0.1835496473 | Q102: 1.401727408 | R102: 0.1740035603 | S102: 0.19 | T102: 0.07243202022 | U102: 1.014191747 | V102: 0 | W102: 23.60417334 | X102: 0 | Y102: 0.10505 | Z102: 2.747824074 | AA102: 10.35950984 | AB102: 0.6589979056 | AC102: 0.7251030033 | AD102: 1.556846516 | AE102: 2.877541942 | AF102: 3.561080396 | AG102: 2.857105128 | AH102: 39.90340465 | AI102: 3.773676542 | AJ102: 0 | AK102: 0 | AL102: 0 | AM102: 0 | AN102: 0.06871770796 | AO102: 0.1324215156 | AP102: 0.1988054155 | AQ102: 0.1325782097 | AR102: 7.791058012 | AS102: 23.27387637 | AT102: 0 | AU102: 3.910020478 | AV102: 3.561080396 | AW102: 2.877541942 | AX102: 1.556846516 | AY102: 39.90340465 | AZ102: 39.90340465 | BA102: 2.857105128 | BB102: 0 | BC102: 0 | BD102: 0.2239654245 | BE102: 0.1988054155 | BF102: 0.1324215156 | BG102: 0.06871770796 | BH102: 7.791058012 | BI102: 7.791058012 | BJ102: 0.1617466829 | BK102: 40.46970368 | BL102: 43.46970368 | BM102: 8.519191747 | BN102: 24.66958333 | BO102: 4.750415871 | BP102: 1.762076931 | BQ102: 0.1846642234 | BR102: 0.3454565523 | BT102: 971.2728884 | BU102: 4.750415871 | BV102: 1.762076931 | BW102: 0.1846642234 | BX102: 0.3454565523 | CN102: 0.7251030033 | CO102: 776.2728884 | CP102: 267 | CQ102: 1043.272888
A103: 100 | B103: 24 | C103: 6.34722275 | D103: 9.175833333 | E103: 8.9125 | F103: 9.391666667 | G103: 7.916666667 | H103: 22.5 | I103: 11.185 | J103: 1.014191747 | K103: 1.020023168 | L103: 0.1042650463 | M103: 2.660283565 | N103: 1.142779418 | O103: 0.4354166667 | P103: 0.07585358347 | Q103: 1.160502077 | R103: 0.1659621146 | S103: 0.19 | T103: 0.02994785451 | U103: 0.8465911289 | V103: 0.1676006185 | W103: 15.56308855 | X103: 0.2679626396 | Y103: 0.09175833333 | Z103: 2.895734954 | AA103: 9.938300683 | AB103: 1.524969262 | AC103: 0.7481711113 | AD103: 1.498197742 | AE103: 2.645754512 | AF103: 3.391680491 | AG103: 2.810611519 | AH103: 30.9967912 | AI103: 3.356344874 | AJ103: 0 | AK103: 0 | AL103: 0 | AM103: 0 | AN103: 0.06764884241 | AO103: 0.1248959308 | AP103: 0.1995531554 | AQ103: 0.1249323045 | AR103: 6.052059983 | AS103: 18.38324076 | AT103: 1.598816532 | AU103: 3.808396681 | AV103: 3.391680491 | AW103: 2.645754512 | AX103: 1.498197742 | AY103: 30.9967912 | AZ103: 30.9967912 | BA103: 2.810611519 | BB103: 0 | BC103: 0 | BD103: 0.2325163771 | BE103: 0.1995531554 | BF103: 0.1248959308 | BG103: 0.06764884241 | BH103: 6.052059983 | BI103: 6.052059983 | BJ103: 0.1617887061 | BK103: 31.43668984 | BL103: 34.20123845 | BM103: 7.190025081 | BN103: 20.36083333 | BO103: 4.37226428 | BP103: 1.679756319 | BQ103: 0.1781526443 | BR103: 0.3759503501 | BT103: 754.480556 | BU103: 4.37226428 | BV103: 1.679756319 | BW103: 0.1781526443 | BX103: 0.3759503501 | CN103: 0.7481711113 | CO103: 630.8297227 | CP103: 190 | CQ103: 820.8297227
A104: 101 | B104: 24 | C104: 6.159722792 | D104: 8.915833333 | E104: 8.95 | F104: 9.4375 | G104: 8.458333333 | H104: 23.20833333 | I104: 11.31708333 | J104: 1.009897729 | K104: 0.5449901675 | L104: 0.05576967593 | M104: 2.824079861 | N104: 1.177929259 | O104: 0.4652083333 | P104: 0.04055256052 | Q104: 1.189164491 | R104: 0.1569143127 | S104: 0.19 | T104: 0.01601861986 | U104: 0.7133761333 | V104: 0.296521596 | W104: 16.33654277 | X104: 0.7994388497 | Y104: 0.08915833333 | Z104: 2.944230324 | AA104: 10.83596656 | AB104: 2.466707458 | AC104: 0.7374139003 | AD104: 1.542949555 | AE104: 2.756901438 | AF104: 3.566272743 | AG104: 2.846286087 | AH104: 31.89595926 | AI104: 3.535407735 | AJ104: 0 | AK104: 0 | AL104: 0 | AM104: 0 | AN104: 0.07030567187 | AO104: 0.1309870176 | AP104: 0.2137798779 | AQ104: 0.1309975123 | AR104: 6.252003062 | AS104: 22.90032145 | AT104: 2.696056073 | AU104: 4.015211748 | AV104: 3.566272743 | AW104: 2.756901438 | AX104: 1.542949555 | AY104: 31.89595926 | AZ104: 31.89595926 | BA104: 2.846286087 | BB104: 0 | BC104: 0 | BD104: 0.2502264774 | BE104: 0.2137798779 | BF104: 0.1309870176 | BG104: 0.07030567187 | BH104: 6.252003062 | BI104: 6.252003062 | BJ104: 0.1636766229 | BK104: 32.21165683 | BL104: 35.09150637 | BM104: 6.925731063 | BN104: 20.23291667 | BO104: 4.651011791 | BP104: 1.734377052 | BQ104: 0.1915172421 | BR104: 0.4116532714 | BT104: 773.079764 | BU104: 4.651011791 | BV104: 1.734377052 | BW104: 0.1915172421 | BX104: 0.4116532714 | CN104: 0.7374139003 | CO104: 639.1961529 | CP104: 203 | CQ104: 842.1961529
A105: 102 | B105: 24 | C105: 6.664352542 | D105: 9.47375 | E105: 9.1375 | F105: 9.579166667 | G105: 13.70833333 | H105: 20.54166667 | I105: 14.74833333 | J105: 1.014191747 | K105: 3.195237444 | L105: 0.32734375 | M105: 2.581603009 | N105: 1.045823073 | O105: 0.7539583333 | P105: 0.2379043835 | Q105: 1.170196862 | R105: 0.1518840749 | S105: 0.19 | T105: 0.09402233394 | U105: 0.7219641695 | V105: 0.2922275779 | W105: 15.0841071 | X105: 0.9290225324 | Y105: 0.0947375 | Z105: 2.67265625 | AA105: 7.706906183 | AB105: 5.166277153 | AC105: 0.6339098302 | AD105: 1.415610908 | AE105: 2.633859504 | AF105: 3.335401306 | AG105: 2.538947052 | AH105: 36.92126024 | AI105: 3.847674327 | AJ105: 0 | AK105: 0 | AL105: 0 | AM105: 0 | AN105: 0.06320958921 | AO105: 0.1222426251 | AP105: 0.1997787234 | AQ105: 0.1225954094 | AR105: 7.208800427 | AS105: 20.89315195 | AT105: 3.179106294 | AU105: 3.666638982 | AV105: 3.335401306 | AW105: 2.633859504 | AX105: 1.415610908 | AY105: 36.92126024 | AZ105: 36.92126024 | BA105: 2.538947052 | BB105: 0 | BC105: 0 | BD105: 0.2263206441 | BE105: 0.1997787234 | BF105: 0.1222426251 | BG105: 0.06320958921 | BH105: 7.208800427 | BI105: 7.208800427 | BJ105: 0.1434216747 | BK105: 37.44523744 | BL105: 40.3541842 | BM105: 7.487941747 | BN105: 24.22208333 | BO105: 5.000738348 | BP105: 1.666007983 | BQ105: 0.1859804714 | BR105: 0.3628989044 | BZ105: 898.6856987 | CA105: 5.000738348 | CB105: 1.666007983 | CC105: 0.1859804714 | CD105: 0.3628989044 | CN105: 0.6339098302 | CO105: 639.5004209 | CP105: 329 | CQ105: 968.5004209
A106: 103 | B106: 24 | C106: 7.627315375 | D106: 8.75625 | E106: 9.1125 | F106: 9.708333333 | G106: 13.91666667 | H106: 21 | I106: 14.49875 | J106: 1.009897729 | K106: 3.096981412 | L106: 0.3176446759 | M106: 2.584027778 | N106: 1.062604386 | O106: 0.7654166667 | P106: 0.2307351194 | Q106: 1.200609618 | R106: 0.147054835 | S106: 0.19 | T106: 0.09123648701 | U106: 0.7993234516 | V106: 0.2105742777 | W106: 19.42587048 | X106: 0.4021861159 | Y106: 0.0875625 | Z106: 2.682355324 | AA106: 8.6608619 | AB106: 5.246694884 | AC106: 0.6339034171 | AD106: 1.504349912 | AE106: 2.873289185 | AF106: 3.767256168 | AG106: 2.621856924 | AH106: 37.64108679 | AI106: 4.189504569 | AJ106: 0 | AK106: 0 | AL106: 0 | AM106: 0 | AN106: 0.06802343408 | AO106: 0.1354547355 | AP106: 0.2342153562 | AQ106: 0.1358022961 | AR106: 7.378119213 | AS106: 24.3028907 | AT106: 1.909948928 | AU106: 4.186229127 | AV106: 3.767256168 | AW106: 2.873289185 | AX106: 1.504349912 | AY106: 37.64108679 | AZ106: 37.64108679 | BA106: 2.621856924 | BB106: 0 | BC106: 0 | BD106: 0.2704012535 | BE106: 0.2342153562 | BF106: 0.1354547355 | BG106: 0.06802343408 | BH106: 7.378119213 | BI106: 7.378119213 | BJ106: 0.1482388251 | BK106: 38.01364808 | BL106: 40.91532053 | BM106: 6.766147729 | BN106: 23.255 | BO106: 5.618211366 | BP106: 1.759420363 | BQ106: 0.210881699 | BR106: 0.4035029044 | BZ106: 912.3275539 | CA106: 5.618211366 | CB106: 1.759420363 | CC106: 0.210881699 | CD106: 0.4035029044 | CN106: 0.6339034171 | CO106: 647.9676928 | CP106: 334 | CQ106: 981.9676928
A107: 104 | B107: 24 | C107: 7.340278292 | D107: 8.93375 | E107: 9.341666667 | F107: 9.741666667 | G107: 13.54166667 | H107: 20.125 | I107: 14.4025 | J107: 1.014191747 | K107: 3.400300037 | L107: 0.3491666667 | M107: 2.370399306 | N107: 1.02357845 | O107: 0.7447916667 | P107: 0.2534978019 | Q107: 1.196568537 | R107: 0.1441647921 | S107: 0.19 | T107: 0.1002904895 | U107: 0.6789905103 | V107: 0.3352012371 | W107: 13.88142066 | X107: 1.063260584 | Y107: 0.0893375 | Z107: 2.650833333 | AA107: 9.772808029 | AB107: 6.737116406 | AC107: 0.6346702234 | AD107: 1.452031226 | AE107: 2.7402835 | AF107: 3.576671996 | AG107: 2.573648096 | AH107: 36.54828271 | AI107: 3.999473829 | AJ107: 0 | AK107: 0 | AL107: 0 | AM107: 0 | AN107: 0.06720712836 | AO107: 0.1315693924 | AP107: 0.224698861 | AQ107: 0.1319854475 | AR107: 7.135977327 | AS107: 20.44420422 | AT107: 3.172006743 | AU107: 3.964659791 | AV107: 3.576671996 | AW107: 2.7402835 | AX107: 1.452031226 | AY107: 36.54828271 | AZ107: 36.54828271 | BA107: 2.573648096 | BB107: 0 | BC107: 0 | BD107: 0.2580215715 | BE107: 0.224698861 | BF107: 0.1315693924 | BG107: 0.06720712836 | BH107: 7.135977327 | BI107: 7.135977327 | BJ107: 0.1455655211 | BK107: 37.0669667 | BL107: 39.78653268 | BM107: 6.947941747 | BN107: 23.33625 | BO107: 5.334956459 | BP107: 1.704923999 | BQ107: 0.1993758758 | BR107: 0.3669962357 | BZ107: 889.6072009 | CA107: 5.334956459 | CB107: 1.704923999 | CC107: 0.1993758758 | CD107: 0.3669962357 | CN107: 0.6346702234 | CO107: 629.8767842 | CP107: 325 | CQ107: 954.8767842
A108: 105 | B108: 24 | C108: 3.972222542 | D108: 10.26708333 | E108: 9.133333333 | F108: 9.591666667 | G108: 13.04166667 | H108: 24.45833333 | I108: 14.58875 | J108: 1.009897729 | K108: 3.066021324 | L108: 0.3152199074 | M108: 2.684780093 | N108: 1.244048313 | O108: 0.7172916667 | P108: 0.2287283498 | Q108: 1.336575997 | R108: 0.1628776002 | S108: 0.19 | T108: 0.09054002528 | U108: 0.6746964922 | V108: 0.3352012371 | W108: 16.89777283 | X108: 2.260309089 | Y108: 0.1026708333 | Z108: 2.684780093 | AA108: 10.1531128 | AB108: 3.947405869 | AC108: 0.6785076219 | AD108: 1.513679817 | AE108: 2.787025205 | AF108: 3.461178738 | AG108: 2.780637226 | AH108: 40.16844493 | AI108: 3.863269884 | AJ108: 0 | AK108: 0 | AL108: 0 | AM108: 0 | AN108: 0.06739796654 | AO108: 0.128882404 | AP108: 0.1987604627 | AQ108: 0.1291472542 | AR108: 7.873512711 | AS108: 25.04499879 | AT108: 6.743140655 | AU108: 3.787538053 | AV108: 3.461178738 | AW108: 2.787025205 | AX108: 1.513679817 | AY108: 40.16844493 | AZ108: 40.16844493 | BA108: 2.780637226 | BB108: 0 | BC108: 0 | BD108: 0.2231212303 | BE108: 0.1987604627 | BF108: 0.128882404 | BG108: 0.06739796654 | BH108: 7.873512711 | BI108: 7.873512711 | BJ108: 0.1571642541 | BK108: 40.56602132 | BL108: 43.56602132 | BM108: 8.276981063 | BN108: 24.85583333 | BO108: 4.901064895 | BP108: 1.752748369 | BQ108: 0.1844400985 | BR108: 0.347098868 | BT108: 973.5845118 | BU108: 4.901064895 | BV108: 1.752748369 | BW108: 0.1844400985 | BX108: 0.347098868 | CN108: 0.6785076219 | CO108: 732.5845118 | CP108: 313 | CQ108: 1045.584512
A109: 106 | B109: 24 | C109: 6.622685667 | D109: 9.016666667 | E109: 9.266666667 | F109: 9.6875 | G109: 12.75 | H109: 22.45833333 | I109: 14.44375 | J109: 1.014191747 | K109: 2.591142626 | L109: 0.266724537 | M109: 2.639797454 | N109: 1.138181343 | O109: 0.70125 | P109: 0.1934327379 | Q109: 1.237653631 | R109: 0.1539010237 | S109: 0.19 | T109: 0.07661079062 | U109: 0.6746964922 | V109: 0.3394952552 | W109: 14.09871016 | X109: 0.6702267382 | Y109: 0.09016666667 | Z109: 2.733275463 | AA109: 8.918546435 | AB109: 3.64992889 | AC109: 0.6626937364 | AD109: 1.503944598 | AE109: 2.885403601 | AF109: 3.745007526 | AG109: 2.617012615 | AH109: 37.27054184 | AI109: 4.058077212 | AJ109: 0 | AK109: 0 | AL109: 0 | AM109: 0 | AN109: 0.06773618479 | AO109: 0.1357146586 | AP109: 0.2264880773 | AQ109: 0.1359448124 | AR109: 7.276996944 | AS109: 20.89637389 | AT109: 1.974185877 | AU109: 4.163347805 | AV109: 3.745007526 | AW109: 2.885403601 | AX109: 1.503944598 | AY109: 37.27054184 | AZ109: 37.27054184 | BA109: 2.617012615 | BB109: 0 | BC109: 0 | BD109: 0.2610942509 | BE109: 0.2264880773 | BF109: 0.1357146586 | BG109: 0.06773618479 | BH109: 7.276996944 | BI109: 7.276996944 | BJ109: 0.147995252 | BK109: 37.79947596 | BL109: 40.70599795 | BM109: 7.030858414 | BN109: 23.46041667 | BO109: 5.376224884 | BP109: 1.735092711 | BQ109: 0.2041020839 | BR109: 0.3951562526 | BZ109: 907.187423 | CA109: 5.376224884 | CB109: 1.735092711 | CC109: 0.2041020839 | CD109: 0.3951562526 | CN109: 0.6626937364 | CO109: 670.9439508 | CP109: 306 | CQ109: 976.9439508
A110: 107 | B110: 24 | C110: 5.791667167 | D110: 8.887916667 | E110: 9.033333333 | F110: 9.5375 | G110: 7.75 | H110: 21.45833333 | I110: 10.80041667 | J110: 1.014498337 | K110: 0.3764222591 | L110: 0.0387962963 | M110: 2.961203704 | N110: 1.096632868 | O110: 0.42625 | P110: 0.02811989596 | Q110: 1.097917317 | R110: 0.1622415565 | S110: 0.19 | T110: 0.01114338773 | U110: 0.7179767411 | V110: 0.296521596 | W110: 16.23820659 | X110: 0.1340203404 | Y110: 0.08887916667 | Z110: 2.961203704 | AA110: 8.596309302 | AB110: 1.413968713 | AC110: 0.7380407631 | AD110: 1.473080295 | AE110: 2.57711295 | AF110: 3.29002282 | AG110: 2.739223542 | AH110: 29.16195573 | AI110: 3.290586749 | AJ110: 0 | AK110: 0 | AL110: 0 | AM110: 0 | AN110: 0.06664832964 | AO110: 0.1219133459 | AP110: 0.1979207431 | AQ110: 0.1219188298 | AR110: 5.692227958 | AS110: 22.61661925 | AT110: 0.4519749731 | AU110: 3.708400922 | AV110: 3.29002282 | AW110: 2.57711295 | AX110: 1.473080295 | AY110: 29.16195573 | AZ110: 29.16195573 | BA110: 2.739223542 | BB110: 0 | BC110: 0 | BD110: 0.2319943184 | BE110: 0.1979207431 | BF110: 0.1219133459 | BG110: 0.06664832964 | BH110: 5.692227958 | BI110: 5.692227958 | BJ110: 0.1581762359 | BK110: 29.58475559 | BL110: 32.58475559 | BM110: 6.902415004 | BN110: 19.68833333 | BO110: 4.286145585 | BP110: 1.655028643 | BQ110: 0.178327519 | BR110: 0.4202832059 | BT110: 710.0341342 | BU110: 4.286145585 | BV110: 1.655028643 | BW110: 0.178327519 | BX110: 0.4202832059 | CN110: 0.7380407631 | CO110: 596.0341342 | CP110: 186 | CQ110: 782.0341342
A111: 108 | B111: 24 | C111: 6.699074583 | D111: 8.402083333 | E111: 9 | F111: 9.5375 | G111: 7.791666667 | H111: 20 | I111: 10.91041667 | J111: 1.009897729 | K111: 0.3759429689 | L111: 0.0387962963 | M111: 2.841053241 | N111: 1.022836799 | O111: 0.4285416667 | P111: 0.02810386175 | Q111: 1.028777643 | R111: 0.1570906305 | S111: 0.19 | T111: 0.01114338773 | U111: 0.8380030927 | V111: 0.1718946366 | W111: 17.53702465 | X111: 0.4020766497 | Y111: 0.08402083333 | Z111: 2.961203704 | AA111: 7.906833911 | AB111: 1.734538672 | AC111: 0.7233820417 | AD111: 1.427218818 | AE111: 2.546452084 | AF111: 3.322548216 | AG111: 2.581717133 | AH111: 27.89154666 | AI111: 3.298716706 | AJ111: 0 | AK111: 0 | AL111: 0 | AM111: 0 | AN111: 0.06461847541 | AO111: 0.1208647746 | AP111: 0.2049261546 | AQ111: 0.1208709335 | AR111: 5.467088595 | AS111: 20.92715982 | AT111: 2.339087813 | AU111: 3.771867576 | AV111: 3.322548216 | AW111: 2.546452084 | AX111: 1.427218818 | AY111: 27.89154666 | AZ111: 27.89154666 | BA111: 2.581717133 | BB111: 0 | BC111: 0 | BD111: 0.2434555642 | BE111: 0.2049261546 | BF111: 0.1208647746 | BG111: 0.06461847541 | BH111: 5.467088595 | BI111: 5.467088595 | BJ111: 0.1489421806 | BK111: 28.16760964 | BL111: 31.04745917 | BM111: 6.411981063 | BN111: 19.3125 | BO111: 4.392965194 | BP111: 1.607635426 | BQ111: 0.1821766233 | BR111: 0.4327139928 | BT111: 676.0226313 | BU111: 4.392965194 | BV111: 1.607635426 | BW111: 0.1821766233 | BX111: 0.4327139928 | CN111: 0.7233820417 | CO111: 558.1390201 | CP111: 187 | CQ111: 745.1390201
A112: 109 | B112: 24 | C112: 7.833334 | D112: 8.534583333 | E112: 9.304166667 | F112: 9.6875 | G112: 12.125 | H112: 17.54166667 | I112: 14.63666667 | J112: 1.014191747 | K112: 3.426033667 | L112: 0.3540162037 | M112: 2.415381944 | N112: 0.8909491477 | O112: 0.666875 | P112: 0.2562991099 | Q112: 1.013791895 | R112: 0.1428916509 | S112: 0.19 | T112: 0.101683413 | U112: 0.6746964922 | V112: 0.3394952552 | W112: 14.12616622 | X112: 1.877191812 | Y112: 0.08534583333 | Z112: 2.645983796 | AA112: 5.859724606 | AB112: 3.565799354 | AC112: 0.6336049981 | AD112: 1.332912213 | AE112: 2.586535049 | AF112: 3.3943805 | AG112: 2.260945138 | AH112: 32.62962888 | AI112: 3.755675275 | AJ112: 0 | AK112: 0 | AL112: 0 | AM112: 0 | AN112: 0.05792351265 | AO112: 0.117580952 | AP112: 0.2112003496 | AQ112: 0.1181018513 | AR112: 6.370868195 | AS112: 20.93706782 | AT112: 5.529360965 | AU112: 3.788487601 | AV112: 3.3943805 | AW112: 2.586535049 | AX112: 1.332912213 | AY112: 32.62962888 | AZ112: 32.62962888 | BA112: 2.260945138 | BB112: 0 | BC112: 0 | BD112: 0.2460742751 | BE112: 0.2112003496 | BF112: 0.117580952 | BG112: 0.05792351265 | BH112: 6.370868195 | BI112: 6.370868195 | BJ112: 0.1277685863 | BK112: 33.09270033 | BL112: 35.86209848 | BM112: 6.548775081 | BN112: 23.17125 | BO112: 5.053265676 | BP112: 1.547698052 | BQ112: 0.1887877214 | BR112: 0.3815561204 | BZ112: 794.224808 | CA112: 5.053265676 | CB112: 1.547698052 | CC112: 0.1887877214 | CD112: 0.3815561204 | CN112: 0.6336049981 | CO112: 569.6903636 | CP112: 291 | CQ112: 860.6903636
A113: 110 | B113: 24 | C113: 6.534722875 | D113: 9.365 | E113: 9.125 | F113: 9.645833333 | G113: 12.125 | H113: 20.25 | I113: 14.45333333 | J113: 1.009897729 | K113: 3.069990974 | L113: 0.3176446759 | M113: 2.579178241 | N113: 1.034481176 | O113: 0.666875 | P113: 0.2298316168 | Q113: 1.128797014 | R113: 0.1546441005 | S113: 0.19 | T113: 0.09123648701 | U113: 0.8465911289 | V113: 0.1633066004 | W113: 17.20665731 | X113: 0.5221876302 | Y113: 0.09365 | Z113: 2.682355324 | AA113: 7.699434441 | AB113: 3.879341196 | AC113: 0.6579206351 | AD113: 1.389033101 | AE113: 2.613987755 | AF113: 3.317478444 | AG113: 2.452374837 | AH113: 35.09760439 | AI113: 3.695632949 | AJ113: 0 | AK113: 0 | AL113: 0 | AM113: 0 | AN113: 0.06087976667 | AO113: 0.1195477188 | AP113: 0.1966505476 | AQ113: 0.1198933284 | AR113: 6.87956516 | AS113: 20.32463691 | AT113: 3.197590476 | AU113: 3.663784913 | AV113: 3.317478444 | AW113: 2.613987755 | AX113: 1.389033101 | AY113: 35.09760439 | AZ113: 35.09760439 | BA113: 2.452374837 | BB113: 0 | BC113: 0 | BD113: 0.22442867 | BE113: 0.1966505476 | BF113: 0.1195477188 | BG113: 0.06087976667 | BH113: 6.87956516 | BI113: 6.87956516 | BJ113: 0.1386798111 | BK113: 35.44499097 | BL113: 38.34181389 | BM113: 7.374897729 | BN113: 23.81833333 | BO113: 4.806167119 | BP113: 1.609760572 | BQ113: 0.1803117971 | BR113: 0.3632487832 | BZ113: 850.6797834 | CA113: 4.806167119 | CB113: 1.609760572 | CC113: 0.1803117971 | CD113: 0.3632487832 | CN113: 0.6579206351 | CO113: 629.2035334 | CP113: 291 | CQ113: 920.2035334
A114: 111 | B114: 24 | C114: 6.548611708 | D114: 9.465 | E114: 9.233333333 | F114: 9.6625 | G114: 13.20833333 | H114: 23.83333333 | I114: 14.36125 | J114: 1.014191747 | K114: 3.042471833 | L114: 0.3152199074 | M114: 2.684780093 | N114: 1.206472933 | O114: 0.7264583333 | P114: 0.2279408437 | Q114: 1.296486514 | R114: 0.1578382684 | S114: 0.19 | T114: 0.09054002528 | U114: 0.7563497925 | V114: 0.2578419549 | W114: 14.34774136 | X114: 0.6702501546 | Y114: 0.09465 | Z114: 2.684780093 | AA114: 9.135977118 | AB114: 2.947697032 | AC114: 0.6704847896 | AD114: 1.564669826 | AE114: 2.944879719 | AF114: 3.761484204 | AG114: 2.791131587 | AH114: 39.52323474 | AI114: 4.111399003 | AJ114: 0 | AK114: 0 | AL114: 0 | AM114: 0 | AN114: 0.06912112839 | AO114: 0.135760552 | AP114: 0.2211940232 | AQ114: 0.1360535773 | AR114: 7.716830616 | AS114: 18.9697168 | AT114: 2.599461188 | AU114: 4.157123769 | AV114: 3.761484204 | AW114: 2.944879719 | AX114: 1.564669826 | AY114: 39.52323474 | AZ114: 39.52323474 | BA114: 2.791131587 | BB114: 0 | BC114: 0 | BD114: 0.2526828274 | BE114: 0.2211940232 | BF114: 0.135760552 | BG114: 0.06912112839 | BH114: 7.716830616 | BI114: 7.716830616 | BJ114: 0.1578910875 | BK114: 40.0841385 | BL114: 43.0841385 | BM114: 7.479191747 | BN114: 23.82625 | BO114: 5.359421159 | BP114: 1.808263512 | BQ114: 0.2021135906 | BR114: 0.3821844497 | BT114: 962.019324 | BU114: 5.359421159 | BV114: 1.808263512 | BW114: 0.2021135906 | BX114: 0.3821844497 | CN114: 0.6704847896 | CO114: 717.019324 | CP114: 317 | CQ114: 1034.019324
A115: 112 | B115: 24 | C115: 6.965278375 | D115: 8.569166667 | E115: 9.302083333 | F115: 9.777083333 | G115: 13.47916667 | H115: 19.08333333 | I115: 14.58291667 | J115: 1.014116421 | K115: 2.898096376 | L115: 0.3006712963 | M115: 2.485700231 | N115: 0.9683435388 | O115: 0.7413541667 | P115: 0.2172886162 | Q115: 1.101465344 | R115: 0.1449003039 | S115: 0.19 | T115: 0.08636125488 | U115: 0.7627531566 | V115: 0.2513632648 | W115: 15.75073031 | X115: 0.5292425365 | Y115: 0.08569166667 | Z115: 2.699328704 | AA115: 7.58249247 | AB115: 5.663512516 | AC115: 0.6198832495 | AD115: 1.406552369 | AE115: 2.692796106 | AF115: 3.54665012 | AG115: 2.431653227 | AH115: 34.96698764 | AI115: 3.99100888 | AJ115: 0 | AK115: 0 | AL115: 0 | AM115: 0 | AN115: 0.06361353659 | AO115: 0.1270449425 | AP115: 0.2229876514 | AQ115: 0.1273914326 | AR115: 6.827699575 | AS115: 20.64983956 | AT115: 2.105488791 | AU115: 3.946987229 | AV115: 3.54665012 | AW115: 2.692796106 | AX115: 1.406552369 | AY115: 34.96698764 | AZ115: 34.96698764 | BA115: 2.431653227 | BB115: 0 | BC115: 0 | BD115: 0.258152182 | BE115: 0.2229876514 | BF115: 0.1270449425 | BG115: 0.06361353659 | BH115: 6.827699575 | BI115: 6.827699575 | BJ115: 0.137442267 | BK115: 35.46059638 | BL115: 38.2469679 | BM115: 6.583283088 | BN115: 23.15208333 | BO115: 5.386460813 | BP115: 1.651988175 | BQ115: 0.2023323344 | BR115: 0.3953814596 | BZ115: 851.054313 | CA115: 5.386460813 | CB115: 1.651988175 | CC115: 0.2023323344 | CD115: 0.3953814596 | CN115: 0.6198832495 | CO115: 594.4272297 | CP115: 323.5 | CQ115: 917.9272297
A116: 113 | B116: 24 | C116: 5.023148583 | D116: 9.852083333 | E116: 9.09375 | F116: 9.672916667 | G116: 13.3125 | H116: 25.85416667 | I116: 14.28583333 | J116: 1.009897729 | K116: 3.010782793 | L116: 0.3127951389 | M116: 2.687204861 | N116: 1.307197048 | O116: 0.7321875 | P116: 0.2259111866 | Q116: 1.363781462 | R116: 0.1664070524 | S116: 0.19 | T116: 0.08984356354 | U116: 0.9282444291 | V116: 0.08165330022 | W116: 18.62547224 | X116: 0.1340515903 | Y116: 0.09852083333 | Z116: 2.687204861 | AA116: 9.135399893 | AB116: 1.444931496 | AC116: 0.6843692501 | AD116: 1.623371702 | AE116: 3.022314859 | AF116: 3.826605271 | AG116: 2.952396859 | AH116: 41.7640799 | AI116: 4.159227419 | AJ116: 0 | AK116: 0 | AL116: 0 | AM116: 0 | AN116: 0.07082828197 | AO116: 0.1378669237 | AP116: 0.218398081 | AQ116: 0.1381300248 | AR116: 8.186276928 | AS116: 20.06526693 | AT116: 1.641716746 | AU116: 4.212580037 | AV116: 3.826605271 | AW116: 3.022314859 | AX116: 1.623371702 | AY116: 41.7640799 | AZ116: 41.7640799 | BA116: 2.952396859 | BB116: 0 | BC116: 0 | BD116: 0.2478945681 | BE116: 0.218398081 | BF116: 0.1378669237 | BG116: 0.07082828197 | BH116: 8.186276928 | BI116: 8.186276928 | BJ116: 0.1670620239 | BK116: 42.17744946 | BL116: 45.17744946 | BM116: 7.861981063 | BN116: 24.13791667 | BO116: 5.36473557 | BP116: 1.871638306 | BQ116: 0.203094996 | BR116: 0.3702256486 | BT116: 1012.258787 | BU116: 5.36473557 | BV116: 1.871638306 | BW116: 0.203094996 | BX116: 0.3702256486 | CN116: 0.6843692501 | CO116: 764.758787 | CP116: 319.5 | CQ116: 1084.258787
A117: 114 | B117: 24 | C117: 3.826389125 | D117: 8.835 | E117: 9.154166667 | F117: 9.566666667 | G117: 8.791666667 | H117: 19.375 | I117: 10.85166667 | J117: 1.014191747 | K117: 0.9089577378 | L117: 0.09456597222 | M117: 2.780434028 | N117: 0.9854669005 | O117: 0.4835416667 | P117: 0.06825613615 | Q117: 1.004441093 | R117: 0.1514231985 | S117: 0.19 | T117: 0.02716200758 | U117: 0.6789905103 | V117: 0.3352012371 | W117: 14.34682204 | X117: 1.19219408 | Y117: 0.08835 | Z117: 2.905434028 | AA117: 8.344459246 | AB117: 3.701359923 | AC117: 0.6976275885 | AD117: 1.411664855 | AE117: 2.426920559 | AF117: 3.100324109 | AG117: 2.679369474 | AH117: 28.66876454 | AI117: 3.243984402 | AJ117: 0 | AK117: 0 | AL117: 0 | AM117: 0 | AN117: 0.06259726989 | AO117: 0.1120831982 | AP117: 0.1857089869 | AQ117: 0.1121193356 | AR117: 5.597517546 | AS117: 21.12963557 | AT117: 3.556651789 | AU117: 3.476256682 | AV117: 3.100324109 | AW117: 2.426920559 | AX117: 1.411664855 | AY117: 28.66876454 | AZ117: 28.66876454 | BA117: 2.679369474 | BB117: 0 | BC117: 0 | BD117: 0.2164761891 | BE117: 0.1857089869 | BF117: 0.1120831982 | BG117: 0.06259726989 | BH117: 5.597517546 | BI117: 5.597517546 | BJ117: 0.1546522955 | BK117: 29.0756244 | BL117: 31.9506244 | BM117: 6.849191747 | BN117: 19.68666667 | BO117: 4.245117596 | BP117: 1.622957555 | BQ117: 0.1689300554 | BR117: 0.3986158443 | BT117: 697.8149857 | BU117: 4.245117596 | BV117: 1.622957555 | BW117: 0.1689300554 | BX117: 0.3986158443 | CN117: 0.6976275885 | CO117: 555.8149857 | CP117: 211 | CQ117: 766.8149857
A118: 115 | B118: 24 | C118: 1.703703833 | D118: 10.49541667 | E118: 8.8875 | F118: 9.3875 | G118: 8.25 | H118: 24.29166667 | I118: 10.73916667 | J118: 1.009897729 | K118: 0.5818344044 | L118: 0.06061921296 | M118: 2.939380787 | N118: 1.233744589 | O118: 0.45375 | P118: 0.04372628488 | Q118: 1.237350699 | R118: 0.1743277649 | S118: 0.19 | T118: 0.01741154332 | U118: 0.8422971108 | V118: 0.1676006185 | W118: 16.3773108 | X118: 0.3971772 | Y118: 0.1049541667 | Z118: 2.939380787 | AA118: 9.678410173 | AB118: 1.560223498 | AC118: 0.7509321257 | AD118: 1.501821043 | AE118: 2.476812041 | AF118: 3.013588575 | AG118: 3.084364188 | AH118: 32.79886677 | AI118: 3.139723073 | AJ118: 0 | AK118: 0 | AL118: 0 | AM118: 0 | AN118: 0.06814433364 | AO118: 0.1164517136 | AP118: 0.1712298985 | AQ118: 0.116461991 | AR118: 6.428984115 | AS118: 19.44362695 | AT118: 2.369783617 | AU118: 3.318494779 | AV118: 3.013588575 | AW118: 2.476812041 | AX118: 1.501821043 | AY118: 32.79886677 | AZ118: 32.79886677 | BA118: 3.084364188 | BB118: 0 | BC118: 0 | BD118: 0.1931604637 | BE118: 0.1712298985 | BF118: 0.1164517136 | BG118: 0.06814433364 | BH118: 6.428984115 | BI118: 6.428984115 | BJ118: 0.1782008764 | BK118: 33.12350107 | BL118: 36.12350107 | BM118: 8.505314396 | BN118: 21.23458333 | BO118: 3.894447581 | BP118: 1.70116364 | BQ118: 0.1597370207 | BR118: 0.3483225765 | BT118: 794.9640257 | BU118: 3.894447581 | BV118: 1.70116364 | BW118: 0.1597370207 | BX118: 0.3483225765 | CN118: 0.7509321257 | CO118: 668.9640257 | CP118: 198 | CQ118: 866.9640257
A119: 116 | B119: 24 | C119: 2.555555625 | D119: 11.68333333 | E119: 8.708333333 | F119: 9.366666667 | G119: 11.79166667 | H119: 28.16666667 | I119: 14.3275 | J119: 1.014191747 | K119: 3.067642233 | L119: 0.3200694444 | M119: 2.679930556 | N119: 1.427019732 | O119: 0.6485416667 | P119: 0.2307270302 | Q119: 1.492466713 | R119: 0.1803377792 | S119: 0.19 | T119: 0.09193294874 | U119: 0.8465911289 | V119: 0.1676006185 | W119: 21.59165085 | X119: 0.5311189837 | Y119: 0.1168333333 | Z119: 2.679930556 | AA119: 11.30907097 | AB119: 1.563953819 | AC119: 0.7259407483 | AD119: 1.550168551 | AE119: 2.756479582 | AF119: 3.315893137 | AG119: 3.003034414 | AH119: 42.42390621 | AI119: 3.624798949 | AJ119: 0 | AK119: 0 | AL119: 0 | AM119: 0 | AN119: 0.06875590872 | AO119: 0.1266608645 | AP119: 0.1813699261 | AQ119: 0.12687698 | AR119: 8.283180778 | AS119: 25.50422526 | AT119: 3.168955988 | AU119: 3.597041332 | AV119: 3.315893137 | AW119: 2.756479582 | AX119: 1.550168551 | AY119: 42.42390621 | AZ119: 42.42390621 | BA119: 3.003034414 | BB119: 0 | BC119: 0 | BD119: 0.2004954512 | BE119: 0.1813699261 | BF119: 0.1266608645 | BG119: 0.06875590872 | BH119: 8.283180778 | BI119: 8.283180778 | BJ119: 0.1699000981 | BK119: 43.02597557 | BL119: 46.02597557 | BM119: 9.697525081 | BN119: 26.01083333 | BO119: 4.436799617 | BP119: 1.769492541 | BQ119: 0.1694439115 | BR119: 0.3033346181 | BT119: 1032.623414 | BU119: 4.436799617 | BV119: 1.769492541 | BW119: 0.1694439115 | BX119: 0.3033346181 | CN119: 0.7259407483 | CO119: 821.6234136 | CP119: 283 | CQ119: 1104.623414
A120: 117 | B120: 24 | C120: 4.215278125 | D120: 10.08541667 | E120: 9.004166667 | F120: 9.575 | G120: 14.33333333 | H120: 25.95833333 | I120: 14.51 | J120: 1.009897729 | K120: 3.13276029 | L120: 0.32734375 | M120: 2.67265625 | N120: 1.314168546 | O120: 0.7883333333 | P120: 0.2358179541 | Q120: 1.374556406 | R120: 0.1619367364 | S120: 0.19 | T120: 0.09402233394 | U120: 0.8422971108 | V120: 0.1676006185 | W120: 18.22521484 | X120: 0 | Y120: 0.1008541667 | Z120: 2.67265625 | AA120: 9.306713941 | AB120: 2.644268048 | AC120: 0.6699246406 | AD120: 1.620269415 | AE120: 2.981897138 | AF120: 3.747899821 | AG120: 2.992724118 | AH120: 42.99883612 | AI120: 4.184147046 | AJ120: 0 | AK120: 0 | AL120: 0 | AM120: 0 | AN120: 0.07065399007 | AO120: 0.1353754404 | AP120: 0.2127570525 | AQ120: 0.1356570561 | AR120: 8.428304439 | AS120: 21.63751318 | AT120: 0 | AU120: 4.105770344 | AV120: 3.747899821 | AW120: 2.981897138 | AX120: 1.620269415 | AY120: 42.99883612 | AZ120: 42.99883612 | BA120: 2.992724118 | BB120: 0 | BC120: 0 | BD120: 0.2396880222 | BE120: 0.2127570525 | BF120: 0.1353754404 | BG120: 0.07065399007 | BH120: 8.428304439 | BI120: 8.428304439 | BJ120: 0.1692004747 | BK120: 43.42442696 | BL120: 46.42442696 | BM120: 8.095314396 | BN120: 24.59541667 | BO120: 5.364143359 | BP120: 1.8875235 | BQ120: 0.2016356221 | BR120: 0.3610801141 | BZ120: 1042.186247 | CA120: 5.364143359 | CB120: 1.8875235 | CC120: 0.2016356221 | CD120: 0.3610801141 | CN120: 0.6699246406 | CO120: 770.186247 | CP120: 344 | CQ120: 1114.186247
A121: 118 | B121: 24 | C121: 3.2222225 | D121: 11.74041667 | E121: 8.679166667 | F121: 9.375 | G121: 12.25 | H121: 32.75 | I121: 14.03625 | J121: 1.014498337 | K121: 3.243959591 | L121: 0.3394675926 | M121: 2.660532407 | N121: 1.655103018 | O121: 0.67375 | P121: 0.2443916448 | Q121: 1.702834979 | R121: 0.185873607 | S121: 0.19 | T121: 0.09750464261 | U121: 0.971524678 | V121: 0.04297365916 | W121: 22.36739272 | X121: 0.1339111943 | Y121: 0.1174041667 | Z121: 2.660532407 | AA121: 14.0760479 | AB121: 0.08700331327 | AC121: 0.7460822017 | AD121: 1.755487283 | AE121: 3.120186779 | AF121: 3.789908673 | AG121: 3.437097486 | AH121: 47.55449844 | AI121: 4.017585345 | AJ121: 0 | AK121: 0 | AL121: 0 | AM121: 0 | AN121: 0.07805547141 | AO121: 0.1439420151 | AP121: 0.2057453336 | AQ121: 0.1441533061 | AR121: 9.282335111 | AS121: 23.02297947 | AT121: 3.116122689 | AU121: 4.118105688 | AV121: 3.789908673 | AW121: 3.120186779 | AX121: 1.755487283 | AY121: 47.55449844 | AZ121: 47.55449844 | BA121: 3.437097486 | BB121: 0 | BC121: 0 | BD121: 0.2280480083 | BE121: 0.2057453336 | BF121: 0.1439420151 | BG121: 0.07805547141 | BH121: 9.282335111 | BI121: 9.282335111 | BJ121: 0.1946815695 | BK121: 48.24395959 | BL121: 51.24395959 | BM121: 9.754915004 | BN121: 25.77666667 | BO121: 4.945605325 | BP121: 1.987997915 | BQ121: 0.1916366066 | BR121: 0.3139062379 | BT121: 1157.85503 | BU121: 4.945605325 | BV121: 1.987997915 | BW121: 0.1916366066 | BX121: 0.3139062379 | CN121: 0.7460822017 | CO121: 935.8550302 | CP121: 294 | CQ121: 1229.85503
A122: 119 | B122: 24 | C122: 4.233796667 | D122: 11.06666667 | E122: 8.75 | F122: 9.404166667 | G122: 11.66666667 | H122: 30.33333333 | I122: 13.99333333 | J122: 1.009897729 | K122: 2.915167322 | L122: 0.3055208333 | M122: 2.694479167 | N122: 1.536093336 | O122: 0.6416666667 | P122: 0.2198066545 | Q122: 1.578683245 | R122: 0.1804579842 | S122: 0.19 | T122: 0.08775417835 | U122: 1.009897729 | V122: 0 | W122: 20.88735113 | X122: 0 | Y122: 0.1106666667 | Z122: 2.694479167 | AA122: 13.24792542 | AB122: 0.7426558313 | AC122: 0.7402510697 | AD122: 1.691859201 | AE122: 3.068203009 | AF122: 3.772132768 | AG122: 3.209754692 | AH122: 44.47496615 | AI122: 3.967615768 | AJ122: 0 | AK122: 0 | AL122: 0 | AM122: 0 | AN122: 0.07504860687 | AO122: 0.1416055601 | AP122: 0.2077436523 | AQ122: 0.1418002373 | AR122: 8.717644208 | AS122: 20.68263995 | AT122: 0 | AU122: 4.121714957 | AV122: 3.772132768 | AW122: 3.068203009 | AX122: 1.691859201 | AY122: 44.47496615 | AZ122: 44.47496615 | BA122: 3.209754692 | BB122: 0 | BC122: 0 | BD122: 0.2322740862 | BE122: 0.2077436523 | BF122: 0.1416055601 | BG122: 0.07504860687 | BH122: 8.717644208 | BI122: 8.717644208 | BJ122: 0.1818364763 | BK122: 44.91516732 | BL122: 47.91516732 | BM122: 9.076564396 | BN122: 25.06 | BO122: 4.948476688 | BP122: 1.91201785 | BQ122: 0.1922694648 | BR122: 0.331281197 | BT122: 1077.964016 | BU122: 4.948476688 | BV122: 1.91201785 | BW122: 0.1922694648 | BX122: 0.331281197 | CN122: 0.7402510697 | CO122: 869.9640157 | CP122: 280 | CQ122: 1149.964016
A123: 120 | B123: 24 | C123: 6.817130208 | D123: 9.282916667 | E123: 9.079166667 | F123: 9.554166667 | G123: 11.41666667 | H123: 20.66666667 | I123: 13.97458333 | J123: 1.014804927 | K123: 2.333197775 | L123: 0.2449016204 | M123: 2.637372685 | N123: 1.050123141 | O123: 0.6279166667 | P123: 0.1760761276 | Q123: 1.12240593 | R123: 0.1559296267 | S123: 0.19 | T123: 0.07034263502 | U123: 0.7222707592 | V123: 0.2925341676 | W123: 15.91088884 | X123: 0.665542818 | Y123: 0.09282916667 | Z123: 2.75509838 | AA123: 7.388692764 | AB123: 3.103216583 | AC123: 0.6682795651 | AD123: 1.389880463 | AE123: 2.598323937 | AF123: 3.304060749 | AG123: 2.462794796 | AH123: 33.91443045 | AI123: 3.622044457 | AJ123: 0 | AK123: 0 | AL123: 0 | AM123: 0 | AN123: 0.06138692762 | AO123: 0.1197953398 | AP123: 0.1953667461 | AQ123: 0.1200032983 | AR123: 6.618039577 | AS123: 22.02898101 | AT123: 2.275094302 | AU123: 3.660698631 | AV123: 3.304060749 | AW123: 2.598323937 | AX123: 1.389880463 | AY123: 33.91443045 | AZ123: 33.91443045 | BA123: 2.462794796 | BB123: 0 | BC123: 0 | BD123: 0.2238251608 | BE123: 0.1953667461 | BF123: 0.1197953398 | BG123: 0.06138692762 | BH123: 6.618039577 | BI123: 6.618039577 | BJ123: 0.1395310571 | BK123: 34.41653111 | BL123: 37.29880541 | BM123: 7.297721594 | BN123: 23.2575 | BO123: 4.716065236 | BP123: 1.603732362 | BQ123: 0.1790240484 | BR123: 0.3711430471 | BZ123: 825.9967466 | CA123: 4.716065236 | CB123: 1.603732362 | CC123: 0.1790240484 | CD123: 0.3711430471 | CN123: 0.6682795651 | CO123: 621.1713299 | CP123: 274 | CQ123: 895.1713299
A124: 121 | B124: 24 | C124: 7.668982042 | D124: 7.480416667 | E124: 9.2 | F124: 9.641666667 | G124: 8.125 | H124: 18 | I124: 10.87125 | J124: 1.014191747 | K124: 0.138391853 | L124: 0.01454861111 | M124: 2.862876157 | N124: 0.9144625804 | O124: 0.446875 | P124: 0.0104528832 | Q124: 0.9176416895 | R124: 0.1359430593 | S124: 0.19 | T124: 0.004178770397 | U124: 0.7563497925 | V124: 0.2578419549 | W124: 14.62967865 | X124: 0.5361126114 | Y124: 0.07480416667 | Z124: 2.985451389 | AA124: 8.942084159 | AB124: 4.42330072 | AC124: 0.6906340184 | AD124: 1.402132051 | AE124: 2.568903172 | AF124: 3.501044209 | AG124: 2.415857593 | AH124: 25.89588401 | AI124: 3.430507353 | AJ124: 0 | AK124: 0 | AL124: 0 | AM124: 0 | AN124: 0.06253000112 | AO124: 0.1200177281 | AP124: 0.228478567 | AQ124: 0.1200188151 | AR124: 5.056118303 | AS124: 19.34247724 | AT124: 2.079229548 | AU124: 4.048371659 | AV124: 3.501044209 | AW124: 2.568903172 | AX124: 1.402132051 | AY124: 25.89588401 | AZ124: 25.89588401 | BA124: 2.415857593 | BB124: 0 | BC124: 0 | BD124: 0.2814039416 | BE124: 0.228478567 | BF124: 0.1200177281 | BG124: 0.06253000112 | BH124: 5.056118303 | BI124: 5.056118303 | BJ124: 0.1394193845 | BK124: 26.26339185 | BL124: 29.14081662 | BM124: 5.494608414 | BN124: 18.35166667 | BO124: 4.779847784 | BP124: 1.587911177 | BQ124: 0.1984178707 | BR124: 0.4995719837 | BT124: 630.3214045 | BU124: 4.779847784 | BV124: 1.587911177 | BW124: 0.1984178707 | BX124: 0.4995719837 | CN124: 0.6906340184 | CO124: 504.3795989 | CP124: 195 | CQ124: 699.3795989
A125: 122 | B125: 24 | C125: 9.821760125 | D125: 6.142916667 | E125: 9.433333333 | F125: 9.708333333 | G125: 5.958333333 | H125: 10.66666667 | I125: 10.39833333 | J125: 1.014191747 | K125: 0.02302928147 | L125: 0.002424768519 | M125: 1.494658565 | N125: 0.5411211438 | O125: 0.3277083333 | P125: 0.001740955255 | Q125: 0.5411535551 | R125: 0.09679510716 | S125: 0.19 | T125: 0.0006964617329 | U125: 0.4641222145 | V125: 0.5500695329 | W125: 10.23579641 | X125: 1.465244493 | Y125: 0.06142916667 | Z125: 2.968408565 | AA125: 5.649437719 | AB125: 5.104350185 | AC125: 0.6420997805 | AD125: 0.9506302241 | AE125: 1.793722101 | AF125: 2.795937583 | AG125: 1.601028621 | AH125: 16.41507074 | AI125: 2.535257476 | AJ125: 0 | AK125: 0 | AL125: 0 | AM125: 0 | AN125: 0.0428185994 | AO125: 0.08364929726 | AP125: 0.2084313172 | AQ125: 0.08364936007 | AR125: 3.205008935 | AS125: 22.05409715 | AT125: 2.663744137 | AU125: 3.369929105 | AV125: 2.795937583 | AW125: 1.793722101 | AX125: 0.9506302241 | AY125: 16.41507074 | AZ125: 16.41507074 | BA125: 1.601028621 | BB125: 0 | BC125: 0 | BD125: 0.2801940616 | BE125: 0.2084313172 | BF125: 0.08364929726 | BG125: 0.0428185994 | BH125: 3.205008935 | BI125: 3.205008935 | BJ125: 0.0927888537 | BK125: 16.64802928 | BL125: 18.14511261 | BM125: 4.186275081 | BN125: 16.54125 | BO125: 3.976812073 | BP125: 1.096961391 | BQ125: 0.1690973722 | BR125: 0.356897337 | BZ125: 399.5527028 | CA125: 3.976812073 | CB125: 1.096961391 | CC125: 0.1690973722 | CD125: 0.356897337 | CN125: 0.6420997805 | CO125: 292.4827028 | CP125: 143 | CQ125: 435.4827028
A126: 123 | B126: 24 | C126: 11.46064908 | D126: 5.967916667 | E126: 9.9125 | F126: 10.09166667 | G126: 14.95833333 | H126: 5.625 | I126: 14.215 | J126: 1.010204319 | K126: 2.552211525 | L126: 0.2691493056 | M126: 1.400584491 | N126: 0.2889059632 | O126: 0.8227083333 | P126: 0.1931125327 | Q126: 0.4604150482 | R126: 0.08750415084 | S126: 0.19 | T126: 0.07730725235 | U126: 0.3781748962 | V126: 0.6320294228 | W126: 7.585096872 | X126: 1.872179776 | Y126: 0.05967916667 | Z126: 2.730850694 | AA126: 1.945259056 | AB126: 12.70450185 | AC126: 0.3534479769 | AD126: 0.8958137173 | AE126: 1.556836354 | AF126: 2.459332935 | AG126: 1.627544485 | AH126: 22.9018471 | AI126: 3.55472178 | AJ126: 0 | AK126: 0 | AL126: 0 | AM126: 0 | AN126: 0.04248841213 | AO126: 0.07591281284 | AP126: 0.2163719132 | AQ126: 0.07689047913 | AR126: 4.48779057 | AS126: 20.05711365 | AT126: 2.962171868 | AU126: 2.755202535 | AV126: 2.459332935 | AW126: 1.556836354 | AX126: 0.8958137173 | AY126: 22.9018471 | AZ126: 22.9018471 | BA126: 1.627544485 | BB126: 0 | BC126: 0 | BD126: 0.2583739964 | BE126: 0.2163719132 | BF126: 0.07591281284 | BG126: 0.04248841213 | BH126: 4.48779057 | BI126: 4.48779057 | BJ126: 0.09212037366 | BK126: 23.13554486 | BL126: 24.80527865 | BM126: 3.978120986 | BN126: 20.18291667 | BO126: 5.815696642 | BP126: 1.229023489 | BQ126: 0.2570493815 | BR126: 0.3970233326 | BZ126: 555.2530766 | CA126: 5.815696642 | CB126: 1.229023489 | CC126: 0.2570493815 | CD126: 0.3970233326 | CN126: 0.3534479769 | CO126: 236.3266877 | CP126: 359 | CQ126: 595.3266877
A127: 124 | B127: 24 | C127: 12.52083442 | D127: 5.228333333 | E127: 10.15833333 | F127: 10.33333333 | G127: 17.20833333 | H127: 8 | I127: 14.63041667 | J127: 1.014191747 | K127: 2.685871314 | L127: 0.2836979167 | M127: 0.9781770833 | N127: 0.4046791684 | O127: 0.9464583333 | P127: 0.2034091175 | Q127: 0.5988030466 | R127: 0.08299729907 | S127: 0.19 | T127: 0.08148602275 | U127: 0.3394952552 | V127: 0.6746964922 | W127: 7.077866668 | X127: 1.466147549 | Y127: 0.05228333333 | Z127: 2.715885417 | AA127: 4.610202063 | AB127: 14.37560583 | AC127: 0.3830857144 | AD127: 1.102899064 | AE127: 2.127123598 | AF127: 4.082827388 | AG127: 1.9065899 | AH127: 27.50387658 | AI127: 4.670558671 | AJ127: 0 | AK127: 0 | AL127: 0 | AM127: 0 | AN127: 0.05591776521 | AO127: 0.1111451586 | AP127: 0.4164879281 | AQ127: 0.1120879619 | AR127: 5.370075558 | AS127: 20.84820498 | AT127: 2.173047534 | AU127: 4.794558077 | AV127: 4.082827388 | AW127: 2.127123598 | AX127: 1.102899064 | AY127: 27.50387658 | AZ127: 27.50387658 | BA127: 1.9065899 | BB127: 0 | BC127: 0 | BD127: 0.5483387877 | BE127: 0.4164879281 | BF127: 0.1111451586 | BG127: 0.05591776521 | BH127: 5.370075558 | BI127: 5.370075558 | BJ127: 0.1077459971 | BK127: 27.89420465 | BL127: 29.15607965 | BM127: 3.242941747 | BN127: 19.85875 | BO127: 8.601512707 | BP127: 1.468172954 | BQ127: 0.3950699955 | BR127: 0.4366108607 | BZ127: 669.4609115 | CA127: 8.601512707 | CB127: 1.468172954 | CC127: 0.3950699955 | CD127: 0.4366108607 | CN127: 0.3830857144 | CO127: 286.7459115 | CP127: 413 | CQ127: 699.7459115
A128: 125 | B128: 24 | C128: 13.50463075 | D128: 4.200833333 | E128: 10.54583333 | F128: 10.57916667 | G128: 18.79166667 | H128: 0 | I128: 14.125 | J128: 1.014191747 | K128: 2.268990676 | L128: 0.2400520833 | M128: 0 | N128: 0 | O128: 1.033541667 | P128: 0.171994324 | Q128: 0.171994324 | R128: 0.04682345386 | S128: 0.19 | T128: 0.06894971156 | U128: 0.2148682958 | V128: 0.7993234516 | W128: 2.951045184 | X128: 1.863952906 | Y128: 0.04200833333 | Z128: 2.753697917 | AA128: 0 | AB128: 18.74395107 | AC128: 0.1077359856 | AD128: 0.4384442296 | AE128: 0.5821312174 | AF128: 1.723700869 | AG128: 1.491019989 | AH128: 20.76595219 | AI128: 4.084488396 | AJ128: 0 | AK128: 0 | AL128: 0 | AM128: 0 | AN128: 0.03026859795 | AO128: 0.04040297315 | AP128: 0.3155635102 | AQ128: 0.0434547142 | AR128: 4.054509625 | AS128: 13.73420482 | AT128: 2.331913197 | AU128: 1.879729935 | AV128: 1.723700869 | AW128: 0.5821312174 | AX128: 0.4384442296 | AY128: 20.76595219 | AZ128: 20.76595219 | BA128: 1.491019989 | BB128: 0 | BC128: 0 | BD128: 0.3648450468 | BE128: 0.3155635102 | BF128: 0.04040297315 | BG128: 0.03026859795 | BH128: 4.054509625 | BI128: 4.054509625 | BJ128: 0.08442305028 | BK128: 21.06065734 | BL128: 21.30070943 | BM128: 2.221275081 | BN128: 18.32583333 | BO128: 9.48133688 | BP128: 1.162332377 | BQ128: 0.5889442803 | BR128: 0.4844954305 | CF128: 505.4557762 | CG128: 9.48133688 | CH128: 1.162332377 | CI128: 0.5889442803 | CJ128: 0.4844954305 | CN128: 0.1077359856 | CO128: 60.21702622 | CP128: 451 | CQ128: 511.2170262
A129: 126 | B129: 24 | C129: 13.86342704 | D129: 3.63125 | E129: 10.48333333 | F129: 10.48333333 | G129: 11.04166667 | H129: 0 | I129: 12.24083333 | J129: 1.014191747 | K129: 0 | L129: 0 | M129: 0 | N129: 0 | O129: 0.6072916667 | P129: 0 | Q129: 0 | R129: 0.0363125 | S129: 0.19 | T129: 0 | U129: 0.04297365916 | V129: 0.9712180882 | W129: 2.812789198 | X129: 2.798195582 | Y129: 0.0363125 | Z129: 2.961666667 | AA129: 0 | AB129: 12.72544175 | AC129: 0 | AD129: 0 | AE129: 0 | AF129: 0 | AG129: 0.9020355368 | AH129: 10.88715886 | AI129: 2.376881956 | AJ129: 0 | AK129: 0 | AL129: 0 | AM129: 0 | AN129: 0 | AO129: 0 | AP129: 0 | AQ129: 0 | AR129: 2.125695464 | AS129: 65.45379782 | AT129: 2.881119715 | AU129: 0 | AV129: 0 | AW129: 0 | AX129: 0 | AY129: 10.88715886 | AZ129: 10.88715886 | BA129: 0.9020355368 | BB129: 0 | BC129: 0 | BD129: 0 | BE129: 0 | BF129: 0 | BG129: 0 | BH129: 2.125695464 | BI129: 2.125695464 | BJ129: 0.051549787 | BK129: 11.04166667 | BL129: 11.04166667 | BM129: 1.683775081 | BN129: 15.87208333 | BO129: 6.557685045 | BP129: 0.6956658704 | BQ129: 0.4701034679 | BR129: 0.3645100791 | CF129: 265 | CG129: 6.557685045 | CH129: 0.6956658704 | CI129: 0.4701034679 | CJ129: 0.3645100791 | CN129: 0 | CO129: 0 | CP129: 265 | CQ129: 265
A130: 127 | B130: 24 | C130: 13.9583345 | D130: 3.81 | E130: 10.65833333 | F130: 10.67083333 | G130: 17.625 | H130: 0 | I130: 13.57625 | J130: 1.014191747 | K130: 1.279263981 | L130: 0.135787037 | M130: 0 | N130: 0 | O130: 0.969375 | P130: 0.09715114754 | Q130: 0.09715114754 | R130: 0.04005774066 | S130: 0.19 | T130: 0.03900185704 | U130: 0.08594731832 | V130: 0.9282444291 | W130: 2.27864299 | X130: 1.864141774 | Y130: 0.0381 | Z130: 2.850462963 | AA130: 0 | AB130: 18.18367777 | AC130: 0.06767065793 | AD130: 0.2992464943 | AE130: 0.3648325943 | AF130: 1.433540101 | AG130: 1.39245108 | AH130: 18.63973359 | AI130: 3.946785703 | AJ130: 0 | AK130: 0 | AL130: 0 | AM130: 0 | AN130: 0.02070074111 | AO130: 0.02532961031 | AP130: 0.3530684458 | AQ130: 0.0272525908 | AR130: 3.639369799 | AS130: 26.51208943 | AT130: 2.008244505 | AU130: 1.552976002 | AV130: 1.433540101 | AW130: 0.3648325943 | AX130: 0.2992464943 | AY130: 18.63973359 | AZ130: 18.63973359 | BA130: 1.39245108 | BB130: 0 | BC130: 0 | BD130: 0.4082179828 | BE130: 0.3530684458 | BF130: 0.02532961031 | BG130: 0.02070074111 | BH130: 3.639369799 | BI130: 3.639369799 | BJ130: 0.0790252585 | BK130: 18.90426398 | BL130: 19.04005102 | BM130: 1.837941747 | BN130: 17.38625 | BO130: 10.2855621 | BP130: 1.095121203 | BQ130: 0.6904965694 | BR130: 0.5378814346 | CF130: 453.7023356 | CG130: 10.2855621 | CH130: 1.095121203 | CI130: 0.6904965694 | CJ130: 0.5378814346 | CN130: 0.06767065793 | CO130: 33.96122444 | CP130: 423 | CQ130: 456.9612244
A131: 128 | B131: 24 | C131: 15.25231608 | D131: 3.7175 | E131: 10.67916667 | F131: 10.60416667 | G131: 13.58333333 | H131: 0 | I131: 10.46458333 | J131: 1.014191747 | K131: 0.2508659031 | L131: 0.0266724537 | M131: 0 | N131: 0 | O131: 0.7470833333 | P131: 0.01906950423 | Q131: 0.01906950423 | R131: 0.03742211142 | S131: 0.19 | T131: 0.007661079062 | U131: 0 | V131: 1.014191747 | W131: 0 | X131: 2.400740652 | Y131: 0.037175 | Z131: 2.94791088 | AA131: 0 | AB131: 15.08957584 | AC131: 0.01813374947 | AD131: 0.07103141468 | AE131: 0.07428973422 | AF131: 0.3295196954 | AG131: 1.322001918 | AH131: 13.64061507 | AI131: 2.92936912 | AJ131: 0 | AK131: 0 | AL131: 0 | AM131: 0 | AN131: 0.004927715376 | AO131: 0.005158364469 | AP131: 0.09215416448 | AQ131: 0.005551033294 | AR131: 2.663302149 | AS131: 0 | AT131: 2.367146704 | AU131: 0.3376770429 | AV131: 0.3295196954 | AW131: 0.07428973422 | AX131: 0.07103141468 | AY131: 13.64061507 | AZ131: 13.64061507 | BA131: 1.322001918 | BB131: 0 | BC131: 0 | BD131: 0.09602272878 | BE131: 0.09215416448 | BF131: 0.005158364469 | BG131: 0.004927715376 | BH131: 2.663302149 | BI131: 2.663302149 | BJ131: 0.07656956789 | BK131: 13.83419924 | BL131: 13.86087169 | BM131: 1.757108414 | BN131: 14.18208333 | BO131: 7.873275847 | BP131: 0.9773508845 | BQ131: 0.5491922462 | BR131: 0.4292188507 | CF131: 332.0207817 | CG131: 7.873275847 | CH131: 0.9773508845 | CI131: 0.5491922462 | CJ131: 0.4292188507 | CN131: 0.01813374947 | CO131: 6.660920563 | CP131: 326 | CQ131: 332.6609206
A132: 129 | B132: 24 | C132: 16.35185321 | D132: 3.043333333 | E132: 10.80833333 | F132: 10.75833333 | G132: 15.875 | H132: 0 | I132: 10.54958333 | J132: 1.009897729 | K132: 0.2049092227 | L132: 0.02182291667 | M132: 0 | N132: 0 | O132: 0.873125 | P132: 0.01559099049 | Q132: 0.01559099049 | R132: 0.03052320817 | S132: 0.19 | T132: 0.006268155596 | U132: 0 | V132: 1.009897729 | W132: 0 | X132: 1.605121151 | Y132: 0.03043333333 | Z132: 2.93359375 | AA132: 0 | AB132: 16.76790517 | AC132: 0.0127431828 | AD132: 0.07134948064 | AE132: 0.07418753457 | AF132: 2.03311241 | AG132: 1.52422221 | AH132: 15.92231446 | AI132: 3.972567044 | AJ132: 0 | AK132: 0 | AL132: 0 | AM132: 0 | AN132: 0.00495390346 | AO132: 0.005154951524 | AP132: 4.08631731 | AQ132: 0.005547969943 | AR132: 3.12097084 | AS132: 0 | AT132: 1.589389801 | AU132: 2.330721017 | AV132: 2.03311241 | AW132: 0.07418753457 | AX132: 0.07134948064 | AY132: 15.92231446 | AZ132: 15.92231446 | BA132: 1.52422221 | BB132: 0 | BC132: 0 | BD132: 5.368650768 | BE132: 4.08631731 | BF132: 0.005154951524 | BG132: 0.00495390346 | BH132: 3.12097084 | BI132: 3.12097084 | BJ132: 0.0882124025 | BK132: 16.07990922 | BL132: 16.10173214 | BM132: 1.097814396 | BN132: 13.59291667 | BO132: 14.64720201 | BP132: 1.184567855 | BQ132: 1.299994695 | BR132: 0.8033866855 | CF132: 385.9178213 | CG132: 14.64720201 | CH132: 1.184567855 | CI132: 1.299994695 | CJ132: 0.8033866855 | CN132: 0.0127431828 | CO132: 5.441571345 | CP132: 381 | CQ132: 386.4415713
A133: 130 | B133: 24 | C133: 18.36112796 | D133: 4.334583333 | E133: 11.30416667 | F133: 11.4125 | G133: 42.72916667 | H133: 0 | I133: 14.90458333 | J133: 1.014191747 | K133: 2.704764289 | L133: 0.2885474537 | M133: 0 | N133: 0 | O133: 2.350104167 | P133: 0.2059967675 | Q133: 0.2059967675 | R133: 0.04472681736 | S133: 0.19 | T133: 0.08287894621 | U133: 0.2578419549 | V133: 0.7563497925 | W133: 5.09785306 | X133: 1.601812384 | Y133: 0.04334583333 | Z133: 2.70853588 | AA133: 0 | AB133: 42.37609412 | AC133: 0.05953181317 | AD133: 0.5732248972 | AE133: 0.6810782665 | AF133: 1.934909095 | AG133: 3.048319429 | AH133: 44.79816669 | AI133: 8.548214819 | AJ133: 0 | AK133: 0 | AL133: 0 | AM133: 0 | AN133: 0.03975313947 | AO133: 0.04738085348 | AP133: 0.3444263598 | AQ133: 0.05099567688 | AR133: 8.746750274 | AS133: 19.7712318 | AT133: 2.117819559 | AU133: 2.022253674 | AV133: 1.934909095 | AW133: 0.6810782665 | AX133: 0.5732248972 | AY133: 44.79816669 | AZ133: 44.79816669 | BA133: 3.048319429 | BB133: 0 | BC133: 0 | BD133: 0.367641611 | BE133: 0.3444263598 | BF133: 0.04738085348 | BG133: 0.03975313947 | BH133: 8.746750274 | BI133: 8.746750274 | BJ133: 0.1721020057 | BK133: 45.43393096 | BL133: 45.72247841 | BM133: 2.351691747 | BN133: 19.23916667 | BO133: 19.31967955 | BP133: 2.376531125 | BQ133: 1.221553575 | BR133: 1.01627886 | BT133: =IF(AC133>=0.67,24*(G133+H133+K133),"") ->  | BU133: =IF($AC133>=0.67,BO133,"") ->  | BV133: =IF($AC133>=0.67,BP133,"") ->  | BW133: =IF($AC133>=0.67,BQ133,"") ->  | BX133: =IF($AC133>=0.67,BR133,"") ->  | BZ133: =IF($AC133>0.25,IF(AC133<0.67,24*(G133+H133+K133),""),"") ->  | CA133: =IF($AC133>0.25,IF($AC133<0.67,BO133,""),"") ->  | CB133: =IF($AC133>0.25,IF($AC133<0.67,BP133,""),"") ->  | CC133: =IF($AC133>0.25,IF($AC133<0.67,BQ133,""),"") ->  | CD133: =IF($AC133>0.25,IF($AC133<0.67,BR133,""),"") ->  | CF133: =IF(AC133<=0.25,24*(G133+H133+K133),"") -> 1090.414343 | CG133: =IF($AC133<=0.25,BO133,"") -> 19.31967955 | CH133: =IF($AC133<=0.25,BP133,"") -> 2.376531125 | CI133: =IF($AC133<=0.25,BQ133,"") -> 1.221553575 | CJ133: =IF($AC133<=0.25,BR133,"") -> 1.01627886 | CN133: =AC133 -> 0.05953181317 | CO133: =24*(H133+K133+L133+M133) -> 71.83948183 | CP133: =24*G133 -> 1025.5 | CQ133: =CO133+CP133 -> 1097.339482
A134: 131 | B134: 24 | C134: 17.36805688 | D134: 3.655 | E134: 11.775 | F134: 11.7 | G134: 41.79166667 | H134: 0 | I134: 14.85333333 | J134: 1.009897729 | K134: 2.450548449 | L134: 0.261875 | M134: 0 | N134: 0 | O134: 2.298541667 | P134: 0.1868173942 | Q134: 0.1868173942 | R134: 0.03744532762 | S134: 0.19 | T134: 0.07521786715 | U134: 0 | V134: 1.009897729 | W134: 0 | X134: 2.394530036 | Y134: 0.03655 | Z134: 2.719791667 | AA134: 0 | AB134: 41.02434928 | AC134: 0.05538937059 | AD134: 0.6057603862 | AE134: 0.7309267202 | AF134: 3.36027166 | AG134: 2.978605147 | AH134: 43.80860936 | AI134: 9.540207031 | AJ134: 0 | AK134: 0 | AL134: 0 | AM134: 0 | AN134: 0.04202798326 | AO134: 0.05087977318 | AP134: 1.036332075 | AQ134: 0.05476854221 | AR134: 8.587030024 | AS134: 0 | AT134: 2.371061907 | AU134: 3.639428389 | AV134: 3.36027166 | AW134: 0.7309267202 | AX134: 0.6057603862 | AY134: 43.80860936 | AZ134: 43.80860936 | BA134: 2.978605147 | BB134: 0 | BC134: 0 | BD134: 1.20411753 | BE134: 1.036332075 | BF134: 0.05087977318 | BG134: 0.04202798326 | BH134: 8.587030024 | BI134: 8.587030024 | BJ134: 0.1681957073 | BK134: 44.24221512 | BL134: 44.50409012 | BM134: 1.683231063 | BN134: 18.50833333 | BO134: 26.28410092 | BP134: 2.404543365 | BQ134: 1.886964701 | BR134: 1.387853503 | CF134: 1061.813163 | CG134: 26.28410092 | CH134: 2.404543365 | CI134: 1.886964701 | CJ134: 1.387853503 | CN134: 0.05538937059 | CO134: 65.09816277 | CP134: 1003 | CQ134: 1068.098163
A135: 132 | B135: 24 | C135: 10.2800935 | D135: 4.082916667 | E135: 11.10416667 | F135: 11.07083333 | G135: 16.75 | H135: 0.1666666667 | I135: 14.335 | J135: 1.014191747 | K135: 2.604883186 | L135: 0.2788483796 | M135: 0.1128761574 | N135: 0.008342776207 | O135: 0.92125 | P135: 0.1987785262 | Q135: 0.2021482875 | R135: 0.04592716437 | S135: 0.19 | T135: 0.08009309928 | U135: 0.04297365916 | V135: 0.9712180882 | W135: 0.6709628925 | X135: 1.744896257 | Y135: 0.04082916667 | Z135: 2.700318287 | AA135: 0 | AB135: 16.09639189 | AC135: 0.1419738634 | AD135: 0.5170344038 | AE135: 0.7483664998 | AF135: 2.22125819 | AG135: 1.361810244 | AH135: 19.24838168 | AI135: 3.906778662 | AJ135: 0 | AK135: 0 | AL135: 0 | AM135: 0 | AN135: 0.03326813901 | AO135: 0.04851052209 | AP135: 0.4274925305 | AQ135: 0.05207986812 | AR135: 3.758207092 | AS135: 15.61335259 | AT135: 1.796606012 | AU135: 2.511030444 | AV135: 2.22125819 | AW135: 0.7483664998 | AX135: 0.5170344038 | AY135: 19.24838168 | AZ135: 19.24838168 | BA135: 1.361810244 | BB135: 0 | BC135: 0 | BD135: 0.5314100188 | BE135: 0.4274925305 | BF135: 0.04851052209 | BG135: 0.03326813901 | BH135: 3.758207092 | BI135: 3.758207092 | BJ135: 0.07704375408 | BK135: 19.52154985 | BL135: 19.91327439 | BM135: 2.117941747 | BN135: 18.41791667 | BO135: 9.217226997 | BP135: 1.081190384 | BQ135: 0.5764066171 | BR135: 0.4639668787 | CF135: 468.5171965 | CG135: 9.217226997 | CH135: 1.081190384 | CI135: 0.5764066171 | CJ135: 0.4639668787 | CN135: 0.1419738634 | CO135: 75.91858535 | CP135: 402 | CQ135: 477.9185854
A136: 133 | B136: 24 | C136: 10.43518604 | D136: 5.355833333 | E136: 10.60833333 | F136: 10.79166667 | G136: 16.75 | H136: 8.666666667 | I136: 14.42916667 | J136: 1.014191747 | K136: 3.007370389 | L136: 0.322494213 | M136: 0.9975752315 | N136: 0.4357888719 | O136: 0.92125 | P136: 0.2297203119 | Q136: 0.663846695 | R136: 0.08884802146 | S136: 0.19 | T136: 0.09262941048 | U136: 0.3394952552 | V136: 0.6746964922 | W136: 7.4570576 | X136: 1.596288124 | Y136: 0.05355833333 | Z136: 2.677505787 | AA136: 4.878952063 | AB136: 13.32494009 | AC136: 0.410710028 | AD136: 1.151751829 | AE136: 2.251086101 | AF136: 4.210847905 | AG136: 1.9699015 | AH136: 28.02629496 | AI136: 4.669386089 | AJ136: 0 | AK136: 0 | AL136: 0 | AM136: 0 | AN136: 0.05953601034 | AO136: 0.1201102717 | AP136: 0.4208824433 | AQ136: 0.1211774915 | AR136: 5.472076676 | AS136: 21.96513055 | AT136: 2.365935117 | AU136: 4.955374767 | AV136: 4.210847905 | AW136: 2.251086101 | AX136: 1.151751829 | AY136: 28.02629496 | AZ136: 28.02629496 | BA136: 1.9699015 | BB136: 0 | BC136: 0 | BD136: 0.5541113321 | BE136: 0.4208824433 | BF136: 0.1201102717 | BG136: 0.05953601034 | BH136: 5.472076676 | BI136: 5.472076676 | BJ136: 0.111406425 | BK136: 28.42403706 | BL136: 29.7441065 | BM136: 3.370025081 | BN136: 19.785 | BO136: 8.434369589 | BP136: 1.503366515 | BQ136: 0.3796157961 | BR136: 0.4247869044 | BZ136: 682.1768893 | CA136: 8.434369589 | CB136: 1.503366515 | CC136: 0.3796157961 | CD136: 0.4247869044 | CN136: 0.410710028 | CO136: 311.858556 | CP136: 402 | CQ136: 713.858556
A137: 134 | B137: 24 | C137: 9.488426667 | D137: 5.454166667 | E137: 10.54583333 | F137: 10.75833333 | G137: 16.41666667 | H137: 7.75 | I137: 14.34708333 | J137: 1.009897729 | K137: 2.640950088 | L137: 0.2836979167 | M137: 0.9927256944 | N137: 0.3903438359 | O137: 0.9029166667 | P137: 0.2019332828 | Q137: 0.587725835 | R137: 0.08559502724 | S137: 0.19 | T137: 0.08148602275 | U137: 0.3437892733 | V137: 0.666108456 | W137: 8.579870505 | X137: 1.721090851 | Y137: 0.05454166667 | Z137: 2.716302083 | AA137: 4.261723861 | AB137: 13.75150484 | AC137: 0.3876118561 | AD137: 1.059200333 | AE137: 1.995918941 | AF137: 3.651565685 | AG137: 1.868506381 | AH137: 26.54488269 | AI137: 4.34464118 | AJ137: 0 | AK137: 0 | AL137: 0 | AM137: 0 | AN137: 0.0539866642 | AO137: 0.1047028346 | AP137: 0.3538032131 | AQ137: 0.1056266933 | AR137: 5.203125778 | AS137: 24.95677199 | AT137: 2.583799734 | AU137: 4.234003431 | AV137: 3.651565685 | AW137: 1.995918941 | AX137: 1.059200333 | AY137: 26.54488269 | AZ137: 26.54488269 | BA137: 1.868506381 | BB137: 0 | BC137: 0 | BD137: 0.4527973849 | BE137: 0.3538032131 | BF137: 0.1047028346 | BG137: 0.0539866642 | BH137: 5.203125778 | BI137: 5.203125778 | BJ137: 0.1057049576 | BK137: 26.80761675 | BL137: 28.08404037 | BM137: 3.464064396 | BN137: 19.80125 | BO137: 7.738775522 | BP137: 1.418296338 | BQ137: 0.347423629 | BR137: 0.4013868029 | BZ137: 643.3828021 | CA137: 7.738775522 | CB137: 1.418296338 | CC137: 0.347423629 | CD137: 0.4013868029 | CN137: 0.3876118561 | CO137: 280.0169688 | CP137: 394 | CQ137: 674.0169688
A138: 135 | B138: 24 | C138: 7.1134265 | D138: 5.027083333 | E138: 10.425 | F138: 10.49166667 | G138: 8.25 | H138: 7.083333333 | I138: 10.50791667 | J138: 1.014191747 | K138: 0.428115913 | L138: 0.04607060185 | M138: 2.105109954 | N138: 0.3568098893 | O138: 0.45375 | P138: 0.03276786826 | Q138: 0.378432253 | R138: 0.09199022238 | S138: 0.19 | T138: 0.01323277293 | U138: 0.1289209775 | V138: 0.8852707699 | W138: 3.886279218 | X138: 1.729765029 | Y138: 0.05027083333 | Z138: 2.945596065 | AA138: 1.843023795 | AB138: 5.631182963 | AC138: 0.4765709757 | AD138: 0.962907111 | AE138: 1.753520396 | AF138: 2.982211896 | AG138: 1.499959483 | AH138: 15.54089677 | AI138: 2.965041248 | AJ138: 0 | AK138: 0 | AL138: 0 | AM138: 0 | AN138: 0.03873107373 | AO138: 0.07465436834 | AP138: 0.2871660029 | AQ138: 0.07469298148 | AR138: 3.034328257 | AS138: 30.14466143 | AT138: 1.953938939 | AU138: 3.690374246 | AV138: 2.982211896 | AW138: 1.753520396 | AX138: 0.962907111 | AY138: 15.54089677 | AZ138: 15.54089677 | BA138: 1.499959483 | BB138: 0 | BC138: 0 | BD138: 0.4182596204 | BE138: 0.2871660029 | BF138: 0.07465436834 | BG138: 0.03873107373 | BH138: 3.034328257 | BI138: 3.034328257 | BJ138: 0.08684162348 | BK138: 15.76144925 | BL138: 17.9126298 | BM138: 3.049608414 | BN138: 15.535 | BO138: 5.168351836 | BP138: 1.153049875 | BQ138: 0.2319031408 | BR138: 0.6312127087 | BZ138: 378.2747819 | CA138: 5.168351836 | CB138: 1.153049875 | CC138: 0.2319031408 | CD138: 0.6312127087 | CN138: 0.4765709757 | CO138: 231.9031152 | CP138: 198 | CQ138: 429.9031152
A139: 136 | B139: 24 | C139: 6.543982 | D139: 6.456666667 | E139: 9.8375 | F139: 10.22083333 | G139: 7.583333333 | H139: 16.54166667 | I139: 10.53916667 | J139: 1.014191747 | K139: 0.3148935963 | L139: 0.03394675926 | M139: 2.845902778 | N139: 0.8320217186 | O139: 0.4170833333 | P139: 0.02412645554 | Q139: 0.8383040234 | R139: 0.1394591387 | S139: 0.19 | T139: 0.009750464261 | U139: 0.4254425735 | V139: 0.5887491739 | W139: 13.91049159 | X139: 1.595174199 | Y139: 0.06456666667 | Z139: 2.966053241 | AA139: 7.213966114 | AB139: 2.411597599 | AC139: 0.6897149612 | AD139: 1.437917748 | AE139: 2.757957135 | AF139: 4.055791923 | AG139: 2.318958829 | AH139: 24.09790225 | AI139: 3.656841238 | AJ139: 0 | AK139: 0 | AL139: 0 | AM139: 0 | AN139: 0.06279866711 | AO139: 0.1288856314 | AP139: 0.2878202492 | AQ139: 0.1288928332 | AR139: 4.705066049 | AS139: 32.69651994 | AT139: 2.709429193 | AU139: 4.876536238 | AV139: 4.055791923 | AW139: 2.757957135 | AX139: 1.437917748 | AY139: 24.09790225 | AZ139: 24.09790225 | BA139: 2.318958829 | BB139: 0 | BC139: 0 | BD139: 0.3832901436 | BE139: 0.2878202492 | BF139: 0.1288856314 | BG139: 0.06279866711 | BH139: 4.705066049 | BI139: 4.705066049 | BJ139: 0.1342196153 | BK139: 24.4398936 | BL139: 27.31974313 | BM139: 4.470858414 | BN139: 16.99583333 | BO139: 5.466487939 | BP139: 1.607437694 | BQ139: 0.2302605466 | BR139: 0.600498485 | BT139: 586.5574463 | BU139: 5.466487939 | BV139: 1.607437694 | BW139: 0.2302605466 | BX139: 0.600498485 | CN139: 0.6897149612 | CO139: 473.6738352 | CP139: 182 | CQ139: 655.6738352
A140: 137 | B140: 24 | C140: 8.046296875 | D140: 6.106666667 | E140: 10.08333333 | F140: 10.275 | G140: 11.45833333 | H140: 9.416666667 | I140: 14.21333333 | J140: 1.009897729 | K140: 3.008592738 | L140: 0.3249189815 | M140: 1.893310185 | N140: 0.4760516228 | O140: 0.6302083333 | P140: 0.2307489016 | Q140: 0.677742562 | R140: 0.1081238222 | S140: 0.19 | T140: 0.09332587221 | U140: 0.2578419549 | V140: 0.7520557744 | W140: 8.039036617 | X140: 1.863523619 | Y140: 0.06106666667 | Z140: 2.675081019 | AA140: 4.430761871 | AB140: 7.580400195 | AC140: 0.5202424753 | AD140: 1.084618789 | AE140: 2.207985481 | AF140: 3.420996628 | AG140: 1.680365343 | AH140: 23.64951623 | AI140: 3.66775602 | AJ140: 0 | AK140: 0 | AL140: 0 | AM140: 0 | AN140: 0.05094522935 | AO140: 0.1083465898 | AP140: 0.2863586091 | AQ140: 0.1092565915 | AR140: 4.635598091 | AS140: 31.1781557 | AT140: 2.477906138 | AU140: 3.999547019 | AV140: 3.420996628 | AW140: 2.207985481 | AX140: 1.084618789 | AY140: 23.64951623 | AZ140: 23.64951623 | BA140: 1.680365343 | BB140: 0 | BC140: 0 | BD140: 0.3667503761 | BE140: 0.2863586091 | BF140: 0.1083465898 | BG140: 0.05094522935 | BH140: 4.635598091 | BI140: 4.635598091 | BJ140: 0.09511070017 | BK140: 23.88359274 | BL140: 26.1018219 | BM140: 4.116564396 | BN140: 20.32 | BO140: 5.801826582 | BP140: 1.28453848 | BQ140: 0.2356342823 | BR140: 0.4666072005 | BZ140: 573.2062257 | CA140: 5.801826582 | CB140: 1.28453848 | CC140: 0.2356342823 | CD140: 0.4666072005 | CN140: 0.5202424753 | CO140: 351.4437257 | CP140: 275 | CQ140: 626.4437257
A141: 138 | B141: 24 | C141: 8.972223 | D141: 6.02875 | E141: 10.1125 | F141: 10.325 | G141: 11.33333333 | H141: 7.083333333 | I141: 14.28541667 | J141: 1.014191747 | K141: 2.846296444 | L141: 0.3079456019 | M141: 1.331354167 | N141: 0.3559055075 | O141: 0.6233333333 | P141: 0.2185276911 | Q141: 0.5527933695 | R141: 0.101171787 | S141: 0.19 | T141: 0.08845064008 | U141: 0.296521596 | V141: 0.7176701514 | W141: 8.385920213 | X141: 1.599917288 | Y141: 0.0602875 | Z141: 2.692054398 | AA141: 2.68094718 | AB141: 8.127592483 | AC141: 0.466991817 | AD141: 0.9109448799 | AE141: 1.779186802 | AF141: 2.835117909 | AG141: 1.488438427 | AH141: 20.96542707 | AI141: 3.251803536 | AJ141: 0 | AK141: 0 | AL141: 0 | AM141: 0 | AN141: 0.04412809133 | AO141: 0.08940771826 | AP141: 0.2434506132 | AQ141: 0.09043659181 | AR141: 4.093456685 | AS141: 28.28097624 | AT141: 2.229321207 | AU141: 3.278458036 | AV141: 2.835117909 | AW141: 1.779186802 | AX141: 0.9109448799 | AY141: 20.96542707 | AZ141: 20.96542707 | BA141: 1.488438427 | BB141: 0 | BC141: 0 | BD141: 0.3059489309 | BE141: 0.2434506132 | BF141: 0.08940771826 | BG141: 0.04412809133 | BH141: 4.093456685 | BI141: 4.093456685 | BJ141: 0.08422375063 | BK141: 21.26296311 | BL141: 22.90226288 | BM141: 4.042941747 | BN141: 20.31416667 | BO141: 5.259280108 | BP141: 1.127403514 | BQ141: 0.2177505354 | BR141: 0.3602395325 | BZ141: 510.3111147 | CA141: 5.259280108 | CB141: 1.127403514 | CC141: 0.2177505354 | CD141: 0.3602395325 | CN141: 0.466991817 | CO141: 277.6543091 | CP141: 272 | CQ141: 549.6543091
A142: 139 | B142: 24 | C142: 11.60416771 | D142: 4.95 | E142: 10.42083333 | F142: 10.52916667 | G142: 13.83333333 | H142: 2.666666667 | I142: 14.2825 | J142: 1.009897729 | K142: 2.99774173 | L142: 0.3249189815 | M142: 1.095902778 | N142: 0.1350487006 | O142: 0.7608333333 | P142: 0.2303955699 | Q142: 0.3564580788 | R142: 0.07626384191 | S142: 0.19 | T142: 0.09332587221 | U142: 0.2148682958 | V142: 0.7950294335 | W142: 5.226888754 | X142: 1.730061963 | Y142: 0.0495 | Z142: 2.675081019 | AA142: 0.8028026817 | AB142: 11.93162535 | AC142: 0.2905161262 | AD142: 0.7786569104 | AE142: 1.351268555 | AF142: 2.52493076 | AG142: 1.36514908 | AH142: 19.30664974 | AI142: 3.509886317 | AJ142: 0 | AK142: 0 | AL142: 0 | AM142: 0 | AN142: 0.03971413027 | AO142: 0.07076633673 | AP142: 0.3029587172 | AQ142: 0.07297033848 | AR142: 3.78434247 | AS142: 24.32601206 | AT142: 2.176098003 | AU142: 2.904824819 | AV142: 2.52493076 | AW142: 1.351268555 | AX142: 0.7786569104 | AY142: 19.30664974 | AZ142: 19.30664974 | BA142: 1.36514908 | BB142: 0 | BC142: 0 | BD142: 0.3833313765 | BE142: 0.3029587172 | BF142: 0.07076633673 | BG142: 0.03971413027 | BH142: 3.78434247 | BI142: 3.78434247 | BJ142: 0.07724825624 | BK142: 19.49774173 | BL142: 20.91856349 | BM142: 2.959897729 | BN142: 19.2325 | BO142: 6.587302506 | BP142: 1.087667411 | BQ142: 0.3345548957 | BR142: 0.4435310558 | BZ142: 467.9458015 | CA142: 6.587302506 | CB142: 1.087667411 | CC142: 0.3345548957 | CD142: 0.4435310558 | CN142: 0.2905161262 | CO142: 170.0455238 | CP142: 332 | CQ142: 502.0455238
A143: 140 | B143: 24 | C143: 13.23611208 | D143: 3.952916667 | E143: 10.63333333 | F143: 10.6625 | G143: 12.5 | H143: 0.75 | I143: 14.10625 | J143: 1.014191747 | K143: 2.992282765 | L143: 0.3249189815 | M143: 0.3717418981 | N143: 0.03763789818 | O143: 0.6875 | P143: 0.2302180928 | Q143: 0.2664773233 | R143: 0.05695312767 | S143: 0.19 | T143: 0.09332587221 | U143: 0.1718946366 | V143: 0.8422971108 | W143: 2.816366624 | X143: 1.868770218 | Y143: 0.03952916667 | Z143: 2.666747685 | AA143: 0.002987025606 | AB143: 10.73614601 | AC143: 0.2304037443 | AD143: 0.6162589406 | AE143: 1.060276594 | AF143: 3.131817666 | AG143: 1.151424565 | AH143: 16.0150019 | AI143: 3.410222252 | AJ143: 0 | AK143: 0 | AL143: 0 | AM143: 0 | AN143: 0.03731457985 | AO143: 0.06526401177 | AP143: 0.6333781614 | AQ143: 0.06896598788 | AR143: 3.126896314 | AS143: 16.38426119 | AT143: 2.218659181 | AU143: 3.893142018 | AV143: 3.131817666 | AW143: 1.060276594 | AX143: 0.6162589406 | AY143: 16.0150019 | AZ143: 16.0150019 | BA143: 1.151424565 | BB143: 0 | BC143: 0 | BD143: 0.9494605561 | BE143: 0.6333781614 | BF143: 0.06526401177 | BG143: 0.03731457985 | BH143: 3.126896314 | BI143: 3.126896314 | BJ143: 0.0651997099 | BK143: 16.24228276 | BL143: 16.93894364 | BM143: 1.975441747 | BN143: 18.05916667 | BO143: 8.222101606 | BP143: 0.9379692849 | BQ143: 0.5141027336 | BR143: 0.4313529521 | CF143: 389.8147863 | CG143: 8.222101606 | CH143: 0.9379692849 | CI143: 0.5141027336 | CJ143: 0.4313529521 | CN143: 0.2304037443 | CO143: 106.5346475 | CP143: 300 | CQ143: 406.5346475
A144: 141 | B144: 24 | C144: 14.04861217 | D144: 3.846666667 | E144: 10.84583333 | F144: 10.80833333 | G144: 16.375 | H144: 0.2083333333 | I144: 13.98791667 | J144: 1.014191747 | K144: 2.474143318 | L144: 0.2691493056 | M144: 0.2475 | N144: 0.01218101841 | O144: 0.900625 | P144: 0.1905556455 | Q144: 0.2027366639 | R144: 0.04590717431 | S144: 0.19 | T144: 0.07730725235 | U144: 0.04297365916 | V144: 0.9712180882 | W144: 0.6704926006 | X144: 1.869314157 | Y144: 0.03846666667 | Z144: 2.723767361 | AA144: 0 | AB144: 15.5604651 | AC144: 0.140757179 | AD144: 0.5500970604 | AE144: 0.8019022328 | AF144: 2.691885412 | AG144: 1.362424234 | AH144: 18.79080233 | AI144: 4.026886671 | AJ144: 0 | AK144: 0 | AL144: 0 | AM144: 0 | AN144: 0.03513044332 | AO144: 0.05164955204 | AP144: 0.6274587853 | AQ144: 0.0551650748 | AR144: 3.668865661 | AS144: 15.60240886 | AT144: 1.92471102 | AU144: 3.14199315 | AV144: 2.691885412 | AW144: 0.8019022328 | AX144: 0.5500970604 | AY144: 18.79080233 | AZ144: 18.79080233 | BA144: 1.362424234 | BB144: 0 | BC144: 0 | BD144: 0.8361450773 | BE144: 0.6274587853 | BF144: 0.05164955204 | BG144: 0.03513044332 | BH144: 3.668865661 | BI144: 3.668865661 | BJ144: 0.07718469402 | BK144: 19.05747665 | BL144: 19.57412596 | BM144: 1.867941747 | BN144: 17.83458333 | BO144: 10.20239345 | BP144: 1.097537609 | BQ144: 0.6717065656 | BR144: 0.522944477 | CF144: 457.3794396 | CG144: 10.20239345 | CH144: 1.097537609 | CI144: 0.6717065656 | CJ144: 0.522944477 | CN144: 0.140757179 | CO144: 76.77902297 | CP144: 393 | CQ144: 469.779023
A145: 142 | B145: 24 | C145: 13.09722325 | D145: 3.31625 | E145: 10.64583333 | F145: 10.65416667 | G145: 8.375 | H145: 0.7916666667 | I145: 10.37708333 | J145: 1.014191747 | K145: 0.422722492 | L145: 0.04607060185 | M145: 0.375 | N145: 0.03980748634 | O145: 0.460625 | P145: 0.03259234367 | Q145: 0.07239983001 | R145: 0.04356427171 | S145: 0.19 | T145: 0.01323277293 | U145: 0.04297365916 | V145: 0.9712180882 | W145: 2.545496881 | X145: 2.266643194 | Y145: 0.0331625 | Z145: 2.938512731 | AA145: 0.1719693484 | AB145: 8.678438604 | AC145: 0.1266388441 | AD145: 0.3532011583 | AE145: 0.4747775928 | AF145: 2.639386946 | AG145: 0.9240929123 | AH145: 9.455203302 | AI145: 2.311648636 | AJ145: 0 | AK145: 0 | AL145: 0 | AM145: 0 | AN145: 0.01598500725 | AO145: 0.02185868882 | AP145: 1.176369588 | AQ145: 0.02219367984 | AR145: 1.846109075 | AS145: 59.23388724 | AT145: 2.333814846 | AU145: 3.66147485 | AV145: 2.639386946 | AW145: 0.4747775928 | AX145: 0.3532011583 | AY145: 9.455203302 | AZ145: 9.455203302 | BA145: 0.9240929123 | BB145: 0 | BC145: 0 | BD145: 2.253431329 | BE145: 1.176369588 | BF145: 0.02185868882 | BG145: 0.01598500725 | BH145: 1.846109075 | BI145: 1.846109075 | BJ145: 0.05356743187 | BK145: 9.589389159 | BL145: 10.01045976 | BM145: 1.345858414 | BN145: 13.69333333 | BO145: 7.125109936 | BP145: 0.7310462337 | BQ145: 0.5351596506 | BR145: 0.4293742621 | CF145: 230.1453398 | CG145: 7.125109936 | CH145: 0.7310462337 | CI145: 0.5351596506 | CJ145: 0.4293742621 | CN145: 0.1266388441 | CO145: 39.25103425 | CP145: 201 | CQ145: 240.2510343
A146: 143 | B146: 24 | C146: 15.1597235 | D146: 3.755 | E146: 10.7125 | F146: 10.64166667 | G146: 10.83333333 | H146: 1.041666667 | I146: 10.83958333 | J146: 1.009897729 | K146: 0.5329775725 | L146: 0.05819444444 | M146: 0.1204166667 | N146: 0.05211904354 | O146: 0.5958333333 | P146: 0.04113726787 | Q146: 0.09325631141 | R146: 0.0448279976 | S146: 0.19 | T146: 0.01671508159 | U146: 0 | V146: 1.009897729 | W146: 0 | X146: 2.262001114 | Y146: 0.03755 | Z146: 2.920555556 | AA146: 0.8320263408 | AB146: 11.87686316 | AC146: 0.1269057935 | AD146: 0.3417248131 | AE146: 0.4515019996 | AF146: 1.741069845 | AG146: 1.144691377 | AH146: 12.2863704 | AI146: 2.641523365 | AJ146: 0 | AK146: 0 | AL146: 0 | AM146: 0 | AN146: 0.01842006967 | AO146: 0.02457467218 | AP146: 0.406783391 | AQ146: 0.02494881276 | AR146: 2.408280772 | AS146: 0 | AT146: 2.239831864 | AU146: 2.0285272 | AV146: 1.741069845 | AW146: 0.4515019996 | AX146: 0.3417248131 | AY146: 12.2863704 | AZ146: 12.2863704 | BA146: 1.144691377 | BB146: 0 | BC146: 0 | BD146: 0.5469283769 | BE146: 0.406783391 | BF146: 0.02457467218 | BG146: 0.01842006967 | BH146: 2.408280772 | BI146: 2.408280772 | BJ146: 0.06607797796 | BK146: 12.40797757 | BL146: 12.58658868 | BM146: 1.786147729 | BN146: 14.59458333 | BO146: 6.946781259 | BP146: 0.8624150752 | BQ146: 0.4518776137 | BR146: 0.3433898125 | CF146: 297.7914617 | CG146: 6.946781259 | CH146: 0.8624150752 | CI146: 0.4518776137 | CJ146: 0.3433898125 | CN146: 0.1269057935 | CO146: 42.07812841 | CP146: 260 | CQ146: 302.0781284
A147: 144 | B147: 24 | C147: 16.96990871 | D147: 3.760833333 | E147: 11.35416667 | F147: 11.32916667 | G147: 34.16666667 | H147: 0 | I147: 14.7425 | J147: 1.014191747 | K147: 2.925929367 | L147: 0.3200694444 | M147: 0 | N147: 0 | O147: 1.879166667 | P147: 0.22607863 | Q147: 0.22607863 | R147: 0.03991602869 | S147: 0.19 | T147: 0.09193294874 | U147: 0.04297365916 | V147: 0.9712180882 | W147: 0.8059577149 | X147: 1.597233421 | Y147: 0.03760833333 | Z147: 2.661597222 | AA147: 0 | AB147: 33.03409571 | AC147: 0.07888176294 | AD147: 0.6592536811 | AE147: 0.8451285145 | AF147: 3.405538508 | AG147: 2.516031612 | AH147: 36.5735534 | AI147: 7.835072035 | AJ147: 0 | AK147: 0 | AL147: 0 | AM147: 0 | AN147: 0.04622595769 | AO147: 0.05951352031 | AP147: 0.9296004886 | AQ147: 0.06414651509 | AR147: 7.140911378 | AS147: 18.75469138 | AT147: 1.644567209 | AU147: 3.755203466 | AV147: 3.405538508 | AW147: 0.8451285145 | AX147: 0.6592536811 | AY147: 36.5735534 | AZ147: 36.5735534 | BA147: 2.516031612 | BB147: 0 | BC147: 0 | BD147: 1.114658392 | BE147: 0.9296004886 | BF147: 0.05951352031 | BG147: 0.04622595769 | BH147: 7.140911378 | BI147: 7.140911378 | BJ147: 0.1421301381 | BK147: 37.09259603 | BL147: 37.41266548 | BM147: 1.793358414 | BN147: 18.50333333 | BO147: 20.68331447 | BP147: 2.021941928 | BQ147: 1.448064934 | BR147: 1.07477208 | CF147: 890.2223048 | CG147: 20.68331447 | CH147: 2.021941928 | CI147: 1.448064934 | CJ147: 1.07477208 | CN147: 0.07888176294 | CO147: 77.90397148 | CP147: 820 | CQ147: 897.9039715
A148: 145 | B148: 24 | C148: 16.46759379 | D148: 3.711666667 | E148: 11.6875 | F148: 11.71666667 | G148: 42.875 | H148: 0 | I148: 15.03625 | J148: 1.014191747 | K148: 2.588597222 | L148: 0.2836979167 | M148: 0 | N148: 0 | O148: 2.358125 | P148: 0.2002313568 | Q148: 0.2002313568 | R148: 0.03815608156 | S148: 0.19 | T148: 0.08148602275 | U148: 0.1718946366 | V148: 0.8422971108 | W148: 3.091156349 | X148: 2.129767111 | Y148: 0.03711666667 | Z148: 2.70296875 | AA148: 0 | AB148: 42.02559453 | AC148: 0.05693780036 | AD148: 0.6288140036 | AE148: 0.7620007437 | AF148: 3.307072444 | AG148: 3.023599449 | AH148: 44.82741783 | AI148: 9.680208574 | AJ148: 0 | AK148: 0 | AL148: 0 | AM148: 0 | AN148: 0.04414900894 | AO148: 0.05367714099 | AP148: 0.9661282921 | AQ148: 0.05786674648 | AR148: 8.752461499 | AS148: 17.98285514 | AT148: 2.528522399 | AU148: 3.570478927 | AV148: 3.307072444 | AW148: 0.7620007437 | AX148: 0.6288140036 | AY148: 44.82741783 | AZ148: 44.82741783 | BA148: 3.023599449 | BB148: 0 | BC148: 0 | BD148: 1.113947085 | BE148: 0.9661282921 | BF148: 0.05367714099 | BG148: 0.04414900894 | BH148: 8.752461499 | BI148: 8.752461499 | BJ148: 0.1706304737 | BK148: 45.46359722 | BL148: 45.74729514 | BM148: 1.739191747 | BN148: 18.74791667 | BO148: 26.14064682 | BP148: 2.440126866 | BQ148: 1.857456757 | BR148: 1.379009463 | CF148: 1091.126333 | CG148: 26.14064682 | CH148: 2.440126866 | CI148: 1.857456757 | CJ148: 1.379009463 | CN148: 0.05693780036 | CO148: 68.93508333 | CP148: 1029 | CQ148: 1097.935083
A149: 146 | B149: 24 | C149: 10.21876179 | D149: 4.674583333 | E149: 10.9625 | F149: 11.09375 | G149: 15.02083333 | H149: 1.416666667 | I149: 14.49291667 | J149: 1.009897729 | K149: 3.069579277 | L149: 0.3370428241 | M149: 0.245150463 | N149: 0.07099679478 | O149: 0.8261458333 | P149: 0.2376955474 | Q149: 0.3053572529 | R149: 0.06097253016 | S149: 0.19 | T149: 0.09680818087 | U149: 0.2105742777 | V149: 0.7993234516 | W149: 5.932097412 | X149: 1.802628265 | Y149: 0.04674583333 | Z149: 2.641707176 | AA149: 0.3670263117 | AB149: 13.60734476 | AC149: 0.2299804025 | AD149: 0.6329480537 | AE149: 1.032933458 | AF149: 2.326782411 | AG149: 1.345973328 | AH149: 19.31589577 | AI149: 3.534055676 | AJ149: 0 | AK149: 0 | AL149: 0 | AM149: 0 | AN149: 0.03843644039 | AO149: 0.06354080133 | AP149: 0.3204472957 | AQ149: 0.06653326983 | AR149: 3.786154807 | AS149: 28.17104481 | AT149: 2.255192515 | AU149: 2.645452153 | AV149: 2.326782411 | AW149: 1.032933458 | AX149: 0.6329480537 | AY149: 19.31589577 | AZ149: 19.31589577 | BA149: 1.345973328 | BB149: 0 | BC149: 0 | BD149: 0.397350401 | BE149: 0.3204472957 | BF149: 0.06354080133 | BG149: 0.03843644039 | BH149: 3.786154807 | BI149: 3.786154807 | BJ149: 0.07610248216 | BK149: 19.50707928 | BL149: 20.08927256 | BM149: 2.705731063 | BN149: 19.1675 | BO149: 7.209541091 | BP149: 1.048090391 | BQ149: 0.3952044221 | BR149: 0.3485391015 | CF149: 468.1699026 | CG149: 7.209541091 | CH149: 1.048090391 | CI149: 0.3952044221 | CJ149: 0.3485391015 | CN149: 0.2299804025 | CO149: 121.6425415 | CP149: 360.5 | CQ149: 482.1425415
A150: 147 | B150: 24 | C150: 9.09953775 | D150: 5.286666667 | E150: 10.62916667 | F150: 10.74166667 | G150: 12.70833333 | H150: 6.75 | I150: 14.74125 | J150: 1.014191747 | K150: 2.75522107 | L150: 0.3030960648 | M150: 2.565653935 | N150: 0.3406458118 | O150: 0.6989583333 | P150: 0.2135874598 | Q150: 0.4726784177 | R150: 0.09849884697 | S150: 0.19 | T150: 0.08705771661 | U150: 0.2105742777 | V150: 0.8036174697 | W150: 4.937660165 | X150: 1.332374685 | Y150: 0.05286666667 | Z150: 2.690653935 | AA150: 0.6225954537 | AB150: 7.132816131 | AC150: 0.4279018521 | AD150: 1.067229973 | AE150: 2.163039186 | AF150: 3.485735365 | AG150: 1.506897611 | AH150: 21.90271658 | AI150: 3.980775754 | AJ150: 0 | AK150: 0 | AL150: 0 | AM150: 0 | AN150: 0.04176355529 | AO150: 0.0906326245 | AP150: 0.3367151732 | AQ150: 0.09190138988 | AR150: 4.276460543 | AS150: 23.44854376 | AT150: 1.65797128 | AU150: 4.145471664 | AV150: 3.485735365 | AW150: 2.163039186 | AX150: 1.067229973 | AY150: 21.90271658 | AZ150: 21.90271658 | BA150: 1.506897611 | BB150: 0 | BC150: 0 | BD150: 0.4551401351 | BE150: 0.3367151732 | BF150: 0.0906326245 | BG150: 0.04176355529 | BH150: 4.276460543 | BI150: 4.276460543 | BJ150: 0.08512472967 | BK150: 22.2135544 | BL150: 25.0823044 | BM150: 3.307108414 | BN150: 20.02791667 | BO150: 6.716911459 | BP150: 1.252367124 | BQ150: 0.3004944665 | BR150: 0.7266629069 | BZ150: 533.1253057 | CA150: 6.716911459 | CB150: 1.252367124 | CC150: 0.3004944665 | CD150: 0.7266629069 | CN150: 0.4279018521 | CO150: 296.9753057 | CP150: 305 | CQ150: 601.9753057
A151: 148 | B151: 24 | C151: 10.03240821 | D151: 4.867916667 | E151: 10.45833333 | F151: 10.70833333 | G151: 11.70833333 | H151: 3.375 | I151: 14.30333333 | J151: 1.009897729 | K151: 2.530019334 | L151: 0.2788483796 | M151: 1.917407407 | N151: 0.1709609924 | O151: 0.6439583333 | P151: 0.1963462656 | Q151: 0.3394904422 | R151: 0.08186613027 | S151: 0.19 | T151: 0.08009309928 | U151: 0.296521596 | V151: 0.7133761333 | W151: 10.03019956 | X151: 1.99404016 | Y151: 0.04867916667 | Z151: 2.71615162 | AA151: 0.2180791906 | AB151: 8.904207586 | AC151: 0.3352581105 | AD151: 0.8383614141 | AE151: 1.555994603 | AF151: 2.670150502 | AG151: 1.23141594 | AH151: 17.44072905 | AI151: 3.37023375 | AJ151: 0 | AK151: 0 | AL151: 0 | AM151: 0 | AN151: 0.0358429644 | AO151: 0.06964420308 | AP151: 0.3098323358 | AQ151: 0.07132293645 | AR151: 3.418598906 | AS151: 33.82620251 | AT151: 2.79521569 | AU151: 3.152846808 | AV151: 2.670150502 | AW151: 1.555994603 | AX151: 0.8383614141 | AY151: 17.44072905 | AZ151: 17.44072905 | BA151: 1.23141594 | BB151: 0 | BC151: 0 | BD151: 0.4136445956 | BE151: 0.3098323358 | BF151: 0.06964420308 | BG151: 0.0358429644 | BH151: 3.418598906 | BI151: 3.418598906 | BJ151: 0.06967523409 | BK151: 17.61335267 | BL151: 19.80960845 | BM151: 2.882814396 | BN151: 19.17125 | BO151: 6.109776853 | BP151: 1.033297696 | BQ151: 0.3006968584 | BR151: 0.6366597958 | BZ151: 422.720464 | CA151: 6.109776853 | CB151: 1.033297696 | CC151: 0.3006968584 | CD151: 0.6366597958 | CN151: 0.3352581105 | CO151: 194.4306029 | CP151: 281 | CQ151: 475.4306029
A152: 149 | B152: 24 | C152: 11.81481579 | D152: 3.74125 | E152: 10.65833333 | F152: 10.61666667 | G152: 7.416666667 | H152: 2 | I152: 10.65416667 | J152: 1.014191747 | K152: 0.3513362425 | L152: 0.0387962963 | M152: 1.115416667 | N152: 0.10048432 | O152: 0.4079166667 | P152: 0.02729628444 | Q152: 0.1277806044 | R152: 0.06022193776 | S152: 0.19 | T152: 0.01114338773 | U152: 0.04297365916 | V152: 0.9712180882 | W152: 0.8045441634 | X152: 2.132466384 | Y152: 0.0374125 | Z152: 2.94412037 | AA152: 0.274886015 | AB152: 7.11274152 | AC152: 0.2407182169 | AD152: 0.5559155858 | AE152: 0.8796012701 | AF152: 2.345547988 | AG152: 0.9168246767 | AH152: 9.631317682 | AI152: 2.296782602 | AJ152: 0 | AK152: 0 | AL152: 0 | AM152: 0 | AN152: 0.02094759054 | AO152: 0.03470810141 | AP152: 0.4936550835 | AQ152: 0.03482054386 | AR152: 1.880495047 | AS152: 18.72179794 | AT152: 2.195661726 | AU152: 3.100663177 | AV152: 2.345547988 | AW152: 0.8796012701 | AX152: 0.5559155858 | AY152: 9.631317682 | AZ152: 9.631317682 | BA152: 0.9168246767 | BB152: 0 | BC152: 0 | BD152: 0.8500566196 | BE152: 0.4936550835 | BF152: 0.03470810141 | BG152: 0.02094759054 | BH152: 1.880495047 | BI152: 1.880495047 | BJ152: 0.05300983319 | BK152: 9.768002909 | BL152: 10.92221587 | BM152: 1.772525081 | BN152: 14.39541667 | BO152: 5.510784031 | BP152: 0.7587287069 | BQ152: 0.3386054338 | BR152: 0.6034020521 | CF152: 234.4320698 | CG152: 5.510784031 | CH152: 0.7587287069 | CI152: 0.3386054338 | CJ152: 0.6034020521 | CN152: 0.2407182169 | CO152: 84.13318093 | CP152: 178 | CQ152: 262.1331809
A153: 150 | B153: 24 | C153: 12.95370471 | D153: 3.315416667 | E153: 10.68333333 | F153: 10.69583333 | G153: 8.5 | H153: 0.5 | I153: 10.63208333 | J153: 1.014191747 | K153: 0.4164196183 | L153: 0.04607060185 | M153: 0.3716666667 | N153: 0.0259547074 | O153: 0.4675 | P153: 0.0323888615 | Q153: 0.0583435689 | R153: 0.0411124817 | S153: 0.19 | T153: 0.01323277293 | U153: 0.04297365916 | V153: 0.9712180882 | W153: 2.278345786 | X153: 1.868879372 | Y153: 0.03315416667 | Z153: 2.929346065 | AA153: 0.1236930075 | AB153: 9.061465137 | AC153: 0.09732145077 | AD153: 0.3066924079 | AE153: 0.3907762963 | AF153: 2.088931301 | AG153: 0.8856608176 | AH153: 9.284654152 | AI153: 2.271373285 | AJ153: 0 | AK153: 0 | AL153: 0 | AM153: 0 | AN153: 0.01372149257 | AO153: 0.01772496182 | AP153: 0.9769372541 | AQ153: 0.01814378254 | AR153: 1.812809703 | AS153: 53.01726292 | AT153: 1.92426335 | AU153: 2.695351818 | AV153: 2.088931301 | AW153: 0.3907762963 | AX153: 0.3066924079 | AY153: 9.284654152 | AZ153: 9.284654152 | BA153: 0.8856608176 | BB153: 0 | BC153: 0 | BD153: 1.619674011 | BE153: 0.9769372541 | BF153: 0.01772496182 | BG153: 0.01372149257 | BH153: 1.812809703 | BI153: 1.812809703 | BJ153: 0.05121809972 | BK153: 9.416419618 | BL153: 9.834156887 | BM153: 1.354191747 | BN153: 13.9475 | BO153: 6.953534931 | BP153: 0.705083842 | BQ153: 0.5272278628 | BR153: 0.4281798218 | CF153: 225.9940708 | CG153: 6.953534931 | CH153: 0.705083842 | CI153: 0.5272278628 | CJ153: 0.4281798218 | CN153: 0.09732145077 | CO153: 32.01976528 | CP153: 204 | CQ153: 236.0197653
A154: 151 | B154: 24 | C154: 15.25463075 | D154: 4.204583333 | E154: 11.30833333 | F154: 11.18333333 | G154: 28.83333333 | H154: 0.6666666667 | I154: 15.20458333 | J154: 0.9369011837 | K154: 2.756262732 | L154: 0.3055208333 | M154: 0.2454166667 | N154: 0.03336833956 | O154: 1.585833333 | P154: 0.21462042 | Q154: 0.2479887596 | R154: 0.06038900572 | S154: 0.19 | T154: 0.08775417835 | U154: 0.08165330022 | V154: 0.8552478834 | W154: 1.454107883 | X154: 1.81451842 | Y154: 0.04204583333 | Z154: 2.656145833 | AA154: 0.255070561 | AB154: 27.84529235 | AC154: 0.1061167385 | AD154: 0.6830245373 | AE154: 0.9232953047 | AF154: 2.549976614 | AG154: 2.121482847 | AH154: 34.42867113 | AI154: 6.380880877 | AJ154: 0 | AK154: 0 | AL154: 0 | AM154: 0 | AN154: 0.04320964353 | AO154: 0.0590565341 | AP154: 0.465747626 | AQ154: 0.0624770677 | AR154: 7.234224833 | AS154: 17.80831735 | AT154: 2.121628659 | AU154: 2.753949231 | AV154: 2.549976614 | AW154: 0.9232953047 | AX154: 0.6830245373 | AY154: 34.42867113 | AZ154: 34.42867113 | BA154: 2.121482847 | BB154: 0 | BC154: 0 | BD154: 0.5316671285 | BE154: 0.465747626 | BF154: 0.0590565341 | BG154: 0.04320964353 | BH154: 7.234224833 | BI154: 7.234224833 | BJ154: 0.1196553152 | BK154: 32.25626273 | BL154: 32.80720023 | BM154: 2.17981785 | BN154: 19.40916667 | BO154: 14.79768721 | BP154: 1.690294117 | BQ154: 0.9362796756 | BR154: 0.7529584935 | CF154: 774.1503056 | CG154: 14.79768721 | CH154: 1.690294117 | CI154: 0.9362796756 | CJ154: 0.7529584935 | CN154: 0.1061167385 | CO154: 95.37280556 | CP154: 692 | CQ154: 787.3728056
A155: 152 | B155: 24 | C155: 17.58564954 | D155: 3.66875 | E155: 11.775 | F155: 11.7875 | G155: 44.16666667 | H155: 0 | I155: 16.33583333 | J155: 1.009897729 | K155: 2.51083693 | L155: 0.2788483796 | M155: 0 | N155: 0 | O155: 2.429166667 | P155: 0.1957297031 | Q155: 0.1957297031 | R155: 0.03766899083 | S155: 0.19 | T155: 0.08009309928 | U155: 0.1246269594 | V155: 0.8852707699 | W155: 2.261846439 | X155: 1.871257692 | Y155: 0.0366875 | Z155: 2.710318287 | AA155: 0 | AB155: 43.3453108 | AC155: 0.05379115713 | AD155: 0.6134583049 | AE155: 0.7492963164 | AF155: 3.421192698 | AG155: 2.85736899 | AH155: 46.22003025 | AI155: 10.0363085 | AJ155: 0 | AK155: 0 | AL155: 0 | AM155: 0 | AN155: 0.04334035236 | AO155: 0.05311588412 | AP155: 1.058731464 | AQ155: 0.05730698334 | AR155: 9.059698385 | AS155: 18.14893383 | AT155: 2.113768754 | AU155: 3.694671142 | AV155: 3.421192698 | AW155: 0.7492963164 | AX155: 0.6134583049 | AY155: 46.22003025 | AZ155: 46.22003025 | BA155: 2.85736899 | BB155: 0 | BC155: 0 | BD155: 1.222554408 | BE155: 1.058731464 | BF155: 0.05311588412 | BG155: 0.04334035236 | BH155: 9.059698385 | BI155: 9.059698385 | BJ155: 0.1606308348 | BK155: 46.6775036 | BL155: 46.95635198 | BM155: 1.689481063 | BN155: 20.00458333 | BO155: 27.62830826 | BP155: 2.347279681 | BQ155: 1.990338705 | BR155: 1.461674164 | CF155: 1120.260086 | CG155: 27.62830826 | CH155: 2.347279681 | CI155: 1.990338705 | CJ155: 1.461674164 | CN155: 0.05379115713 | CO155: 66.95244744 | CP155: 1060 | CQ155: 1126.952447
A156: 153 | B156: 24 | C156: 18.08564962 | D156: 3.57375 | E156: 11.95416667 | F156: 11.94583333 | G156: 42.70833333 | H156: 0 | I156: 16.01125 | J156: 1.009897729 | K156: 2.331703884 | L156: 0.2594502315 | M156: 0 | N156: 0 | O156: 2.348958333 | P156: 0.1819705747 | Q156: 0.1819705747 | R156: 0.03658676336 | S156: 0.19 | T156: 0.07452140542 | U156: 0.1289209775 | V156: 0.8809767518 | W156: 2.150578103 | X156: 2.404880382 | Y156: 0.0357375 | Z156: 2.713049769 | AA156: 0 | AB156: 41.98777718 | AC156: 0.05176958164 | AD156: 0.5885447714 | AE156: 0.7145977 | AF156: 3.567849691 | AG156: 2.813024418 | AH156: 44.59861223 | AI156: 9.882846616 | AJ156: 0 | AK156: 0 | AL156: 0 | AM156: 0 | AN156: 0.04162046563 | AO156: 0.05069982113 | AP156: 1.219133873 | AQ156: 0.05470692328 | AR156: 8.741880371 | AS156: 16.68136672 | AT156: 2.7297887 | AU156: 3.878093777 | AV156: 3.567849691 | AW156: 0.7145977 | AX156: 0.5885447714 | AY156: 44.59861223 | AZ156: 44.59861223 | BA156: 2.813024418 | BB156: 0 | BC156: 0 | BD156: 1.428251073 | BE156: 1.219133873 | BF156: 0.05069982113 | BG156: 0.04162046563 | BH156: 8.741880371 | BI156: 8.741880371 | BJ156: 0.1582765014 | BK156: 45.04003722 | BL156: 45.29948745 | BM156: 1.611147729 | BN156: 19.585 | BO156: 27.95524979 | BP156: 2.312968468 | BQ156: 2.051560021 | BR156: 1.48134847 | CF156: 1080.960893 | CG156: 27.95524979 | CH156: 2.312968468 | CI156: 2.051560021 | CJ156: 1.48134847 | CN156: 0.05176958164 | CO156: 62.18769876 | CP156: 1025 | CQ156: 1087.187699
A157: 154 | B157: 24 | C157: 20.19676079 | D157: 3.496666667 | E157: 12.19166667 | F157: 12.16666667 | G157: 47.54166667 | H157: 0 | I157: 15.40458333 | J157: 0.9729800981 | K157: 2.044490113 | L157: 0.2279282407 | M157: 0 | N157: 0 | O157: 2.614791667 | P157: 0.1597364129 | Q157: 0.1597364129 | R157: 0.03846926619 | S157: 0.19 | T157: 0.06546740289 | U157: 0.08594731832 | V157: 0.8870327798 | W157: 1.47805603 | X157: 2.177873134 | Y157: 0.03496666667 | Z157: 2.747488426 | AA157: 0 | AB157: 46.99140665 | AC157: 0.04123106621 | AD157: 0.5499807881 | AE157: 0.6425098519 | AF157: 3.641984813 | AG157: 3.218922298 | AH157: 50.96317682 | AI157: 11.14497132 | AJ157: 0 | AK157: 0 | AL157: 0 | AM157: 0 | AN157: 0.03899775797 | AO157: 0.04570180284 | AP157: 1.417760003 | AQ157: 0.04930812278 | AR157: 10.33910254 | AS157: 17.19723266 | AT157: 2.455234106 | AU157: 3.922283191 | AV157: 3.641984813 | AW157: 0.6425098519 | AX157: 0.5499807881 | AY157: 50.96317682 | AZ157: 50.96317682 | BA157: 3.218922298 | BB157: 0 | BC157: 0 | BD157: 1.63422912 | BE157: 1.417760003 | BF157: 0.04570180284 | BG157: 0.03899775797 | BH157: 10.33910254 | BI157: 10.33910254 | BJ157: 0.1814378139 | BK157: 49.58615678 | BL157: 49.81408502 | BM157: 1.494230098 | BN157: 18.90125 | BO157: 33.18508765 | BP157: 2.635491569 | BQ157: 2.521621923 | BR157: 1.773577672 | CF157: 1190.067763 | CG157: 33.18508765 | CH157: 2.635491569 | CI157: 2.521621923 | CJ157: 1.773577672 | CN157: 0.04123106621 | CO157: 54.5380405 | CP157: 1141 | CQ157: 1195.538041
A158: 155 | B158: 24 | C158: 19.56713117 | D158: 3.52125 | E158: 12.32083333 | F158: 12.24583333 | G158: 45.45833333 | H158: 0 | I158: 14.38291667 | J158: 1.009897729 | K158: 2.214234993 | L158: 0.2473263889 | M158: 0 | N158: 0 | O158: 2.500208333 | P158: 0.1731949505 | Q158: 0.1731949505 | R158: 0.03587157467 | S158: 0.19 | T158: 0.07103909676 | U158: 0 | V158: 1.009897729 | W158: 0 | X158: 2.405847728 | Y158: 0.0352125 | Z158: 2.726423611 | AA158: 0 | AB158: 44.80149607 | AC158: 0.04644673175 | AD158: 0.5875844575 | AE158: 0.6898692412 | AF158: 3.725119398 | AG158: 3.314527187 | AH158: 47.20534262 | AI158: 10.57566373 | AJ158: 0 | AK158: 0 | AL158: 0 | AM158: 0 | AN158: 0.04164734699 | AO158: 0.04903203304 | AP158: 1.384583643 | AQ158: 0.05291990195 | AR158: 9.252831814 | AS158: 0 | AT158: 2.382268678 | AU158: 4.044264827 | AV158: 3.725119398 | AW158: 0.6898692412 | AX158: 0.5875844575 | AY158: 47.20534262 | AZ158: 47.20534262 | BA158: 3.314527187 | BB158: 0 | BC158: 0 | BD158: 1.620392615 | BE158: 1.384583643 | BF158: 0.04903203304 | BG158: 0.04164734699 | BH158: 9.252831814 | BI158: 9.252831814 | BJ158: 0.1874835332 | BK158: 47.67256833 | BL158: 47.91989472 | BM158: 1.557397729 | BN158: 17.90416667 | BO158: 30.61040056 | BP158: 2.676466077 | BQ158: 2.282916397 | BR158: 1.628492591 | CF158: 1144.14164 | CG158: 30.61040056 | CH158: 2.676466077 | CI158: 2.282916397 | CJ158: 1.628492591 | CN158: 0.04644673175 | CO158: 59.07747316 | CP158: 1091 | CQ158: 1150.077473
A159: 156 | B159: 24 | C159: 14.10648271 | D159: 3.64375 | E159: 11.25416667 | F159: 11.2875 | G159: 13.95833333 | H159: 0 | I159: 8.624583333 | J159: 1.009897729 | K159: 0.2383316274 | L159: 0.0266724537 | M159: 0 | N159: 0 | O159: 0.7677083333 | P159: 0.01866324328 | Q159: 0.01866324328 | R159: 0.03664334236 | S159: 0.19 | T159: 0.007661079062 | U159: 0.04297365916 | V159: 0.9669240701 | W159: 3.217050602 | X159: 2.138780288 | Y159: 0.0364375 | Z159: 2.923327546 | AA159: 0 | AB159: 15.42364944 | AC159: 0.01678786025 | AD159: 0.06994889853 | AE159: 0.07239156171 | AF159: 0.3353458262 | AG159: 1.646069661 | AH159: 14.05752736 | AI159: 3.056384635 | AJ159: 0 | AK159: 0 | AL159: 0 | AM159: 0 | AN159: 0.004972479765 | AO159: 0.005149505909 | AP159: 0.1001007998 | AQ159: 0.005558522697 | AR159: 2.755449472 | AS159: 74.86098846 | AT159: 2.211942338 | AU159: 0.3435410846 | AV159: 0.3353458262 | AW159: 0.07239156171 | AX159: 0.06994889853 | AY159: 14.05752736 | AZ159: 14.05752736 | BA159: 1.646069661 | BB159: 0 | BC159: 0 | BD159: 0.1042707033 | BE159: 0.1001007998 | BF159: 0.005149505909 | BG159: 0.004972479765 | BH159: 2.755449472 | BI159: 2.755449472 | BJ159: 0.09752630175 | BK159: 14.19666496 | BL159: 14.22333741 | BM159: 1.703647729 | BN159: 12.26833333 | BO159: 8.333098866 | BP159: 1.159353681 | BQ159: 0.5889257533 | BR159: 0.4546550096 | CF159: 340.7199591 | CG159: 8.333098866 | CH159: 1.159353681 | CI159: 0.5889257533 | CJ159: 0.4546550096 | CN159: 0.01678786025 | CO159: 6.360097947 | CP159: 335 | CQ159: 341.3600979
A160: 157 | B160: 24 | C160: 11.68287129 | D160: 3.050416667 | E160: 11.08333333 | F160: 11.1125 | G160: 13.5 | H160: 0.625 | I160: 8.915833333 | J160: 1.014191747 | K160: 0.1297492998 | L160: 0.01454861111 | M160: 0.12 | N160: 0.03128903812 | O160: 0.7425 | P160: 0.01017198146 | Q160: 0.04146101957 | R160: 0.03453469364 | S160: 0.19 | T160: 0.004178770397 | U160: 0.08594731832 | V160: 0.9282444291 | W160: 2.950105739 | X160: 2.004118785 | Y160: 0.03050416667 | Z160: 2.900451389 | AA160: 0.2070263408 | AB160: 14.10188546 | AC160: 0.05294721668 | AD160: 0.2524632053 | AE160: 0.2864899741 | AF160: 3.990947916 | AG160: 1.598812895 | AH160: 14.05528031 | AI160: 3.54014371 | AJ160: 0 | AK160: 0 | AL160: 0 | AM160: 0 | AN160: 0.0120278218 | AO160: 0.01373182248 | AP160: 4.276051723 | AQ160: 0.01379765241 | AR160: 2.744264688 | AS160: 34.32458158 | AT160: 2.159042083 | AU160: 5.573533291 | AV160: 3.990947916 | AW160: 0.2864899741 | AX160: 0.2524632053 | AY160: 14.05528031 | AZ160: 14.05528031 | BA160: 1.598812895 | BB160: 0 | BC160: 0 | BD160: 8.334276512 | BE160: 4.276051723 | BF160: 0.01373182248 | BG160: 0.0120278218 | BH160: 2.744264688 | BI160: 2.744264688 | BJ160: 0.09430466457 | BK160: 14.2547493 | BL160: 14.38929791 | BM160: 1.149608414 | BN160: 11.96625 | BO160: 12.39965637 | BP160: 1.202490163 | BQ160: 1.052897921 | BR160: 0.656181893 | CF160: 342.1139832 | CG160: 12.39965637 | CH160: 1.202490163 | CI160: 1.052897921 | CJ160: 0.656181893 | CN160: 0.05294721668 | CO160: 21.34314986 | CP160: 324 | CQ160: 345.3431499
A161: 158 | B161: 24 | C161: 12.06944546 | D161: 4.0925 | E161: 10.8875 | F161: 10.87083333 | G161: 11.95833333 | H161: 3.041666667 | I161: 7.81125 | J161: 1.009897729 | K161: 0 | L161: 0 | M161: 0.6129166667 | N161: 0.1530711135 | O161: 0.6577083333 | P161: 0 | Q161: 0.1530711135 | R161: 0.05655194002 | S161: 0.19 | T161: 0 | U161: 0.08165330022 | V161: 0.9282444291 | W161: 1.318096973 | X161: 1.864767105 | Y161: 0.040925 | Z161: 2.900833333 | AA161: 1.104482715 | AB161: 12.22271378 | AC161: 0.2027777778 | AD161: 0.6438151793 | AE161: 0.8504401008 | AF161: 2.178139879 | AG161: 1.920307249 | AH161: 14.85298913 | AI161: 3.05991761 | AJ161: 0 | AK161: 0 | AL161: 0 | AM161: 0 | AN161: 0.02771832103 | AO161: 0.03733723956 | AP161: 0.3367566282 | AQ161: 0.03733723956 | AR161: 2.911369831 | AS161: 16.14260501 | AT161: 2.008918175 | AU161: 2.552447552 | AV161: 2.178139879 | AW161: 0.8504401008 | AX161: 0.6438151793 | AY161: 14.85298913 | AZ161: 14.85298913 | BA161: 1.920307249 | BB161: 0 | BC161: 0 | BD161: 0.4557361696 | BE161: 0.3367566282 | BF161: 0.03733723956 | BG161: 0.02771832103 | BH161: 2.911369831 | BI161: 2.911369831 | BJ161: 0.1154845976 | BK161: 15 | BL161: 15.61291667 | BM161: 2.201564396 | BN161: 11.90375 | BO161: 6.813336929 | BP161: 1.311596486 | BQ161: 0.3898942798 | BR161: 0.4011607594 | CF161: 360 | CG161: 6.813336929 | CH161: 1.311596486 | CI161: 0.3898942798 | CJ161: 0.4011607594 | CN161: 0.2027777778 | CO161: 87.71 | CP161: 287 | CQ161: 374.71
A162: 159 | B162: 24 | C162: 18.21296442 | D162: 3.457083333 | E162: 11.79166667 | F162: 11.74583333 | G162: 44.20833333 | H162: 0.125 | I162: 12.79916667 | J162: 1.014191747 | K162: 1.507927058 | L162: 0.1697337963 | M162: 0.11875 | N162: 0.006262195134 | O162: 2.431458333 | P162: 0.1184879019 | Q162: 0.124750097 | R162: 0.03735821273 | S162: 0.19 | T162: 0.0487523213 | U162: 0.04297365916 | V162: 0.9712180882 | W162: 0.6715132557 | X162: 2.1352108 | Y162: 0.03457083333 | Z162: 2.769016204 | AA162: 0 | AB162: 44.10793136 | AC162: 0.0356213386 | AD162: 0.4910318231 | AE162: 0.5500415789 | AF162: 2.945075328 | AG162: 3.581581644 | AH162: 45.1997963 | AI162: 10.31691036 | AJ162: 0 | AK162: 0 | AL162: 0 | AM162: 0 | AN162: 0.03222371115 | AO162: 0.0361933929 | AP162: 1.134749422 | AQ162: 0.0387909816 | AR162: 8.825167632 | AS162: 15.62615958 | AT162: 2.198487472 | AU162: 3.150341591 | AV162: 2.945075328 | AW162: 0.5500415789 | AX162: 0.4910318231 | AY162: 45.1997963 | AZ162: 45.1997963 | BA162: 3.581581644 | BB162: 0 | BC162: 0 | BD162: 1.29130642 | BE162: 1.134749422 | BF162: 0.0361933929 | BG162: 0.03222371115 | BH162: 8.825167632 | BI162: 8.825167632 | BJ162: 0.2040359386 | BK162: 45.84126039 | BL162: 46.12974419 | BM162: 1.532525081 | BN162: 16.25625 | BO162: 29.91224155 | BP162: 2.83766208 | BQ162: 2.22292724 | BR162: 1.602901465 | CF162: 1100.190249 | CG162: 29.91224155 | CH162: 2.83766208 | CI162: 2.22292724 | CJ162: 1.602901465 | CN162: 0.0356213386 | CO162: 46.11386051 | CP162: 1061 | CQ162: 1107.113861
A163: 160 | B163: 24 | C163: 13.99074187 | D163: 3.48 | E163: 11.34166667 | F163: 11.29166667 | G163: 17.54166667 | H163: 0 | I163: 11.16708333 | J163: 1.009897729 | K163: 1.677031186 | L163: 0.1891319444 | M163: 0 | N163: 0 | O163: 0.9647916667 | P163: 0.1319266569 | Q163: 0.1319266569 | R163: 0.03770105393 | S163: 0.19 | T163: 0.05432401517 | U163: 0.04297365916 | V163: 0.9669240701 | W163: 0.6711199527 | X163: 2.263699721 | Y163: 0.0348 | Z163: 2.772534722 | AA163: 0 | AB163: 17.39286654 | AC163: 0.08726039603 | AD163: 0.4189441112 | AE163: 0.5230095957 | AF163: 2.765290951 | AG163: 1.721013203 | AH163: 19.03034069 | AI163: 4.322554982 | AJ163: 0 | AK163: 0 | AL163: 0 | AM163: 0 | AN163: 0.02982836438 | AO163: 0.03738436823 | AP163: 0.9866777741 | AQ163: 0.04036565201 | AR163: 3.730182475 | AS163: 15.61700739 | AT163: 2.341134936 | AU163: 3.235429941 | AV163: 2.765290951 | AW163: 0.5230095957 | AX163: 0.4189441112 | AY163: 19.03034069 | AZ163: 19.03034069 | BA163: 1.721013203 | BB163: 0 | BC163: 0 | BD163: 1.336205028 | BE163: 0.9866777741 | BF163: 0.03738436823 | BG163: 0.02982836438 | BH163: 3.730182475 | BI163: 3.730182475 | BJ163: 0.09908143819 | BK163: 19.21869785 | BL163: 19.4078298 | BM163: 1.528231063 | BN163: 14.64708333 | BO163: 12.57578014 | BP163: 1.325030339 | BQ163: 0.917734004 | BR163: 0.6505674447 | CF163: 461.2487485 | CG163: 12.57578014 | CH163: 1.325030339 | CI163: 0.917734004 | CJ163: 0.6505674447 | CN163: 0.08726039603 | CO163: 44.78791513 | CP163: 421 | CQ163: 465.7879151
A164: 161 | B164: 24 | C164: 10.61805642 | D164: 4.475 | E164: 11.00833333 | F164: 11.03333333 | G164: 15.875 | H164: 3.208333333 | I164: 11.74 | J164: 1.014191747 | K164: 1.437758366 | L164: 0.1624594907 | M164: 0.4765509259 | N164: 0.1605411985 | O164: 0.873125 | P164: 0.1132336866 | Q164: 0.2699678853 | R164: 0.05812378203 | S164: 0.19 | T164: 0.0466629361 | U164: 0.08165330022 | V164: 0.9325384472 | W164: 2.788119878 | X164: 2.00379081 | Y164: 0.04475 | Z164: 2.823373843 | AA164: 2.460013366 | AB164: 16.19228008 | AC164: 0.226405679 | AD164: 0.7409365115 | AE164: 1.123385841 | AF164: 2.703124891 | AG164: 1.747963518 | AH164: 20.23393678 | AI164: 3.854866634 | AJ164: 0 | AK164: 0 | AL164: 0 | AM164: 0 | AN164: 0.0383262597 | AO164: 0.05903814446 | AP164: 0.3669892919 | AQ164: 0.05986551495 | AR164: 3.950634705 | AS164: 34.14583207 | AT164: 2.148748736 | AU164: 3.119927274 | AV164: 2.703124891 | AW164: 1.123385841 | AX164: 0.7409365115 | AY164: 20.23393678 | AZ164: 20.23393678 | BA164: 1.747963518 | BB164: 0 | BC164: 0 | BD164: 0.4762223146 | BE164: 0.3669892919 | BF164: 0.05903814446 | BG164: 0.0383262597 | BH164: 3.950634705 | BI164: 3.950634705 | BJ164: 0.1002136833 | BK164: 20.5210917 | BL164: 21.16010212 | BM164: 2.503358414 | BN164: 16.215 | BO164: 8.197424541 | BP164: 1.304970837 | BQ164: 0.4437504079 | BR164: 0.4028435369 | CF164: 492.5062008 | CG164: 8.197424541 | CH164: 1.304970837 | CI164: 0.4437504079 | CJ164: 0.4028435369 | CN164: 0.226405679 | CO164: 126.8424508 | CP164: 381 | CQ164: 507.8424508
A165: 162 | B165: 24 | C165: 9.363426667 | D165: 4.550416667 | E165: 10.86666667 | F165: 10.85 | G165: 13.125 | H165: 4.916666667 | I165: 11.57416667 | J165: 1.014191747 | K165: 1.499250772 | L165: 0.1697337963 | M165: 1.693096065 | N165: 0.246979522 | O165: 0.721875 | P165: 0.1182123304 | Q165: 0.3430573405 | R165: 0.07876635206 | S165: 0.19 | T165: 0.0487523213 | U165: 0.08594731832 | V165: 0.9282444291 | W165: 1.341768836 | X165: 1.864581175 | Y165: 0.04550416667 | Z165: 2.81693287 | AA165: 1.210103203 | AB165: 10.49712751 | AC165: 0.3283324572 | AD165: 0.9913965435 | AE165: 1.695280438 | AF165: 3.382598797 | AG165: 1.68832176 | AH165: 19.26747825 | AI165: 3.846406738 | AJ165: 0 | AK165: 0 | AL165: 0 | AM165: 0 | AN165: 0.04213265804 | AO165: 0.07538359225 | AP165: 0.4180129568 | AQ165: 0.07604177397 | AR165: 3.761935658 | AS165: 15.61152648 | AT165: 2.008717872 | AU165: 4.102904837 | AV165: 3.382598797 | AW165: 1.695280438 | AX165: 0.9913965435 | AY165: 19.26747825 | AZ165: 19.26747825 | BA165: 1.68832176 | BB165: 0 | BC165: 0 | BD165: 0.5950708644 | BE165: 0.4180129568 | BF165: 0.07538359225 | BG165: 0.04213265804 | BH165: 3.761935658 | BI165: 3.761935658 | BJ165: 0.09690556203 | BK165: 19.54091744 | BL165: 21.4037473 | BM165: 2.577941747 | BN165: 16.12458333 | BO165: 7.580046158 | BP165: 1.327398473 | BQ165: 0.3818172569 | BR165: 0.6643148112 | BZ165: 468.9820185 | CA165: 7.580046158 | CB165: 1.327398473 | CC165: 0.3818172569 | CD165: 0.6643148112 | CN165: 0.3283324572 | CO165: 198.6899352 | CP165: 315 | CQ165: 513.6899352
A166: 163 | B166: 24 | C166: 9.958334167 | D166: 4.584583333 | E166: 10.63333333 | F166: 10.6125 | G166: 9.291666667 | H166: 4.75 | I166: 8.54875 | J166: 1.009897729 | K166: 0.2137677628 | L166: 0.02424768519 | M166: 1.122575231 | N166: 0.2420638407 | O166: 0.5110416667 | P166: 0.01687445435 | Q166: 0.2574198251 | R166: 0.07312806609 | S166: 0.19 | T166: 0.006964617329 | U166: 0.08165330022 | V166: 0.9282444291 | W166: 1.317479044 | X166: 2.007681191 | Y166: 0.04584583333 | Z166: 2.963252315 | AA166: 2.034425722 | AB166: 8.969305689 | AC166: 0.3482017884 | AD166: 0.8081430705 | AE166: 1.237906011 | AF166: 2.547178865 | AG166: 1.667546066 | AH166: 14.11572085 | AI166: 2.753116361 | AJ166: 0 | AK166: 0 | AL166: 0 | AM166: 0 | AN166: 0.03493016332 | AO166: 0.05527968975 | AP166: 0.299125388 | AQ166: 0.05529769243 | AR166: 2.766856116 | AS166: 16.13503729 | AT166: 2.162879871 | AU166: 3.108020514 | AV166: 2.547178865 | AW166: 1.237906011 | AX166: 0.8081430705 | AY166: 14.11572085 | AZ166: 14.11572085 | BA166: 1.667546066 | BB166: 0 | BC166: 0 | BD166: 0.4308237463 | BE166: 0.299125388 | BF166: 0.05527968975 | BG166: 0.03493016332 | BH166: 2.766856116 | BI166: 2.766856116 | BJ166: 0.09892036727 | BK166: 14.25543443 | BL166: 15.40225735 | BM166: 2.606981063 | BN166: 13.13333333 | BO166: 5.468177208 | BP166: 1.172760712 | BQ166: 0.2720836007 | BR166: 0.4481961245 | BZ166: 342.1304263 | CA166: 5.468177208 | CB166: 1.172760712 | CC166: 0.2720836007 | CD166: 0.4481961245 | CN166: 0.3482017884 | CO166: 146.6541763 | CP166: 223 | CQ166: 369.6541763
A167: 164 | B167: 24 | C167: 12.13888988 | D167: 4.080833333 | E167: 10.7125 | F167: 10.67083333 | G167: 9.75 | H167: 3.875 | I167: 8.47875 | J167: 1.014191747 | K167: 0.1706865327 | L167: 0.01939814815 | M167: 0.8733333333 | N167: 0.1948968939 | O167: 0.53625 | P167: 0.01348919179 | Q167: 0.2083860857 | R167: 0.06536910732 | S167: 0.19 | T167: 0.005571693863 | U167: 0.04297365916 | V167: 0.9712180882 | W167: 0.8043564442 | X167: 2.132684394 | Y167: 0.04080833333 | Z167: 2.952685185 | AA167: 1.373649381 | AB167: 9.200904596 | AC167: 0.2932573543 | AD167: 0.7519720724 | AE167: 1.12794271 | AF167: 2.877097981 | AG167: 1.627089669 | AH167: 13.60264128 | AI167: 2.882894153 | AJ167: 0 | AK167: 0 | AL167: 0 | AM167: 0 | AN167: 0.03260176641 | AO167: 0.05048722686 | AP167: 0.4433195574 | AQ167: 0.05050326272 | AR167: 2.655887845 | AS167: 18.7174297 | AT167: 2.195886197 | AU167: 3.648871732 | AV167: 2.877097981 | AW167: 1.12794271 | AX167: 0.7519720724 | AY167: 13.60264128 | AZ167: 13.60264128 | BA167: 1.627089669 | BB167: 0 | BC167: 0 | BD167: 0.6977950777 | BE167: 0.4433195574 | BF167: 0.05048722686 | BG167: 0.03260176641 | BH167: 2.655887845 | BI167: 2.655887845 | BJ167: 0.09663271229 | BK167: 13.79568653 | BL167: 14.68841801 | BM167: 2.122941747 | BN167: 12.55958333 | BO167: 6.498382044 | BP167: 1.16949883 | BQ167: 0.3591423435 | BR167: 0.4642049377 | BZ167: 331.0964768 | CA167: 6.498382044 | CB167: 1.16949883 | CC167: 0.3591423435 | CD167: 0.4642049377 | CN167: 0.2932573543 | CO167: 118.5220323 | CP167: 234 | CQ167: 352.5220323
A168: 165 | B168: 24 | C168: 15.71759383 | D168: 3.987083333 | E168: 11.42083333 | F168: 11.24583333 | G168: 29.33333333 | H168: 1.875 | I168: 11.87375 | J168: 1.014191747 | K168: 1.448060084 | L168: 0.1648842593 | M168: 0.375 | N168: 0.09395808352 | O168: 1.613333333 | P168: 0.1145703823 | Q168: 0.2085284659 | R168: 0.04920948855 | S168: 0.19 | T168: 0.04735939784 | U168: 0 | V168: 1.014191747 | W168: 0 | X168: 5.63306683 | Y168: 0.03987083333 | Z168: 2.816782407 | AA168: 0.8528026817 | AB168: 28.88268435 | AC168: 0.1017583308 | AD168: 0.7435407661 | AE168: 0.9444191772 | AF168: 2.997476776 | AG168: 2.750301583 | AH168: 32.19942728 | AI168: 6.63756285 | AJ168: 0 | AK168: 0 | AL168: 0 | AM168: 0 | AN168: 0.04075081376 | AO168: 0.0522321791 | AP168: 0.5980331697 | AQ168: 0.05350011524 | AR168: 6.286872213 | AS168: 0 | AT168: 5.554242424 | AU168: 3.305157149 | AV168: 2.997476776 | AW168: 0.9444191772 | AX168: 0.7435407661 | AY168: 32.19942728 | AZ168: 32.19942728 | BA168: 2.750301583 | BB168: 0 | BC168: 0 | BD168: 0.7188194735 | BE168: 0.5980331697 | BF168: 0.0522321791 | BG168: 0.04075081376 | BH168: 6.286872213 | BI168: 6.286872213 | BJ168: 0.1575386071 | BK168: 32.65639342 | BL168: 33.19627768 | BM168: 2.019608414 | BN168: 15.86083333 | BO168: 16.16966596 | BP168: 2.092971849 | BQ168: 1.026195715 | BR168: 0.8239406271 | CF168: 783.753442 | CG168: 16.16966596 | CH168: 2.092971849 | CI168: 1.026195715 | CJ168: 0.8239406271 | CN168: 0.1017583308 | CO168: 92.71066423 | CP168: 704 | CQ168: 796.7106642
A169: 166 | B169: 24 | C169: 15.59953821 | D169: 3.505833333 | E169: 11.48333333 | F169: 11.39583333 | G169: 27.04166667 | H169: 0 | I169: 11.7475 | J169: 1.009897729 | K169: 1.509058304 | L169: 0.1721585648 | M169: 0 | N169: 0 | O169: 1.487291667 | P169: 0.1195337949 | Q169: 0.1195337949 | R169: 0.03614194179 | S169: 0.19 | T169: 0.04944878304 | U169: 0 | V169: 1.009897729 | W169: 0 | X169: 2.806510762 | Y169: 0.03505833333 | Z169: 2.803258102 | AA169: 0 | AB169: 27.07292276 | AC169: 0.05285534099 | AD169: 0.4073947482 | AE169: 0.4723565083 | AF169: 2.584910631 | AG169: 2.430366033 | AH169: 28.27090718 | AI169: 6.360627579 | AJ169: 0 | AK169: 0 | AL169: 0 | AM169: 0 | AN169: 0.02918451169 | AO169: 0.03392513694 | AP169: 0.9514928782 | AQ169: 0.03665972538 | AR169: 5.541447956 | AS169: 0 | AT169: 2.779004924 | AU169: 2.84504315 | AV169: 2.584910631 | AW169: 0.4723565083 | AX169: 0.4073947482 | AY169: 28.27090718 | AZ169: 28.27090718 | BA169: 2.430366033 | BB169: 0 | BC169: 0 | BD169: 1.143374518 | BE169: 0.9514928782 | BF169: 0.03392513694 | BG169: 0.02918451169 | BH169: 5.541447956 | BI169: 5.541447956 | BJ169: 0.1393298786 | BK169: 28.55072497 | BL169: 28.72288354 | BM169: 1.540314396 | BN169: 15.25333333 | BO169: 18.53564769 | BP169: 1.883056176 | BQ169: 1.363788165 | BR169: 0.9806540018 | CF169: 685.2173993 | CG169: 18.53564769 | CH169: 1.883056176 | CI169: 1.363788165 | CJ169: 0.9806540018 | CN169: 0.05285534099 | CO169: 40.34920485 | CP169: 649 | CQ169: 689.3492048
A170: 167 | B170: 24 | C170: 16.50926071 | D170: 4.129166667 | E170: 11.5375 | F170: 11.54166667 | G170: 34.29166667 | H170: 0.3333333333 | I170: 12.105 | J170: 1.014191747 | K170: 1.972888224 | L170: 0.2255034722 | M170: 0.1195833333 | N170: 0.01670912958 | O170: 1.886041667 | P170: 0.1564536561 | Q170: 0.1731627856 | R170: 0.0456341752 | S170: 0.19 | T170: 0.06477094116 | U170: 0.1246269594 | V170: 0.889564788 | W170: 2.124565921 | X170: 2.009673573 | Y170: 0.04129166667 | Z170: 2.762413194 | AA170: 0.04035967418 | AB170: 34.18124653 | AC170: 0.06301515385 | AD170: 0.5419720513 | AE170: 0.6323062805 | AF170: 1.913623595 | AG170: 3.023369535 | AH170: 36.08576812 | AI170: 7.182656166 | AJ170: 0 | AK170: 0 | AL170: 0 | AM170: 0 | AN170: 0.03575661408 | AO170: 0.04186673714 | AP170: 0.3731782055 | AQ170: 0.04462552107 | AR170: 7.045672301 | AS170: 17.04740236 | AT170: 2.259164931 | AU170: 2.020785592 | AV170: 1.913623595 | AW170: 0.6323062805 | AX170: 0.5419720513 | AY170: 36.08576812 | AZ170: 36.08576812 | BA170: 3.023369535 | BB170: 0 | BC170: 0 | BD170: 0.4085747249 | BE170: 0.3731782055 | BF170: 0.04186673714 | BG170: 0.03575661408 | BH170: 7.045672301 | BI170: 7.045672301 | BJ170: 0.1729241627 | BK170: 36.59788822 | BL170: 36.94297503 | BM170: 2.155441747 | BN170: 16.23416667 | BO170: 16.97929822 | BP170: 2.27563113 | BQ170: 1.09005933 | BR170: 0.8878619604 | CF170: 878.3493174 | CG170: 16.97929822 | CH170: 2.27563113 | CI170: 1.09005933 | CJ170: 0.8878619604 | CN170: 0.06301515385 | CO170: 63.6314007 | CP170: 823 | CQ170: 886.6314007
A171: 168 | B171: 24 | C171: 13.63888992 | D171: 3.51125 | E171: 11.14583333 | F171: 11.15 | G171: 14.25 | H171: 0 | I171: 11.06416667 | J171: 1.014191747 | K171: 1.397453766 | L171: 0.1600347222 | M171: 0 | N171: 0 | O171: 0.78375 | P171: 0.1109478037 | Q171: 0.1109478037 | R171: 0.03842294065 | S171: 0.19 | T171: 0.04596647437 | U171: 0.1246269594 | V171: 0.889564788 | W171: 1.989827867 | X171: 1.86994142 | Y171: 0.0351125 | Z171: 2.821215278 | AA171: 0 | AB171: 14.39673798 | AC171: 0.08930870074 | AD171: 0.3461565263 | AE171: 0.4324163422 | AF171: 2.251865096 | AG171: 1.414246028 | AH171: 15.42849644 | AI171: 3.493026619 | AJ171: 0 | AK171: 0 | AL171: 0 | AM171: 0 | AN171: 0.02483503712 | AO171: 0.03114668733 | AP171: 0.779867826 | AQ171: 0.03365983596 | AR171: 3.012382324 | AS171: 15.96627148 | AT171: 2.102085699 | AU171: 2.636705218 | AV171: 2.251865096 | AW171: 0.4324163422 | AX171: 0.3461565263 | AY171: 15.42849644 | AZ171: 15.42849644 | BA171: 1.414246028 | BB171: 0 | BC171: 0 | BD171: 1.056702726 | BE171: 0.779867826 | BF171: 0.03114668733 | BG171: 0.02483503712 | BH171: 3.012382324 | BI171: 3.012382324 | BJ171: 0.08148679701 | BK171: 15.64745377 | BL171: 15.80748849 | BM171: 1.544191747 | BN171: 14.57541667 | BO171: 10.13310283 | BP171: 1.084530813 | BQ171: 0.7311296331 | BR171: 0.5239364927 | CF171: 375.5388904 | CG171: 10.13310283 | CH171: 1.084530813 | CI171: 0.7311296331 | CJ171: 0.5239364927 | CN171: 0.08930870074 | CO171: 37.37972371 | CP171: 342 | CQ171: 379.3797237
A172: 169 | B172: 24 | C172: 15.79398267 | D172: 3.317083333 | E172: 11.19583333 | F172: 11.14166667 | G172: 17.79166667 | H172: 0 | I172: 11.53166667 | J172: 1.014191747 | K172: 0.9721375208 | L172: 0.1115393519 | M172: 0 | N172: 0 | O172: 0.9785416667 | P172: 0.07726918035 | Q172: 0.07726918035 | R172: 0.03525512349 | S172: 0.19 | T172: 0.03203723971 | U172: 0 | V172: 1.014191747 | W172: 0 | X172: 1.735624403 | Y172: 0.03317083333 | Z172: 2.861377315 | AA172: 0 | AB172: 18.17788756 | AC172: 0.05180919131 | AD172: 0.2768345031 | AE172: 0.3216013581 | AF172: 2.450492234 | AG172: 1.627154576 | AH172: 18.50123927 | AI172: 4.357918439 | AJ172: 0 | AK172: 0 | AL172: 0 | AM172: 0 | AN172: 0.01989590787 | AO172: 0.02317662456 | AP172: 1.285234019 | AQ172: 0.02505097451 | AR172: 3.612329067 | AS172: 0 | AT172: 1.711337533 | AU172: 2.824612651 | AV172: 2.450492234 | AW172: 0.3216013581 | AX172: 0.2768345031 | AY172: 18.50123927 | AZ172: 18.50123927 | BA172: 1.627154576 | BB172: 0 | BC172: 0 | BD172: 1.69938692 | BE172: 1.285234019 | BF172: 0.02317662456 | BG172: 0.01989590787 | BH172: 3.612329067 | BI172: 3.612329067 | BJ172: 0.09342291738 | BK172: 18.76380419 | BL172: 18.87534354 | BM172: 1.358358414 | BN172: 14.84875 | BO172: 13.81358851 | BP172: 1.271173906 | BQ172: 1.074723875 | BR172: 0.7315474039 | CF172: 450.3313005 | CG172: 13.81358851 | CH172: 1.271173906 | CI172: 1.074723875 | CJ172: 0.7315474039 | CN172: 0.05180919131 | CO172: 26.00824494 | CP172: 427 | CQ172: 453.0082449
A173: 170 | B173: 24 | C173: 13.525464 | D173: 3.43125 | E173: 10.74583333 | F173: 10.85833333 | G173: 8.208333333 | H173: 0.625 | I173: 8.619583333 | J173: 1.009897729 | K173: 0.1687480891 | L173: 0.01939814815 | M173: 0.8598090278 | N173: 0.03160178765 | O173: 0.4514583333 | P173: 0.01342808095 | Q173: 0.04108744068 | R173: 0.04173725088 | S173: 0.19 | T173: 0.005571693863 | U173: 0.1246269594 | V173: 0.8852707699 | W173: 5.255488312 | X173: 1.735123864 | Y173: 0.0343125 | Z173: 2.949351852 | AA173: 0 | AB173: 8.886982974 | AC173: 0.08817384023 | AD173: 0.3991521809 | AE173: 0.4752313437 | AF173: 1.439131608 | AG173: 1.044375473 | AH173: 8.913854504 | AI173: 2.224940308 | AJ173: 0 | AK173: 0 | AL173: 0 | AM173: 0 | AN173: 0.01057827124 | AO173: 0.01296042637 | AP173: 0.5349853581 | AQ173: 0.01305671089 | AR173: 1.747225885 | AS173: 42.16975475 | AT173: 1.959992267 | AU173: 1.716212085 | AV173: 1.439131608 | AW173: 0.4752313437 | AX173: 0.3991521809 | AY173: 8.913854504 | AZ173: 8.913854504 | BA173: 1.044375473 | BB173: 0 | BC173: 0 | BD173: 0.7584928695 | BE173: 0.5349853581 | BF173: 0.01296042637 | BG173: 0.01057827124 | BH173: 1.747225885 | BI173: 1.747225885 | BJ173: 0.06188210049 | BK173: 9.002081422 | BL173: 9.881288598 | BM173: 1.472397729 | BN173: 12.05083333 | BO173: 6.113892492 | BP173: 0.8199672442 | BQ173: 0.4445266893 | BR173: 0.6032035875 | CF173: 216.0499541 | CG173: 6.113892492 | CH173: 0.8199672442 | CI173: 0.4445266893 | CJ173: 0.6032035875 | CN173: 0.08817384023 | CO173: 40.15092636 | CP173: 197 | CQ173: 237.1509264
A174: 171 | B174: 24 | C174: 16.00231617 | D174: 3.197916667 | E174: 10.84583333 | F174: 10.77916667 | G174: 9.041666667 | H174: 0.08333333333 | I174: 8.680416667 | J174: 1.014191747 | K174: 0.1263228843 | L174: 0.01454861111 | M174: 0.1191666667 | N174: 0.004199092577 | O174: 0.4972916667 | P174: 0.01006358199 | Q174: 0.01426267457 | R174: 0.03508089819 | S174: 0.19 | T174: 0.004178770397 | U174: 0 | V174: 1.014191747 | W174: 0 | X174: 2.137575595 | Y174: 0.03197916667 | Z174: 2.929201389 | AA174: 0 | AB174: 10.10036886 | AC174: 0.022662296 | AD174: 0.1011512318 | AE174: 0.1066072941 | AF174: 0.7564704264 | AG174: 1.065769449 | AH174: 9.121867643 | AI174: 2.228109355 | AJ174: 0 | AK174: 0 | AL174: 0 | AM174: 0 | AN174: 0.004329616818 | AO174: 0.004577865441 | AP174: 0.5555374307 | AQ174: 0.004758159076 | AR174: 1.78102597 | AS174: 0 | AT174: 2.107664158 | AU174: 0.8248769218 | AV174: 0.7564704264 | AW174: 0.1066072941 | AX174: 0.1011512318 | AY174: 9.121867643 | AZ174: 9.121867643 | BA174: 1.065769449 | BB174: 0 | BC174: 0 | BD174: 0.6598588565 | BE174: 0.5555374307 | BF174: 0.004577865441 | BG174: 0.004329616818 | BH174: 1.78102597 | BI174: 1.78102597 | BJ174: 0.06308868927 | BK174: 9.251322884 | BL174: 9.385038162 | BM174: 1.268358414 | BN174: 11.87833333 | BO174: 7.293934255 | BP174: 0.7900972214 | BQ174: 0.5921026656 | BR174: 0.4017182812 | CF174: 222.0317492 | CG174: 7.293934255 | CH174: 0.7900972214 | CI174: 0.5921026656 | CJ174: 0.4017182812 | CN174: 0.022662296 | CO174: 8.240915889 | CP174: 217 | CQ174: 225.2409159
A175: 172 | B175: 24 | C175: 16.32176058 | D175: 3.535833333 | E175: 11.17083333 | F175: 11.1125 | G175: 21.125 | H175: 0 | I175: 11.40125 | J175: 1.014191747 | K175: 1.618104554 | L175: 0.1867071759 | M175: 0 | N175: 0 | O175: 1.161875 | P175: 0.129053985 | Q175: 0.129053985 | R175: 0.03747240393 | S175: 0.19 | T175: 0.05362755343 | U175: 0 | V175: 1.014191747 | W175: 0 | X175: 1.865388933 | Y175: 0.03535833333 | Z175: 2.791626157 | AA175: 0 | AB175: 21.07858719 | AC175: 0.07114703932 | AD175: 0.415185725 | AE175: 0.5002263569 | AF175: 2.569820111 | AG175: 1.994790444 | AH175: 22.42485665 | AI175: 5.039491283 | AJ175: 0 | AK175: 0 | AL175: 0 | AM175: 0 | AN175: 0.02990302245 | AO175: 0.03614427436 | AP175: 0.8855916868 | AQ175: 0.03908111809 | AR175: 4.378407322 | AS175: 0 | AT175: 1.839286247 | AU175: 2.902429693 | AV175: 2.569820111 | AW175: 0.5002263569 | AX175: 0.415185725 | AY175: 22.42485665 | AZ175: 22.42485665 | BA175: 1.994790444 | BB175: 0 | BC175: 0 | BD175: 1.117846826 | BE175: 0.8855916868 | BF175: 0.03614427436 | BG175: 0.02990302245 | BH175: 4.378407322 | BI175: 4.378407322 | BJ175: 0.1146391485 | BK175: 22.74310455 | BL175: 22.92981173 | BM175: 1.571691747 | BN175: 14.93708333 | BO175: 14.47046127 | BP175: 1.535092978 | BQ175: 1.048245514 | BR175: 0.7559878392 | CF175: 545.8345093 | CG175: 14.47046127 | CH175: 1.535092978 | CI175: 1.048245514 | CJ175: 0.7559878392 | CN175: 0.07114703932 | CO175: 43.31548152 | CP175: 507 | CQ175: 550.3154815
A176: 173 | B176: 24 | C176: 17.23148292 | D176: 3.485416667 | E176: 11.375 | F176: 11.32916667 | G176: 26.20833333 | H176: 0 | I176: 11.54166667 | J176: 1.014498337 | K176: 1.321432262 | L176: 0.1527604167 | M176: 0 | N176: 0 | O176: 1.441458333 | P176: 0.1055121987 | Q176: 0.1055121987 | R176: 0.03563570929 | S176: 0.19 | T176: 0.04387708917 | U176: 0.04297365916 | V176: 0.971524678 | W176: 0.8052968085 | X176: 2.268236521 | Y176: 0.03485416667 | Z176: 2.84265625 | AA176: 0 | AB176: 26.39139941 | AC176: 0.04800012762 | AD176: 0.36495174 | AE176: 0.4171323319 | AF176: 2.453020145 | AG176: 2.385250449 | AH176: 27.13633388 | AI176: 6.151788642 | AJ176: 0 | AK176: 0 | AL176: 0 | AM176: 0 | AN176: 0.0263183171 | AO176: 0.03015018393 | AP176: 0.9692923439 | AQ176: 0.03260633992 | AR176: 5.296839479 | AS176: 18.73931204 | AT176: 2.334718379 | AU176: 2.696800534 | AV176: 2.453020145 | AW176: 0.4171323319 | AX176: 0.36495174 | AY176: 27.13633388 | AZ176: 27.13633388 | BA176: 2.385250449 | BB176: 0 | BC176: 0 | BD176: 1.163227027 | BE176: 0.9692923439 | BF176: 0.03015018393 | BG176: 0.0263183171 | BH176: 5.296839479 | BI176: 5.296839479 | BJ176: 0.1369391485 | BK176: 27.5297656 | BL176: 27.68252601 | BM176: 1.504498337 | BN176: 15.02708333 | BO176: 18.29830244 | BP176: 1.842175584 | BQ176: 1.360765527 | BR176: 0.9718353936 | CF176: 660.7143743 | CG176: 18.29830244 | CH176: 1.842175584 | CI176: 1.360765527 | CJ176: 0.9718353936 | CN176: 0.04800012762 | CO176: 35.38062428 | CP176: 629 | CQ176: 664.3806243
A177: 174 | B177: 24 | C177: 19.04166813 | D177: 3.465416667 | E177: 11.61666667 | F177: 11.63333333 | G177: 35.79166667 | H177: 0 | I177: 11.83166667 | J177: 1.014191747 | K177: 1.360848898 | L177: 0.1576099537 | M177: 0 | N177: 0 | O177: 1.968541667 | P177: 0.1087825105 | Q177: 0.1087825105 | R177: 0.03547907605 | S177: 0.19 | T177: 0.04527001264 | U177: 0.1289209775 | V177: 0.8852707699 | W177: 2.284201803 | X177: 1.740915188 | Y177: 0.03465416667 | Z177: 2.829890046 | AA177: 0 | AB177: 35.92292618 | AC177: 0.03662871484 | AD177: 0.3894687184 | AE177: 0.4335276468 | AF177: 2.642090516 | AG177: 3.140091469 | AH177: 36.63263447 | AI177: 8.328881025 | AJ177: 0 | AK177: 0 | AL177: 0 | AM177: 0 | AN177: 0.02812576587 | AO177: 0.03136687607 | AP177: 1.091044142 | AQ177: 0.03392538572 | AR177: 7.152446836 | AS177: 17.71784428 | AT177: 1.966534135 | AU177: 2.847460641 | AV177: 2.642090516 | AW177: 0.4335276468 | AX177: 0.3894687184 | AY177: 36.63263447 | AZ177: 36.63263447 | BA177: 3.140091469 | BB177: 0 | BC177: 0 | BD177: 1.259815139 | BE177: 1.091044142 | BF177: 0.03136687607 | BG177: 0.02812576587 | BH177: 7.152446836 | BI177: 7.152446836 | BJ177: 0.179915969 | BK177: 37.15251556 | BL177: 37.31012552 | BM177: 1.492108414 | BN177: 15.29708333 | BO177: 24.89934057 | BP177: 2.439035253 | BQ177: 1.870624589 | BR177: 1.335098711 | CF177: 891.6603736 | CG177: 24.89934057 | CH177: 2.439035253 | CI177: 1.870624589 | CJ177: 1.335098711 | CN177: 0.03662871484 | CO177: 36.44301245 | CP177: 859 | CQ177: 895.4430124
A178: 175 | B178: 24 | C178: 19.84259421 | D178: 3.401666667 | E178: 11.75 | F178: 11.72916667 | G178: 35.70833333 | H178: 0 | I178: 11.67041667 | J178: 1.009897729 | K178: 0.9403839584 | L178: 0.1091145833 | M178: 0 | N178: 0 | O178: 1.963958333 | P178: 0.07525651293 | Q178: 0.07525651293 | R178: 0.03433777449 | S178: 0.19 | T178: 0.03134077798 | U178: 0.08594731832 | V178: 0.923950411 | W178: 1.6113506 | X178: 2.269710345 | Y178: 0.03401666667 | Z178: 2.88046875 | AA178: 0 | AB178: 36.18993044 | AC178: 0.02565939623 | AD178: 0.2835622269 | AE178: 0.306192279 | AF178: 2.147011518 | AG178: 3.14030924 | AH178: 36.28953331 | AI178: 8.332153535 | AJ178: 0 | AK178: 0 | AL178: 0 | AM178: 0 | AN178: 0.02050291275 | AO178: 0.02216940434 | AP178: 1.023322603 | AQ178: 0.02398103033 | AR178: 7.113197992 | AS178: 18.74811956 | AT178: 2.456528314 | AU178: 2.282023761 | AV178: 2.147011518 | AW178: 0.306192279 | AX178: 0.2835622269 | AY178: 36.28953331 | AZ178: 36.28953331 | BA178: 3.14030924 | BB178: 0 | BC178: 0 | BD178: 1.151363033 | BE178: 1.023322603 | BF178: 0.02216940434 | BG178: 0.02050291275 | BH178: 7.113197992 | BI178: 7.113197992 | BJ178: 0.1801249755 | BK178: 36.64871729 | BL178: 36.75783188 | BM178: 1.421981063 | BN178: 15.07208333 | BO178: 25.77299955 | BP178: 2.438802325 | BQ178: 1.980219011 | BR178: 1.395740724 | CF178: 879.569215 | CG178: 25.77299955 | CH178: 2.438802325 | CI178: 1.980219011 | CJ178: 1.395740724 | CN178: 0.02565939623 | CO178: 25.187965 | CP178: 857 | CQ178: 882.187965
A179: 176 | B179: 24 | C179: 17.24768658 | D179: 2.98375 | E179: 11.17083333 | F179: 11.1 | G179: 8.666666667 | H179: 0 | I179: 10.15083333 | J179: 1.014191747 | K179: 0 | L179: 0 | M179: 0 | N179: 0 | O179: 0.4766666667 | P179: 0 | Q179: 0 | R179: 0.0298375 | S179: 0.19 | T179: 0 | U179: 0 | V179: 1.014191747 | W179: 0 | X179: 2.267860324 | Y179: 0.0298375 | Z179: 2.913333333 | AA179: 0 | AB179: 9.751275081 | AC179: 0 | AD179: 0 | AE179: 0 | AF179: 0 | AG179: 0.8537886873 | AH179: 8.545392613 | AI179: 2.167782127 | AJ179: 0 | AK179: 0 | AL179: 0 | AM179: 0 | AN179: 0 | AO179: 0 | AP179: 0 | AQ179: 0 | AR179: 1.668470402 | AS179: 0 | AT179: 2.236125792 | AU179: 0 | AV179: 0 | AW179: 0 | AX179: 0 | AY179: 8.545392613 | AZ179: 8.545392613 | BA179: 0.8537886873 | BB179: 0 | BC179: 0 | BD179: 0 | BE179: 0 | BF179: 0 | BG179: 0 | BH179: 1.668470402 | BI179: 1.668470402 | BJ179: 0.04960322232 | BK179: 8.666666667 | BL179: 8.666666667 | BM179: 1.084608414 | BN179: 13.13458333 | BO179: 7.990595089 | BP179: 0.6598356755 | BQ179: 0.7175440892 | BR179: 0.4441712649 | CF179: 208 | CG179: 7.990595089 | CH179: 0.6598356755 | CI179: 0.7175440892 | CJ179: 0.4441712649 | CN179: 0 | CO179: 0 | CP179: 208 | CQ179: 208
A180: 177 | B180: 24 | C180: 22.63889079 | D180: 2.952916667 | E180: 11.1125 | F180: 11.04166667 | G180: 13.54166667 | H180: 0 | I180: 8.17375 | J180: 1.014191747 | K180: 0 | L180: 0 | M180: 0 | N180: 0 | O180: 0.7447916667 | P180: 0 | Q180: 0 | R180: 0.02952916667 | S180: 0.19 | T180: 0 | U180: 0 | V180: 1.014191747 | W180: 0 | X180: 2.281635315 | Y180: 0.02952916667 | Z180: 2.8825 | AA180: 0 | AB180: 14.62627508 | AC180: 0 | AD180: 0 | AE180: 0 | AF180: 0 | AG180: 1.656726309 | AH180: 13.35217596 | AI180: 3.413485404 | AJ180: 0 | AK180: 0 | AL180: 0 | AM180: 0 | AN180: 0 | AO180: 0 | AP180: 0 | AQ180: 0 | AR180: 2.606985003 | AS180: 0 | AT180: 2.249708027 | AU180: 0 | AV180: 0 | AW180: 0 | AX180: 0 | AY180: 13.35217596 | AZ180: 13.35217596 | BA180: 1.656726309 | BB180: 0 | BC180: 0 | BD180: 0 | BE180: 0 | BF180: 0 | BG180: 0 | BH180: 2.606985003 | BI180: 2.606985003 | BJ180: 0.09892385823 | BK180: 13.54166667 | BL180: 13.54166667 | BM180: 1.084608414 | BN180: 11.12666667 | BO180: 12.48530483 | BP180: 1.217046135 | BQ180: 1.120996082 | BR180: 0.6935818082 | CF180: 325 | CG180: 12.48530483 | CH180: 1.217046135 | CI180: 1.120996082 | CJ180: 0.6935818082 | CN180: 0 | CO180: 0 | CP180: 325 | CQ180: 325
A181: 178 | B181: 24 | C181: 18.24768658 | D181: 2.9325 | E181: 11.05416667 | F181: 10.97916667 | G181: 11.70833333 | H181: 0 | I181: 8.429166667 | J181: 1.009897729 | K181: 0 | L181: 0 | M181: 0 | N181: 0 | O181: 0.6439583333 | P181: 0 | Q181: 0 | R181: 0.029325 | S181: 0.19 | T181: 0 | U181: 0 | V181: 1.009897729 | W181: 0 | X181: 2.401740963 | Y181: 0.029325 | Z181: 2.865 | AA181: 0 | AB181: 12.78573106 | AC181: 0 | AD181: 0 | AE181: 0 | AF181: 0 | AG181: 1.389026199 | AH181: 11.59358319 | AI181: 2.969850872 | AJ181: 0 | AK181: 0 | AL181: 0 | AM181: 0 | AN181: 0 | AO181: 0 | AP181: 0 | AQ181: 0 | AR181: 2.272485896 | AS181: 0 | AT181: 2.378202162 | AU181: 0 | AV181: 0 | AW181: 0 | AX181: 0 | AY181: 11.59358319 | AZ181: 11.59358319 | BA181: 1.389026199 | BB181: 0 | BC181: 0 | BD181: 0 | BE181: 0 | BF181: 0 | BG181: 0 | BH181: 2.272485896 | BI181: 2.272485896 | BJ181: 0.08256340422 | BK181: 11.70833333 | BL181: 11.70833333 | BM181: 1.077397729 | BN181: 11.36166667 | BO181: 10.86723409 | BP181: 1.030511955 | BQ181: 0.979706033 | BR181: 0.6037628967 | CF181: 281 | CG181: 10.86723409 | CH181: 1.030511955 | CI181: 0.979706033 | CJ181: 0.6037628967 | CN181: 0 | CO181: 0 | CP181: 281 | CQ181: 281
A182: 179 | B182: 24 | C182: 18.17361254 | D182: 3.861666667 | E182: 11.45416667 | F182: 11.40416667 | G182: 30.83333333 | H182: 0 | I182: 11.84041667 | J182: 1.014498337 | K182: 1.1202524 | L182: 0.1309375 | M182: 0 | N182: 0 | O182: 1.695833333 | P182: 0.09005196269 | Q182: 0.09005196269 | R182: 0.03922742444 | S182: 0.19 | T182: 0.03760893358 | U182: 0.04297365916 | V182: 0.971524678 | W182: 0.8050142337 | X182: 2.398407991 | Y182: 0.03861666667 | Z182: 2.830729167 | AA182: 0 | AB182: 31.62757927 | AC182: 0.03505873831 | AD182: 0.2925544113 | AE182: 0.3210456435 | AF182: 1.197404742 | AG182: 2.698687608 | AH182: 31.49693259 | AI182: 6.579868238 | AJ182: 0 | AK182: 0 | AL182: 0 | AM182: 0 | AN182: 0.02122632991 | AO182: 0.02333150342 | AP182: 0.284891609 | AQ182: 0.02524845864 | AR182: 6.148000564 | AS182: 18.73273651 | AT182: 2.468705166 | AU182: 1.244724889 | AV182: 1.197404742 | AW182: 0.3210456435 | AX182: 0.2925544113 | AY182: 31.49693259 | AZ182: 31.49693259 | BA182: 2.698687608 | BB182: 0 | BC182: 0 | BD182: 0.3034469518 | BE182: 0.284891609 | BF182: 0.02333150342 | BG182: 0.02122632991 | BH182: 6.148000564 | BI182: 6.148000564 | BJ182: 0.1546161394 | BK182: 31.95358573 | BL182: 32.08452323 | BM182: 1.914498337 | BN182: 15.70208333 | BO182: 16.69031783 | BP182: 2.043329064 | BQ182: 1.123039334 | BR182: 0.8958694445 | CF182: 766.8860576 | CG182: 16.69031783 | CH182: 2.043329064 | CI182: 1.123039334 | CJ182: 0.8958694445 | CN182: 0.03505873831 | CO182: 30.02855761 | CP182: 740 | CQ182: 770.0285576
A183: 180 | B183: 24 | C183: 18.49768667 | D183: 3.362916667 | E183: 11.675 | F183: 11.62083333 | G183: 31.625 | H183: 0 | I183: 11.94041667 | J183: 1.014191747 | K183: 1.076825541 | L183: 0.126087963 | M183: 0 | N183: 0 | O183: 1.739375 | P183: 0.08665652713 | Q183: 0.08665652713 | R183: 0.03406378657 | S183: 0.19 | T183: 0.03621601011 | U183: 0.04297365916 | V183: 0.9712180882 | W183: 0.6713558224 | X183: 2.403543692 | Y183: 0.03362916667 | Z183: 2.847662037 | AA183: 0 | AB183: 31.95153287 | AC183: 0.03292860639 | AD183: 0.3202561598 | AE183: 0.3541822119 | AF183: 2.548322008 | AG183: 2.738750787 | AH183: 32.24422366 | AI183: 7.499908707 | AJ183: 0 | AK183: 0 | AL183: 0 | AM183: 0 | AN183: 0.02325298792 | AO183: 0.02576098524 | AP183: 1.262131358 | AQ183: 0.02788072845 | AR183: 6.295618616 | AS183: 15.6224961 | AT183: 2.474772372 | AU183: 2.767003533 | AV183: 2.548322008 | AW183: 0.3541822119 | AX183: 0.3202561598 | AY183: 32.24422366 | AZ183: 32.24422366 | BA183: 2.738750787 | BB183: 0 | BC183: 0 | BD183: 1.481615876 | BE183: 1.262131358 | BF183: 0.02576098524 | BG183: 0.02325298792 | BH183: 6.295618616 | BI183: 6.295618616 | BJ183: 0.1568087936 | BK183: 32.70182554 | BL183: 32.8279135 | BM183: 1.403358414 | BN183: 15.30333333 | BO183: 23.3025471 | BP183: 2.145147909 | BQ183: 1.800255553 | BR183: 1.253754974 | CF183: 784.843813 | CG183: 23.3025471 | CH183: 2.145147909 | CI183: 1.800255553 | CJ183: 1.253754974 | CN183: 0.03292860639 | CO183: 28.86992411 | CP183: 759 | CQ183: 787.8699241
A184: 181 | B184: 24 | C184: 17.38426067 | D184: 3.581666667 | E184: 11.625 | F184: 11.55833333 | G184: 27.5 | H184: 0 | I184: 11.81125 | J184: 1.009897729 | K184: 1.591688751 | L184: 0.1867071759 | M184: 0 | N184: 0 | O184: 1.5125 | P184: 0.1282300973 | Q184: 0.1282300973 | R184: 0.03743582143 | S184: 0.19 | T184: 0.05362755343 | U184: 0.04297365916 | V184: 0.9669240701 | W184: 0.1343657145 | X184: 2.273381583 | Y184: 0.03581666667 | Z184: 2.784542824 | AA184: 0 | AB184: 27.52862565 | AC184: 0.05471283446 | AD184: 0.4206340275 | AE184: 0.4889839262 | AF184: 2.391104118 | AG184: 2.463049106 | AH184: 28.80656913 | AI184: 6.376562191 | AJ184: 0 | AK184: 0 | AL184: 0 | AM184: 0 | AN184: 0.03055737695 | AO184: 0.03561532135 | AP184: 0.7831735468 | AQ184: 0.03854705549 | AR184: 5.646444332 | AS184: 3.126699405 | AT184: 2.351147989 | AU184: 2.607544711 | AV184: 2.391104118 | AW184: 0.4889839262 | AX184: 0.4206340275 | AY184: 28.80656913 | AZ184: 28.80656913 | BA184: 2.463049106 | BB184: 0 | BC184: 0 | BD184: 0.9219163632 | BE184: 0.7831735468 | BF184: 0.03561532135 | BG184: 0.03055737695 | BH184: 5.646444332 | BI184: 5.646444332 | BJ184: 0.1411430497 | BK184: 29.09168875 | BL184: 29.27839593 | BM184: 1.620314396 | BN184: 15.39291667 | BO184: 17.95434813 | BP184: 1.90206941 | BQ184: 1.291711719 | BR184: 0.9488354301 | CF184: 698.20053 | CG184: 17.95434813 | CH184: 1.90206941 | CI184: 1.291711719 | CJ184: 0.9488354301 | CN184: 0.05471283446 | CO184: 42.68150224 | CP184: 660 | CQ184: 702.6815022
A185: 182 | B185: 24 | C185: 18.14120521 | D185: 3.335416667 | E185: 11.64166667 | F185: 11.57083333 | G185: 27.33333333 | H185: 0 | I185: 11.94875 | J185: 1.014191747 | K185: 1.093640304 | L185: 0.1285127315 | M185: 0 | N185: 0 | O185: 1.503333333 | P185: 0.08820217804 | Q185: 0.08820217804 | R185: 0.03441814196 | S185: 0.19 | T185: 0.03691247184 | U185: 0.04297365916 | V185: 0.9712180882 | W185: 0.8058631649 | X185: 3.056793593 | Y185: 0.03335416667 | Z185: 2.853570602 | AA185: 0 | AB185: 27.60721811 | AC185: 0.0384719217 | AD185: 0.3220337925 | AE185: 0.3621800954 | AF185: 2.787401174 | AG185: 2.379075103 | AH185: 28.02919045 | AI185: 6.565070611 | AJ185: 0 | AK185: 0 | AL185: 0 | AM185: 0 | AN185: 0.02342380368 | AO185: 0.02639811106 | AP185: 1.484311212 | AQ185: 0.02857479579 | AR185: 5.472642015 | AS185: 18.75249119 | AT185: 3.147381242 | AU185: 3.095208407 | AV185: 2.787401174 | AW185: 0.3621800954 | AX185: 0.3220337925 | AY185: 28.02919045 | AZ185: 28.02919045 | BA185: 2.379075103 | BB185: 0 | BC185: 0 | BD185: 1.822570763 | BE185: 1.484311212 | BF185: 0.02639811106 | BG185: 0.02342380368 | BH185: 5.472642015 | BI185: 5.472642015 | BJ185: 0.1362080146 | BK185: 28.42697364 | BL185: 28.55548637 | BM185: 1.367525081 | BN185: 15.28416667 | BO185: 20.78716803 | BP185: 1.868305089 | BQ185: 1.624561021 | BR185: 1.113090202 | CF185: 682.2473673 | CG185: 20.78716803 | CH185: 1.868305089 | CI185: 1.624561021 | CJ185: 1.113090202 | CN185: 0.0384719217 | CO185: 29.33167285 | CP185: 656 | CQ185: 685.3316728
A186: 183 | B186: 24 | C186: 18.51157563 | D186: 3.285 | E186: 11.55416667 | F186: 11.50833333 | G186: 24.58333333 | H186: 0 | I186: 11.8425 | J186: 1.009897729 | K186: 0.6797509964 | L186: 0.08001736111 | M186: 0 | N186: 0 | O186: 1.352083333 | P186: 0.0548813191 | Q186: 0.0548813191 | R186: 0.03324167791 | S186: 0.19 | T186: 0.02298323719 | U186: 0.04297365916 | V186: 0.9669240701 | W186: 0.8050142337 | X186: 2.269019702 | Y186: 0.03285 | Z186: 2.900815972 | AA186: 0 | AB186: 25.21764673 | AC186: 0.02690688862 | AD186: 0.2108333073 | AE186: 0.2293866626 | AF186: 2.051521875 | AG186: 2.133256013 | AH186: 25.0154878 | AI186: 5.900746255 | AJ186: 0 | AK186: 0 | AL186: 0 | AM186: 0 | AN186: 0.01535306854 | AO186: 0.0167287473 | AP186: 1.275656189 | AQ186: 0.01811079759 | AR186: 4.903345438 | AS186: 18.73273651 | AT186: 2.3466369 | AU186: 2.234797796 | AV186: 2.051521875 | AW186: 0.2293866626 | AX186: 0.2108333073 | AY186: 25.0154878 | AZ186: 25.0154878 | BA186: 2.133256013 | BB186: 0 | BC186: 0 | BD186: 1.509511745 | BE186: 1.275656189 | BF186: 0.0167287473 | BG186: 0.01535306854 | BH186: 4.903345438 | BI186: 4.903345438 | BJ186: 0.1222191322 | BK186: 25.26308433 | BL186: 25.34310169 | BM186: 1.314064396 | BN186: 15.1275 | BO186: 19.2251494 | BP186: 1.675300062 | BQ186: 1.533931372 | BR186: 1.040114843 | CF186: 606.3140239 | CG186: 19.2251494 | CH186: 1.675300062 | CI186: 1.533931372 | CJ186: 1.040114843 | CN186: 0.02690688862 | CO186: 18.23444058 | CP186: 590 | CQ186: 608.2344406
A187: 184 | B187: 24 | C187: 18.25694596 | D187: 2.99 | E187: 11.2375 | F187: 11.16666667 | G187: 12.125 | H187: 0 | I187: 8.471666667 | J187: 1.014191747 | K187: 0.08225068073 | L187: 0.009699074074 | M187: 0 | N187: 0 | O187: 0.666875 | P187: 0.0066478438 | Q187: 0.0066478438 | R187: 0.02995061592 | S187: 0.19 | T187: 0.002785846932 | U187: 0 | V187: 1.014191747 | W187: 0 | X187: 2.268065301 | Y187: 0.0299 | Z187: 2.911967593 | AA187: 0 | AB187: 13.1252744 | AC187: 0.006737854648 | AD187: 0.03017634224 | AE187: 0.03068230368 | AF187: 1.094242004 | AG187: 1.440950307 | AH187: 12.03643267 | AI187: 3.051040141 | AJ187: 0 | AK187: 0 | AL187: 0 | AM187: 0 | AN187: 0.002201779461 | AO187: 0.002239383118 | AP187: 2.945700299 | AQ187: 0.002424662252 | AR187: 2.350088821 | AS187: 0 | AT187: 2.2363279 | AU187: 1.203668499 | AV187: 1.094242004 | AW187: 0.03068230368 | AX187: 0.03017634224 | AY187: 12.03643267 | AZ187: 12.03643267 | BA187: 1.440950307 | BB187: 0 | BC187: 0 | BD187: 3.563749967 | BE187: 2.945700299 | BF187: 0.002239383118 | BG187: 0.002201779461 | BH187: 2.350088821 | BI187: 2.350088821 | BJ187: 0.08558810263 | BK187: 12.20725068 | BL187: 12.21694975 | BM187: 1.082525081 | BN187: 11.46166667 | BO187: 11.27664467 | BP187: 1.065896445 | BQ187: 1.01140743 | BR187: 0.6219557324 | CF187: 292.9740163 | CG187: 11.27664467 | CH187: 1.065896445 | CI187: 1.01140743 | CJ187: 0.6219557324 | CN187: 0.006737854648 | CO187: 2.206794115 | CP187: 291 | CQ187: 293.2067941
A188: 185 | B188: 24 | C188: 15.990742 | D188: 3.6575 | E188: 10.98333333 | F188: 11.025 | G188: 12.04166667 | H188: 0 | I188: 8.284166667 | J188: 1.014191747 | K188: 0.3284351802 | L188: 0.0387962963 | M188: 0 | N188: 0 | O188: 0.6622916667 | P188: 0.0265738297 | Q188: 0.0265738297 | R188: 0.03723992402 | S188: 0.19 | T188: 0.01114338773 | U188: 0.08594731832 | V188: 0.9282444291 | W188: 3.217708083 | X188: 1.869583568 | Y188: 0.036575 | Z188: 2.924953704 | AA188: 0 | AB188: 13.42117323 | AC188: 0.02655072564 | AD188: 0.09470951689 | AE188: 0.0996712444 | AF188: 0.4557311252 | AG188: 1.493222233 | AH188: 12.19700503 | AI188: 2.656189409 | AJ188: 0 | AK188: 0 | AL188: 0 | AM188: 0 | AN188: 0.006913528221 | AO188: 0.007282488297 | AP188: 0.1348285526 | AQ188: 0.007885554381 | AR188: 2.381440246 | AS188: 37.43814404 | AT188: 2.014106963 | AU188: 0.4734200796 | AV188: 0.4557311252 | AW188: 0.0996712444 | AX188: 0.09470951689 | AY188: 12.19700503 | AZ188: 12.19700503 | BA188: 1.493222233 | BB188: 0 | BC188: 0 | BD188: 0.144136095 | BE188: 0.1348285526 | BF188: 0.007282488297 | BG188: 0.006913528221 | BH188: 2.381440246 | BI188: 2.381440246 | BJ188: 0.08898187373 | BK188: 12.37010185 | BL188: 12.40889814 | BM188: 1.707941747 | BN188: 11.94166667 | BO188: 7.242695406 | BP188: 1.039126153 | BQ188: 0.508714194 | BR188: 0.3914052628 | CF188: 296.8824443 | CG188: 7.242695406 | CH188: 1.039126153 | CI188: 0.508714194 | CJ188: 0.3914052628 | CN188: 0.02655072564 | CO188: 8.813555436 | CP188: 289 | CQ188: 297.8135554
A189: 186 | B189: 24 | C189: 16.39351987 | D189: 3.247916667 | E189: 11.4625 | F189: 11.3875 | G189: 25.70833333 | H189: 0 | I189: 11.67958333 | J189: 1.014191747 | K189: 0.6967317839 | L189: 0.08244212963 | M189: 0 | N189: 0 | O189: 1.413958333 | P189: 0.05643254664 | Q189: 0.05643254664 | R189: 0.03312483929 | S189: 0.19 | T189: 0.02367969892 | U189: 0 | V189: 1.014191747 | W189: 0 | X189: 2.407669106 | Y189: 0.03247916667 | Z189: 2.89380787 | AA189: 0 | AB189: 26.29745996 | AC189: 0.02638629296 | AD189: 0.2191092616 | AE189: 0.2379391347 | AF189: 2.334677447 | AG189: 2.26078828 | AH189: 26.03557482 | AI189: 6.214648872 | AJ189: 0 | AK189: 0 | AL189: 0 | AM189: 0 | AN189: 0.01599994519 | AO189: 0.01740027568 | AP189: 1.609060908 | AQ189: 0.01884301439 | AR189: 5.083392647 | AS189: 0 | AT189: 2.373978207 | AU189: 2.564656873 | AV189: 2.334677447 | AW189: 0.2379391347 | AX189: 0.2191092616 | AY189: 26.03557482 | AZ189: 26.03557482 | BA189: 2.26078828 | BB189: 0 | BC189: 0 | BD189: 1.93701471 | BE189: 1.609060908 | BF189: 0.01740027568 | BG189: 0.01599994519 | BH189: 5.083392647 | BI189: 5.083392647 | BJ189: 0.1296683426 | BK189: 26.40506512 | BL189: 26.48750725 | BM189: 1.285858414 | BN189: 14.9275 | BO189: 20.5349709 | BP189: 1.774410132 | BQ189: 1.658747066 | BR189: 1.111514164 | CF189: 633.7215628 | CG189: 20.5349709 | CH189: 1.774410132 | CI189: 1.658747066 | CJ189: 1.111514164 | CN189: 0.02638629296 | CO189: 18.70017393 | CP189: 617 | CQ189: 635.7001739
A190: 187 | B190: 24 | C190: 16.38889017 | D190: 3.323333333 | E190: 11.42916667 | F190: 11.41666667 | G190: 22.70833333 | H190: 0 | I190: 11.31583333 | J190: 1.010204319 | K190: 0.8387541448 | L190: 0.09941550926 | M190: 0 | N190: 0 | O190: 1.248958333 | P190: 0.06800713123 | Q190: 0.06800713123 | R190: 0.03382171149 | S190: 0.19 | T190: 0.02855493105 | U190: 0.08594731832 | V190: 0.9242570007 | W190: 1.342632984 | X190: 1.727222024 | Y190: 0.03323333333 | Z190: 2.878084491 | AA190: 0 | AB190: 23.22561684 | AC190: 0.03562029256 | AD190: 0.2517625552 | AE190: 0.2792739191 | AF190: 2.196743231 | AG190: 2.08089734 | AH190: 23.30923263 | AI190: 5.456628022 | AJ190: 0 | AK190: 0 | AL190: 0 | AM190: 0 | AN190: 0.0183925537 | AO190: 0.02043866086 | AP190: 1.193703422 | AQ190: 0.02213577603 | AR190: 4.567620853 | AS190: 15.62158088 | AT190: 1.868768127 | AU190: 2.42531319 | AV190: 2.196743231 | AW190: 0.2792739191 | AX190: 0.2517625552 | AY190: 23.30923263 | AZ190: 23.30923263 | BA190: 2.08089734 | BB190: 0 | BC190: 0 | BD190: 1.449258953 | BE190: 1.193703422 | BF190: 0.02043866086 | BG190: 0.0183925537 | BH190: 4.567620853 | BI190: 4.567620853 | BJ190: 0.1196638166 | BK190: 23.54708748 | BL190: 23.64650299 | BM190: 1.356037652 | BN190: 14.63916667 | BO190: 17.36462659 | BP190: 1.615290237 | BQ190: 1.359770114 | BR190: 0.931977508 | CF190: 565.1300995 | CG190: 17.36462659 | CH190: 1.615290237 | CI190: 1.359770114 | CJ190: 0.931977508 | CN190: 0.03562029256 | CO190: 22.5160717 | CP190: 545 | CQ190: 567.5160717
A191: 188 | B191: 24 | C191: 17.57639033 | D191: 3.23 | E191: 11.575 | F191: 11.54166667 | G191: 28.375 | H191: 0 | I191: 11.42916667 | J191: 1.014191747 | K191: 0.735232668 | L191: 0.08729166667 | M191: 0 | N191: 0 | O191: 1.560625 | P191: 0.05967553821 | Q191: 0.05967553821 | R191: 0.03259937643 | S191: 0.19 | T191: 0.02507262238 | U191: 0.08594731832 | V191: 0.9282444291 | W191: 1.34286964 | X191: 2.398641002 | Y191: 0.0323 | Z191: 2.887291667 | AA191: 0 | AB191: 28.90937575 | AC191: 0.02525684615 | AD191: 0.2337603619 | AE191: 0.2526478907 | AF191: 2.616188885 | AG191: 2.547012702 | AH191: 28.70288852 | AI191: 6.879407452 | AJ191: 0 | AK191: 0 | AL191: 0 | AM191: 0 | AN191: 0.01709743128 | AO191: 0.01850378867 | AP191: 1.914263885 | AQ191: 0.02004247834 | AR191: 5.604180184 | AS191: 15.62433437 | AT191: 2.584061834 | AU191: 2.878561832 | AV191: 2.616188885 | AW191: 0.2526478907 | AX191: 0.2337603619 | AY191: 28.70288852 | AZ191: 28.70288852 | BA191: 2.547012702 | BB191: 0 | BC191: 0 | BD191: 2.312470256 | BE191: 1.914263885 | BF191: 0.01850378867 | BG191: 0.01709743128 | BH191: 5.604180184 | BI191: 5.604180184 | BJ191: 0.1463449276 | BK191: 29.11023267 | BL191: 29.19752433 | BM191: 1.269608414 | BN191: 14.65916667 | BO191: 22.92851272 | BP191: 1.991758809 | BQ191: 1.867048712 | BR191: 1.242319949 | CF191: 698.645584 | CG191: 22.92851272 | CH191: 1.991758809 | CI191: 1.867048712 | CJ191: 1.242319949 | CN191: 0.02525684615 | CO191: 19.74058403 | CP191: 681 | CQ191: 700.740584
A192: 189 | B192: 24 | C192: 16.85416808 | D192: 3.424583333 | E192: 11.5125 | F192: 11.45833333 | G192: 23.95833333 | H192: 0 | I192: 11.1525 | J192: 1.014191747 | K192: 1.182576845 | L192: 0.1406365741 | M192: 0 | N192: 0 | O192: 1.317708333 | P192: 0.09608343935 | Q192: 0.09608343935 | R192: 0.03571234648 | S192: 0.19 | T192: 0.04039478051 | U192: 0.04297365916 | V192: 0.9712180882 | W192: 0.6713558224 | X192: 2.398408262 | Y192: 0.03424583333 | Z192: 2.835613426 | AA192: 0 | AB192: 24.23828157 | AC192: 0.04703794878 | AD192: 0.3350608001 | AE192: 0.3810781542 | AF192: 2.384040859 | AG192: 2.254284706 | AH192: 24.7891094 | AI192: 5.695613383 | AJ192: 0 | AK192: 0 | AL192: 0 | AM192: 0 | AN192: 0.02451795126 | AO192: 0.02794769006 | AP192: 1.016316814 | AQ192: 0.0302722825 | AR192: 4.840022828 | AS192: 15.6224961 | AT192: 2.469484755 | AU192: 2.63771787 | AV192: 2.384040859 | AW192: 0.3810781542 | AX192: 0.3350608001 | AY192: 24.7891094 | AZ192: 24.7891094 | BA192: 2.254284706 | BB192: 0 | BC192: 0 | BD192: 1.235951057 | BE192: 1.016316814 | BF192: 0.02794769006 | BG192: 0.02451795126 | BH192: 4.840022828 | BI192: 4.840022828 | BJ192: 0.1297975488 | BK192: 25.14091018 | BL192: 25.28154675 | BM192: 1.462525081 | BN192: 14.57708333 | BO192: 17.19007114 | BP192: 1.734335064 | BQ192: 1.294677946 | BR192: 0.9138388883 | CF192: 603.3818443 | CG192: 17.19007114 | CH192: 1.734335064 | CI192: 1.294677946 | CJ192: 0.9138388883 | CN192: 0.04703794878 | CO192: 31.75712206 | CP192: 575 | CQ192: 606.7571221
A193: 190 | B193: 24 | C193: 18.38194592 | D193: 3.297916667 | E193: 11.75416667 | F193: 11.69166667 | G193: 31.125 | H193: 0 | I193: 11.46291667 | J193: 1.009897729 | K193: 0.8345880896 | L193: 0.09941550926 | M193: 0 | N193: 0 | O193: 1.711875 | P193: 0.067878876 | Q193: 0.067878876 | R193: 0.03350946785 | S193: 0.19 | T193: 0.02855493105 | U193: 0 | V193: 1.009897729 | W193: 0 | X193: 1.996501731 | Y193: 0.03297916667 | Z193: 2.874751157 | AA193: 0 | AB193: 31.62405964 | AC193: 0.02611385626 | AD193: 0.2596432328 | AE193: 0.2809634185 | AF193: 2.3837043 | AG193: 2.788085181 | AH193: 31.64636098 | AI193: 7.44205777 | AJ193: 0 | AK193: 0 | AL193: 0 | AM193: 0 | AN193: 0.01902399374 | AO193: 0.02061454367 | AP193: 1.409436515 | AQ193: 0.02233257339 | AR193: 6.203078706 | AS193: 0 | AT193: 1.976934568 | AU193: 2.577878269 | AV193: 2.3837043 | AW193: 0.2809634185 | AX193: 0.2596432328 | AY193: 31.64636098 | AZ193: 31.64636098 | BA193: 2.788085181 | BB193: 0 | BC193: 0 | BD193: 1.643383056 | BE193: 1.409436515 | BF193: 0.02061454367 | BG193: 0.01902399374 | BH193: 6.203078706 | BI193: 6.203078706 | BJ193: 0.1601569141 | BK193: 31.95958809 | BL193: 32.0590036 | BM193: 1.333647729 | BN193: 14.76083333 | BO193: 23.96404042 | BP193: 2.171896591 | BQ193: 1.901254106 | BR193: 1.297317125 | CF193: 767.0301141 | CG193: 23.96404042 | CH193: 2.171896591 | CI193: 1.901254106 | CJ193: 1.297317125 | CN193: 0.02611385626 | CO193: 22.41608637 | CP193: 747 | CQ193: 769.4160864
A194: 191 | B194: 24 | C194: 17.86111246 | D194: 3.006666667 | E194: 11.425 | F194: 11.34583333 | G194: 16.29166667 | H194: 0 | I194: 8.365 | J194: 1.014191747 | K194: 0.1016139645 | L194: 0.01212384259 | M194: 0 | N194: 0 | O194: 0.8960416667 | P194: 0.008272840301 | Q194: 0.008272840301 | R194: 0.03013048532 | S194: 0.19 | T194: 0.003482308664 | U194: 0 | V194: 1.014191747 | W194: 0 | X194: 2.53699933 | Y194: 0.03006666667 | Z194: 2.922042824 | AA194: 0 | AB194: 17.27674445 | AC194: 0.006198513088 | AD194: 0.03718723768 | AE194: 0.03774961029 | AF194: 1.289738588 | AG194: 1.959746639 | AH194: 16.16388683 | AI194: 4.080075144 | AJ194: 0 | AK194: 0 | AL194: 0 | AM194: 0 | AN194: 0.002729549251 | AO194: 0.002771587901 | AP194: 3.313249683 | AQ194: 0.003002919433 | AR194: 3.155965791 | AS194: 0 | AT194: 2.501498692 | AU194: 1.401571925 | AV194: 1.289738588 | AW194: 0.03774961029 | AX194: 0.03718723768 | AY194: 16.16388683 | AZ194: 16.16388683 | BA194: 1.959746639 | BB194: 0 | BC194: 0 | BD194: 3.912095829 | BE194: 3.313249683 | BF194: 0.002771587901 | BG194: 0.002729549251 | BH194: 3.155965791 | BI194: 3.155965791 | BJ194: 0.1166158204 | BK194: 16.39328063 | BL194: 16.40540447 | BM194: 1.086691747 | BN194: 11.37166667 | BO194: 15.08549289 | BP194: 1.442656117 | BQ194: 1.35019165 | BR194: 0.8324544852 | CF194: 393.4387351 | CG194: 15.08549289 | CH194: 1.442656117 | CI194: 1.35019165 | CJ194: 0.8324544852 | CN194: 0.006198513088 | CO194: 2.729707371 | CP194: 391 | CQ194: 393.7297074
A195: 192 | B195: 24 | C195: 17.92592733 | D195: 3.5675 | E195: 11.25833333 | F195: 11.19166667 | G195: 16.54166667 | H195: 0 | I195: 8.380416667 | J195: 1.009897729 | K195: 0.2637729025 | L195: 0.03152199074 | M195: 0 | N195: 0 | O195: 0.9097916667 | P195: 0.02149638973 | Q195: 0.02149638973 | R195: 0.03582870973 | S195: 0.19 | T195: 0.009054002528 | U195: 0 | V195: 1.009897729 | W195: 0 | X195: 2.134012939 | Y195: 0.035675 | Z195: 2.908894676 | AA195: 0 | AB195: 17.91487483 | AC195: 0.015695686 | AD195: 0.07983022124 | AE195: 0.08240747004 | AF195: 0.4102641178 | AG195: 2.005322675 | AH195: 16.64073409 | AI195: 3.678282412 | AJ195: 0 | AK195: 0 | AL195: 0 | AM195: 0 | AN195: 0.005862564271 | AO195: 0.006055284664 | AP195: 0.1347415369 | AQ195: 0.006561296669 | AR195: 3.261789984 | AS195: 0 | AT195: 2.113098067 | AU195: 0.420634529 | AV195: 0.4102641178 | AW195: 0.08240747004 | AX195: 0.07983022124 | AY195: 16.64073409 | AZ195: 16.64073409 | BA195: 2.005322675 | BB195: 0 | BC195: 0 | BD195: 0.1406500717 | BE195: 0.1347415369 | BF195: 0.006055284664 | BG195: 0.005862564271 | BH195: 3.261789984 | BI195: 3.261789984 | BJ195: 0.1192958895 | BK195: 16.80543957 | BL195: 16.83696156 | BM195: 1.636981063 | BN195: 11.94791667 | BO195: 10.26611728 | BP195: 1.409196434 | BQ195: 0.7382462658 | BR195: 0.5607096468 | CF195: 403.3305497 | CG195: 10.26611728 | CH195: 1.409196434 | CI195: 0.7382462658 | CJ195: 0.5607096468 | CN195: 0.015695686 | CO195: 7.087077439 | CP195: 397 | CQ195: 404.0870774
A196: 193 | B196: 24 | C196: 18.91666817 | D196: 3.175 | E196: 11.59583333 | F196: 11.52916667 | G196: 27.04166667 | H196: 0 | I196: 12.23833333 | J196: 1.014191747 | K196: 0.6482594498 | L196: 0.07759259259 | M196: 0 | N196: 0 | O196: 1.487291667 | P196: 0.05288267967 | Q196: 0.05288267967 | R196: 0.03199789084 | S196: 0.19 | T196: 0.02228677545 | U196: 0 | V196: 1.014191747 | W196: 0 | X196: 2.134828081 | Y196: 0.03175 | Z196: 2.870324074 | AA196: 0 | AB196: 27.6346823 | AC196: 0.02341138243 | AD196: 0.2096919324 | AE196: 0.2269178547 | AF196: 2.584488681 | AG196: 2.262556948 | AH196: 27.30245655 | AI196: 6.628371386 | AJ196: 0 | AK196: 0 | AL196: 0 | AM196: 0 | AN196: 0.01539979461 | AO196: 0.01668743284 | AP196: 2.111609855 | AQ196: 0.01808354003 | AR196: 5.33074871 | AS196: 0 | AT196: 2.10495509 | AU196: 2.854720513 | AV196: 2.584488681 | AW196: 0.2269178547 | AX196: 0.2096919324 | AY196: 27.30245655 | AZ196: 27.30245655 | BA196: 2.262556948 | BB196: 0 | BC196: 0 | BD196: 2.571670369 | BE196: 2.111609855 | BF196: 0.01668743284 | BG196: 0.01539979461 | BH196: 5.33074871 | BI196: 5.33074871 | BJ196: 0.1293032057 | BK196: 27.68992612 | BL196: 27.76751871 | BM196: 1.241275081 | BN196: 15.41333333 | BO196: 22.30764683 | BP196: 1.801525868 | BQ196: 1.839189598 | BR196: 1.211130999 | CF196: 664.5582268 | CG196: 22.30764683 | CH196: 1.801525868 | CI196: 1.839189598 | CJ196: 1.211130999 | CN196: 0.02341138243 | CO196: 17.42044902 | CP196: 649 | CQ196: 666.420449
A197: 194 | B197: 24 | C197: 17.55092742 | D197: 3.189166667 | E197: 11.5625 | F197: 11.45 | G197: 21.66666667 | H197: 0 | I197: 11.7225 | J197: 1.009897729 | K197: 0.5865672247 | L197: 0.07031828704 | M197: 0 | N197: 0 | O197: 1.191666667 | P197: 0.04789681206 | Q197: 0.04789681206 | R197: 0.03224988137 | S197: 0.19 | T197: 0.02019739025 | U197: 0 | V197: 1.009897729 | W197: 0 | X197: 3.609010119 | Y197: 0.03189166667 | Z197: 2.88509838 | AA197: 0 | AB197: 22.32374717 | AC197: 0.02635874083 | AD197: 0.1877804543 | AE197: 0.2042690187 | AF197: 2.252825028 | AG197: 1.898335158 | AH197: 22.03513608 | AI197: 5.316315749 | AJ197: 0 | AK197: 0 | AL197: 0 | AM197: 0 | AN197: 0.01380102059 | AO197: 0.01503449319 | AP197: 1.772317293 | AQ197: 0.01629365468 | AR197: 4.319159587 | AS197: 0 | AT197: 3.573639206 | AU197: 2.509378502 | AV197: 2.252825028 | AW197: 0.2042690187 | AX197: 0.1877804543 | AY197: 22.03513608 | AZ197: 22.03513608 | BA197: 1.898335158 | BB197: 0 | BC197: 0 | BD197: 2.194559012 | BE197: 1.772317293 | BF197: 0.01503449319 | BG197: 0.01380102059 | BH197: 4.319159587 | BI197: 4.319159587 | BJ197: 0.1088476977 | BK197: 22.25323389 | BL197: 22.32355218 | BM197: 1.243647729 | BN197: 14.91166667 | BO197: 17.89351869 | BP197: 1.497052789 | BQ197: 1.470988714 | BR197: 0.968648357 | BT197: =IF(AC197>=0.67,24*(G197+H197+K197),"") ->  | BU197: =IF($AC197>=0.67,BO197,"") ->  | BV197: =IF($AC197>=0.67,BP197,"") ->  | BW197: =IF($AC197>=0.67,BQ197,"") ->  | BX197: =IF($AC197>=0.67,BR197,"") ->  | BZ197: =IF($AC197>0.25,IF(AC197<0.67,24*(G197+H197+K197),""),"") ->  | CA197: =IF($AC197>0.25,IF($AC197<0.67,BO197,""),"") ->  | CB197: =IF($AC197>0.25,IF($AC197<0.67,BP197,""),"") ->  | CC197: =IF($AC197>0.25,IF($AC197<0.67,BQ197,""),"") ->  | CD197: =IF($AC197>0.25,IF($AC197<0.67,BR197,""),"") ->  | CF197: =IF(AC197<=0.25,24*(G197+H197+K197),"") -> 534.0776134 | CG197: =IF($AC197<=0.25,BO197,"") -> 17.89351869 | CH197: =IF($AC197<=0.25,BP197,"") -> 1.497052789 | CI197: =IF($AC197<=0.25,BQ197,"") -> 1.470988714 | CJ197: =IF($AC197<=0.25,BR197,"") -> 0.968648357 | CN197: =AC197 -> 0.02635874083 | CO197: =24*(H197+K197+L197+M197) -> 15.76525228 | CP197: =24*G197 -> 520 | CQ197: =CO197+CP197 -> 535.7652523
A198: 195 | B198: 24 | C198: 16.86574208 | D198: 3.287083333 | E198: 11.3625 | F198: 11.2875 | G198: 16.33333333 | H198: 0 | I198: 11.22666667 | J198: 1.014191747 | K198: 0.7472252605 | L198: 0.08971643519 | M198: 0 | N198: 0 | O198: 0.8983333333 | P198: 0.06107442353 | Q198: 0.06107442353 | R198: 0.03394917956 | S198: 0.19 | T198: 0.02576908412 | U198: 0 | V198: 1.014191747 | W198: 0 | X198: 2.402648278 | Y198: 0.03287083333 | Z198: 2.876533565 | AA198: 0 | AB198: 16.92113315 | AC198: 0.04374712082 | AD198: 0.2215175957 | AE198: 0.2512243523 | AF198: 2.046064063 | AG198: 1.521427428 | AH198: 16.8415476 | AI198: 3.991903495 | AJ198: 0 | AK198: 0 | AL198: 0 | AM198: 0 | AN198: 0.01628696172 | AO198: 0.01851057018 | AP198: 1.158988642 | AQ198: 0.02006172637 | AR198: 3.288277669 | AS198: 0 | AT198: 2.369027636 | AU198: 2.329013799 | AV198: 2.046064063 | AW198: 0.2512243523 | AX198: 0.2215175957 | AY198: 16.8415476 | AZ198: 16.8415476 | BA198: 1.521427428 | BB198: 0 | BC198: 0 | BD198: 1.495341363 | BE198: 1.158988642 | BF198: 0.01851057018 | BG198: 0.01628696172 | BH198: 3.288277669 | BI198: 3.288277669 | BJ198: 0.08755046771 | BK198: 17.08055859 | BL198: 17.17027503 | BM198: 1.335025081 | BN198: 14.51375 | BO198: 12.79418555 | BP198: 1.183035055 | BQ198: 1.005698916 | BR198: 0.6820878518 | CF198: 409.9334063 | CG198: 12.79418555 | CH198: 1.183035055 | CI198: 1.005698916 | CJ198: 0.6820878518 | CN198: 0.04374712082 | CO198: 20.0866007 | CP198: 392 | CQ198: 412.0866007
A199: 196 | B199: 24 | C199: 17.72685337 | D199: 3.203333333 | E199: 11.5 | F199: 11.43333333 | G199: 23.45833333 | H199: 0 | I199: 11.325 | J199: 1.014191747 | K199: 0.5444436842 | L199: 0.06546875 | M199: 0 | N199: 0 | O199: 1.290208333 | P199: 0.04454248432 | Q199: 0.04454248432 | R199: 0.03231873659 | S199: 0.19 | T199: 0.01880446679 | U199: 0 | V199: 1.014191747 | W199: 0 | X199: 2.139330038 | Y199: 0.03203333333 | Z199: 2.908697917 | AA199: 0 | AB199: 24.15724806 | AC199: 0.02268252894 | AD199: 0.1762644204 | AE199: 0.189041718 | AF199: 2.159024898 | AG199: 2.119450509 | AH199: 23.66690232 | AI199: 5.706722617 | AJ199: 0 | AK199: 0 | AL199: 0 | AM199: 0 | AN199: 0.01297760737 | AO199: 0.01393516133 | AP199: 1.752153155 | AQ199: 0.01510494144 | AR199: 4.620914194 | AS199: 0 | AT199: 2.109394051 | AU199: 2.375754258 | AV199: 2.159024898 | AW199: 0.189041718 | AX199: 0.1762644204 | AY199: 23.66690232 | AZ199: 23.66690232 | BA199: 2.119450509 | BB199: 0 | BC199: 0 | BD199: 2.117779852 | BE199: 1.752153155 | BF199: 0.01393516133 | BG199: 0.01297760737 | BH199: 4.620914194 | BI199: 4.620914194 | BJ199: 0.1218724429 | BK199: 24.00277702 | BL199: 24.06824577 | BM199: 1.243358414 | BN199: 14.52833333 | BO199: 19.30479317 | BP199: 1.656641902 | BQ199: 1.589092461 | BR199: 1.048532721 | CF199: 576.0666484 | CG199: 19.30479317 | CH199: 1.656641902 | CI199: 1.589092461 | CJ199: 1.048532721 | CN199: 0.02268252894 | CO199: 14.63789842 | CP199: 563 | CQ199: 577.6378984
